Workbook

Sheet 1_Indholdsfortegnelse
A1: INDHOLDSFORTEGNELSE FOR DEN FÆLLES FODERMIDDELTABEL, udgivet af SEGES Svineproduktion
A2: Fane i regnearket | C2: Genvej | D2: Indhold
A4: 2 | B4: Version xx.xx.xxxx | C4: (genvej) | D4: Oversigt vedr. seneste versioner med en kort beskrivelse af ændringer pr. version
A5: 3 | B5: Et fodermiddel pr. side | C5: (genvej) | D5: Her kan de enkelte fodermidlers indhold og beskrivelser vises for ét fodermiddel ad gangen. De nummererede referencer, der er henvist til i Beskrivelsesafsnittet, kan man finde ved at klikke på nedenstående genvej ud for [Liste over referencer]
A6: 3a | B6: Fodermiddeltabellen (sorteret efter navn) | C6: (genvej) | D6: Her ses alle fodermidlerne og deres tabelværdier, der er medtaget i nærværende fodermiddeltabel. Fodermidlerne er sorteret efter navn.
A7: 3b | B7: Fodermiddeltabellen (sorteret efter nr.) | C7: (genvej) | D7: Her ses alle fodermidlerne og deres tabelværdier, der er medtaget i nærværende fodermiddeltabel. Fodermidlerne er sorteret efter navn.
A8: 4 | B8: BLANDINGs-beregning,I-faktor mv | C8: (genvej) | D8: Her kan man beregne forventet I-faktor og fordøjeligt indhold af centrale næringsstoffer -og sammenligne med normen for dyregruppen, når man kender fodermiddelsammensætningen af en foderblanding
A9: 5 | B9: Valgfrit opslag i Normer for næringsstoffer | C9: (genvej) | D9: Her kan man foretage et opslag på de næringsstofnormer, man ønsker at se ved siden af hinanden. Det kunne f.eks. være normer til de blandinger, der skal bruges i en besætning
A10: 5a | B10: Normer til smågrise | C10: (genvej) | D10: Fane 5a til 5e viser som udgangspunkt de normsæt, der findes i Tabel 1 til 5 (samt tilhørende normer for mikromineraler og vitaminer) i publikationen Normer for Næringsstoffer (tryk evt. på genvejen til højre for denne tekst). Den nye opbygning af publikationen Normer for Næringsstoffer (version: 7. maj 2019) er afspejlet i Faneblad nr. 5 til 5e i denne udgave af Fodermiddeltabellen. Men du kan frit vælge andre normkolonner eller skjule nogle kolonner mv. Derudover foretages automatisk opslag på den normkolonne for ung- og slagtesvin, der passer til det foderudnyttelsesniveau og afregningssystem, brugeren indtaster/vælger. Hvis du vil vise/udskrive normkolonner fra forskellige dyregrupper passer opsætningen i Fane 5 bedst | E10: Genvej til publikationen Normer for Næringsstoffer:
A11: 5b | B11: Normer til ungsvin | C11: (genvej)
A12: 5c | B12: Normer til slagtesvin | C12: (genvej) | E12: Svineproduktion.dk/viden/i-stalden/foder/indhold_foder/naeringsstoffer
A13: 5d | B13: Normer til UK- og specialgrise | C13: (genvej)
A14: 5e | B14: Normer til søer og polte | C14: (genvej)
A15: 5f | B15: Alle normkolonner samlet | C15: (genvej) | D15: Her ses alle normkolonner samlet
A16: 6a | B16: FExx-beregning ud fra analyser | C16: (genvej) | D16: Kan bruges, hvis man har et analyseresultat, hvorpå der ønskes beregnet foderenhedsindhold ud fra enten målt EFOSi eller ud fra I-faktor (som anvendes ved kontrol af energiindhold i Foderstofkontrollen
A17: 6b | B17: Beregning af analyseusikkerhed | C17: (genvej) | D17: Kan bruges, hvis man har et analyseresultat som fx et gns. af to analyser: Til at vurdere hvor stor usikkerhed (konfidensinterval), der er på det fundne gennemsnit og: Er det fx sikkert forskelligt fra garantiværdien? Man kan også bruge beregne, hvor mange prøver der skal sendes til analyse for at komme ned på en ønsket analyseusikkerhed.
A18: 7 | B18: Tabel m flere fodermidler | C18: (genvej) | D18: Her kan seks fodermidlers indhold vises i kolonner ved siden af hinanden
A19: 8 | B19: Liste over referencer | C19: (genvej) | D19: Her fås en liste over de referencer, der er henvist til i Beskrivelsesafsnittet i fanen [Et fodermiddel pr. side]
A20: 9 | B20: Baggrundsnotater for ændringer | C20: (genvej) | D20: Her fås en liste over de publikationer, der ligger til baggrund, når fodermidlernes tabelværdier ændres
A21: App1 | B21: Vinterbyg (fra årets kornanalyser) | C21: (genvej) | D21: Her ses tabeller over det seneste års, sidste års og gennemsnit af de seneste tre års kornanalyser (for byg og hvede) samt det seneste års kornanalyser og flerårigt gennemsnit for rug, havre og triticale.
A22: App2 | B22: Vårbyg (fra årets kornanalyser) | C22: (genvej)
A23: App3 | B23: Hvede (fra årets kornanalyser) | C23: (genvej)
A24: App4 | B24: Rug (fra årets kornanalyser) | C24: (genvej)
A25: App5 | B25: Havre (fra årets kornanalyser) | C25: (genvej)
A26: App6 | B26: Triticale (fra årets kornanalyser) | C26: (genvej)

Sheet 2_Version 22.10.2020
B1: (Genvej: Retur til Indholdsfortegnelsen)
B2: VERSIONSOVERSIGT FOR DEN FÆLLES FODERMIDDELTABEL
A3: Versionsdato | B3: Resumé af de væsentligste ændringer
A4: 2013-08-25 | B4: Forskellige fodermidler ajourført i samarbejde med DAKOFO EU-fodermiddelnumre indført i denne fodermiddeltabel
A5: 2013-10-28 | B5: Nye analyser på korn og foderkridt
A6: 2014-01-31 | B6: Ændringer af proteinfordøjelighedskoefficenter på soja- og rapsprodukter på baggrund af Meddelelse nr. 993, Videncenter for Svineproduktion: Fordøjelighed af soja- og rapsprodukter hos smågrise. Ajourføring af data for hestbønner på baggrund af analyser fra en næsten afsluttet afprøvning
A7: 2014-02-28 | B7: Standard-foderblandinger ajourført (færdigfoder, tilskudsfoder, mineralske foderblandinger og "0,2 %'s" vitamin- og mineralforblandinger.
A8: 2014-03-12 | B8: Tastefejl (fra august 2013) på calciumkoncentrationen i hvedeklid er nu rettet
A9: 2014-04-24 | B9: Standarddosis for fytaseproduktserien Ronozyme HiPhos (GT, M og L (henholdsvis til pelleteret- mineral- og vådfoder)) er anført på fodermiddeludskriften. Tastefejl fra 14.8.2013 på calciumkoncentrationen i Calciumformiat er rettet fra 3,08 til 30,8 % calcium i tørstof (støkiometrisk beregnet ud fra den kemiske formel for Calciumformiat Ca(HCO2)2 )
A10: 2014-05-05 | B10: Der er foretaget tilretninger på fanen [I-Faktor Blandingsberegning].
A11: 2014-05-14 | B11: Farven på visse celler i fanen [I-Faktor Blandingsberegning] er nedtonet af hensyn til læsbarheden af udskrifter
A12: 2014-05-23 | B12: Tilretning af genveje til Fødevarestyrelsens meddelelser samt forskellige småjusteringer/tilføjelser i fanen [I-Faktor Blandingsberegning]
A13: 2014-06-24 | B13: Fodermidler, hvor summen af stivelse og sukker oversteg LFK (LetFordøjelige Kulhydrater) med mere end tre procent er blevet blankstillet mht. sukker og stivelse. LFK beregnes ud fra formlerne i fodervurderingssystemet (se rapport nr. 30 fra VSP [der er en genvej i fanen Liste over reference ved nr. 176]). Tallene for stivelse og sukker i denne fodermiddeltabel er fra før 1997. Derfor kan der ved væsentlige ændringer i kemisk sammensætning (som følge af fremavl, gødskning, eller produktionsmetoder) ske misforhold mellem LFK og de gamle tabelværdier for stivelse og sukker. Indtil videre er løsningen med blankstilling valgt, hvor der er misforhold mellem de gamle tabelværdier og mere aktuelle analyser.
A14: 2014-10-02 | B14: Nye analyser på korn
A15: 2015-06-08 | B15: Ny fane "5_FExx-beregn. ud fra analyser" (Foderenhedsindhold kan beregnes ud fra I-faktor (som i Foderstofkontrollen) og ud fra analyseret EFOSi) Ny fane "6_Beregn analyseusikkerhed". Her kan analyseusikkerheden i forhold til antallet af indsendte foderprøver vurderes.
A16: 2015-11-06 | B16: Nye analyser på korn fra høst 2015. Nye gennemsnitsværdier for hestebønner for høst 2014 og samlet for høst 2012 og 2014. Nyt lysinsulfat-produkt "LYSIN,L(sulfat)70%"
A17: 2016-05-04 | B17: De nye aminosyrenormer til slagtesvin er lagt ind til brug for sammenligning mod beregnet blandingsindhold i fane nr. 4 "4_BLANDINGs-beregning,I-faktor". Derudover er det gjort nemmere at vælge et normsæt som sammenligningsgrundlag i fane nr. 4
A18: 2016-06-03 | B18: En del fodermidler har fået beregnet indholdet af fibre (følg evt. link'et til højre for denne tekst) og har derpå fået beregnet opløselige - og uopløselige fibre ud fra andelen af opløselige fibre ud af det totale fiberindhold i beslægtede fodermidler i publikationen "Carbohydrate and lignin contents of plant materials used in animal feeding" af Knud Erik Bach Knudsen, (Animal Feed Technology 67 (1997) 319-338). Denne publikation danner grundlag for de øvrige tabelværdier for fibre, sukker og stivelse i denne fodermiddeltabel til og med dags dato. I fane nr. 4 (hvor man kan indtaste en foderblandingssammensætning og få beregnet næringsstofindholdet i forhold til et normsæt) kan man nu i celle L11 skrive et foderudnyttelsesniveau for slagtesvin fra 30 til 110 kg, samt angive om der er tale om UK-afregning eller ej i celle O11 og derefter få beregnet det rigtige sammenligningsgrundlag fra normsættet for slagtesvin. | C18: Genvej til detaljer om denne ajourføring
A19: 2016-08-04 | B19: Rettelse af indtastningsfejl mht. lysinindhold i Biolys 70 I fane nr. 4 er der indsat beregning af blandingspris
A20: 2016-11-10 | B20: Nye analyser på korn fra høst 2016 og hestebønner fra høst 2015
A21: 2016-11-23 | B21: Der er nu indsat værdier fra nye analyser fra DLA-gruppen på sojaskråfoder, rapsskrå og -kage, solsikkeskrå og -kage, fiskemel, sojaskaller, lucernegrønmel, tørrede sukkerroesnitter, tørret kornbærme (DDGS) og hvedeklid samt nye analyser fra Arla på diverse valletyper. På sojaskråfoder er aminosyreprofilen ajourført ved gennemsnit af aktuelle analyser fra DLA-gruppen og den hidtidige profil. Protein- og aminosyrefordøjelighederne på sojaskråfoder er ajourført ved et gennemsnit af de hidtidige værdier med værdier fra et nyt fordøjelighedsforsøg med sydamerikansk sojaskrå udført hos nordamerikanske ungsvin (Hans H. Stein og kolleger).
A22: 2016-11-24 | B22: Som følge af ændringen af proteinfordøjeligheden i "Sojaskråfoder, afskallet, toastet" i november 2016 fra 88 til 89,5 procent har proteinfodermidler til smågrise, der fik ændret proteinfordøjelighed med baggrund i førnævnte forsøg [175], fået et tillæg på 1,5 procentenheder proteinfordøjelighed for at bevare balancen mellem disse og "Sojaskråfoder, afskallet, toastet".
A23: 2017-03-17 | B23: Der er tilføjet to produkter: KAGEMIX (kode 513-90) og SIRUP Beneocarb S (kode 724-00)
A24: 2017-11-02 | B24: Nye analyser på korn fra høst 2017 jf. notat nr. 1732 Der er tilføjet fire ekstra fosforfordøjeligheder på alle fodermidler svarende til fytasedoseringer fra 250 til 400 procent af standarddosis jf. notat nr. 1620
A25: 2017-12-05 | B25: Vi har fra december 2017 valgt at opdele valle fra de forskellige mejerier efter gennemsnitligt proteinindhold i tre grupper i denne fodermiddeltabel: Høj- Middel- og Lavproteinvalle. Typisk hører de hidtidige kategori A-valletyper til i enten Høj- eller Middelprotein-grupperne. Hoco Perlac 14 skiller sig ved kun at have halv fosforkoncentration i forhold til de øvrige. Valleanalyserne er modtaget fra ARLA i efteråret 2017. Der er indsat værdier fra nye analyser fra DLA-gruppen på sojaskråfoder, rapsskrå og -kage, solsikkeskrå og -kage, fiskemel, sojaskaller, lucernegrønmel, tørrede sukkerroesnitter, tørret kornbærme (DDGS) og hvedeklid. Fodermidlet "SOJASKRÅFODER, afskallet toastet ekstruderet, AlphaSoy PIG 530" er opdateret på baggrund af fem nye analyser af tørstof og råprotein fra efteråret 2017. Det er ud fra forskellige tabelværker vurderet, at afskallet havre kan dele tabelværdi med nøgen havre indtil der eventuelt etableres et mere solidt analysegrundlag. Ved at følge genvejen til højre herfor fås en tabel over de fodermidler inkl. indhold, der er ajourført siden 2. november 2017 Der er tilføjet nye søgefelterne, hvor man vælger / søger fodermidler ved 1. at markere hele teksten (Ctrl-A) i felterne og 2. begynde at skrive fodermidlets navn og 3. evt. derefter søge videre ved hjælp af pilen Tilretning af "hyperlinks" (så de henviser til vor nye hjemmeside) i faneblad nr. 8 "Liste over referencer" er påbegyndt og vil blive færdiggjort i en af de næste versioner. | C25: Genvej til detaljer om denne ajourføring
A26: 2018-09-27 | B26: Nye analyser på korn fra høst 2018 jf. notat nr. 1824. Der er i år suppleret med analyser af klorid-indholdet, hvor rug, havre og triticale før har haft 0 som tabelværdi. Majs: DLA-gruppen har bidraget med aktuelle analyseværdier på importeret majs. Afskallet havre har fået en selvstændig tabelværdi, baseret på nogle få aktuelle analyser. Der arbejdes i efteråret 2018 på at forbedre dette analysegrundlag. Tabelværdien er derfor foreløbig. Produkter med frit lysin til brug i vådfoder med 35-50 % restmængde har fået en ekstra udgave, hvor proteinfordøjeligheden er sat til 50 % svarende til den andel, der forventes bortfermenteret i restmængden. Tildelte værdier for klorid på sojaprodukter og hestebønner: Sojaskråfoder og andre forædlede produkter af sojabønner er ud fra et hollandsk tabelværk fra 1998 tildelt værdien 0,3 gram klorid pr. kg foreliggende vare. Vi er klar over, at NRC i "Nutrient Requirements of Swine" fra 2012 på side 332 har en tabelværdi for afskallet og ekstraheret sojaskrå på 4,9 gram klorid pr. kg (hvilket formodentlig er en trykfejl) og på side 340 og 341 findes værdier på 0,5 og 0,3 gram klorid pr. kg for henholdsvis almindeligt ekstraheret sojaskrå og sojabønner. Hestebønner har ud fra samme hollandske tabelværk fået tildelt værdien 0,3 gram klorid pr. kg foreliggende vare.
A27: 2018-10-26 | B27: Faneblad nr. 11 "Normprofiler" er tilrettet med de nye fosfor- og calciumnormer svarende til "Normer for Næringsstoffer" version 18. september 2018 Dette kan anvendes til at sammenligne indholdet af den foderblanding, man kan beregne i faneblad nr. 4 "Blandings-beregning, I-faktor", med normen for den tilhørende dyregruppe. Enheden for vitamin B12 er i denne fodermiddel ændret fra mikrogram (mcg) til milligram (mg). Det er sket for at lette den direkte overførsel af værdier til AgrosSoft/WinOpti Majs har ud fra et hollandsk tabelværk fra 1998 og NRCs "Nutrient Requirements of Swine" fra 2012 fået tildelt værdien 0,5 gram klorid pr. kg foreliggende vare, svarende til 0,58 gram pr. kg tørstof
A28: 2019-05-21 | B28: Den nye opbygning af publikationen Normer for Næringsstoffer (version: 7. maj 2019) er afspejlet i Faneblad nr. 5 til 5e i denne udgave af Fodermiddeltabellen, hvorved der kan foretages opslag på den eller de normkolonner, man f.eks. kunne ønske at samle på én udskrift til en besætning. Se faneblad [5_NormOpslag,besætning], hvis der er ønske om at samle normkolonner til flere dyregrupper på én side. Ved opslag på normer til ung- og slagtesvin, finder regnearket automatisk det protein-, aminosyre- og mineralniveau, der passer til det foderudnyttelsesniveau og afregningssystem, brugeren indtaster/vælger. Dette kan også anvendes i det faneblad [4_BLANDINGs-beregning,I-faktor], hvor man kan beregne indholdet af en foderblanding med en kendt råvaresammensætning, og dette beregnede næringsstofindhold sammenlignes med normen for den dyregruppe, brugeren vælger. Majs har fået en ekstra udgave "Majs, 2018", som er dannet ud fra analyser af importeret majs fra efteråret 2018 til foråret 2019. Disse prøver er indsamlet af DAKOFO-medlemsvirksomheder. Grundudgaven, "Majs, flerårigt gns." baseres på gennemsnittet af de seneste tre års analyseresultater. Afskallet havre er ajourført ud fra analyser på prøver indsamlet hos landmænd fra november 2018 til marts 2019 Produktet Easylin ("Easylin Power Protect"), som er en ekstruderet blanding af hørfrø og hvedeklid, er optaget i Fodermiddeltabellen på baggrund af analyser af fem prøver udtaget over flere måneder, som er kravet for optagelse.
A29: 2019-11-07 | B29: Nye analyser på korn fra høst 2019 jf. notat nr. 1927. Desuden er værdierne for sojaskråfoder, rapsskrå og -kage, solsikkeskrå, fiskemel, sojaskaller, lucernegrønmel, tørrede sukkerroesnitter (roepiller) og tørret kornbærme (DDGS) ajourført med supplerende analyser på tørstof, protein, fedt, aske, træstof, EFOS og EFOSi fra DLA-gruppen.
A30: 2020-10-22 | B30: Nye analyser på korn fra høst 2020 jf. notat nr. 2026.

Sheet 3_Et fodermiddel pr. side
E1: (Genvej: Retur til Indholdsfortegnelsen) | S1: Genvej til alle fodermidlerne og deres tabelværdier, der er medtaget i nærværende fodermiddeltabel
D2: FODERMIDDELTABEL | U2: FODERMIDDELTABEL
D4: Bemærk! Du vælger fodermiddel ved at markere hele teksten (Ctrl-A) i feltet herunder og begynde at skrive fodermidlets navn og derefter søge videre med pilen
A6: Vælg fodermiddel:
A7: Vælg fodermiddel: | E7: HVEDE, 2020
A8: Fodermiddelnr. i EU-forordning: | E8: =IFERROR(IF(VLOOKUP($K$8,'3a_Fodermiddeltabel'!$A$6:$HZ$491,127,)>0,VLOOKUP($K$8,'3a_Fodermiddeltabel'!$A$6:$HZ$491,127,),CHAR(32)),"") -> 1.11.1 | G8: Kode i Fodermiddeltabellen: | K8: =IFERROR(VLOOKUP(E7,BM12:BN353,2,FALSE),"") -> 51000 | Q8: Beskrivelse af: | T8: =IF($K$8>0,VLOOKUP($K$8,'3a_Fodermiddeltabel'!$A$6:$CP$491,4,),CHAR(32)) -> HVEDE, 2020
A9: Senest revideret | E9: =IFERROR(IF($K$8>0,VLOOKUP($K$8,'3a_Fodermiddeltabel'!$A$6:$CP$491,5,),CHAR(32)),"") -> 2020-10-08
Q10: Generelt | BM10: Genvej til 10_VSP_Fodermiddeltabel
A11: Tabelværdi for | C11: =IF($K$8>0,VLOOKUP($K$8,'3a_Fodermiddeltabel'!$A$6:$CP$491,4,),CHAR(32)) -> HVEDE, 2020 | Q11: =IF(VLOOKUP($K$8,'3a_Fodermiddeltabel'!$A$6:$HZ$491,231,)>0,VLOOKUP($K$8,'3a_Fodermiddeltabel'!$A$6:$HZ$491,231,),CHAR(32)) -> Hvede, som dyrkes i stor udstrækning i Danmark, er frø fra dyrkede sorter af hvedeplanter (Triticum aestivum og Triticum durum). Hvede kan indgå i et foder til grise som eneste kornart. Er der før høst brugt stråforkortningsmidler, bør hvede i foder til søer maksimalt udgøre 30 pct. af FEso. En igangværende undersøgelse tyder på, at der er forskel i foderværdien (indhold af FEsv) mellem forskellige sorter. Der er ud fra de foreløbige tal et potentiale på 3,5 FEsv pr. 100 kg i vinterhvede, men flere analyser skal vise, om der i fremtiden skal vælges sort efter FEsv pr. ha. Hvede har et lavt indhold af fibre. "d.gr.": Tabelværdien for natrium er lig med detektionsgrænsen i det anvendte laboratorium. Det reele indhold kan være lavere. Mange analyser af refereprøven (hvor resultaterne overlevede laboratoriets deteksgrænse) viste 0,06 g/kg vare :-) Ud fra forsøg og generel erfaring vurderes, at hvede kan bruges i henhold til følgende kilder: [1], [3], [5], [6], [9], [11], [12], [14], [15]. [17], [18], [19], [20], | BM11: Fodermiddel | BN11: Fodermid-delkode
BM12: =IF(+'3a_Fodermiddeltabel'!D6>0,+'3a_Fodermiddeltabel'!D6,"") -> BENZOESYRE (1% vand) | BN12: =IF(+'3a_Fodermiddeltabel'!A6>0,+'3a_Fodermiddeltabel'!A6,"") -> 94800
A13: Kemisk indhold | J13: Fordøjeligheder | BM13: =IF(+'3a_Fodermiddeltabel'!D7>0,+'3a_Fodermiddeltabel'!D7,"") -> BIOLYS 70 % | BN13: =IF(+'3a_Fodermiddeltabel'!A7>0,+'3a_Fodermiddeltabel'!A7,"") -> 99565
D14: Pct. af varen | E14: Pct. af tørstof | F14: Analyser bag tallene | BM14: =IF(+'3a_Fodermiddeltabel'!D8>0,+'3a_Fodermiddeltabel'!D8,"") -> BIOLYS 70% Vådfoder,FK=50% | BN14: =IF(+'3a_Fodermiddeltabel'!A8>0,+'3a_Fodermiddeltabel'!A8,"") -> 99567
F15: Antal | G15: Std.afv. | H15: Rev.år | O15: FK | BM15: =IF(+'3a_Fodermiddeltabel'!D9>0,+'3a_Fodermiddeltabel'!D9,"") -> BIOLYS 70% Vådfoder,FK=75% | BN15: =IF(+'3a_Fodermiddeltabel'!A9>0,+'3a_Fodermiddeltabel'!A9,"") -> 99566
A16: Tørstof | D16: =IF($K$8>0,VLOOKUP($K$8,'3a_Fodermiddeltabel'!$A$6:$CP$491,12,),CHAR(32)) -> 86.1 | F16: =IF(VLOOKUP($K$8,'3a_Fodermiddeltabel'!$A$6:$HZ$491,+Tælleark!F14,)>0,VLOOKUP($K$8,'3a_Fodermiddeltabel'!$A$6:$HZ$491,+Tælleark!F14,),CHAR(32)) -> 32 | G16: =IF(VLOOKUP($K$8,'3a_Fodermiddeltabel'!$A$6:$HZ$491,+Tælleark!G14,)>0,VLOOKUP($K$8,'3a_Fodermiddeltabel'!$A$6:$HZ$491,+Tælleark!G14,),CHAR(32)) -> 0.8 | H16: =IF(VLOOKUP($K$8,'3a_Fodermiddeltabel'!$A$6:$HZ$491,+Tælleark!H14,)>0,VLOOKUP($K$8,'3a_Fodermiddeltabel'!$A$6:$HZ$491,+Tælleark!H14,),CHAR(32)) -> 2020 | J16: Råprotein (standardiseret) | O16: =IF($K$8>0,VLOOKUP($K$8,'3a_Fodermiddeltabel'!$A$6:$CP$491,18,),CHAR(32)) -> 84.10010625 | BM16: =IF(+'3a_Fodermiddeltabel'!D10>0,+'3a_Fodermiddeltabel'!D10,"") -> BLODPLASMA, Daka Sprayt 2500 | BN16: =IF(+'3a_Fodermiddeltabel'!A10>0,+'3a_Fodermiddeltabel'!A10,"") -> 80500
A17: Råprotein | D17: =IF($K$8>0,VLOOKUP($K$8,'3a_Fodermiddeltabel'!$A$6:$CP$491,13,),CHAR(32)) -> 9.6 | E17: =IF($K$8>0,VLOOKUP($K$8,'3a_Fodermiddeltabel'!$A$6:$CP$491,63,),CHAR(32)) -> 11.14982578 | F17: =IF(VLOOKUP($K$8,'3a_Fodermiddeltabel'!$A$6:$HZ$491,+Tælleark!F15,)>0,VLOOKUP($K$8,'3a_Fodermiddeltabel'!$A$6:$HZ$491,+Tælleark!F15,),CHAR(32)) -> 32 | G17: =IF(VLOOKUP($K$8,'3a_Fodermiddeltabel'!$A$6:$HZ$491,+Tælleark!G15,)>0,VLOOKUP($K$8,'3a_Fodermiddeltabel'!$A$6:$HZ$491,+Tælleark!G15,),CHAR(32)) -> 0.5 | H17: =IF(VLOOKUP($K$8,'3a_Fodermiddeltabel'!$A$6:$HZ$491,+Tælleark!H15,)>0,VLOOKUP($K$8,'3a_Fodermiddeltabel'!$A$6:$HZ$491,+Tælleark!H15,),CHAR(32)) -> 2020 | J17: Råfedt (reelt fordøjet) | O17: 90 | BM17: =IF(+'3a_Fodermiddeltabel'!D11>0,+'3a_Fodermiddeltabel'!D11,"") -> BLODPRODUKT (HÆMOGLOBINMEL, Daka) | BN17: =IF(+'3a_Fodermiddeltabel'!A11>0,+'3a_Fodermiddeltabel'!A11,"") -> 80600
A18: Råfedt | D18: =IF($K$8>0,VLOOKUP($K$8,'3a_Fodermiddeltabel'!$A$6:$CP$491,14,),CHAR(32)) -> 2.1 | E18: =IF($K$8>0,VLOOKUP($K$8,'3a_Fodermiddeltabel'!$A$6:$CP$491,64,),CHAR(32)) -> 2.43902439 | F18: =IF(VLOOKUP($K$8,'3a_Fodermiddeltabel'!$A$6:$HZ$491,+Tælleark!F16,)>0,VLOOKUP($K$8,'3a_Fodermiddeltabel'!$A$6:$HZ$491,+Tælleark!F16,),CHAR(32)) -> 16 | G18: =IF(VLOOKUP($K$8,'3a_Fodermiddeltabel'!$A$6:$HZ$491,+Tælleark!G16,)>0,VLOOKUP($K$8,'3a_Fodermiddeltabel'!$A$6:$HZ$491,+Tælleark!G16,),CHAR(32)) -> 0.2 | H18: =IF(VLOOKUP($K$8,'3a_Fodermiddeltabel'!$A$6:$HZ$491,+Tælleark!H16,)>0,VLOOKUP($K$8,'3a_Fodermiddeltabel'!$A$6:$HZ$491,+Tælleark!H16,),CHAR(32)) -> 2020 | J18: Fosfor, 0 enheder fytase tilsat | O18: =IF($K$8>0,VLOOKUP($K$8,'3a_Fodermiddeltabel'!$A$6:$CP$491,19,),CHAR(32)) -> 50 | BM18: =IF(+'3a_Fodermiddeltabel'!D12>0,+'3a_Fodermiddeltabel'!D12,"") -> BOLIFOR 18 (MCP 21/18) | BN18: =IF(+'3a_Fodermiddeltabel'!A12>0,+'3a_Fodermiddeltabel'!A12,"") -> 46202
A19: Råaske | D19: =IF($K$8>0,VLOOKUP($K$8,'3a_Fodermiddeltabel'!$A$6:$CP$491,15,),CHAR(32)) -> 1.4 | E19: =IF($K$8>0,VLOOKUP($K$8,'3a_Fodermiddeltabel'!$A$6:$CP$491,65,),CHAR(32)) -> 1.62601626 | F19: =IF(VLOOKUP($K$8,'3a_Fodermiddeltabel'!$A$6:$HZ$491,+Tælleark!F17,)>0,VLOOKUP($K$8,'3a_Fodermiddeltabel'!$A$6:$HZ$491,+Tælleark!F17,),CHAR(32)) -> 16 | G19: =IF(VLOOKUP($K$8,'3a_Fodermiddeltabel'!$A$6:$HZ$491,+Tælleark!G17,)>0,VLOOKUP($K$8,'3a_Fodermiddeltabel'!$A$6:$HZ$491,+Tælleark!G17,),CHAR(32)) -> 0.1 | H19: =IF(VLOOKUP($K$8,'3a_Fodermiddeltabel'!$A$6:$HZ$491,+Tælleark!H17,)>0,VLOOKUP($K$8,'3a_Fodermiddeltabel'!$A$6:$HZ$491,+Tælleark!H17,),CHAR(32)) -> 2020 | J19: Fosforfordøjelighed afhængigt af XXX % dosering fytase i forhold til standarddosis ** | L19: 60%: | M19: =IF($K$8>0,VLOOKUP($K$8,'3a_Fodermiddeltabel'!$A$6:$CP$491,20,),CHAR(32)) -> 54.87804878 | N19: 250%: | O19: =IF($K$8>0,VLOOKUP($K$8,'3a_Fodermiddeltabel'!$A$6:$IF$491,237,),CHAR(32)) -> 60.63414634 | BM19: =IF(+'3a_Fodermiddeltabel'!D13>0,+'3a_Fodermiddeltabel'!D13,"") -> BOLIFOR MCP-F (16/22,7) | BN19: =IF(+'3a_Fodermiddeltabel'!A13>0,+'3a_Fodermiddeltabel'!A13,"") -> 46203
A20: Træstof | D20: =IF($K$8>0,VLOOKUP($K$8,'3a_Fodermiddeltabel'!$A$6:$CP$491,16,),CHAR(32)) -> 2.7 | E20: =IF($K$8>0,VLOOKUP($K$8,'3a_Fodermiddeltabel'!$A$6:$CP$491,66,),CHAR(32)) -> 3.176470588 | F20: =IF(VLOOKUP($K$8,'3a_Fodermiddeltabel'!$A$6:$HZ$491,+Tælleark!F18,)>0,VLOOKUP($K$8,'3a_Fodermiddeltabel'!$A$6:$HZ$491,+Tælleark!F18,),CHAR(32)) ->  | G20: =IF(VLOOKUP($K$8,'3a_Fodermiddeltabel'!$A$6:$HZ$491,+Tælleark!G18,)>0,VLOOKUP($K$8,'3a_Fodermiddeltabel'!$A$6:$HZ$491,+Tælleark!G18,),CHAR(32)) ->  | H20: =IF(VLOOKUP($K$8,'3a_Fodermiddeltabel'!$A$6:$HZ$491,+Tælleark!H18,)>0,VLOOKUP($K$8,'3a_Fodermiddeltabel'!$A$6:$HZ$491,+Tælleark!H18,),CHAR(32)) ->  | L20: 100%: | M20: =IF($K$8>0,VLOOKUP($K$8,'3a_Fodermiddeltabel'!$A$6:$CP$491,21,),CHAR(32)) -> 56.82926829 | N20: 300%: | O20: =IF($K$8>0,VLOOKUP($K$8,'3a_Fodermiddeltabel'!$A$6:$IF$491,238,),CHAR(32)) -> 61.2195122 | BM20: =IF(+'3a_Fodermiddeltabel'!D14>0,+'3a_Fodermiddeltabel'!D14,"") -> BYG, vinter, 2020 | BN20: =IF(+'3a_Fodermiddeltabel'!A14>0,+'3a_Fodermiddeltabel'!A14,"") -> 50300
A21: Jodtal | E21: =IF($K$8>0,VLOOKUP($K$8,'3a_Fodermiddeltabel'!$A$6:$CP$491,68,),CHAR(32)) -> 105 | L21: 150%: | M21: =IF($K$8>0,VLOOKUP($K$8,'3a_Fodermiddeltabel'!$A$6:$CP$491,22,),CHAR(32)) -> 58.58536585 | N21: 350%: | O21: =IF($K$8>0,VLOOKUP($K$8,'3a_Fodermiddeltabel'!$A$6:$IF$491,239,),CHAR(32)) -> 61.70731707 | BM21: =IF(+'3a_Fodermiddeltabel'!D15>0,+'3a_Fodermiddeltabel'!D15,"") -> BYG, vinter, 2020 + xylanase | BN21: =IF(+'3a_Fodermiddeltabel'!A15>0,+'3a_Fodermiddeltabel'!A15,"") -> 50301
L22: 200%: | M22: =IF($K$8>0,VLOOKUP($K$8,'3a_Fodermiddeltabel'!$A$6:$CP$491,23,),CHAR(32)) -> 59.75609756 | N22: 400%: | O22: =IF($K$8>0,VLOOKUP($K$8,'3a_Fodermiddeltabel'!$A$6:$IF$491,240,),CHAR(32)) -> 62 | BM22: =IF(+'3a_Fodermiddeltabel'!D16>0,+'3a_Fodermiddeltabel'!D16,"") -> BYG, vinter, 2020, varmebehandlet | BN22: =IF(+'3a_Fodermiddeltabel'!A16>0,+'3a_Fodermiddeltabel'!A16,"") -> 50310
BM23: =IF(+'3a_Fodermiddeltabel'!D17>0,+'3a_Fodermiddeltabel'!D17,"") -> BYG, vinter, 2020, varmebehandlet + xylanase | BN23: =IF(+'3a_Fodermiddeltabel'!A17>0,+'3a_Fodermiddeltabel'!A17,"") -> 50311
A24: Energi | J24: Kulhydrater | BM24: =IF(+'3a_Fodermiddeltabel'!D18>0,+'3a_Fodermiddeltabel'!D18,"") -> BYG, vinter, 2020, økologisk | BN24: =IF(+'3a_Fodermiddeltabel'!A18>0,+'3a_Fodermiddeltabel'!A18,"") -> 50350
A25: EFOS | E25: =IF($K$8>0,VLOOKUP($K$8,'3a_Fodermiddeltabel'!$A$6:$CP$491,8,),CHAR(32)) -> 92.1 | F25: =IF(VLOOKUP($K$8,'3a_Fodermiddeltabel'!$A$6:$HZ$491,+Tælleark!F23,)>0,VLOOKUP($K$8,'3a_Fodermiddeltabel'!$A$6:$HZ$491,+Tælleark!F23,),CHAR(32)) -> 16 | G25: =IF(VLOOKUP($K$8,'3a_Fodermiddeltabel'!$A$6:$HZ$491,+Tælleark!G23,)>0,VLOOKUP($K$8,'3a_Fodermiddeltabel'!$A$6:$HZ$491,+Tælleark!G23,),CHAR(32)) -> 0.7 | H25: =IF(VLOOKUP($K$8,'3a_Fodermiddeltabel'!$A$6:$HZ$491,+Tælleark!H23,)>0,VLOOKUP($K$8,'3a_Fodermiddeltabel'!$A$6:$HZ$491,+Tælleark!H23,),CHAR(32)) -> 2020 | O25: g/kg tørstof | BM25: =IF(+'3a_Fodermiddeltabel'!D19>0,+'3a_Fodermiddeltabel'!D19,"") -> BYG, vinter, 2020, varmebehandlet, økologisk | BN25: =IF(+'3a_Fodermiddeltabel'!A19>0,+'3a_Fodermiddeltabel'!A19,"") -> 50360
A26: EFOSi | E26: =IF($K$8>0,VLOOKUP($K$8,'3a_Fodermiddeltabel'!$A$6:$CP$491,9,),CHAR(32)) -> 87.4 | F26: =IF(VLOOKUP($K$8,'3a_Fodermiddeltabel'!$A$6:$HZ$491,+Tælleark!F24,)>0,VLOOKUP($K$8,'3a_Fodermiddeltabel'!$A$6:$HZ$491,+Tælleark!F24,),CHAR(32)) -> 16 | G26: =IF(VLOOKUP($K$8,'3a_Fodermiddeltabel'!$A$6:$HZ$491,+Tælleark!G24,)>0,VLOOKUP($K$8,'3a_Fodermiddeltabel'!$A$6:$HZ$491,+Tælleark!G24,),CHAR(32)) -> 1 | H26: =IF(VLOOKUP($K$8,'3a_Fodermiddeltabel'!$A$6:$HZ$491,+Tælleark!H24,)>0,VLOOKUP($K$8,'3a_Fodermiddeltabel'!$A$6:$HZ$491,+Tælleark!H24,),CHAR(32)) -> 2020 | J26: Organisk stof | O26: =IF($K$8>0,VLOOKUP($K$8,'3a_Fodermiddeltabel'!$A$6:$CP$491,73,),CHAR(32)) -> 983.7398374 | BM26: =IF(+'3a_Fodermiddeltabel'!D20>0,+'3a_Fodermiddeltabel'!D20,"") -> BYG, vinter, gns. 2018-2020 | BN26: =IF(+'3a_Fodermiddeltabel'!A20>0,+'3a_Fodermiddeltabel'!A20,"") -> 50500
A27: EFNi, pct. | E27: =IF($K$8>0,VLOOKUP($K$8,'3a_Fodermiddeltabel'!$A$6:$CP$491,10,),CHAR(32)) -> 93 | J27: Letfordøjelige kulhydrater | O27: =IF($K$8>0,VLOOKUP($K$8,'3a_Fodermiddeltabel'!$A$6:$CP$491,74,),CHAR(32)) -> 714.8513357 | BM27: =IF(+'3a_Fodermiddeltabel'!D21>0,+'3a_Fodermiddeltabel'!D21,"") -> BYG, vinter, gns. 2018-2020 + xylanase | BN27: =IF(+'3a_Fodermiddeltabel'!A21>0,+'3a_Fodermiddeltabel'!A21,"") -> 50501
A28: I-faktor 1) | E28: =IFERROR(IF(E25<>0,+E26*100/E25,""),"") -> 94.89685125 | F28: =IF(VLOOKUP($K$8,'3a_Fodermiddeltabel'!$A$6:$HZ$491,+Tælleark!F26,)>0,VLOOKUP($K$8,'3a_Fodermiddeltabel'!$A$6:$HZ$491,+Tælleark!F26,),CHAR(32)) -> 16 | G28: =IF(VLOOKUP($K$8,'3a_Fodermiddeltabel'!$A$6:$HZ$491,+Tælleark!G26,)>0,VLOOKUP($K$8,'3a_Fodermiddeltabel'!$A$6:$HZ$491,+Tælleark!G26,),CHAR(32)) ->  | H28: =IF(VLOOKUP($K$8,'3a_Fodermiddeltabel'!$A$6:$HZ$491,+Tælleark!H26,)>0,VLOOKUP($K$8,'3a_Fodermiddeltabel'!$A$6:$HZ$491,+Tælleark!H26,),CHAR(32)) -> 2020 | J28: Fermenterbare kulhydrater | O28: =IF($K$8>0,VLOOKUP($K$8,'3a_Fodermiddeltabel'!$A$6:$CP$491,75,),CHAR(32)) -> 66.05110337 | BM28: =IF(+'3a_Fodermiddeltabel'!D22>0,+'3a_Fodermiddeltabel'!D22,"") -> BYG, vinter, gns. 2018-2020, varmebehandlet | BN28: =IF(+'3a_Fodermiddeltabel'!A22>0,+'3a_Fodermiddeltabel'!A22,"") -> 50510
A29: FE-korrektionsfaktor 2) | E29: =IF($K$8>0,VLOOKUP($K$8,'3a_Fodermiddeltabel'!$A$6:$CP$491,11,),CHAR(32)) -> 1 | J29: Stivelse | O29: =IF($K$8>0,VLOOKUP($K$8,'3a_Fodermiddeltabel'!$A$6:$CP$491,76,),CHAR(32)) -> 670 | BM29: =IF(+'3a_Fodermiddeltabel'!D23>0,+'3a_Fodermiddeltabel'!D23,"") -> BYG, vinter, gns. 2018-2020, varmebehandlet + xylanas | BN29: =IF(+'3a_Fodermiddeltabel'!A23>0,+'3a_Fodermiddeltabel'!A23,"") -> 50511
D30: i varen | E30: i tørstof | J30: Sukker | O30: =IF($K$8>0,VLOOKUP($K$8,'3a_Fodermiddeltabel'!$A$6:$CP$491,77,),CHAR(32)) -> 19 | BM30: =IF(+'3a_Fodermiddeltabel'!D24>0,+'3a_Fodermiddeltabel'!D24,"") -> BYG, vinter, 2019 | BN30: =IF(+'3a_Fodermiddeltabel'!A24>0,+'3a_Fodermiddeltabel'!A24,"") -> 50400
A31: FEsv, pr. 100 kg | D31: =IFERROR(IF($K$8>0,VLOOKUP($K$8,'3a_Fodermiddeltabel'!$A$6:$CP$491,6,)*100,CHAR(32)),"") -> 117.8972019 | E31: =IFERROR(IF($K$8>0,VLOOKUP($K$8,'3a_Fodermiddeltabel'!$A$6:$CP$491,70,)*100,CHAR(32)),"") -> 136.9305481 | F31: =IF(VLOOKUP($K$8,'3a_Fodermiddeltabel'!$A$6:$HZ$491,+Tælleark!F29,)>0,VLOOKUP($K$8,'3a_Fodermiddeltabel'!$A$6:$HZ$491,+Tælleark!F29,),CHAR(32)) -> 16 | G31: =IF(VLOOKUP($K$8,'3a_Fodermiddeltabel'!$A$6:$HZ$491,+Tælleark!G29,)>0,VLOOKUP($K$8,'3a_Fodermiddeltabel'!$A$6:$HZ$491,+Tælleark!G29,),CHAR(32)) -> 1.5 | H31: =IF(VLOOKUP($K$8,'3a_Fodermiddeltabel'!$A$6:$HZ$491,+Tælleark!H29,)>0,VLOOKUP($K$8,'3a_Fodermiddeltabel'!$A$6:$HZ$491,+Tælleark!H29,),CHAR(32)) -> 2020 | J31: Opløselige fibre | O31: =IF($K$8>0,VLOOKUP($K$8,'3a_Fodermiddeltabel'!$A$6:$CP$491,78,),CHAR(32)) -> 25 | Q31: Hvis der er en anbefaling om maksimal iblandingsprocent af dette fodermiddel i en foderblanding, ses det i oversigten her: | BM31: =IF(+'3a_Fodermiddeltabel'!D25>0,+'3a_Fodermiddeltabel'!D25,"") -> BYG, vinter, 2019 + xylanase | BN31: =IF(+'3a_Fodermiddeltabel'!A25>0,+'3a_Fodermiddeltabel'!A25,"") -> 50401
A32: FEso, pr. 100 kg | D32: =IFERROR(IF($K$8>0,VLOOKUP($K$8,'3a_Fodermiddeltabel'!$A$6:$CP$491,7,)*100,CHAR(32)),"") -> 115.8825008 | E32: =IFERROR(IF($K$8>0,VLOOKUP($K$8,'3a_Fodermiddeltabel'!$A$6:$CP$491,71,)*100,CHAR(32)),"") -> 134.5905932 | F32: =IF(VLOOKUP($K$8,'3a_Fodermiddeltabel'!$A$6:$HZ$491,+Tælleark!F30,)>0,VLOOKUP($K$8,'3a_Fodermiddeltabel'!$A$6:$HZ$491,+Tælleark!F30,),CHAR(32)) -> 16 | G32: =IF(VLOOKUP($K$8,'3a_Fodermiddeltabel'!$A$6:$HZ$491,+Tælleark!G30,)>0,VLOOKUP($K$8,'3a_Fodermiddeltabel'!$A$6:$HZ$491,+Tælleark!G30,),CHAR(32)) -> 1.1 | H32: =IF(VLOOKUP($K$8,'3a_Fodermiddeltabel'!$A$6:$HZ$491,+Tælleark!H30,)>0,VLOOKUP($K$8,'3a_Fodermiddeltabel'!$A$6:$HZ$491,+Tælleark!H30,),CHAR(32)) -> 2020 | J32: Uopløselige fibre | O32: =IF($K$8>0,VLOOKUP($K$8,'3a_Fodermiddeltabel'!$A$6:$CP$491,79,),CHAR(32)) -> 113 | Q32: Maksimalt indhold af råvarer i foder | BM32: =IF(+'3a_Fodermiddeltabel'!D26>0,+'3a_Fodermiddeltabel'!D26,"") -> BYG, vinter, 2019, varmebehandlet | BN32: =IF(+'3a_Fodermiddeltabel'!A26>0,+'3a_Fodermiddeltabel'!A26,"") -> 50410
BM33: =IF(+'3a_Fodermiddeltabel'!D27>0,+'3a_Fodermiddeltabel'!D27,"") -> BYG, vinter, 2019, varmebehandlet + xylanase | BN33: =IF(+'3a_Fodermiddeltabel'!A27>0,+'3a_Fodermiddeltabel'!A27,"") -> 50411
A34: Aminosyrer | J34: Mineraler | Q34: Vær opmærksom på | BM34: =IF(+'3a_Fodermiddeltabel'!D28>0,+'3a_Fodermiddeltabel'!D28,"") -> BYG, vår, 2020 | BN34: =IF(+'3a_Fodermiddeltabel'!A28>0,+'3a_Fodermiddeltabel'!A28,"") -> 50000
B35: Pct. af råprotein | C35: Faktor* | D35: g pr. kg vare | E35: St. ford., g pr. kg vare | F35: Analyser bag tallene | K35: Pr. kg vare | L35: Pr. kg tørstof | M35: Analyser bag tallene | Q35: =IF(VLOOKUP($K$8,'3a_Fodermiddeltabel'!$A$6:$HZ$491,232,)>0,VLOOKUP($K$8,'3a_Fodermiddeltabel'!$A$6:$HZ$491,232,),CHAR(32)) -> En høj andel af hvede eller hvede som eneste kornart øger risikoen for mave-tarm-problemer, som fx Salmonella og mavesår. Det anbefales i sådanne tilfælde at anvende en grovere formaling. Man bør dog være opmærksom på, at grovere formaling forringer foderudnyttelsen, og ændringen bør derfor altid ske udfra en ordentlig diagnose. Læs mere i afsnittet Formaling og foderstruktur. Hvede kan være inficeret med hvede stinkbrand og kan indeholde Fusarium-toksiner. Årsagen til problemer med mave- og fordøjelsesforstyrrelser samt svineri i stierne kan skyldes manglende struktur i foderet som følge af det lave indhold af fibre i hvede. Manglende struktur i foderet giver risiko for dannelse af maveforandringer og -sår i den hvide del af maven. En grov formaling eller valsning af hvede afhjælper i mange tilfælde problemet med manglende struktur i foderet og dermed risiko for mavesår, men øger samtidig risikoen for en væsentlig forringelse af foderudnyttelsen. | BM35: =IF(+'3a_Fodermiddeltabel'!D29>0,+'3a_Fodermiddeltabel'!D29,"") -> BYG, vår, 2020 + xylanase | BN35: =IF(+'3a_Fodermiddeltabel'!A29>0,+'3a_Fodermiddeltabel'!A29,"") -> 50001
F36: Antal | G36: Std.afv. | H36: Rev.år | M36: Antal | N36: Std.afv. | O36: Rev.år | BM36: =IF(+'3a_Fodermiddeltabel'!D30>0,+'3a_Fodermiddeltabel'!D30,"") -> BYG, vår, 2020, varmebehandlet | BN36: =IF(+'3a_Fodermiddeltabel'!A30>0,+'3a_Fodermiddeltabel'!A30,"") -> 50010
A37: Lysin | B37: =IF($K$8>0,VLOOKUP($K$8,'3a_Fodermiddeltabel'!$A$6:$CP$491,39,),CHAR(32)) -> 2.979006098 | C37: =IFERROR(IF($K$8>0,VLOOKUP($K$8,'3a_Fodermiddeltabel'!$A$6:$CP$491,51,),CHAR(32)),"") -> 0.92 | D37: =IFERROR(IF($B37>0,+$D$17*B37/10,""),"") -> 2.859845854 | E37: =IFERROR(IF($B37>0,+($D$17/10*B37)*($O$16/100*C37),CHAR(32)),"") -> 2.212722729 | F37: =IF(VLOOKUP($K$8,'3a_Fodermiddeltabel'!$A$6:$HZ$491,+Tælleark!F35,)>0,VLOOKUP($K$8,'3a_Fodermiddeltabel'!$A$6:$HZ$491,+Tælleark!F35,),CHAR(32)) ->  | G37: =IF(VLOOKUP($K$8,'3a_Fodermiddeltabel'!$A$6:$HZ$491,+Tælleark!G35,)>0,VLOOKUP($K$8,'3a_Fodermiddeltabel'!$A$6:$HZ$491,+Tælleark!G35,),CHAR(32)) ->  | H37: =IF(VLOOKUP($K$8,'3a_Fodermiddeltabel'!$A$6:$HZ$491,+Tælleark!H35,)>0,VLOOKUP($K$8,'3a_Fodermiddeltabel'!$A$6:$HZ$491,+Tælleark!H35,),CHAR(32)) ->  | J37: Calcium, g | K37: =IF($K$8>0,VLOOKUP($K$8,'3a_Fodermiddeltabel'!$A$6:$CP$491,81,),CHAR(32)) -> 0.36 | L37: =IF($K$8>0,VLOOKUP($K$8,'3a_Fodermiddeltabel'!$A$6:$CP$491,25,),CHAR(32)) -> 0.4181184669 | M37: =IF(VLOOKUP($K$8,'3a_Fodermiddeltabel'!$A$6:$HZ$491,+Tælleark!M35,)>0,VLOOKUP($K$8,'3a_Fodermiddeltabel'!$A$6:$HZ$491,+Tælleark!M35,),CHAR(32)) -> 32 | N37: =IF(VLOOKUP($K$8,'3a_Fodermiddeltabel'!$A$6:$HZ$491,+Tælleark!N35,)>0,VLOOKUP($K$8,'3a_Fodermiddeltabel'!$A$6:$HZ$491,+Tælleark!N35,),CHAR(32)) -> 0.1 | O37: =IF(VLOOKUP($K$8,'3a_Fodermiddeltabel'!$A$6:$HZ$491,+Tælleark!O35,)>0,VLOOKUP($K$8,'3a_Fodermiddeltabel'!$A$6:$HZ$491,+Tælleark!O35,),CHAR(32)) -> 2020 | BM37: =IF(+'3a_Fodermiddeltabel'!D31>0,+'3a_Fodermiddeltabel'!D31,"") -> BYG, vår, 2020, varmebehandlet + xylanase | BN37: =IF(+'3a_Fodermiddeltabel'!A31>0,+'3a_Fodermiddeltabel'!A31,"") -> 50011
A38: Methionin | B38: =IF($K$8>0,VLOOKUP($K$8,'3a_Fodermiddeltabel'!$A$6:$CP$491,40,),CHAR(32)) -> 1.554245366 | C38: =IFERROR(IF($K$8>0,VLOOKUP($K$8,'3a_Fodermiddeltabel'!$A$6:$CP$491,52,),CHAR(32)),"") -> 1 | D38: =IFERROR(IF($B38>0,+$D$17*B38/10,""),"") -> 1.492075551 | E38: =IFERROR(IF($B38>0,+($D$17/10*B38)*($O$16/100*C38),CHAR(32)),"") -> 1.254837124 | F38: =IF(VLOOKUP($K$8,'3a_Fodermiddeltabel'!$A$6:$HZ$491,+Tælleark!F36,)>0,VLOOKUP($K$8,'3a_Fodermiddeltabel'!$A$6:$HZ$491,+Tælleark!F36,),CHAR(32)) ->  | G38: =IF(VLOOKUP($K$8,'3a_Fodermiddeltabel'!$A$6:$HZ$491,+Tælleark!G36,)>0,VLOOKUP($K$8,'3a_Fodermiddeltabel'!$A$6:$HZ$491,+Tælleark!G36,),CHAR(32)) ->  | H38: =IF(VLOOKUP($K$8,'3a_Fodermiddeltabel'!$A$6:$HZ$491,+Tælleark!H36,)>0,VLOOKUP($K$8,'3a_Fodermiddeltabel'!$A$6:$HZ$491,+Tælleark!H36,),CHAR(32)) ->  | J38: Fosfor, g | K38: =IF($K$8>0,VLOOKUP($K$8,'3a_Fodermiddeltabel'!$A$6:$CP$491,82,),CHAR(32)) -> 2.6 | L38: =IF($K$8>0,VLOOKUP($K$8,'3a_Fodermiddeltabel'!$A$6:$CP$491,26,),CHAR(32)) -> 3.019744483 | M38: =IF(VLOOKUP($K$8,'3a_Fodermiddeltabel'!$A$6:$HZ$491,+Tælleark!M36,)>0,VLOOKUP($K$8,'3a_Fodermiddeltabel'!$A$6:$HZ$491,+Tælleark!M36,),CHAR(32)) -> 32 | N38: =IF(VLOOKUP($K$8,'3a_Fodermiddeltabel'!$A$6:$HZ$491,+Tælleark!N36,)>0,VLOOKUP($K$8,'3a_Fodermiddeltabel'!$A$6:$HZ$491,+Tælleark!N36,),CHAR(32)) -> 0.2 | O38: =IF(VLOOKUP($K$8,'3a_Fodermiddeltabel'!$A$6:$HZ$491,+Tælleark!O36,)>0,VLOOKUP($K$8,'3a_Fodermiddeltabel'!$A$6:$HZ$491,+Tælleark!O36,),CHAR(32)) -> 2020 | BM38: =IF(+'3a_Fodermiddeltabel'!D32>0,+'3a_Fodermiddeltabel'!D32,"") -> BYG, vår, 2020, økologisk | BN38: =IF(+'3a_Fodermiddeltabel'!A32>0,+'3a_Fodermiddeltabel'!A32,"") -> 50050
A39: Cystin | B39: =IF($K$8>0,VLOOKUP($K$8,'3a_Fodermiddeltabel'!$A$6:$CP$491,41,),CHAR(32)) -> 2.335526167 | C39: =IFERROR(IF($K$8>0,VLOOKUP($K$8,'3a_Fodermiddeltabel'!$A$6:$CP$491,53,),CHAR(32)),"") -> 0.98 | D39: 2.242105121 | E39: 1.847900533 | F39: =IF(VLOOKUP($K$8,'3a_Fodermiddeltabel'!$A$6:$HZ$491,+Tælleark!F37,)>0,VLOOKUP($K$8,'3a_Fodermiddeltabel'!$A$6:$HZ$491,+Tælleark!F37,),CHAR(32)) ->  | G39: =IF(VLOOKUP($K$8,'3a_Fodermiddeltabel'!$A$6:$HZ$491,+Tælleark!G37,)>0,VLOOKUP($K$8,'3a_Fodermiddeltabel'!$A$6:$HZ$491,+Tælleark!G37,),CHAR(32)) ->  | H39: =IF(VLOOKUP($K$8,'3a_Fodermiddeltabel'!$A$6:$HZ$491,+Tælleark!H37,)>0,VLOOKUP($K$8,'3a_Fodermiddeltabel'!$A$6:$HZ$491,+Tælleark!H37,),CHAR(32)) ->  | J39: Natrium, g | K39: =IF($K$8>0,VLOOKUP($K$8,'3a_Fodermiddeltabel'!$A$6:$CP$491,83,),CHAR(32)) -> 0.1 | L39: =IF($K$8>0,VLOOKUP($K$8,'3a_Fodermiddeltabel'!$A$6:$CP$491,27,),CHAR(32)) -> 0.1161440186 | M39: =IF(VLOOKUP($K$8,'3a_Fodermiddeltabel'!$A$6:$HZ$491,+Tælleark!M37,)>0,VLOOKUP($K$8,'3a_Fodermiddeltabel'!$A$6:$HZ$491,+Tælleark!M37,),CHAR(32)) -> 32 | N39: =IF(VLOOKUP($K$8,'3a_Fodermiddeltabel'!$A$6:$HZ$491,+Tælleark!N37,)>0,VLOOKUP($K$8,'3a_Fodermiddeltabel'!$A$6:$HZ$491,+Tælleark!N37,),CHAR(32)) -> d.gr. | O39: =IF(VLOOKUP($K$8,'3a_Fodermiddeltabel'!$A$6:$HZ$491,+Tælleark!O37,)>0,VLOOKUP($K$8,'3a_Fodermiddeltabel'!$A$6:$HZ$491,+Tælleark!O37,),CHAR(32)) -> 2020 | BM39: =IF(+'3a_Fodermiddeltabel'!D33>0,+'3a_Fodermiddeltabel'!D33,"") -> BYG, vår, 2020, varmebehandlet, økologisk | BN39: =IF(+'3a_Fodermiddeltabel'!A33>0,+'3a_Fodermiddeltabel'!A33,"") -> 50060
A40: Treonin | B40: =IF($K$8>0,VLOOKUP($K$8,'3a_Fodermiddeltabel'!$A$6:$CP$491,42,),CHAR(32)) -> 2.928974077 | C40: =IFERROR(IF($K$8>0,VLOOKUP($K$8,'3a_Fodermiddeltabel'!$A$6:$CP$491,54,),CHAR(32)),"") -> 0.93 | D40: 2.811815114 | E40: 2.199207733 | F40: =IF(VLOOKUP($K$8,'3a_Fodermiddeltabel'!$A$6:$HZ$491,+Tælleark!F38,)>0,VLOOKUP($K$8,'3a_Fodermiddeltabel'!$A$6:$HZ$491,+Tælleark!F38,),CHAR(32)) ->  | G40: =IF(VLOOKUP($K$8,'3a_Fodermiddeltabel'!$A$6:$HZ$491,+Tælleark!G38,)>0,VLOOKUP($K$8,'3a_Fodermiddeltabel'!$A$6:$HZ$491,+Tælleark!G38,),CHAR(32)) ->  | H40: =IF(VLOOKUP($K$8,'3a_Fodermiddeltabel'!$A$6:$HZ$491,+Tælleark!H38,)>0,VLOOKUP($K$8,'3a_Fodermiddeltabel'!$A$6:$HZ$491,+Tælleark!H38,),CHAR(32)) ->  | J40: Klorid, g | K40: =IF($K$8>0,VLOOKUP($K$8,'3a_Fodermiddeltabel'!$A$6:$CP$491,84,),CHAR(32)) -> 0.9313463751 | L40: =IF($K$8>0,VLOOKUP($K$8,'3a_Fodermiddeltabel'!$A$6:$CP$491,28,),CHAR(32)) -> 1.081703107 | M40: =IF(VLOOKUP($K$8,'3a_Fodermiddeltabel'!$A$6:$HZ$491,+Tælleark!M38,)>0,VLOOKUP($K$8,'3a_Fodermiddeltabel'!$A$6:$HZ$491,+Tælleark!M38,),CHAR(32)) -> 14 | N40: =IF(VLOOKUP($K$8,'3a_Fodermiddeltabel'!$A$6:$HZ$491,+Tælleark!N38,)>0,VLOOKUP($K$8,'3a_Fodermiddeltabel'!$A$6:$HZ$491,+Tælleark!N38,),CHAR(32)) -> 0.07 | O40: =IF(VLOOKUP($K$8,'3a_Fodermiddeltabel'!$A$6:$HZ$491,+Tælleark!O38,)>0,VLOOKUP($K$8,'3a_Fodermiddeltabel'!$A$6:$HZ$491,+Tælleark!O38,),CHAR(32)) -> 2018 | BM40: =IF(+'3a_Fodermiddeltabel'!D34>0,+'3a_Fodermiddeltabel'!D34,"") -> BYG, vår, gns. 2018-2020 | BN40: =IF(+'3a_Fodermiddeltabel'!A34>0,+'3a_Fodermiddeltabel'!A34,"") -> 50200
A41: Tryptofan | B41: =IF($K$8>0,VLOOKUP($K$8,'3a_Fodermiddeltabel'!$A$6:$CP$491,43,),CHAR(32)) -> 1.36115439 | C41: =IFERROR(IF($K$8>0,VLOOKUP($K$8,'3a_Fodermiddeltabel'!$A$6:$CP$491,55,),CHAR(32)),"") -> 0.99 | D41: 1.306708215 | E41: 1.087953567 | F41: =IF(VLOOKUP($K$8,'3a_Fodermiddeltabel'!$A$6:$HZ$491,+Tælleark!F39,)>0,VLOOKUP($K$8,'3a_Fodermiddeltabel'!$A$6:$HZ$491,+Tælleark!F39,),CHAR(32)) ->  | G41: =IF(VLOOKUP($K$8,'3a_Fodermiddeltabel'!$A$6:$HZ$491,+Tælleark!G39,)>0,VLOOKUP($K$8,'3a_Fodermiddeltabel'!$A$6:$HZ$491,+Tælleark!G39,),CHAR(32)) ->  | H41: =IF(VLOOKUP($K$8,'3a_Fodermiddeltabel'!$A$6:$HZ$491,+Tælleark!H39,)>0,VLOOKUP($K$8,'3a_Fodermiddeltabel'!$A$6:$HZ$491,+Tælleark!H39,),CHAR(32)) ->  | J41: Kalium, g | K41: =IF($K$8>0,VLOOKUP($K$8,'3a_Fodermiddeltabel'!$A$6:$CP$491,85,),CHAR(32)) -> 4.14 | L41: =IF($K$8>0,VLOOKUP($K$8,'3a_Fodermiddeltabel'!$A$6:$CP$491,29,),CHAR(32)) -> 4.808362369 | M41: =IF(VLOOKUP($K$8,'3a_Fodermiddeltabel'!$A$6:$HZ$491,+Tælleark!M39,)>0,VLOOKUP($K$8,'3a_Fodermiddeltabel'!$A$6:$HZ$491,+Tælleark!M39,),CHAR(32)) -> 32 | N41: =IF(VLOOKUP($K$8,'3a_Fodermiddeltabel'!$A$6:$HZ$491,+Tælleark!N39,)>0,VLOOKUP($K$8,'3a_Fodermiddeltabel'!$A$6:$HZ$491,+Tælleark!N39,),CHAR(32)) -> 0.4 | O41: =IF(VLOOKUP($K$8,'3a_Fodermiddeltabel'!$A$6:$HZ$491,+Tælleark!O39,)>0,VLOOKUP($K$8,'3a_Fodermiddeltabel'!$A$6:$HZ$491,+Tælleark!O39,),CHAR(32)) -> 2020 | BM41: =IF(+'3a_Fodermiddeltabel'!D35>0,+'3a_Fodermiddeltabel'!D35,"") -> BYG, vår, gns. 2018-2020 + xylanase | BN41: =IF(+'3a_Fodermiddeltabel'!A35>0,+'3a_Fodermiddeltabel'!A35,"") -> 50201
A42: Isoleucin | B42: =IF($K$8>0,VLOOKUP($K$8,'3a_Fodermiddeltabel'!$A$6:$CP$491,44,),CHAR(32)) -> 3.344416725 | C42: =IFERROR(IF($K$8>0,VLOOKUP($K$8,'3a_Fodermiddeltabel'!$A$6:$CP$491,56,),CHAR(32)),"") -> 0.99 | D42: 3.210640056 | E42: 2.673150181 | F42: =IF(VLOOKUP($K$8,'3a_Fodermiddeltabel'!$A$6:$HZ$491,+Tælleark!F40,)>0,VLOOKUP($K$8,'3a_Fodermiddeltabel'!$A$6:$HZ$491,+Tælleark!F40,),CHAR(32)) ->  | G42: =IF(VLOOKUP($K$8,'3a_Fodermiddeltabel'!$A$6:$HZ$491,+Tælleark!G40,)>0,VLOOKUP($K$8,'3a_Fodermiddeltabel'!$A$6:$HZ$491,+Tælleark!G40,),CHAR(32)) ->  | H42: =IF(VLOOKUP($K$8,'3a_Fodermiddeltabel'!$A$6:$HZ$491,+Tælleark!H40,)>0,VLOOKUP($K$8,'3a_Fodermiddeltabel'!$A$6:$HZ$491,+Tælleark!H40,),CHAR(32)) ->  | J42: Magnesium, g | K42: =IF($K$8>0,VLOOKUP($K$8,'3a_Fodermiddeltabel'!$A$6:$CP$491,86,),CHAR(32)) -> 0.84 | L42: =IF($K$8>0,VLOOKUP($K$8,'3a_Fodermiddeltabel'!$A$6:$CP$491,30,),CHAR(32)) -> 0.9756097561 | M42: =IF(VLOOKUP($K$8,'3a_Fodermiddeltabel'!$A$6:$HZ$491,+Tælleark!M40,)>0,VLOOKUP($K$8,'3a_Fodermiddeltabel'!$A$6:$HZ$491,+Tælleark!M40,),CHAR(32)) -> 32 | N42: =IF(VLOOKUP($K$8,'3a_Fodermiddeltabel'!$A$6:$HZ$491,+Tælleark!N40,)>0,VLOOKUP($K$8,'3a_Fodermiddeltabel'!$A$6:$HZ$491,+Tælleark!N40,),CHAR(32)) -> 0.1 | O42: =IF(VLOOKUP($K$8,'3a_Fodermiddeltabel'!$A$6:$HZ$491,+Tælleark!O40,)>0,VLOOKUP($K$8,'3a_Fodermiddeltabel'!$A$6:$HZ$491,+Tælleark!O40,),CHAR(32)) -> 2020 | BM42: =IF(+'3a_Fodermiddeltabel'!D36>0,+'3a_Fodermiddeltabel'!D36,"") -> BYG, vår, gns. 2018-2020, varmebehandlet | BN42: =IF(+'3a_Fodermiddeltabel'!A36>0,+'3a_Fodermiddeltabel'!A36,"") -> 50210
A43: Leucin | B43: =IF($K$8>0,VLOOKUP($K$8,'3a_Fodermiddeltabel'!$A$6:$CP$491,45,),CHAR(32)) -> 6.685302683 | C43: =IFERROR(IF($K$8>0,VLOOKUP($K$8,'3a_Fodermiddeltabel'!$A$6:$CP$491,57,),CHAR(32)),"") -> 1 | D43: 6.417890576 | E43: 5.397452793 | F43: =IF(VLOOKUP($K$8,'3a_Fodermiddeltabel'!$A$6:$HZ$491,+Tælleark!F41,)>0,VLOOKUP($K$8,'3a_Fodermiddeltabel'!$A$6:$HZ$491,+Tælleark!F41,),CHAR(32)) ->  | G43: =IF(VLOOKUP($K$8,'3a_Fodermiddeltabel'!$A$6:$HZ$491,+Tælleark!G41,)>0,VLOOKUP($K$8,'3a_Fodermiddeltabel'!$A$6:$HZ$491,+Tælleark!G41,),CHAR(32)) ->  | H43: =IF(VLOOKUP($K$8,'3a_Fodermiddeltabel'!$A$6:$HZ$491,+Tælleark!H41,)>0,VLOOKUP($K$8,'3a_Fodermiddeltabel'!$A$6:$HZ$491,+Tælleark!H41,),CHAR(32)) ->  | J43: Svovl, g | K43: =IF($K$8>0,VLOOKUP($K$8,'3a_Fodermiddeltabel'!$A$6:$CP$491,87,),CHAR(32)) -> 1.1193 | L43: =IF($K$8>0,VLOOKUP($K$8,'3a_Fodermiddeltabel'!$A$6:$CP$491,31,),CHAR(32)) -> 1.3 | M43: =IF(VLOOKUP($K$8,'3a_Fodermiddeltabel'!$A$6:$HZ$491,+Tælleark!M41,)>0,VLOOKUP($K$8,'3a_Fodermiddeltabel'!$A$6:$HZ$491,+Tælleark!M41,),CHAR(32)) ->  | N43: =IF(VLOOKUP($K$8,'3a_Fodermiddeltabel'!$A$6:$HZ$491,+Tælleark!N41,)>0,VLOOKUP($K$8,'3a_Fodermiddeltabel'!$A$6:$HZ$491,+Tælleark!N41,),CHAR(32)) ->  | O43: =IF(VLOOKUP($K$8,'3a_Fodermiddeltabel'!$A$6:$HZ$491,+Tælleark!O41,)>0,VLOOKUP($K$8,'3a_Fodermiddeltabel'!$A$6:$HZ$491,+Tælleark!O41,),CHAR(32)) ->  | BM43: =IF(+'3a_Fodermiddeltabel'!D37>0,+'3a_Fodermiddeltabel'!D37,"") -> BYG, vår, gns. 2018-2020, varmebehandlet + xylanase | BN43: =IF(+'3a_Fodermiddeltabel'!A37>0,+'3a_Fodermiddeltabel'!A37,"") -> 50211
A44: Histidin | B44: =IF($K$8>0,VLOOKUP($K$8,'3a_Fodermiddeltabel'!$A$6:$CP$491,46,),CHAR(32)) -> 2.28471 | C44: =IFERROR(IF($K$8>0,VLOOKUP($K$8,'3a_Fodermiddeltabel'!$A$6:$CP$491,58,),CHAR(32)),"") -> 0.99 | D44: 2.1933216 | E44: 1.826139938 | F44: =IF(VLOOKUP($K$8,'3a_Fodermiddeltabel'!$A$6:$HZ$491,+Tælleark!F42,)>0,VLOOKUP($K$8,'3a_Fodermiddeltabel'!$A$6:$HZ$491,+Tælleark!F42,),CHAR(32)) ->  | G44: =IF(VLOOKUP($K$8,'3a_Fodermiddeltabel'!$A$6:$HZ$491,+Tælleark!G42,)>0,VLOOKUP($K$8,'3a_Fodermiddeltabel'!$A$6:$HZ$491,+Tælleark!G42,),CHAR(32)) ->  | H44: =IF(VLOOKUP($K$8,'3a_Fodermiddeltabel'!$A$6:$HZ$491,+Tælleark!H42,)>0,VLOOKUP($K$8,'3a_Fodermiddeltabel'!$A$6:$HZ$491,+Tælleark!H42,),CHAR(32)) ->  | J44: Jern, mg | K44: =IF($K$8>0,VLOOKUP($K$8,'3a_Fodermiddeltabel'!$A$6:$CP$491,89,),CHAR(32)) -> 28.29 | L44: =IF($K$8>0,VLOOKUP($K$8,'3a_Fodermiddeltabel'!$A$6:$CP$491,32,),CHAR(32)) -> 32.85714286 | M44: =IF(VLOOKUP($K$8,'3a_Fodermiddeltabel'!$A$6:$HZ$491,+Tælleark!M42,)>0,VLOOKUP($K$8,'3a_Fodermiddeltabel'!$A$6:$HZ$491,+Tælleark!M42,),CHAR(32)) -> 32 | N44: =IF(VLOOKUP($K$8,'3a_Fodermiddeltabel'!$A$6:$HZ$491,+Tælleark!N42,)>0,VLOOKUP($K$8,'3a_Fodermiddeltabel'!$A$6:$HZ$491,+Tælleark!N42,),CHAR(32)) -> 5.3 | O44: =IF(VLOOKUP($K$8,'3a_Fodermiddeltabel'!$A$6:$HZ$491,+Tælleark!O42,)>0,VLOOKUP($K$8,'3a_Fodermiddeltabel'!$A$6:$HZ$491,+Tælleark!O42,),CHAR(32)) -> 2020 | BM44: =IF(+'3a_Fodermiddeltabel'!D38>0,+'3a_Fodermiddeltabel'!D38,"") -> BYG, vår, 2019 | BN44: =IF(+'3a_Fodermiddeltabel'!A38>0,+'3a_Fodermiddeltabel'!A38,"") -> 50100
A45: Fenylalanin | B45: =IF($K$8>0,VLOOKUP($K$8,'3a_Fodermiddeltabel'!$A$6:$CP$491,47,),CHAR(32)) -> 4.389327909 | C45: =IFERROR(IF($K$8>0,VLOOKUP($K$8,'3a_Fodermiddeltabel'!$A$6:$CP$491,59,),CHAR(32)),"") -> 1.02 | D45: 4.213754793 | E45: 3.614647703 | F45: =IF(VLOOKUP($K$8,'3a_Fodermiddeltabel'!$A$6:$HZ$491,+Tælleark!F43,)>0,VLOOKUP($K$8,'3a_Fodermiddeltabel'!$A$6:$HZ$491,+Tælleark!F43,),CHAR(32)) ->  | G45: =IF(VLOOKUP($K$8,'3a_Fodermiddeltabel'!$A$6:$HZ$491,+Tælleark!G43,)>0,VLOOKUP($K$8,'3a_Fodermiddeltabel'!$A$6:$HZ$491,+Tælleark!G43,),CHAR(32)) ->  | H45: =IF(VLOOKUP($K$8,'3a_Fodermiddeltabel'!$A$6:$HZ$491,+Tælleark!H43,)>0,VLOOKUP($K$8,'3a_Fodermiddeltabel'!$A$6:$HZ$491,+Tælleark!H43,),CHAR(32)) ->  | J45: Kobber, mg | K45: =IF($K$8>0,VLOOKUP($K$8,'3a_Fodermiddeltabel'!$A$6:$CP$491,90,),CHAR(32)) -> 2.77 | L45: =IF($K$8>0,VLOOKUP($K$8,'3a_Fodermiddeltabel'!$A$6:$CP$491,33,),CHAR(32)) -> 3.217189315 | M45: =IF(VLOOKUP($K$8,'3a_Fodermiddeltabel'!$A$6:$HZ$491,+Tælleark!M43,)>0,VLOOKUP($K$8,'3a_Fodermiddeltabel'!$A$6:$HZ$491,+Tælleark!M43,),CHAR(32)) -> 32 | N45: =IF(VLOOKUP($K$8,'3a_Fodermiddeltabel'!$A$6:$HZ$491,+Tælleark!N43,)>0,VLOOKUP($K$8,'3a_Fodermiddeltabel'!$A$6:$HZ$491,+Tælleark!N43,),CHAR(32)) -> 0.5 | O45: =IF(VLOOKUP($K$8,'3a_Fodermiddeltabel'!$A$6:$HZ$491,+Tælleark!O43,)>0,VLOOKUP($K$8,'3a_Fodermiddeltabel'!$A$6:$HZ$491,+Tælleark!O43,),CHAR(32)) -> 2020 | BM45: =IF(+'3a_Fodermiddeltabel'!D39>0,+'3a_Fodermiddeltabel'!D39,"") -> BYG, vår, 2019 + xylanase | BN45: =IF(+'3a_Fodermiddeltabel'!A39>0,+'3a_Fodermiddeltabel'!A39,"") -> 50101
A46: Tyrosin | B46: =IF($K$8>0,VLOOKUP($K$8,'3a_Fodermiddeltabel'!$A$6:$CP$491,48,),CHAR(32)) -> 2.750803345 | C46: =IFERROR(IF($K$8>0,VLOOKUP($K$8,'3a_Fodermiddeltabel'!$A$6:$CP$491,60,),CHAR(32)),"") -> 1 | D46: 2.640771211 | E46: 2.220891394 | F46: =IF(VLOOKUP($K$8,'3a_Fodermiddeltabel'!$A$6:$HZ$491,+Tælleark!F44,)>0,VLOOKUP($K$8,'3a_Fodermiddeltabel'!$A$6:$HZ$491,+Tælleark!F44,),CHAR(32)) ->  | G46: =IF(VLOOKUP($K$8,'3a_Fodermiddeltabel'!$A$6:$HZ$491,+Tælleark!G44,)>0,VLOOKUP($K$8,'3a_Fodermiddeltabel'!$A$6:$HZ$491,+Tælleark!G44,),CHAR(32)) ->  | H46: =IF(VLOOKUP($K$8,'3a_Fodermiddeltabel'!$A$6:$HZ$491,+Tælleark!H44,)>0,VLOOKUP($K$8,'3a_Fodermiddeltabel'!$A$6:$HZ$491,+Tælleark!H44,),CHAR(32)) ->  | J46: Mangan, mg | K46: =IF($K$8>0,VLOOKUP($K$8,'3a_Fodermiddeltabel'!$A$6:$CP$491,91,),CHAR(32)) -> 21.76 | L46: =IF($K$8>0,VLOOKUP($K$8,'3a_Fodermiddeltabel'!$A$6:$CP$491,34,),CHAR(32)) -> 25.27293844 | M46: =IF(VLOOKUP($K$8,'3a_Fodermiddeltabel'!$A$6:$HZ$491,+Tælleark!M44,)>0,VLOOKUP($K$8,'3a_Fodermiddeltabel'!$A$6:$HZ$491,+Tælleark!M44,),CHAR(32)) -> 32 | N46: =IF(VLOOKUP($K$8,'3a_Fodermiddeltabel'!$A$6:$HZ$491,+Tælleark!N44,)>0,VLOOKUP($K$8,'3a_Fodermiddeltabel'!$A$6:$HZ$491,+Tælleark!N44,),CHAR(32)) -> 3.1 | O46: =IF(VLOOKUP($K$8,'3a_Fodermiddeltabel'!$A$6:$HZ$491,+Tælleark!O44,)>0,VLOOKUP($K$8,'3a_Fodermiddeltabel'!$A$6:$HZ$491,+Tælleark!O44,),CHAR(32)) -> 2020 | BM46: =IF(+'3a_Fodermiddeltabel'!D40>0,+'3a_Fodermiddeltabel'!D40,"") -> BYG, vår, 2019, varmebehandlet | BN46: =IF(+'3a_Fodermiddeltabel'!A40>0,+'3a_Fodermiddeltabel'!A40,"") -> 50110
A47: Valin | B47: =IF($K$8>0,VLOOKUP($K$8,'3a_Fodermiddeltabel'!$A$6:$CP$491,49,),CHAR(32)) -> 4.299951916 | C47: =IFERROR(IF($K$8>0,VLOOKUP($K$8,'3a_Fodermiddeltabel'!$A$6:$CP$491,61,),CHAR(32)),"") -> 0.96 | D47: 4.12795384 | E47: 3.332749023 | F47: =IF(VLOOKUP($K$8,'3a_Fodermiddeltabel'!$A$6:$HZ$491,+Tælleark!F45,)>0,VLOOKUP($K$8,'3a_Fodermiddeltabel'!$A$6:$HZ$491,+Tælleark!F45,),CHAR(32)) ->  | G47: =IF(VLOOKUP($K$8,'3a_Fodermiddeltabel'!$A$6:$HZ$491,+Tælleark!G45,)>0,VLOOKUP($K$8,'3a_Fodermiddeltabel'!$A$6:$HZ$491,+Tælleark!G45,),CHAR(32)) ->  | H47: =IF(VLOOKUP($K$8,'3a_Fodermiddeltabel'!$A$6:$HZ$491,+Tælleark!H45,)>0,VLOOKUP($K$8,'3a_Fodermiddeltabel'!$A$6:$HZ$491,+Tælleark!H45,),CHAR(32)) ->  | J47: Zink, mg | K47: =IF($K$8>0,VLOOKUP($K$8,'3a_Fodermiddeltabel'!$A$6:$CP$491,92,),CHAR(32)) -> 22.53 | L47: =IF($K$8>0,VLOOKUP($K$8,'3a_Fodermiddeltabel'!$A$6:$CP$491,35,),CHAR(32)) -> 26.16724739 | M47: =IF(VLOOKUP($K$8,'3a_Fodermiddeltabel'!$A$6:$HZ$491,+Tælleark!M45,)>0,VLOOKUP($K$8,'3a_Fodermiddeltabel'!$A$6:$HZ$491,+Tælleark!M45,),CHAR(32)) -> 32 | N47: =IF(VLOOKUP($K$8,'3a_Fodermiddeltabel'!$A$6:$HZ$491,+Tælleark!N45,)>0,VLOOKUP($K$8,'3a_Fodermiddeltabel'!$A$6:$HZ$491,+Tælleark!N45,),CHAR(32)) -> 4.5 | O47: =IF(VLOOKUP($K$8,'3a_Fodermiddeltabel'!$A$6:$HZ$491,+Tælleark!O45,)>0,VLOOKUP($K$8,'3a_Fodermiddeltabel'!$A$6:$HZ$491,+Tælleark!O45,),CHAR(32)) -> 2020 | Q47: Håndtering og transport | BM47: =IF(+'3a_Fodermiddeltabel'!D41>0,+'3a_Fodermiddeltabel'!D41,"") -> BYG, vår, 2019, varmebehandlet + xylanase | BN47: =IF(+'3a_Fodermiddeltabel'!A41>0,+'3a_Fodermiddeltabel'!A41,"") -> 50111
J48: Jod, mg | K48: =IF($K$8>0,VLOOKUP($K$8,'3a_Fodermiddeltabel'!$A$6:$CP$491,93,),CHAR(32)) -> 0 | L48: =IF($K$8>0,VLOOKUP($K$8,'3a_Fodermiddeltabel'!$A$6:$CP$491,36,),CHAR(32)) -> 0 | M48: =IF(VLOOKUP($K$8,'3a_Fodermiddeltabel'!$A$6:$HZ$491,+Tælleark!M46,)>0,VLOOKUP($K$8,'3a_Fodermiddeltabel'!$A$6:$HZ$491,+Tælleark!M46,),CHAR(32)) ->  | N48: =IF(VLOOKUP($K$8,'3a_Fodermiddeltabel'!$A$6:$HZ$491,+Tælleark!N46,)>0,VLOOKUP($K$8,'3a_Fodermiddeltabel'!$A$6:$HZ$491,+Tælleark!N46,),CHAR(32)) ->  | O48: =IF(VLOOKUP($K$8,'3a_Fodermiddeltabel'!$A$6:$HZ$491,+Tælleark!O46,)>0,VLOOKUP($K$8,'3a_Fodermiddeltabel'!$A$6:$HZ$491,+Tælleark!O46,),CHAR(32)) ->  | Q48: =IF(VLOOKUP($K$8,'3a_Fodermiddeltabel'!$A$6:$HZ$491,233,)>0,VLOOKUP($K$8,'3a_Fodermiddeltabel'!$A$6:$HZ$491,233,),CHAR(32)) -> Hvede opbevares tørt og er lagerfast ved 86 pct. tørstof. Ellers ingen specielle forhold. Ved transport af fugtige partier med et vandindhold på 20 pct. eller derover, bør transport fra korngrav foretages med kæderedler frem for med sidesnegl eller sneglerende. | BM48: =IF(+'3a_Fodermiddeltabel'!D42>0,+'3a_Fodermiddeltabel'!D42,"") -> BYG, 10,0 % råprotein, varmebehandlet + xylanase | BN48: =IF(+'3a_Fodermiddeltabel'!A42>0,+'3a_Fodermiddeltabel'!A42,"") -> 50611
J49: Selen, mg | K49: =IF($K$8>0,VLOOKUP($K$8,'3a_Fodermiddeltabel'!$A$6:$CP$491,94,),CHAR(32)) -> 0.05166 | L49: =IF($K$8>0,VLOOKUP($K$8,'3a_Fodermiddeltabel'!$A$6:$CP$491,37,),CHAR(32)) -> 0.06 | M49: =IF(VLOOKUP($K$8,'3a_Fodermiddeltabel'!$A$6:$HZ$491,+Tælleark!M47,)>0,VLOOKUP($K$8,'3a_Fodermiddeltabel'!$A$6:$HZ$491,+Tælleark!M47,),CHAR(32)) ->  | N49: =IF(VLOOKUP($K$8,'3a_Fodermiddeltabel'!$A$6:$HZ$491,+Tælleark!N47,)>0,VLOOKUP($K$8,'3a_Fodermiddeltabel'!$A$6:$HZ$491,+Tælleark!N47,),CHAR(32)) ->  | O49: =IF(VLOOKUP($K$8,'3a_Fodermiddeltabel'!$A$6:$HZ$491,+Tælleark!O47,)>0,VLOOKUP($K$8,'3a_Fodermiddeltabel'!$A$6:$HZ$491,+Tælleark!O47,),CHAR(32)) ->  | BM49: =IF(+'3a_Fodermiddeltabel'!D43>0,+'3a_Fodermiddeltabel'!D43,"") -> BYG, 11,5 % råprotein, varmebehandlet + xylanase | BN49: =IF(+'3a_Fodermiddeltabel'!A43>0,+'3a_Fodermiddeltabel'!A43,"") -> 50661
A50: DLBR SvineIT, kode-parti: | C50: =IF($K$8>0,VLOOKUP($K$8,'3a_Fodermiddeltabel'!$A$6:$CP$491,2,),CHAR(32))&" - "&IF($K$8>0,VLOOKUP($K$8,'3a_Fodermiddeltabel'!$A$6:$CP$491,3,),CHAR(32)) -> 510 - 0 | BM50: =IF(+'3a_Fodermiddeltabel'!D44>0,+'3a_Fodermiddeltabel'!D44,"") -> BYG, vår 10% råprotein | BN50: =IF(+'3a_Fodermiddeltabel'!A44>0,+'3a_Fodermiddeltabel'!A44,"") -> 50600
BM51: =IF(+'3a_Fodermiddeltabel'!D45>0,+'3a_Fodermiddeltabel'!D45,"") -> CALCIUMFORMIAT | BN51: =IF(+'3a_Fodermiddeltabel'!A45>0,+'3a_Fodermiddeltabel'!A45,"") -> 48900
A52: *: | B52: Aminosyrefordøjelighed i forhold til proteinfordøjelighed | BM52: =IF(+'3a_Fodermiddeltabel'!D46>0,+'3a_Fodermiddeltabel'!D46,"") -> CALCIUMJODAT 1%-opløsning | BN52: =IF(+'3a_Fodermiddeltabel'!A46>0,+'3a_Fodermiddeltabel'!A46,"") -> 48400
A53: **: | B53: Standarddosis fytase kan være en af flg. fytaser: Se Normer for Næringsstoffer, tabel 9 for undtagelser: | L53: Genvej, Normer for Næringsstoffer | BM53: =IF(+'3a_Fodermiddeltabel'!D47>0,+'3a_Fodermiddeltabel'!D47,"") -> CIKORIE: PULVER AF CIKORIERØDDER | BN53: =IF(+'3a_Fodermiddeltabel'!A47>0,+'3a_Fodermiddeltabel'!A47,"") -> 67900
B54: Ronozyme HiPhos (FYT), Natuphos (FTU) og Phyzyme XP (FTU): | I54: 500 tilsat pr. kg foder | BM54: =IF(+'3a_Fodermiddeltabel'!D48>0,+'3a_Fodermiddeltabel'!D48,"") -> CITRONSYRE (1% vand) | BN54: =IF(+'3a_Fodermiddeltabel'!A48>0,+'3a_Fodermiddeltabel'!A48,"") -> 94700
B55: Ronozyme NP (FYT): | I55: 1250 (men laveste godkendte dosis er 1500) FYT tilsat pr. kg foder | BM55: =IF(+'3a_Fodermiddeltabel'!D49>0,+'3a_Fodermiddeltabel'!D49,"") -> CITRUSKVAS TØR (Obs.: Gamle data) | BN55: =IF(+'3a_Fodermiddeltabel'!A49>0,+'3a_Fodermiddeltabel'!A49,"") -> 71000
B56: Optiphos (OTU): | I56: 250 tilsat pr. kg foder | BM56: =IF(+'3a_Fodermiddeltabel'!D50>0,+'3a_Fodermiddeltabel'!D50,"") -> CYSTIN,L98,5 | BN56: =IF(+'3a_Fodermiddeltabel'!A50>0,+'3a_Fodermiddeltabel'!A50,"") -> 99940
B57: Axtra Phy (FTU) og Quantum Blue (FTU): | I57: 400 tilsat pr. kg foder | BM57: =IF(+'3a_Fodermiddeltabel'!D51>0,+'3a_Fodermiddeltabel'!D51,"") -> Ca-Na-FOSFAT | BN57: =IF(+'3a_Fodermiddeltabel'!A51>0,+'3a_Fodermiddeltabel'!A51,"") -> 47100
B58: Natuphos E (FTU): | I58: 350 tilsat pr. kg foder | BM58: =IF(+'3a_Fodermiddeltabel'!D52>0,+'3a_Fodermiddeltabel'!D52,"") -> Ca-Na-FOSFAT Nagel | BN58: =IF(+'3a_Fodermiddeltabel'!A52>0,+'3a_Fodermiddeltabel'!A52,"") -> 47101
B59: Vær opmærksom på at 60 procent standarddosis ikke er godkendt for alle kombinationer af dyregrupper og fytasetyper - jf. beskrivelse i Notat nr. 0511, Videncenter for Svineproduktion og Normer for Næringsstoffer tabel 9 | BM59: =IF(+'3a_Fodermiddeltabel'!D53>0,+'3a_Fodermiddeltabel'!D53,"") -> Ca-Na-FOSFAT+ P-syre | BN59: =IF(+'3a_Fodermiddeltabel'!A53>0,+'3a_Fodermiddeltabel'!A53,"") -> 47300
A60: 1) | B60: I-faktor beregnes på fodermidler som EFOSi * 100 / EFOS: | I60: Genvej | BM60: =IF(+'3a_Fodermiddeltabel'!D54>0,+'3a_Fodermiddeltabel'!D54,"") -> Ca-Na-FOSFAT+ P-syre, Nagel | BN60: =IF(+'3a_Fodermiddeltabel'!A54>0,+'3a_Fodermiddeltabel'!A54,"") -> 47301
A61: 2) | B61: Læs evt. vedr. FE-korrektionsfaktor i rapport nr. 30, side 12: | I61: http://svineproduktion.dk/Publikationer/Kilder/lu_rapp/30.aspx | BM61: =IF(+'3a_Fodermiddeltabel'!D55>0,+'3a_Fodermiddeltabel'!D55,"") -> DCP dihydrat | BN61: =IF(+'3a_Fodermiddeltabel'!A55>0,+'3a_Fodermiddeltabel'!A55,"") -> 46102
A62: Genvej til: EU-KOMMISSIONENS FORORDNING Nr. 2017/1017 af 15. juni 2017 (fortegnelsen over fodermidler) | BM62: =IF(+'3a_Fodermiddeltabel'!D56>0,+'3a_Fodermiddeltabel'!D56,"") -> DICALCIUMFOSFAT | BN62: =IF(+'3a_Fodermiddeltabel'!A56>0,+'3a_Fodermiddeltabel'!A56,"") -> 46100
BM63: =IF(+'3a_Fodermiddeltabel'!D57>0,+'3a_Fodermiddeltabel'!D57,"") -> E-10 VIT TILSKUD (kun E-vit ) | BN63: =IF(+'3a_Fodermiddeltabel'!A57>0,+'3a_Fodermiddeltabel'!A57,"") -> 39012
BM64: =IF(+'3a_Fodermiddeltabel'!D58>0,+'3a_Fodermiddeltabel'!D58,"") -> E-25 VIT TILSKUD (kun E-vit ) | BN64: =IF(+'3a_Fodermiddeltabel'!A58>0,+'3a_Fodermiddeltabel'!A58,"") -> 39013
A65: (Genvej: Retur til Indholdsfortegnelsen) | G65: Genvej til alle fodermidlerne og deres tabelværdier, der er medtaget i nærværende fodermiddeltabel | BM65: =IF(+'3a_Fodermiddeltabel'!D59>0,+'3a_Fodermiddeltabel'!D59,"") -> Easylin (en ekstruderet blanding af hørfrø og hvedeklid) | BN65: =IF(+'3a_Fodermiddeltabel'!A59>0,+'3a_Fodermiddeltabel'!A59,"") -> 62600
A66: Fodermidlet skal angives med 2 decimaler på FK-råprotein: | J66: =IF(K8<50000,0,IF(K8>53999,0,IF(K8>52500,1,IF(K8<52000,1,0)))) -> 1 | BM66: =IF(+'3a_Fodermiddeltabel'!D60>0,+'3a_Fodermiddeltabel'!D60,"") -> FEDT, teknisk 92/4 (Svinefedt) (Obs.: Gamle data) | BN66: =IF(+'3a_Fodermiddeltabel'!A60>0,+'3a_Fodermiddeltabel'!A60,"") -> 88300
A67: eller hvis der er tale om triticale | J67: =IF(K8>55900,IF(K8<56600,1,0)) -> FALSE | BM67: =IF(+'3a_Fodermiddeltabel'!D61>0,+'3a_Fodermiddeltabel'!D61,"") -> FEDT, Blandingsfedt (Foderblanding af olie og fedtstoffer) (Obs.: Gl. data) | BN67: =IF(+'3a_Fodermiddeltabel'!A61>0,+'3a_Fodermiddeltabel'!A61,"") -> 88400
BM68: =IF(+'3a_Fodermiddeltabel'!D62>0,+'3a_Fodermiddeltabel'!D62,"") -> FENYLALANIN,L98,5 | BN68: =IF(+'3a_Fodermiddeltabel'!A62>0,+'3a_Fodermiddeltabel'!A62,"") -> 99920
BM69: =IF(+'3a_Fodermiddeltabel'!D63>0,+'3a_Fodermiddeltabel'!D63,"") -> FISKEMEL | BN69: =IF(+'3a_Fodermiddeltabel'!A63>0,+'3a_Fodermiddeltabel'!A63,"") -> 83000
BM70: =IF(+'3a_Fodermiddeltabel'!D64>0,+'3a_Fodermiddeltabel'!D64,"") -> FISKEMEL, LT | BN70: =IF(+'3a_Fodermiddeltabel'!A64>0,+'3a_Fodermiddeltabel'!A64,"") -> 83300
BM71: =IF(+'3a_Fodermiddeltabel'!D65>0,+'3a_Fodermiddeltabel'!D65,"") -> FISKEMEL, ISLAND (Obs.: Gamle data) | BN71: =IF(+'3a_Fodermiddeltabel'!A65>0,+'3a_Fodermiddeltabel'!A65,"") -> 83500
BM72: =IF(+'3a_Fodermiddeltabel'!D66>0,+'3a_Fodermiddeltabel'!D66,"") -> FISKEPROTEIN, hydrolyseret, H-35 Lakseproteinkoncentrat | BN72: =IF(+'3a_Fodermiddeltabel'!A66>0,+'3a_Fodermiddeltabel'!A66,"") -> 83600
BM73: =IF(+'3a_Fodermiddeltabel'!D67>0,+'3a_Fodermiddeltabel'!D67,"") -> FISKEPROTEIN, hydrolyseret, H-PRO Lakseproteinkoncentrat | BN73: =IF(+'3a_Fodermiddeltabel'!A67>0,+'3a_Fodermiddeltabel'!A67,"") -> 83900
BM74: =IF(+'3a_Fodermiddeltabel'!D68>0,+'3a_Fodermiddeltabel'!D68,"") -> FODERKRIDT, 36 % calcium | BN74: =IF(+'3a_Fodermiddeltabel'!A68>0,+'3a_Fodermiddeltabel'!A68,"") -> 46000
BM75: =IF(+'3a_Fodermiddeltabel'!D69>0,+'3a_Fodermiddeltabel'!D69,"") -> FODERRIS (formalet) | BN75: =IF(+'3a_Fodermiddeltabel'!A69>0,+'3a_Fodermiddeltabel'!A69,"") -> 55900
BM76: =IF(+'3a_Fodermiddeltabel'!D70>0,+'3a_Fodermiddeltabel'!D70,"") -> FODERSUKKER (Obs.: Gamle data) | BN76: =IF(+'3a_Fodermiddeltabel'!A70>0,+'3a_Fodermiddeltabel'!A70,"") -> 67600
BM77: =IF(+'3a_Fodermiddeltabel'!D71>0,+'3a_Fodermiddeltabel'!D71,"") -> FORBL 300 E-10 (kun E-vit ) | BN77: =IF(+'3a_Fodermiddeltabel'!A71>0,+'3a_Fodermiddeltabel'!A71,"") -> 39004
BM78: =IF(+'3a_Fodermiddeltabel'!D72>0,+'3a_Fodermiddeltabel'!D72,"") -> FORBL 301 E-25 (kun E-vit ) | BN78: =IF(+'3a_Fodermiddeltabel'!A72>0,+'3a_Fodermiddeltabel'!A72,"") -> 39005
BM79: =IF(+'3a_Fodermiddeltabel'!D73>0,+'3a_Fodermiddeltabel'!D73,"") -> FOSFORSYRE 75% | BN79: =IF(+'3a_Fodermiddeltabel'!A73>0,+'3a_Fodermiddeltabel'!A73,"") -> 47400
BM80: =IF(+'3a_Fodermiddeltabel'!D74>0,+'3a_Fodermiddeltabel'!D74,"") -> Fedtsyredestillater fra fysisk raffinering, palme (PFAD) | BN80: =IF(+'3a_Fodermiddeltabel'!A74>0,+'3a_Fodermiddeltabel'!A74,"") -> 88900
BM81: =IF(+'3a_Fodermiddeltabel'!D75>0,+'3a_Fodermiddeltabel'!D75,"") -> GLYCEROL, CONCERINE CD80 FEED | BN81: =IF(+'3a_Fodermiddeltabel'!A75>0,+'3a_Fodermiddeltabel'!A75,"") -> 72600
BM82: =IF(+'3a_Fodermiddeltabel'!D76>0,+'3a_Fodermiddeltabel'!D76,"") -> GRÆSENSILAGE 1. SLÆT | BN82: =IF(+'3a_Fodermiddeltabel'!A76>0,+'3a_Fodermiddeltabel'!A76,"") -> 74000
BM83: =IF(+'3a_Fodermiddeltabel'!D77>0,+'3a_Fodermiddeltabel'!D77,"") -> GRÆSENSILAGE 2. SLÆT | BN83: =IF(+'3a_Fodermiddeltabel'!A77>0,+'3a_Fodermiddeltabel'!A77,"") -> 74100
BM84: =IF(+'3a_Fodermiddeltabel'!D78>0,+'3a_Fodermiddeltabel'!D78,"") -> GRÆSGRØNMEL (grønpiller) | BN84: =IF(+'3a_Fodermiddeltabel'!A78>0,+'3a_Fodermiddeltabel'!A78,"") -> 71600
BM85: =IF(+'3a_Fodermiddeltabel'!D79>0,+'3a_Fodermiddeltabel'!D79,"") -> GÆRFLØDE, NOVO | BN85: =IF(+'3a_Fodermiddeltabel'!A79>0,+'3a_Fodermiddeltabel'!A79,"") -> 93500
BM86: =IF(+'3a_Fodermiddeltabel'!D80>0,+'3a_Fodermiddeltabel'!D80,"") -> GÆRFLØDE, SPRIT | BN86: =IF(+'3a_Fodermiddeltabel'!A80>0,+'3a_Fodermiddeltabel'!A80,"") -> 93600
BM87: =IF(+'3a_Fodermiddeltabel'!D81>0,+'3a_Fodermiddeltabel'!D81,"") -> GÆRFLØDE, ØL | BN87: =IF(+'3a_Fodermiddeltabel'!A81>0,+'3a_Fodermiddeltabel'!A81,"") -> 93100
BM88: =IF(+'3a_Fodermiddeltabel'!D82>0,+'3a_Fodermiddeltabel'!D82,"") -> HAVRE, flerårigt gns. | BN88: =IF(+'3a_Fodermiddeltabel'!A82>0,+'3a_Fodermiddeltabel'!A82,"") -> 53000
BM89: =IF(+'3a_Fodermiddeltabel'!D83>0,+'3a_Fodermiddeltabel'!D83,"") -> HAVRE, 2020 | BN89: =IF(+'3a_Fodermiddeltabel'!A83>0,+'3a_Fodermiddeltabel'!A83,"") -> 53100
BM90: =IF(+'3a_Fodermiddeltabel'!D84>0,+'3a_Fodermiddeltabel'!D84,"") -> HAVRE, 2020, økologisk | BN90: =IF(+'3a_Fodermiddeltabel'!A84>0,+'3a_Fodermiddeltabel'!A84,"") -> 53150
BM91: =IF(+'3a_Fodermiddeltabel'!D85>0,+'3a_Fodermiddeltabel'!D85,"") -> HAVRE, 10,0 % råprotein | BN91: =IF(+'3a_Fodermiddeltabel'!A85>0,+'3a_Fodermiddeltabel'!A85,"") -> 53310
BM92: =IF(+'3a_Fodermiddeltabel'!D86>0,+'3a_Fodermiddeltabel'!D86,"") -> HAVRE, 10,0% råprotein | BN92: =IF(+'3a_Fodermiddeltabel'!A86>0,+'3a_Fodermiddeltabel'!A86,"") -> 53300
BM93: =IF(+'3a_Fodermiddeltabel'!D87>0,+'3a_Fodermiddeltabel'!D87,"") -> HAVRE, 11,5 % råprotein | BN93: =IF(+'3a_Fodermiddeltabel'!A87>0,+'3a_Fodermiddeltabel'!A87,"") -> 53360
BM94: =IF(+'3a_Fodermiddeltabel'!D88>0,+'3a_Fodermiddeltabel'!D88,"") -> HAVRE, 11,5% råprotein | BN94: =IF(+'3a_Fodermiddeltabel'!A88>0,+'3a_Fodermiddeltabel'!A88,"") -> 53350
BM95: =IF(+'3a_Fodermiddeltabel'!D89>0,+'3a_Fodermiddeltabel'!D89,"") -> HAVRE, Afskallet | BN95: =IF(+'3a_Fodermiddeltabel'!A89>0,+'3a_Fodermiddeltabel'!A89,"") -> 53400
BM96: =IF(+'3a_Fodermiddeltabel'!D90>0,+'3a_Fodermiddeltabel'!D90,"") -> HAVRE, Nøgen | BN96: =IF(+'3a_Fodermiddeltabel'!A90>0,+'3a_Fodermiddeltabel'!A90,"") -> 53500
BM97: =IF(+'3a_Fodermiddeltabel'!D91>0,+'3a_Fodermiddeltabel'!D91,"") -> HAVRESKALMEL | BN97: =IF(+'3a_Fodermiddeltabel'!A91>0,+'3a_Fodermiddeltabel'!A91,"") -> 53700
BM98: =IF(+'3a_Fodermiddeltabel'!D92>0,+'3a_Fodermiddeltabel'!D92,"") -> HESTEBØNNER, gennemsnit af høst 2012, 2014, 2015 og 2016 | BN98: =IF(+'3a_Fodermiddeltabel'!A92>0,+'3a_Fodermiddeltabel'!A92,"") -> 65200
BM99: =IF(+'3a_Fodermiddeltabel'!D93>0,+'3a_Fodermiddeltabel'!D93,"") -> HESTEBØNNER, gennemsnit af høst 2012 | BN99: =IF(+'3a_Fodermiddeltabel'!A93>0,+'3a_Fodermiddeltabel'!A93,"") -> 65201
BM100: =IF(+'3a_Fodermiddeltabel'!D94>0,+'3a_Fodermiddeltabel'!D94,"") -> HESTEBØNNER, gennemsnit af høst 2014 | BN100: =IF(+'3a_Fodermiddeltabel'!A94>0,+'3a_Fodermiddeltabel'!A94,"") -> 65202
BM101: =IF(+'3a_Fodermiddeltabel'!D95>0,+'3a_Fodermiddeltabel'!D95,"") -> HESTEBØNNER, gennemsnit af høst 2015 | BN101: =IF(+'3a_Fodermiddeltabel'!A95>0,+'3a_Fodermiddeltabel'!A95,"") -> 65203
BM102: =IF(+'3a_Fodermiddeltabel'!D96>0,+'3a_Fodermiddeltabel'!D96,"") -> HESTEBØNNER, gennemsnit af høst 2016 | BN102: =IF(+'3a_Fodermiddeltabel'!A96>0,+'3a_Fodermiddeltabel'!A96,"") -> 65204
BM103: =IF(+'3a_Fodermiddeltabel'!D97>0,+'3a_Fodermiddeltabel'!D97,"") -> HESTEBØNNER, høst 2012, Columbo | BN103: =IF(+'3a_Fodermiddeltabel'!A97>0,+'3a_Fodermiddeltabel'!A97,"") -> 65210
BM104: =IF(+'3a_Fodermiddeltabel'!D98>0,+'3a_Fodermiddeltabel'!D98,"") -> HESTEBØNNER, høst 2012, Espresso | BN104: =IF(+'3a_Fodermiddeltabel'!A98>0,+'3a_Fodermiddeltabel'!A98,"") -> 65230
BM105: =IF(+'3a_Fodermiddeltabel'!D99>0,+'3a_Fodermiddeltabel'!D99,"") -> HESTEBØNNER, høst 2012, Fuego | BN105: =IF(+'3a_Fodermiddeltabel'!A99>0,+'3a_Fodermiddeltabel'!A99,"") -> 65220
BM106: =IF(+'3a_Fodermiddeltabel'!D100>0,+'3a_Fodermiddeltabel'!D100,"") -> HISTIDIN,L98,5 | BN106: =IF(+'3a_Fodermiddeltabel'!A100>0,+'3a_Fodermiddeltabel'!A100,"") -> 99910
BM107: =IF(+'3a_Fodermiddeltabel'!D101>0,+'3a_Fodermiddeltabel'!D101,"") -> HVEDE, 2020 | BN107: =IF(+'3a_Fodermiddeltabel'!A101>0,+'3a_Fodermiddeltabel'!A101,"") -> 51000
BM108: =IF(+'3a_Fodermiddeltabel'!D102>0,+'3a_Fodermiddeltabel'!D102,"") -> HVEDE, 2020 + xylanase | BN108: =IF(+'3a_Fodermiddeltabel'!A102>0,+'3a_Fodermiddeltabel'!A102,"") -> 51001
BM109: =IF(+'3a_Fodermiddeltabel'!D103>0,+'3a_Fodermiddeltabel'!D103,"") -> HVEDE, 2020, varmebehandlet | BN109: =IF(+'3a_Fodermiddeltabel'!A103>0,+'3a_Fodermiddeltabel'!A103,"") -> 51010
BM110: =IF(+'3a_Fodermiddeltabel'!D104>0,+'3a_Fodermiddeltabel'!D104,"") -> HVEDE, 2020, varmebehandlet + xylanase | BN110: =IF(+'3a_Fodermiddeltabel'!A104>0,+'3a_Fodermiddeltabel'!A104,"") -> 51011
BM111: =IF(+'3a_Fodermiddeltabel'!D105>0,+'3a_Fodermiddeltabel'!D105,"") -> HVEDE, 2020, økologisk | BN111: =IF(+'3a_Fodermiddeltabel'!A105>0,+'3a_Fodermiddeltabel'!A105,"") -> 51050
BM112: =IF(+'3a_Fodermiddeltabel'!D106>0,+'3a_Fodermiddeltabel'!D106,"") -> HVEDE, 2020, varmebehandlet, økologisk | BN112: =IF(+'3a_Fodermiddeltabel'!A106>0,+'3a_Fodermiddeltabel'!A106,"") -> 51060
BM113: =IF(+'3a_Fodermiddeltabel'!D107>0,+'3a_Fodermiddeltabel'!D107,"") -> HVEDE, gns. 2018-2020 | BN113: =IF(+'3a_Fodermiddeltabel'!A107>0,+'3a_Fodermiddeltabel'!A107,"") -> 51200
BM114: =IF(+'3a_Fodermiddeltabel'!D108>0,+'3a_Fodermiddeltabel'!D108,"") -> HVEDE, gns. 2018-2020 + xylanase | BN114: =IF(+'3a_Fodermiddeltabel'!A108>0,+'3a_Fodermiddeltabel'!A108,"") -> 51201
BM115: =IF(+'3a_Fodermiddeltabel'!D109>0,+'3a_Fodermiddeltabel'!D109,"") -> HVEDE, gns. 2018-2020, varmebehandlet | BN115: =IF(+'3a_Fodermiddeltabel'!A109>0,+'3a_Fodermiddeltabel'!A109,"") -> 51210
BM116: =IF(+'3a_Fodermiddeltabel'!D110>0,+'3a_Fodermiddeltabel'!D110,"") -> HVEDE, gns. 2018-2020, varmebehandlet + xylanase | BN116: =IF(+'3a_Fodermiddeltabel'!A110>0,+'3a_Fodermiddeltabel'!A110,"") -> 51211
BM117: =IF(+'3a_Fodermiddeltabel'!D111>0,+'3a_Fodermiddeltabel'!D111,"") -> HVEDE, 10% råprotein | BN117: =IF(+'3a_Fodermiddeltabel'!A111>0,+'3a_Fodermiddeltabel'!A111,"") -> 51300
BM118: =IF(+'3a_Fodermiddeltabel'!D112>0,+'3a_Fodermiddeltabel'!D112,"") -> HVEDE, 10,0 % råprotein, varmebehandlet + xylanase | BN118: =IF(+'3a_Fodermiddeltabel'!A112>0,+'3a_Fodermiddeltabel'!A112,"") -> 51311
BM119: =IF(+'3a_Fodermiddeltabel'!D113>0,+'3a_Fodermiddeltabel'!D113,"") -> HVEDE, 11,5 % råprotein, varmebehandlet + xylanase | BN119: =IF(+'3a_Fodermiddeltabel'!A113>0,+'3a_Fodermiddeltabel'!A113,"") -> 51361
BM120: =IF(+'3a_Fodermiddeltabel'!D114>0,+'3a_Fodermiddeltabel'!D114,"") -> HVEDE, 2019 | BN120: =IF(+'3a_Fodermiddeltabel'!A114>0,+'3a_Fodermiddeltabel'!A114,"") -> 51100
BM121: =IF(+'3a_Fodermiddeltabel'!D115>0,+'3a_Fodermiddeltabel'!D115,"") -> HVEDE, 2019 + xylanase | BN121: =IF(+'3a_Fodermiddeltabel'!A115>0,+'3a_Fodermiddeltabel'!A115,"") -> 51101
BM122: =IF(+'3a_Fodermiddeltabel'!D116>0,+'3a_Fodermiddeltabel'!D116,"") -> HVEDE, 2019, varmebehandlet | BN122: =IF(+'3a_Fodermiddeltabel'!A116>0,+'3a_Fodermiddeltabel'!A116,"") -> 51110
BM123: =IF(+'3a_Fodermiddeltabel'!D117>0,+'3a_Fodermiddeltabel'!D117,"") -> HVEDE, 2019, varmebehandlet + xylanase | BN123: =IF(+'3a_Fodermiddeltabel'!A117>0,+'3a_Fodermiddeltabel'!A117,"") -> 51111
BM124: =IF(+'3a_Fodermiddeltabel'!D118>0,+'3a_Fodermiddeltabel'!D118,"") -> HVEDEGLUTEN 80% protein (Obs.: Gamle data) | BN124: =IF(+'3a_Fodermiddeltabel'!A118>0,+'3a_Fodermiddeltabel'!A118,"") -> 51400
BM125: =IF(+'3a_Fodermiddeltabel'!D119>0,+'3a_Fodermiddeltabel'!D119,"") -> HVEDEGLUTENFODER | BN125: =IF(+'3a_Fodermiddeltabel'!A119>0,+'3a_Fodermiddeltabel'!A119,"") -> 51500
BM126: =IF(+'3a_Fodermiddeltabel'!D120>0,+'3a_Fodermiddeltabel'!D120,"") -> HVEDEKLID | BN126: =IF(+'3a_Fodermiddeltabel'!A120>0,+'3a_Fodermiddeltabel'!A120,"") -> 51800
BM127: =IF(+'3a_Fodermiddeltabel'!D121>0,+'3a_Fodermiddeltabel'!D121,"") -> HVEDEKLID +xylanase | BN127: =IF(+'3a_Fodermiddeltabel'!A121>0,+'3a_Fodermiddeltabel'!A121,"") -> 51801
BM128: =IF(+'3a_Fodermiddeltabel'!D122>0,+'3a_Fodermiddeltabel'!D122,"") -> HVEDESTRØMEL | BN128: =IF(+'3a_Fodermiddeltabel'!A122>0,+'3a_Fodermiddeltabel'!A122,"") -> 51700
BM129: =IF(+'3a_Fodermiddeltabel'!D123>0,+'3a_Fodermiddeltabel'!D123,"") -> HØRFRØ (Obs.: Gamle data) | BN129: =IF(+'3a_Fodermiddeltabel'!A123>0,+'3a_Fodermiddeltabel'!A123,"") -> 62500
BM130: =IF(+'3a_Fodermiddeltabel'!D124>0,+'3a_Fodermiddeltabel'!D124,"") -> ISOLEUCIN,L98,5 | BN130: =IF(+'3a_Fodermiddeltabel'!A124>0,+'3a_Fodermiddeltabel'!A124,"") -> 99800
BM131: =IF(+'3a_Fodermiddeltabel'!D125>0,+'3a_Fodermiddeltabel'!D125,"") -> JERNSULFAT,HEPT 1%-opløsning | BN131: =IF(+'3a_Fodermiddeltabel'!A125>0,+'3a_Fodermiddeltabel'!A125,"") -> 46900
BM132: =IF(+'3a_Fodermiddeltabel'!D126>0,+'3a_Fodermiddeltabel'!D126,"") -> KAGEMIX (hvede, fedt, sukker) | BN132: =IF(+'3a_Fodermiddeltabel'!A126>0,+'3a_Fodermiddeltabel'!A126,"") -> 51390
BM133: =IF(+'3a_Fodermiddeltabel'!D127>0,+'3a_Fodermiddeltabel'!D127,"") -> KALIUMJODID 1%-opløsning | BN133: =IF(+'3a_Fodermiddeltabel'!A127>0,+'3a_Fodermiddeltabel'!A127,"") -> 48500
BM134: =IF(+'3a_Fodermiddeltabel'!D128>0,+'3a_Fodermiddeltabel'!D128,"") -> KALIUMKLORID | BN134: =IF(+'3a_Fodermiddeltabel'!A128>0,+'3a_Fodermiddeltabel'!A128,"") -> 48600
BM135: =IF(+'3a_Fodermiddeltabel'!D129>0,+'3a_Fodermiddeltabel'!D129,"") -> KARTOFFELPROTEIN | BN135: =IF(+'3a_Fodermiddeltabel'!A129>0,+'3a_Fodermiddeltabel'!A129,"") -> 69100
BM136: =IF(+'3a_Fodermiddeltabel'!D130>0,+'3a_Fodermiddeltabel'!D130,"") -> KARTOFFELPROTEIN, PROTASTAR | BN136: =IF(+'3a_Fodermiddeltabel'!A130>0,+'3a_Fodermiddeltabel'!A130,"") -> 69200
BM137: =IF(+'3a_Fodermiddeltabel'!D131>0,+'3a_Fodermiddeltabel'!D131,"") -> KOBBEROXID 100%-opløsning | BN137: =IF(+'3a_Fodermiddeltabel'!A131>0,+'3a_Fodermiddeltabel'!A131,"") -> 46700
BM138: =IF(+'3a_Fodermiddeltabel'!D132>0,+'3a_Fodermiddeltabel'!D132,"") -> KOBBERSULFAT 100%-opløsning | BN138: =IF(+'3a_Fodermiddeltabel'!A132>0,+'3a_Fodermiddeltabel'!A132,"") -> 46800
BM139: =IF(+'3a_Fodermiddeltabel'!D133>0,+'3a_Fodermiddeltabel'!D133,"") -> KOKOSKAGE, FEDTRIG | BN139: =IF(+'3a_Fodermiddeltabel'!A133>0,+'3a_Fodermiddeltabel'!A133,"") -> 59000
BM140: =IF(+'3a_Fodermiddeltabel'!D134>0,+'3a_Fodermiddeltabel'!D134,"") -> KOLBEMAJS | BN140: =IF(+'3a_Fodermiddeltabel'!A134>0,+'3a_Fodermiddeltabel'!A134,"") -> 72000
BM141: =IF(+'3a_Fodermiddeltabel'!D135>0,+'3a_Fodermiddeltabel'!D135,"") -> KORNBÆRME, tørret (DDGS) | BN141: =IF(+'3a_Fodermiddeltabel'!A135>0,+'3a_Fodermiddeltabel'!A135,"") -> 57000
BM142: =IF(+'3a_Fodermiddeltabel'!D136>0,+'3a_Fodermiddeltabel'!D136,"") -> KORNHALM, Byg | BN142: =IF(+'3a_Fodermiddeltabel'!A136>0,+'3a_Fodermiddeltabel'!A136,"") -> 74500
BM143: =IF(+'3a_Fodermiddeltabel'!D137>0,+'3a_Fodermiddeltabel'!D137,"") -> KORNHALM, Hvede | BN143: =IF(+'3a_Fodermiddeltabel'!A137>0,+'3a_Fodermiddeltabel'!A137,"") -> 74600
BM144: =IF(+'3a_Fodermiddeltabel'!D138>0,+'3a_Fodermiddeltabel'!D138,"") -> KORNPLANTER, Helsæd af Byg, gns. | BN144: =IF(+'3a_Fodermiddeltabel'!A138>0,+'3a_Fodermiddeltabel'!A138,"") -> 73200
BM145: =IF(+'3a_Fodermiddeltabel'!D139>0,+'3a_Fodermiddeltabel'!D139,"") -> KORNPLANTER, Helsæd af Byg-Ært, gns. | BN145: =IF(+'3a_Fodermiddeltabel'!A139>0,+'3a_Fodermiddeltabel'!A139,"") -> 73000
BM146: =IF(+'3a_Fodermiddeltabel'!D140>0,+'3a_Fodermiddeltabel'!D140,"") -> KORNPLANTER, Helsæd af Hvede, gns. | BN146: =IF(+'3a_Fodermiddeltabel'!A140>0,+'3a_Fodermiddeltabel'!A140,"") -> 73300
BM147: =IF(+'3a_Fodermiddeltabel'!D141>0,+'3a_Fodermiddeltabel'!D141,"") -> KORNPLANTER, Helsæd af Hvede-Ært, gns. | BN147: =IF(+'3a_Fodermiddeltabel'!A141>0,+'3a_Fodermiddeltabel'!A141,"") -> 73100
BM148: =IF(+'3a_Fodermiddeltabel'!D142>0,+'3a_Fodermiddeltabel'!D142,"") -> KORNPLANTER, Helsæd af Ært, gns. | BN148: =IF(+'3a_Fodermiddeltabel'!A142>0,+'3a_Fodermiddeltabel'!A142,"") -> 73400
BM149: =IF(+'3a_Fodermiddeltabel'!D143>0,+'3a_Fodermiddeltabel'!D143,"") -> KÆRNEMÆLKSPULVER | BN149: =IF(+'3a_Fodermiddeltabel'!A143>0,+'3a_Fodermiddeltabel'!A143,"") -> 76500
BM150: =IF(+'3a_Fodermiddeltabel'!D144>0,+'3a_Fodermiddeltabel'!D144,"") -> KÆRNEMÆLKSPULVER, Type B | BN150: =IF(+'3a_Fodermiddeltabel'!A144>0,+'3a_Fodermiddeltabel'!A144,"") -> 76600
BM151: =IF(+'3a_Fodermiddeltabel'!D145>0,+'3a_Fodermiddeltabel'!D145,"") -> LEUCIN,L98,5 | BN151: =IF(+'3a_Fodermiddeltabel'!A145>0,+'3a_Fodermiddeltabel'!A145,"") -> 99900
BM152: =IF(+'3a_Fodermiddeltabel'!D146>0,+'3a_Fodermiddeltabel'!D146,"") -> LUCERNEGRØNMEL (lucernepiller) | BN152: =IF(+'3a_Fodermiddeltabel'!A146>0,+'3a_Fodermiddeltabel'!A146,"") -> 71300
BM153: =IF(+'3a_Fodermiddeltabel'!D147>0,+'3a_Fodermiddeltabel'!D147,"") -> LUPIN, blå, | BN153: =IF(+'3a_Fodermiddeltabel'!A147>0,+'3a_Fodermiddeltabel'!A147,"") -> 64900
BM154: =IF(+'3a_Fodermiddeltabel'!D148>0,+'3a_Fodermiddeltabel'!D148,"") -> LUPIN, gul (Obs.: Gamle data) | BN154: =IF(+'3a_Fodermiddeltabel'!A148>0,+'3a_Fodermiddeltabel'!A148,"") -> 65000
BM155: =IF(+'3a_Fodermiddeltabel'!D149>0,+'3a_Fodermiddeltabel'!D149,"") -> LYSIN 30% (70%hv strømel) | BN155: =IF(+'3a_Fodermiddeltabel'!A149>0,+'3a_Fodermiddeltabel'!A149,"") -> 39001
BM156: =IF(+'3a_Fodermiddeltabel'!D150>0,+'3a_Fodermiddeltabel'!D150,"") -> LYSIN 40% (60%hv klid) | BN156: =IF(+'3a_Fodermiddeltabel'!A150>0,+'3a_Fodermiddeltabel'!A150,"") -> 39102
BM157: =IF(+'3a_Fodermiddeltabel'!D151>0,+'3a_Fodermiddeltabel'!D151,"") -> LYSIN 40% (60%kridt) | BN157: =IF(+'3a_Fodermiddeltabel'!A151>0,+'3a_Fodermiddeltabel'!A151,"") -> 39103
BM158: =IF(+'3a_Fodermiddeltabel'!D152>0,+'3a_Fodermiddeltabel'!D152,"") -> LYSIN,L Vådfoder FK=50% | BN158: =IF(+'3a_Fodermiddeltabel'!A152>0,+'3a_Fodermiddeltabel'!A152,"") -> 99502
BM159: =IF(+'3a_Fodermiddeltabel'!D153>0,+'3a_Fodermiddeltabel'!D153,"") -> LYSIN,L Vådfoder FK=75% | BN159: =IF(+'3a_Fodermiddeltabel'!A153>0,+'3a_Fodermiddeltabel'!A153,"") -> 99501
BM160: =IF(+'3a_Fodermiddeltabel'!D154>0,+'3a_Fodermiddeltabel'!D154,"") -> LYSIN,L(HCl)98,5% | BN160: =IF(+'3a_Fodermiddeltabel'!A154>0,+'3a_Fodermiddeltabel'!A154,"") -> 99500
BM161: =IF(+'3a_Fodermiddeltabel'!D155>0,+'3a_Fodermiddeltabel'!D155,"") -> LYSIN,L(sulfat) Vådfod FK=50% | BN161: =IF(+'3a_Fodermiddeltabel'!A155>0,+'3a_Fodermiddeltabel'!A155,"") -> 99512
BM162: =IF(+'3a_Fodermiddeltabel'!D156>0,+'3a_Fodermiddeltabel'!D156,"") -> LYSIN,L(sulfat) Vådfod FK=75% | BN162: =IF(+'3a_Fodermiddeltabel'!A156>0,+'3a_Fodermiddeltabel'!A156,"") -> 99511
BM163: =IF(+'3a_Fodermiddeltabel'!D157>0,+'3a_Fodermiddeltabel'!D157,"") -> LYSIN,L(sulfat)70% | BN163: =IF(+'3a_Fodermiddeltabel'!A157>0,+'3a_Fodermiddeltabel'!A157,"") -> 99510
BM164: =IF(+'3a_Fodermiddeltabel'!D158>0,+'3a_Fodermiddeltabel'!D158,"") -> LYSIN,LLB50 flydende | BN164: =IF(+'3a_Fodermiddeltabel'!A158>0,+'3a_Fodermiddeltabel'!A158,"") -> 99550
BM165: =IF(+'3a_Fodermiddeltabel'!D159>0,+'3a_Fodermiddeltabel'!D159,"") -> LYSIN,LLB50 i vådfoder FK=50% | BN165: =IF(+'3a_Fodermiddeltabel'!A159>0,+'3a_Fodermiddeltabel'!A159,"") -> 99552
BM166: =IF(+'3a_Fodermiddeltabel'!D160>0,+'3a_Fodermiddeltabel'!D160,"") -> LYSIN,LLB50 i vådfoder FK=75% | BN166: =IF(+'3a_Fodermiddeltabel'!A160>0,+'3a_Fodermiddeltabel'!A160,"") -> 99551
BM167: =IF(+'3a_Fodermiddeltabel'!D161>0,+'3a_Fodermiddeltabel'!D161,"") -> Laktoseprodukt, VarioLac 960 | BN167: =IF(+'3a_Fodermiddeltabel'!A161>0,+'3a_Fodermiddeltabel'!A161,"") -> 78300
BM168: =IF(+'3a_Fodermiddeltabel'!D162>0,+'3a_Fodermiddeltabel'!D162,"") -> Leci E (Lecitin med E-vit ) | BN168: =IF(+'3a_Fodermiddeltabel'!A162>0,+'3a_Fodermiddeltabel'!A162,"") -> 89100
BM169: =IF(+'3a_Fodermiddeltabel'!D163>0,+'3a_Fodermiddeltabel'!D163,"") -> MAGNESIUMKARBON | BN169: =IF(+'3a_Fodermiddeltabel'!A163>0,+'3a_Fodermiddeltabel'!A163,"") -> 48000
BM170: =IF(+'3a_Fodermiddeltabel'!D164>0,+'3a_Fodermiddeltabel'!D164,"") -> MAGNESIUMOXID | BN170: =IF(+'3a_Fodermiddeltabel'!A164>0,+'3a_Fodermiddeltabel'!A164,"") -> 46400
BM171: =IF(+'3a_Fodermiddeltabel'!D165>0,+'3a_Fodermiddeltabel'!D165,"") -> MAJS, 2018 | BN171: =IF(+'3a_Fodermiddeltabel'!A165>0,+'3a_Fodermiddeltabel'!A165,"") -> 54010
BM172: =IF(+'3a_Fodermiddeltabel'!D166>0,+'3a_Fodermiddeltabel'!D166,"") -> MAJS, flerårigt gns. | BN172: =IF(+'3a_Fodermiddeltabel'!A166>0,+'3a_Fodermiddeltabel'!A166,"") -> 54000
BM173: =IF(+'3a_Fodermiddeltabel'!D167>0,+'3a_Fodermiddeltabel'!D167,"") -> MAJS, Vådkonserveret | BN173: =IF(+'3a_Fodermiddeltabel'!A167>0,+'3a_Fodermiddeltabel'!A167,"") -> 54020
BM174: =IF(+'3a_Fodermiddeltabel'!D168>0,+'3a_Fodermiddeltabel'!D168,"") -> MAJSENSILAGE, Gns. 2003-2007 | BN174: =IF(+'3a_Fodermiddeltabel'!A168>0,+'3a_Fodermiddeltabel'!A168,"") -> 73500
BM175: =IF(+'3a_Fodermiddeltabel'!D169>0,+'3a_Fodermiddeltabel'!D169,"") -> MAJSENSILAGE, Let fordøjelig | BN175: =IF(+'3a_Fodermiddeltabel'!A169>0,+'3a_Fodermiddeltabel'!A169,"") -> 73510
BM176: =IF(+'3a_Fodermiddeltabel'!D170>0,+'3a_Fodermiddeltabel'!D170,"") -> MAJSENSILAGE, Tungt fordøjelig | BN176: =IF(+'3a_Fodermiddeltabel'!A170>0,+'3a_Fodermiddeltabel'!A170,"") -> 73520
BM177: =IF(+'3a_Fodermiddeltabel'!D171>0,+'3a_Fodermiddeltabel'!D171,"") -> MAJSFODERMEL | BN177: =IF(+'3a_Fodermiddeltabel'!A171>0,+'3a_Fodermiddeltabel'!A171,"") -> 54100
BM178: =IF(+'3a_Fodermiddeltabel'!D172>0,+'3a_Fodermiddeltabel'!D172,"") -> MAJSGLUTEN 60% råprotein | BN178: =IF(+'3a_Fodermiddeltabel'!A172>0,+'3a_Fodermiddeltabel'!A172,"") -> 54400
BM179: =IF(+'3a_Fodermiddeltabel'!D173>0,+'3a_Fodermiddeltabel'!D173,"") -> MAJSGLUTENFODER | BN179: =IF(+'3a_Fodermiddeltabel'!A173>0,+'3a_Fodermiddeltabel'!A173,"") -> 54300
BM180: =IF(+'3a_Fodermiddeltabel'!D174>0,+'3a_Fodermiddeltabel'!D174,"") -> MAJSKIM (Obs.: Gamle data) | BN180: =IF(+'3a_Fodermiddeltabel'!A174>0,+'3a_Fodermiddeltabel'!A174,"") -> 54200
BM181: =IF(+'3a_Fodermiddeltabel'!D175>0,+'3a_Fodermiddeltabel'!D175,"") -> MANGANDIOXID 1%-opløsning | BN181: =IF(+'3a_Fodermiddeltabel'!A175>0,+'3a_Fodermiddeltabel'!A175,"") -> 48100
BM182: =IF(+'3a_Fodermiddeltabel'!D176>0,+'3a_Fodermiddeltabel'!D176,"") -> MANGANOXID 1%-opløsning | BN182: =IF(+'3a_Fodermiddeltabel'!A176>0,+'3a_Fodermiddeltabel'!A176,"") -> 48200
BM183: =IF(+'3a_Fodermiddeltabel'!D177>0,+'3a_Fodermiddeltabel'!D177,"") -> MANGANSULF,MONO 1%-opløsning | BN183: =IF(+'3a_Fodermiddeltabel'!A177>0,+'3a_Fodermiddeltabel'!A177,"") -> 48800
BM184: =IF(+'3a_Fodermiddeltabel'!D178>0,+'3a_Fodermiddeltabel'!D178,"") -> MANGANSULF,TETR 1%-opløsning | BN184: =IF(+'3a_Fodermiddeltabel'!A178>0,+'3a_Fodermiddeltabel'!A178,"") -> 48300
BM185: =IF(+'3a_Fodermiddeltabel'!D179>0,+'3a_Fodermiddeltabel'!D179,"") -> MASK, frisk | BN185: =IF(+'3a_Fodermiddeltabel'!A179>0,+'3a_Fodermiddeltabel'!A179,"") -> 72900
BM186: =IF(+'3a_Fodermiddeltabel'!D180>0,+'3a_Fodermiddeltabel'!D180,"") -> MASK, tørret | BN186: =IF(+'3a_Fodermiddeltabel'!A180>0,+'3a_Fodermiddeltabel'!A180,"") -> 72800
BM187: =IF(+'3a_Fodermiddeltabel'!D181>0,+'3a_Fodermiddeltabel'!D181,"") -> METHIONIN 30% (70%hv strømel) | BN187: =IF(+'3a_Fodermiddeltabel'!A181>0,+'3a_Fodermiddeltabel'!A181,"") -> 39002
BM188: =IF(+'3a_Fodermiddeltabel'!D182>0,+'3a_Fodermiddeltabel'!D182,"") -> METHIONIN 40% (60%hv strømel) | BN188: =IF(+'3a_Fodermiddeltabel'!A182>0,+'3a_Fodermiddeltabel'!A182,"") -> 39101
BM189: =IF(+'3a_Fodermiddeltabel'!D183>0,+'3a_Fodermiddeltabel'!D183,"") -> METHIONIN,DL 99 | BN189: =IF(+'3a_Fodermiddeltabel'!A183>0,+'3a_Fodermiddeltabel'!A183,"") -> 99400
BM190: =IF(+'3a_Fodermiddeltabel'!D184>0,+'3a_Fodermiddeltabel'!D184,"") -> MILOKORN, lavt tanninindhold | BN190: =IF(+'3a_Fodermiddeltabel'!A184>0,+'3a_Fodermiddeltabel'!A184,"") -> 55000
BM191: =IF(+'3a_Fodermiddeltabel'!D185>0,+'3a_Fodermiddeltabel'!D185,"") -> MONOCALCIUMFOS (16/22,7) | BN191: =IF(+'3a_Fodermiddeltabel'!A185>0,+'3a_Fodermiddeltabel'!A185,"") -> 46200
BM192: =IF(+'3a_Fodermiddeltabel'!D186>0,+'3a_Fodermiddeltabel'!D186,"") -> MONODICALC FOSF | BN192: =IF(+'3a_Fodermiddeltabel'!A186>0,+'3a_Fodermiddeltabel'!A186,"") -> 47200
BM193: =IF(+'3a_Fodermiddeltabel'!D187>0,+'3a_Fodermiddeltabel'!D187,"") -> MONONATRIUMFOS | BN193: =IF(+'3a_Fodermiddeltabel'!A187>0,+'3a_Fodermiddeltabel'!A187,"") -> 46300
BM194: =IF(+'3a_Fodermiddeltabel'!D188>0,+'3a_Fodermiddeltabel'!D188,"") -> MYRESYRE (25% vand) | BN194: =IF(+'3a_Fodermiddeltabel'!A188>0,+'3a_Fodermiddeltabel'!A188,"") -> 94600
BM195: =IF(+'3a_Fodermiddeltabel'!D189>0,+'3a_Fodermiddeltabel'!D189,"") -> Meth analog Alimet 72% | BN195: =IF(+'3a_Fodermiddeltabel'!A189>0,+'3a_Fodermiddeltabel'!A189,"") -> 99472
BM196: =IF(+'3a_Fodermiddeltabel'!D190>0,+'3a_Fodermiddeltabel'!D190,"") -> MÆLKEPROTEINPULVER | BN196: =IF(+'3a_Fodermiddeltabel'!A190>0,+'3a_Fodermiddeltabel'!A190,"") -> 76000
BM197: =IF(+'3a_Fodermiddeltabel'!D191>0,+'3a_Fodermiddeltabel'!D191,"") -> MÆLKESYRE (20% vand) | BN197: =IF(+'3a_Fodermiddeltabel'!A191>0,+'3a_Fodermiddeltabel'!A191,"") -> 94500
BM198: =IF(+'3a_Fodermiddeltabel'!D192>0,+'3a_Fodermiddeltabel'!D192,"") -> NATRIUMBICARBON | BN198: =IF(+'3a_Fodermiddeltabel'!A192>0,+'3a_Fodermiddeltabel'!A192,"") -> 46600
BM199: =IF(+'3a_Fodermiddeltabel'!D193>0,+'3a_Fodermiddeltabel'!D193,"") -> NATRIUMCLORID | BN199: =IF(+'3a_Fodermiddeltabel'!A193>0,+'3a_Fodermiddeltabel'!A193,"") -> 46500
BM200: =IF(+'3a_Fodermiddeltabel'!D194>0,+'3a_Fodermiddeltabel'!D194,"") -> NATRIUMSELENIT 1%-opløsning | BN200: =IF(+'3a_Fodermiddeltabel'!A194>0,+'3a_Fodermiddeltabel'!A194,"") -> 48700
BM201: =IF(+'3a_Fodermiddeltabel'!D195>0,+'3a_Fodermiddeltabel'!D195,"") -> Natuphos flydende, Std. dosis: 500 FTU | BN201: =IF(+'3a_Fodermiddeltabel'!A195>0,+'3a_Fodermiddeltabel'!A195,"") -> 95010
BM202: =IF(+'3a_Fodermiddeltabel'!D196>0,+'3a_Fodermiddeltabel'!D196,"") -> Natuphos tør, Std. dosis: 500 FTU | BN202: =IF(+'3a_Fodermiddeltabel'!A196>0,+'3a_Fodermiddeltabel'!A196,"") -> 95000
... 157 more rows

Sheet 3a_Fodermiddeltabel
IJ1: 244 | IK1: =+IJ1+1 -> 245 | IL1: =+IK1+1 -> 246 | IM1: =+IL1+1 -> 247 | IN1: =+IM1+1 -> 248 | IO1: =+IN1+1 -> 249
D2: (Genvej: Retur til Indholdsfortegnelsen) | U2: hop til søjle IC-IF (FK-fosfor fra 250-400 % fytase) | IC2: Hop tilbage til FK-fosfor op til og med 200 % fytase | IJ2: Udgangspunkt: FEFAC klimaftryksværdier inkl. transport. Ellers NorFor-værdier | IL2: FEFAC klimaftryksværdier inkl. transport | IN2: NorFor klimaftryks-værdier | IO2: Forskelle
A3: Kolonnenr. | B3: =+C3-1 -> 2 | C3: =+D3-1 -> 3 | D3: =+E3-1 -> 4 | E3: =+F3-1 -> 5 | F3: =+G3-1 -> 6 | G3: =+H3-1 -> 7 | H3: =+I3-1 -> 8 | I3: =+J3-1 -> 9 | J3: =+K3-1 -> 10 | K3: =+L3-1 -> 11 | L3: =+M3-1 -> 12 | M3: =+N3-1 -> 13 | N3: =+O3-1 -> 14 | O3: =+P3-1 -> 15 | P3: =+Q3-1 -> 16 | Q3: =+R3-1 -> 17 | R3: =+S3-1 -> 18 | S3: =+T3-1 -> 19 | T3: =+U3-1 -> 20 | U3: =+V3-1 -> 21 | V3: =+W3-1 -> 22 | W3: =+X3-1 -> 23 | X3: =+Y3-1 -> 24 | Y3: =+Z3-1 -> 25 | Z3: =+AA3-1 -> 26 | AA3: =+AB3-1 -> 27 | AB3: =+AC3-1 -> 28 | AC3: =+AD3-1 -> 29 | AD3: =+AE3-1 -> 30 | AE3: =+AF3-1 -> 31 | AF3: =+AG3-1 -> 32 | AG3: =+AH3-1 -> 33 | AH3: =+AI3-1 -> 34 | AI3: =+AJ3-1 -> 35 | AJ3: =+AK3-1 -> 36 | AK3: =+AL3-1 -> 37 | AL3: =+AM3-1 -> 38 | AM3: =+AN3-1 -> 39 | AN3: =+AO3-1 -> 40 | AO3: =+AP3-1 -> 41 | AP3: =+AQ3-1 -> 42 | AQ3: =+AR3-1 -> 43 | AR3: =+AS3-1 -> 44 | AS3: =+AT3-1 -> 45 | AT3: =+AU3-1 -> 46 | AU3: =+AV3-1 -> 47 | AV3: =+AW3-1 -> 48 | AW3: =+AX3-1 -> 49 | AX3: =+AY3-1 -> 50 | AY3: =+AZ3-1 -> 51 | AZ3: =+BA3-1 -> 52 | BA3: =+BB3-1 -> 53 | BB3: =+BC3-1 -> 54 | BC3: =+BD3-1 -> 55 | BD3: =+BE3-1 -> 56 | BE3: =+BF3-1 -> 57 | BF3: =+BG3-1 -> 58 | BG3: =+BH3-1 -> 59 | BH3: =+BI3-1 -> 60 | BI3: =+BJ3-1 -> 61 | BJ3: =+BK3-1 -> 62 | BK3: =+BL3-1 -> 63 | BL3: =+BM3-1 -> 64 | BM3: =+BN3-1 -> 65 | BN3: =+BO3-1 -> 66 | BO3: =+BP3-1 -> 67 | BP3: =+BQ3-1 -> 68 | BQ3: =+BR3-1 -> 69 | BR3: =+BS3-1 -> 70 | BS3: =+BT3-1 -> 71 | BT3: =+BU3-1 -> 72 | BU3: =+BV3-1 -> 73 | BV3: =+BW3-1 -> 74 | BW3: =+BX3-1 -> 75 | BX3: =+BY3-1 -> 76 | BY3: =+BZ3-1 -> 77 | BZ3: =+CA3-1 -> 78 | CA3: =+CB3-1 -> 79 | CB3: =+CC3-1 -> 80 | CC3: =+CD3-1 -> 81 | CD3: 82 | CE3: 83 | CF3: 84 | CG3: 85 | CH3: 86 | CI3: 87 | CJ3: 88 | CK3: 89 | CL3: 90 | CM3: 91 | CN3: 92 | CO3: =+CP3-1 -> 93 | CP3: 94 | CQ3: =+CP3+1 -> 95 | CR3: =+CQ3+1 -> 96 | CS3: 97 | CT3: 98 | CU3: 99 | CV3: 100 | CW3: 101 | CX3: 102 | CY3: 103 | CZ3: 104 | DA3: 105 | DB3: 106 | DC3: 107 | DD3: 108 | DE3: 109 | DF3: 110 | DG3: 111 | DH3: 112 | DI3: 113 | DJ3: 114 | DK3: 115 | DL3: 116 | DM3: 117 | DN3: 118 | DO3: 119 | DP3: 120 | DQ3: 121 | DR3: 122 | DS3: 123 | DT3: 124 | DU3: 125 | DV3: 126 | DW3: =+DV3+1 -> 127 | DX3: 128 | DY3: 129 | DZ3: 130 | EA3: 131 | EB3: 132 | EC3: 133 | ED3: 134 | EE3: 135 | EF3: 136 | EG3: 137 | EH3: 138 | EI3: 139 | EJ3: 140 | EK3: 141 | EL3: 142 | EM3: 143 | EN3: 144 | EO3: 145 | EP3: 146 | EQ3: 147 | ER3: 148 | ES3: 149 | ET3: 150 | EU3: 151 | EV3: 152 | EW3: 153 | EX3: 154 | EY3: 155 | EZ3: 156 | FA3: 157 | FB3: 158 | FC3: =+FB3+1 -> 159 | FD3: 160 | FE3: 161 | FF3: 162 | FG3: 163 | FH3: 164 | FI3: 165 | FJ3: 166 | FK3: 167 | FL3: 168 | FM3: 169 | FN3: 170 | FO3: 171 | FP3: 172 | FQ3: 173 | FR3: 174 | FS3: 175 | FT3: 176 | FU3: 177 | FV3: 178 | FW3: 179 | FX3: 180 | FY3: 181 | FZ3: 182 | GA3: 183 | GB3: 184 | GC3: 185 | GD3: 186 | GE3: 187 | GF3: 188 | GG3: 189 | GH3: 190 | GI3: =+GH3+1 -> 191 | GJ3: 192 | GK3: 193 | GL3: 194 | GM3: 195 | GN3: 196 | GO3: 197 | GP3: 198 | GQ3: 199 | GR3: 200 | GS3: 201 | GT3: 202 | GU3: 203 | GV3: 204 | GW3: 205 | GX3: 206 | GY3: 207 | GZ3: 208 | HA3: 209 | HB3: 210 | HC3: 211 | HD3: 212 | HE3: 213 | HF3: 214 | HG3: 215 | HH3: 216 | HI3: 217 | HJ3: 218 | HK3: 219 | HL3: 220 | HM3: 221 | HN3: 222 | HO3: =+HN3+1 -> 223 | HP3: 224 | HQ3: 225 | HR3: 226 | HS3: 227 | HT3: 228 | HU3: 229 | HV3: 230 | HW3: 231 | HX3: 232 | HY3: 233 | HZ3: 234 | IA3: 235 | IB3: =+IA3+1 -> 236 | IC3: =+IB3+1 -> 237 | ID3: =+IC3+1 -> 238 | IE3: =+ID3+1 -> 239 | IF3: =+IE3+1 -> 240 | IG3: =+IF3+1 -> 241 | IH3: =+IG3+1 -> 242 | II3: =+IH3+1 -> 243 | IP3: =+IO1+1 -> 250 | IQ3: =+IP3+1 -> 251 | IR3: =+IQ3+1 -> 252 | IS3: =+IR3+1 -> 253 | IT3: =+IS3+1 -> 254 | IU3: =+IT3+1 -> 255 | IV3: =+IU3+1 -> 256 | IW3: =+IV3+1 -> 257 | IX3: =+IW3+1 -> 258 | IY3: =+IX3+1 -> 259 | IZ3: =+IY3+1 -> 260 | JA3: =+IZ3+1 -> 261 | JB3: =+JA3+1 -> 262 | JC3: =+JB3+1 -> 263 | JD3: =+JC3+1 -> 264 | JE3: =+JD3+1 -> 265 | JF3: =+JE3+1 -> 266 | JG3: =+JF3+1 -> 267 | JH3: =+JG3+1 -> 268 | JI3: =+JH3+1 -> 269 | JJ3: =+JI3+1 -> 270 | JK3: 271 | JL3: =+JK3+1 -> 272 | JM3: =+JL3+1 -> 273 | JN3: =+JM3+1 -> 274 | JO3: =+JN3+1 -> 275 | JP3: =+JO3+1 -> 276
B4: DLBR SvineIT | D4: Genvej til faneblad 3: "Et fodermiddel pr. side" | F4: Pr. kg vare | L4: Kemisk indhold, pct. af varen | R4: Fordøjeligheder, pct. (fortsættes søjle IC-IF) | Y4: gram pr. kg tørstof | AF4: milligram pr. kg tørstof | AM4: Aminosyreindhold i procent af råprotein | AY4: Aminosyrefordøjelighed i forhold til råproteinfordøjelighed, faktor | BK4: Kemisk indhold, pct. af tørstof | BQ4: pr. kg tørstof | BU4: gram pr. kg tørstof | CC4: gram pr. kg vare | CK4: milligram pr. kg vare | CR4: gram pr. FEsv | DI4: pr. kg vare | IC4: Fordøjeligheder (fortsat), pct. | IP4: FEFAC | IQ4: NorFor | IS4: FEFAC (GFLI) klimaftryksværdier
A5: Fodermid-delkode | B5: Kode | C5: Parti | D5: Fodermiddel | E5: Redige-rings-dato | F5: FEsv | G5: FEso | H5: EFOS | I5: EFOSi | J5: EFNi | K5: FE-korr. Faktor | L5: Tør-stof | M5: Rå-protein | N5: Rå-fedt | O5: Rå-aske | P5: Træ-stof | R5: Rå-protein (standar-diseret) | S5: Fosfor, ingen fytase tilsat | T5: Fosfor, 60% std.dosis fytase tilsat | U5: Fosfor, 100% std.dosis fytase tilsat | V5: Fosfor, 150% std.dosis fytase tilsat | W5: Fosfor, 200% std.dosis fytase tilsat | Y5: Calcium | Z5: Fosfor | AA5: Natrium | AB5: Klorid | AC5: Kalium | AD5: Magnesium | AE5: Svovl | AF5: Jern | AG5: Kobber | AH5: Mangan | AI5: Zink | AJ5: Jod | AK5: Selen | AM5: Lysin | AN5: Methi-onin | AO5: Cystin | AP5: Tre-onin | AQ5: Tryp-tofan | AR5: Iso-leucin | AS5: Leu-cin | AT5: Histidin | AU5: Fenyl-alanin | AV5: Tyrosin | AW5: Valin | AY5: Lysin | AZ5: Methi-onin | BA5: Cystin | BB5: Treo-nin | BC5: Tryp-tofan | BD5: Iso-leucin | BE5: Leu-cin | BF5: Histi-din | BG5: Fenyl-alanin | BH5: Tyro-sin | BI5: Valin | BK5: Råprotein | BL5: Råfedt | BM5: Råaske | BN5: Træstof | BP5: Jodtal | BQ5: Jodtals-produkt | BR5: FEsv | BS5: FEso | BU5: Orga-nisk stof | BV5: Let-fordøjelige kulhydrater | BW5: Fermenterbare kulhydrater | BX5: Sti-velse | BY5: Suk-ker | BZ5: Opløse-lige fibre | CA5: Uopløse-lige fibre | CC5: Calcium | CD5: Fosfor | CE5: Natrium | CF5: Klorid | CG5: Kalium | CH5: Magne-sium | CI5: Svovl | CK5: Jern | CL5: Kobber | CM5: Mangan | CN5: Zink | CO5: Jod | CP5: Selen | CQ5: SIF Råprotein pr. kg vare | CR5: SIF Råprotein | CS5: SIF Lys | CT5: SIF Met | CU5: SIF Cys | CV5: SIF CyM | CW5: SIF Tre | CX5: SIF Try | CY5: SIF Iso | CZ5: SIF Leu | DA5: SIF His | DB5: SIF Fen | DC5: SIF Tyr | DD5: SIF FeT | DE5: SIF Val | DF5: Fytase-aktivitet, FYT/kg | DG5: Fytase-aktivitet, FTU/kg | DH5: Xylanase-aktivitet pr. kg | DI5: Vit. A, 1000 I.E. | DJ5: Vit. D, 1000 I.E. | DK5: Vit. E, mg | DL5: Vit. K3, mg | DM5: Vit. C, mg | DN5: Vit. B1, mg | DO5: Vit. B2, mg | DP5: Vit. B6, mg | DQ5: Vit. B12, mg | DR5: Vit. B3,Niacin, mg | DS5: D-panto-thensyre, mg | DT5: Cholin, mg | DU5: Folin-syre, mg | DV5: Biotin, mg | DW5: EU-nummer | DX5: n10TS | DY5: n11Prot | DZ5: n12Fedt | EA5: n13Aske | EB5: n15Traestf | EC5: n20EFOS | ED5: n73EFOSi | EE5: n71Ifaktor | EF5: n22FEsv | EG5: n23FEso | EH5: n43Lys | EI5: n41Met | EJ5: n40Cys | EK5: n42Thr | EL5: n59Trp | EM5: n51Ile | EN5: n52Leu | EO5: n55His | EP5: n54Fen | EQ5: n53Tyr | ER5: n50Val | ES5: n30Ca | ET5: n31P | EU5: n32Na | EV5: n33Cl | EW5: n34K | EX5: n35Mg | EY5: n36S | EZ5: n37Fe | FA5: n38Cu | FB5: n39Mn | FC5: n26Zn | FD5: n27I | FE5: n28Se | FF5: s10TS | FG5: s11Prot | FH5: s12Fedt | FI5: s13Aske | FJ5: s15Traestf | FK5: s20EFOS | FL5: s73EFOSi | FM5: s71Ifaktor | FN5: s22FEsv | FO5: s23FEso | FP5: s43Lys | FQ5: s41Met | FR5: s40Cys | FS5: s42Thr | FT5: s59Trp | FU5: s51Ile | FV5: s52Leu | FW5: s55His | FX5: s54Fes | FY5: s53Tyr | FZ5: s50Val | GA5: s30Ca | GB5: s31P | GC5: s32sa | GD5: s33Cl | GE5: s34K | GF5: s35Mg | GG5: s36S | GH5: s37Fe | GI5: s38Cu | GJ5: s39Ms | GK5: s26Zs | GL5: s27I | GM5: s28Se | GN5: d10TS | GO5: d11Prot | GP5: d12Fedt | GQ5: d13Aske | GR5: d15Traestf | GS5: d20EFOS | GT5: d73EFOSi | GU5: d71Ifaktor | GV5: d22FEsv | GW5: d23FEso | GX5: d43Lys | GY5: d41Met | GZ5: d40Cys | HA5: d42Thr | HB5: d59Trp | HC5: d51Ile | HD5: d52Leu | HE5: d55His | HF5: d54Fed | HG5: d53Tyr | HH5: d50Val | HI5: d30Ca | HJ5: d31P | HK5: d32da | HL5: d33Cl | HM5: d34K | HN5: d35Mg | HO5: d36S | HP5: d37Fe | HQ5: d38Cu | HR5: d39Mn | HS5: d26Zd | HT5: d27I | HU5: d28Se | HW5: Generelt | HX5: Vær opmærksom på | HY5: Håndtering og transport | IC5: Fosfor, 250% std.dosis fytase tilsat | ID5: Fosfor, 300% std.dosis fytase tilsat | IE5: Fosfor, 350% std.dosis fytase tilsat | IF5: Fosfor, 400% std.dosis fytase tilsat | IG5: FEFAC navn | IH5: NorFor ID | II5: NorFor navn | IJ5: FEFAC inkl. transport og inkl. arealforbrug - Ellers: NorFor (kg CO2 eq /kg vare) | IK5: FEFAC inkl. transport men ekskl. arealforbrug - Ellers: NorFor (kg CO2 eq/kg vare) | IL5: FEFAC + transport-tillæg: Global warming - incl LUC (kg CO2 eq/kg vare) | IM5: FEFAC + transport-tillæg: Global warming - excl LUC (kg CO2 eq/kg vare) | IN5: NorFor kg CO2-ekvialenter /kg vare (ved foreliggende vandpct.) | IO5: Forskelle: Norfor minus FEFAC (kg CO2 eq/kg vare) | IP5: FEFAC Areal-forbrug (m2a crop eq) | IQ5: NorFor Areal-forbrug, m2 (pr. kg vare) | IR5: NorFor "CO2eq, soil" pr. kg vare | IS5: Global warming - incl LUC (kg CO2 eq) | IT5: Global warming - excl LUC (kg CO2 eq) | IU5: Stratospheric ozone depletion (kg CFC 11 eq) | IV5: Ionizing radiation (kBq Co-60 eq) | IW5: Ozone formation, Human health (kg NOx eq) | IX5: Fine particulate matter formation (kg PM2.5 eq) | IY5: Ozone formation, Terrestrial ecosystems (kg NOx eq) | IZ5: Terrestrial acidification (kg SO2 eq) | JA5: Freshwater eutrophication (kg P eq) | JB5: Marine eutrophication (kg N eq) | JC5: Terrestrial ecotoxicity (kg 1,4-DCB) | JD5: Freshwater ecotoxicity (kg 1,4-DCB) | JE5: Marine ecotoxicity (kg 1,4-DCB) | JF5: Human carcinogenic toxicity (kg 1,4-DCB) | JG5: Human non-carcinogenic toxicity (kg 1,4-DCB) | JH5: Mineral resource scarcity (kg Cu eq) | JI5: Fossil resource scarcity (kg oil eq) | JJ5: Water consump-tion (m3) | JK5: Transport-tillæg til FEFAC-værdier, CO2-ekv./kg foder | JL5: Er der tilføjet en "default"-værdi? | JM5: Kilde til fodermidlets Klima-aftrykstal | JN5: Forskel: Areal-forbrug eller ej | JO5: Kilde til Transport- og Håndteringstillægget. Dette tillæg er lagt til FEFACs -, hvorved de er sammenlignelige med NorFors - klimaaftryksværdier) | JP5: Defaultværdi (fra std.blandinger)- ekskl. Arealforbrug (kg CO2 ekv./kg foder)
A6: 94800 | B6: 948 | C6: 0 | D6: BENZOESYRE (1% vand) | E6: 2017-10-23 | F6: 1.569511973 | G6: 1.504285502 | H6: 100 | I6: 100 | J6: 100 | K6: 1 | L6: 99 | M6: 0.0001 | N6: 0 | O6: 0 | P6: 0 | R6: 0 | S6: 0 | T6: 0 | U6: 0 | V6: 0 | W6: 0 | Y6: 0 | Z6: 0 | AA6: 0 | AB6: 0 | AC6: 0 | AD6: 0 | AE6: 0 | AF6: 0 | AG6: 0 | AH6: 0 | AI6: 0 | AJ6: 0 | AK6: 0 | AM6: 0 | AN6: 0 | AO6: 0 | AP6: 0 | AQ6: 0 | AR6: 0 | AS6: 0 | AT6: 0 | AU6: 0 | AV6: 0 | AW6: 0 | AY6: 1 | AZ6: 1 | BA6: 1 | BB6: 1 | BC6: 1 | BD6: 1 | BE6: 1 | BF6: 1 | BG6: 1 | BH6: 1 | BI6: 1 | BK6: 0.000101010101 | BL6: 0 | BM6: 0 | BN6: 0 | BP6: 0 | BQ6: 0 | BR6: 1.58536563 | BS6: 1.519480305 | BU6: 1000 | BV6: 999.9990808 | BW6: 0 | CC6: 0 | CD6: 0 | CE6: 0 | CF6: 0 | CG6: 0 | CH6: 0 | CI6: 0 | CK6: 0 | CL6: 0 | CM6: 0 | CN6: 0 | CO6: 0 | CP6: 0 | CQ6: 0 | CR6: 0 | CS6: 0 | CT6: 0 | CU6: 0 | CV6: 0 | CW6: 0 | CX6: 0 | CY6: 0 | CZ6: 0 | DA6: 0 | DB6: 0 | DC6: 0 | DD6: 0 | DE6: 0 | DF6: 0 | DG6: 0 | DH6: 0 | DI6: 0 | DJ6: 0 | DK6: 0 | DL6: 0 | DM6: 0 | DN6: 0 | DO6: 0 | DP6: 0 | DQ6: 0 | DR6: 0 | DS6: 0 | DT6: 0 | DU6: 0 | DV6: 0 | HW6: 0 | HX6: 0 | HY6: 0 | IC6: 0 | ID6: 0 | IE6: 0 | IF6: 0 | IG6: Total minerals, additives, vitamins, at plant/RER Economic S | IJ6: 1.49099236 | IK6: 1.49099236 | IL6: 1.49099236 | IM6: 1.49099236 | IP6: 0 | IS6: 0.1209923602 | IT6: 0.1209923602 | IU6: 4.753604154e-08 | IV6: 0.009516472635 | IW6: 0.0001749807113 | IX6: 0.0001530180815 | IY6: 0.0001811766287 | IZ6: 0.000479258052 | JA6: 5.822603595e-07 | JB6: 3.391835409e-06 | JC6: 0.03227756252 | JD6: 2.902376505e-05 | JE6: 9.252898595e-05 | JF6: 0.0001104434329 | JG6: 0.003543980903 | JH6: 0.003938967898 | JI6: 0.04435402685 | JJ6: 0.1517919422 | JK6: 1.37 | JM6: FEFAC | JO6: PORK
A7: 99565 | B7: 995 | C7: 65 | D7: BIOLYS 70 % | E7: 2017-10-23 | F7: 1.23848611 | G7: 1.195621559 | H7: 96.5 | I7: 96.0000335 | J7: 100 | K7: 1 | L7: 95 | M7: 80 | N7: 0.3901437372 | O7: 1.658110883 | P7: 0 | R7: 100 | S7: 50 | T7: 50 | U7: 50 | V7: 50 | W7: 50 | Y7: 0 | Z7: 1.232032854 | AA7: 1.950718686 | AB7: 0.3080082136 | AC7: 3.798767967 | AD7: 0.4106776181 | AE7: 57.29166667 | AF7: 0 | AG7: 0 | AH7: 0 | AI7: 0 | AJ7: 0 | AK7: 0 | AM7: 68.25 | AN7: 0.125 | AO7: 0.075 | AP7: 0.35 | AQ7: 0.05 | AR7: 0.375 | AS7: 0.6125 | AT7: 0 | AU7: 0 | AV7: 0 | AW7: 0.4625 | AY7: 1 | AZ7: 0.85 | BA7: 0.85 | BB7: 0.85 | BC7: 0.85 | BD7: 0.85 | BE7: 0.85 | BF7: 0.85 | BG7: 0.85 | BH7: 0.85 | BI7: 0.85 | BK7: 84.21052632 | BL7: 0.4106776181 | BM7: 1.745379877 | BN7: 0 | BP7: 0 | BQ7: 0 | BR7: 1.303669589 | BS7: 1.258549009 | BU7: 982.5462012 | BV7: 170.8400049 | BW7: 7.017716933 | CC7: 0 | CD7: 1.170431211 | CE7: 1.853182752 | CF7: 0.2926078029 | CG7: 3.608829569 | CH7: 0.3901437372 | CI7: 54.42708333 | CK7: 0 | CL7: 0 | CM7: 0 | CN7: 0 | CO7: 0 | CP7: 0 | CQ7: 800 | CR7: 645.9499173 | CS7: 440.8608185 | CT7: 0.6863217871 | CU7: 0.4117930723 | CV7: 1.098114859 | CW7: 1.921701004 | CX7: 0.2745287148 | CY7: 2.058965361 | CZ7: 3.362976757 | DA7: 0 | DB7: 0 | DC7: 0 | DD7: 0 | DE7: 2.539390612 | DF7: 0 | DG7: 0 | DH7: 0 | DI7: 0 | DJ7: 0 | DK7: 0 | DL7: 0 | DM7: 0 | DN7: 0 | DO7: 0 | DP7: 0 | DQ7: 0 | DR7: 0 | DS7: 0 | DT7: 0 | DU7: 0 | DV7: 0 | IC7: 50 | ID7: 50 | IE7: 50 | IF7: 50 | IG7: Total minerals, additives, vitamins, at plant/RER Economic S | IJ7: 1.49099236 | IK7: 1.49099236 | IL7: 1.49099236 | IM7: 1.49099236 | IP7: 0 | IS7: 0.1209923602 | IT7: 0.1209923602 | IU7: 4.753604154e-08 | IV7: 0.009516472635 | IW7: 0.0001749807113 | IX7: 0.0001530180815 | IY7: 0.0001811766287 | IZ7: 0.000479258052 | JA7: 5.822603595e-07 | JB7: 3.391835409e-06 | JC7: 0.03227756252 | JD7: 2.902376505e-05 | JE7: 9.252898595e-05 | JF7: 0.0001104434329 | JG7: 0.003543980903 | JH7: 0.003938967898 | JI7: 0.04435402685 | JJ7: 0.1517919422 | JK7: =IFERROR(IF( IL7-IS7> 0, IL7-IS7,""),"") -> 1.37 | JM7: FEFAC | JO7: PORK
A8: 99567 | B8: 995 | C8: 67 | D8: BIOLYS 70% Vådfoder,FK=50% | E8: 2018-09-27 | F8: 1.23848611 | G8: 1.195621559 | H8: 96.5 | I8: 96.0000335 | J8: 100 | K8: 1 | L8: 95 | M8: 80 | N8: 0.3901437372 | O8: 1.658110883 | P8: 0 | R8: 50 | S8: 50 | T8: 50 | U8: 50 | V8: 50 | W8: 50 | Y8: 0 | Z8: 1.232032854 | AA8: 1.950718686 | AB8: 0.3080082136 | AC8: 3.798767967 | AD8: 0.4106776181 | AE8: 57.29166667 | AF8: 0 | AG8: 0 | AH8: 0 | AI8: 0 | AJ8: 0 | AK8: 0 | AM8: 68.25 | AN8: 0.125 | AO8: 0.075 | AP8: 0.35 | AQ8: 0.05 | AR8: 0.375 | AS8: 0.6125 | AT8: 0 | AU8: 0 | AV8: 0 | AW8: 0.4625 | AY8: 1 | AZ8: 0.85 | BA8: 0.85 | BB8: 0.85 | BC8: 0.85 | BD8: 0.85 | BE8: 0.85 | BF8: 0.85 | BG8: 0.85 | BH8: 0.85 | BI8: 0.85 | BK8: 84.21052632 | BL8: 0.4106776181 | BM8: 1.745379877 | BN8: 0 | BP8: 0 | BQ8: 0 | BR8: 1.303669589 | BS8: 1.258549009 | BU8: 982.5462012 | BV8: 170.8400049 | BW8: 7.017716933 | CC8: 0 | CD8: 1.170431211 | CE8: 1.853182752 | CF8: 0.2926078029 | CG8: 3.608829569 | CH8: 0.3901437372 | CI8: 54.42708333 | CK8: 0 | CL8: 0 | CM8: 0 | CN8: 0 | CO8: 0 | CP8: 0 | CQ8: 400 | CR8: 322.9749586 | CS8: 220.4304093 | CT8: 0.3431608935 | CU8: 0.2058965361 | CV8: 0.5490574297 | CW8: 0.9608505019 | CX8: 0.1372643574 | CY8: 1.029482681 | CZ8: 1.681488378 | DA8: 0 | DB8: 0 | DC8: 0 | DD8: 0 | DE8: 1.269695306 | DF8: 0 | DG8: 0 | DH8: 0 | DI8: 0 | DJ8: 0 | DK8: 0 | DL8: 0 | DM8: 0 | DN8: 0 | DO8: 0 | DP8: 0 | DQ8: 0 | DR8: 0 | DS8: 0 | DT8: 0 | DU8: 0 | DV8: 0 | IC8: 50 | ID8: 50 | IE8: 50 | IF8: 50 | IG8: Total minerals, additives, vitamins, at plant/RER Economic S | IJ8: 1.49099236 | IK8: 1.49099236 | IL8: 1.49099236 | IM8: 1.49099236 | IP8: 0 | IS8: 0.1209923602 | IT8: 0.1209923602 | IU8: 4.753604154e-08 | IV8: 0.009516472635 | IW8: 0.0001749807113 | IX8: 0.0001530180815 | IY8: 0.0001811766287 | IZ8: 0.000479258052 | JA8: 5.822603595e-07 | JB8: 3.391835409e-06 | JC8: 0.03227756252 | JD8: 2.902376505e-05 | JE8: 9.252898595e-05 | JF8: 0.0001104434329 | JG8: 0.003543980903 | JH8: 0.003938967898 | JI8: 0.04435402685 | JJ8: 0.1517919422 | JK8: 1.37 | JM8: FEFAC | JO8: PORK
A9: 99566 | B9: 995 | C9: 66 | D9: BIOLYS 70% Vådfoder,FK=75% | E9: 2017-10-23 | F9: 1.23848611 | G9: 1.195621559 | H9: 96.5 | I9: 96.0000335 | J9: 100 | K9: 1 | L9: 95 | M9: 80 | N9: 0.3901437372 | O9: 1.658110883 | P9: 0 | R9: 75 | S9: 50 | T9: 50 | U9: 50 | V9: 50 | W9: 50 | Y9: 0 | Z9: 1.232032854 | AA9: 1.950718686 | AB9: 0.3080082136 | AC9: 3.798767967 | AD9: 0.4106776181 | AE9: 57.29166667 | AF9: 0 | AG9: 0 | AH9: 0 | AI9: 0 | AJ9: 0 | AK9: 0 | AM9: 68.25 | AN9: 0.125 | AO9: 0.075 | AP9: 0.35 | AQ9: 0.05 | AR9: 0.375 | AS9: 0.6125 | AT9: 0 | AU9: 0 | AV9: 0 | AW9: 0.4625 | AY9: 1 | AZ9: 0.85 | BA9: 0.85 | BB9: 0.85 | BC9: 0.85 | BD9: 0.85 | BE9: 0.85 | BF9: 0.85 | BG9: 0.85 | BH9: 0.85 | BI9: 0.85 | BK9: 84.21052632 | BL9: 0.4106776181 | BM9: 1.745379877 | BN9: 0 | BP9: 0 | BQ9: 0 | BR9: 1.303669589 | BS9: 1.258549009 | BU9: 982.5462012 | BV9: 170.8400049 | BW9: 7.017716933 | CC9: 0 | CD9: 1.170431211 | CE9: 1.853182752 | CF9: 0.2926078029 | CG9: 3.608829569 | CH9: 0.3901437372 | CI9: 54.42708333 | CK9: 0 | CL9: 0 | CM9: 0 | CN9: 0 | CO9: 0 | CP9: 0 | CQ9: 600 | CR9: 484.4624379 | CS9: 330.6456139 | CT9: 0.5147413403 | CU9: 0.3088448042 | CV9: 0.8235861445 | CW9: 1.441275753 | CX9: 0.2058965361 | CY9: 1.544224021 | CZ9: 2.522232568 | DA9: 0 | DB9: 0 | DC9: 0 | DD9: 0 | DE9: 1.904542959 | DF9: 0 | DG9: 0 | DH9: 0 | DI9: 0 | DJ9: 0 | DK9: 0 | DL9: 0 | DM9: 0 | DN9: 0 | DO9: 0 | DP9: 0 | DQ9: 0 | DR9: 0 | DS9: 0 | DT9: 0 | DU9: 0 | DV9: 0 | IC9: 50 | ID9: 50 | IE9: 50 | IF9: 50 | IG9: Total minerals, additives, vitamins, at plant/RER Economic S | IJ9: 1.49099236 | IK9: 1.49099236 | IL9: 1.49099236 | IM9: 1.49099236 | IP9: 0 | IS9: 0.1209923602 | IT9: 0.1209923602 | IU9: 4.753604154e-08 | IV9: 0.009516472635 | IW9: 0.0001749807113 | IX9: 0.0001530180815 | IY9: 0.0001811766287 | IZ9: 0.000479258052 | JA9: 5.822603595e-07 | JB9: 3.391835409e-06 | JC9: 0.03227756252 | JD9: 2.902376505e-05 | JE9: 9.252898595e-05 | JF9: 0.0001104434329 | JG9: 0.003543980903 | JH9: 0.003938967898 | JI9: 0.04435402685 | JJ9: 0.1517919422 | JK9: 1.37 | JM9: FEFAC | JO9: PORK
A10: 80500 | B10: 805 | C10: 0 | D10: BLODPLASMA, Daka Sprayt 2500 | E10: 2017-10-23 | F10: 1.231795106 | G10: 1.186209332 | H10: 99.8 | I10: 98.2 | J10: 91 | K10: 1 | L10: 94 | M10: 82.532 | N10: 2.068 | O10: 5.828 | P10: 0 | R10: 94 | S10: 55 | T10: 55 | U10: 55 | V10: 55 | W10: 55 | Y10: 0.59 | Z10: 0.95 | AA10: 22.1 | AB10: 11 | AC10: 1.44 | AD10: 0.12 | AE10: 0 | AF10: 40 | AG10: 25 | AH10: 0 | AI10: 14 | AJ10: 0 | AK10: 0 | AM10: 8.7 | AN10: 0.9 | AO10: 3.6 | AP10: 6.1 | AQ10: 1.9 | AR10: 4 | AS10: 9.7 | AT10: 3.3 | AU10: 5.7 | AV10: 5.4 | AW10: 6.6 | AY10: 1 | AZ10: 1 | BA10: 1 | BB10: 1 | BC10: 1 | BD10: 1 | BE10: 1 | BF10: 1 | BG10: 1 | BH10: 1 | BI10: 1 | BK10: 87.8 | BL10: 2.2 | BM10: 6.2 | BN10: 0 | BP10: 63 | BQ10: 13.86 | BR10: 1.310420325 | BS10: 1.261924821 | BU10: 938 | BV10: 94.364 | BW10: 21.44 | BX10: 0 | BY10: 0 | CC10: 0.5546 | CD10: 0.893 | CE10: 20.774 | CF10: 10.34 | CG10: 1.3536 | CH10: 0.1128 | CI10: 0 | CK10: 37.6 | CL10: 23.5 | CM10: 0 | CN10: 13.16 | CO10: 0 | CP10: 0 | CQ10: 775.8008 | CR10: 629.813186 | CS10: 54.79374718 | CT10: 5.668318674 | CU10: 22.6732747 | CV10: 28.34159337 | CW10: 38.41860435 | CX10: 11.96645053 | CY10: 25.19252744 | CZ10: 61.09187904 | DA10: 20.78383514 | DB10: 35.8993516 | DC10: 34.00991204 | DD10: 69.90926364 | DE10: 41.56767028 | DF10: 0 | DG10: 0 | DH10: 0 | DI10: 0 | DJ10: 0 | DK10: 0 | DL10: 0 | DM10: 0 | DN10: 0 | DO10: 0 | DP10: 0 | DQ10: 0 | DR10: 0 | DS10: 0 | DT10: 0 | DU10: 0 | DV10: 0 | DW10: 9.8.1 | HW10: Blod består af to fraktioner : en væskefraktion indeholdende blandt andet næringsstoffer kaldet blodplama, samt blodlegemer også kaldet blodceller. Blodplasma fremstilles fra rent og friskt svineblod, der er levnedsmiddelgodkendt. Ved fremstilling af blodplasma anvendes ultrafiltrerings – og spraytørringsteknologi. Blodplasma har nr. 9.8.1 (Blodprodukter) i Forordning om fortegnelsen over fodermidler. EU kommissionens Forordning nr. 68/2013 [1]. | HX10: 0 | HY10: 0 | IC10: 55 | ID10: 55 | IE10: 55 | IF10: 55 | IG10: Blood meal, spray dried, from blood processing, at plant/RER Economic S | IJ10: 2.723143568 | IK10: 2.18693166 | IL10: 2.723143568 | IM10: 2.18693166 | IP10: 0.9591913871 | IS10: 2.493143568 | IT10: 1.95693166 | IU10: 7.589952597e-06 | IV10: 0.06174695897 | IW10: 0.0009233934561 | IX10: 0.003111650896 | IY10: 0.0009513544183 | IZ10: 0.01920422617 | JA10: 0.0001587103605 | JB10: 0.00183968911 | JC10: 0.394911705 | JD10: 0.007157176347 | JE10: 0.004926290411 | JF10: 0.0009755933652 | JG10: 1.112157321 | JH10: 0.0004310001119 | JI10: 0.4040916223 | JJ10: 0.01019342639 | JK10: 0.23 | JM10: FEFAC | JN10: 0.5362119079 | JO10: _(Her mangler et estimat / en værdi)_
A11: 80600 | B11: 806 | C11: 0 | D11: BLODPRODUKT (HÆMOGLOBINMEL, Daka) | E11: 2017-10-23 | F11: 1.26199607 | G11: 1.213858681 | H11: 97.8 | I11: 97.8 | J11: 91 | K11: 1 | L11: 97 | M11: 95 | N11: 1.8 | O11: 3.9 | P11: 0.3 | R11: 94 | S11: 55 | T11: 55 | U11: 55 | V11: 55 | W11: 55 | Y11: 0.01 | Z11: 0.3 | AA11: 0.36 | AB11: 0.73 | AC11: 1.24 | AD11: 0.03 | AE11: 0.2 | AF11: 2769.31 | AG11: 32.01 | AH11: 0 | AI11: 23.42 | AJ11: 0 | AK11: 0.74 | AM11: 8.75637105 | AN11: 0.7135575943 | AO11: 0.621814475 | AP11: 3.149847095 | AQ11: 1.401630989 | AR11: 0.5667686035 | AS11: 13.60856269 | AT11: 7.782874618 | AU11: 6.855249745 | AV11: 2.212028542 | AW11: 9.306829766 | AY11: 1 | AZ11: 1 | BA11: 1 | BB11: 1 | BC11: 1 | BD11: 1 | BE11: 1 | BF11: 1 | BG11: 1 | BH11: 1 | BI11: 1 | BK11: 97.93814433 | BL11: 1.855670103 | BM11: 4.020618557 | BN11: 0.3092783505 | BP11: 63 | BQ11: 11.69072165 | BR11: 1.301026877 | BS11: 1.251400702 | BU11: 959.7938144 | BV11: 29.44123711 | BW11: 0 | BX11: 0 | BY11: 0 | CC11: 0.0097 | CD11: 0.291 | CE11: 0.3492 | CF11: 0.7081 | CG11: 1.2028 | CH11: 0.0291 | CI11: 0.194 | CK11: 2686.2307 | CL11: 31.0497 | CM11: 0 | CN11: 22.7174 | CO11: 0 | CP11: 0.7178 | CQ11: 893 | CR11: 707.6091764 | CS11: 61.96088507 | CT11: 5.049199016 | CU11: 4.400016285 | CV11: 9.449215301 | CW11: 22.28860708 | CX11: 9.918069495 | CY11: 4.010506647 | CZ11: 96.29543837 | DA11: 55.07233498 | DB11: 48.50837626 | DC11: 15.65251695 | DD11: 64.16089321 | DE11: 65.85598145 | DF11: 0 | DG11: 0 | DH11: 0 | DI11: 0 | DJ11: 0 | DK11: 0 | DL11: 0 | DM11: 0 | DN11: 0 | DO11: 0 | DP11: 0 | DQ11: 0 | DR11: 0 | DS11: 0 | DT11: 0 | DU11: 0 | DV11: 0 | DW11: 9.8.1 | HW11: Hæmoglobinmel indeholder blodcellefraktionen af friskt svineblod, der er levnedsmiddelgodkendt. Fremstilles ved spraytørring Råvaren er proteinrig med en høj fordøjelighed og især relativt rig på aminosyren valin. | HX11: Der forekommer hæmoglobinmel af udenlandsk oprindelse, der ikke er spraytørret, men tromletørret. Den høje varmepåvirkning giver en markant dårligere proteinfordøjelighed og dermed en råvare af markant ringere kvalitet. | HY11: 0 | IC11: 55 | ID11: 55 | IE11: 55 | IF11: 55 | IG11: Blood meal, spray dried, from blood processing, at plant/RER Economic S | IJ11: 2.723143568 | IK11: 2.18693166 | IL11: 2.723143568 | IM11: 2.18693166 | IP11: 0.9591913871 | IS11: 2.493143568 | IT11: 1.95693166 | IU11: 7.589952597e-06 | IV11: 0.06174695897 | IW11: 0.0009233934561 | IX11: 0.003111650896 | IY11: 0.0009513544183 | IZ11: 0.01920422617 | JA11: 0.0001587103605 | JB11: 0.00183968911 | JC11: 0.394911705 | JD11: 0.007157176347 | JE11: 0.004926290411 | JF11: 0.0009755933652 | JG11: 1.112157321 | JH11: 0.0004310001119 | JI11: 0.4040916223 | JJ11: 0.01019342639 | JK11: 0.23 | JM11: FEFAC | JN11: 0.5362119079 | JO11: _(Her mangler et estimat / en værdi)_
A12: 46202 | B12: 462 | C12: 2 | D12: BOLIFOR 18 (MCP 21/18) | E12: 2017-10-17 | F12: -0.1126829268 | G12: -0.108 | H12: 70 | I12: 70 | J12: 0 | K12: 1 | L12: 99 | M12: 0 | N12: 0 | O12: 99 | P12: 0 | R12: 0 | S12: 67 | T12: 67 | U12: 67 | V12: 67 | W12: 67 | Y12: 212.1212121 | Z12: 181.8181818 | AA12: 0 | AB12: 0 | AC12: 0 | AD12: 0 | AE12: 0 | AF12: 0 | AG12: 0 | AH12: 0 | AI12: 0 | AJ12: 0 | AK12: 0 | AM12: 0 | AN12: 0 | AO12: 0 | AP12: 0 | AQ12: 0 | AR12: 0 | AS12: 0 | AT12: 0 | AU12: 0 | AV12: 0 | AW12: 0 | AY12: 1 | AZ12: 1 | BA12: 1 | BB12: 1 | BC12: 1 | BD12: 1 | BE12: 1 | BF12: 1 | BG12: 1 | BH12: 1 | BI12: 1 | BK12: 0 | BL12: 0 | BM12: 100 | BN12: 0 | BP12: 0 | BQ12: 0 | BR12: -0.1138211382 | BS12: -0.1090909091 | BU12: 0 | BV12: 0 | BW12: 0 | CC12: 210 | CD12: 180 | CE12: 0 | CF12: 0 | CG12: 0 | CH12: 0 | CI12: 0 | CK12: 0 | CL12: 0 | CM12: 0 | CN12: 0 | CO12: 0 | CP12: 0 | CQ12: 0 | CR12: 0 | CS12: 0 | CT12: 0 | CU12: 0 | CV12: 0 | CW12: 0 | CX12: 0 | CY12: 0 | CZ12: 0 | DA12: 0 | DB12: 0 | DC12: 0 | DD12: 0 | DE12: 0 | DF12: 0 | DG12: 0 | DH12: 0 | DI12: 0 | DJ12: 0 | DK12: 0 | DL12: 0 | DM12: 0 | DN12: 0 | DO12: 0 | DP12: 0 | DQ12: 0 | DR12: 0 | DS12: 0 | DT12: 0 | DU12: 0 | DV12: 0 | HW12: 0 | HX12: 0 | HY12: 0 | IC12: 67 | ID12: 67 | IE12: 67 | IF12: 67 | IG12: Total minerals, additives, vitamins, at plant/RER Economic S | IH12: 011-0003 | II12: Monocalciumfosfat | IJ12: 1.49099236 | IK12: 1.49099236 | IL12: 1.49099236 | IM12: 1.49099236 | IN12: 1.188 | IO12: -0.3029923602 | IP12: 0 | IQ12: 0 | IR12: 0 | IS12: 0.1209923602 | IT12: 0.1209923602 | IU12: 4.753604154e-08 | IV12: 0.009516472635 | IW12: 0.0001749807113 | IX12: 0.0001530180815 | IY12: 0.0001811766287 | IZ12: 0.000479258052 | JA12: 5.822603595e-07 | JB12: 3.391835409e-06 | JC12: 0.03227756252 | JD12: 2.902376505e-05 | JE12: 9.252898595e-05 | JF12: 0.0001104434329 | JG12: 0.003543980903 | JH12: 0.003938967898 | JI12: 0.04435402685 | JJ12: 0.1517919422 | JK12: 1.37 | JM12: FEFAC | JO12: PORK
A13: 46203 | B13: 462 | C13: 3 | D13: BOLIFOR MCP-F (16/22,7) | E13: 2017-10-17 | F13: -0.1126829268 | G13: -0.108 | H13: 70 | I13: 70 | J13: 0 | K13: 1 | L13: 99 | M13: 0 | N13: 0 | O13: 99 | P13: 0 | R13: 0 | S13: 67 | T13: 67 | U13: 67 | V13: 67 | W13: 67 | Y13: 161.6161616 | Z13: 229.2929293 | AA13: 0 | AB13: 0 | AC13: 0 | AD13: 0 | AE13: 0 | AF13: 0 | AG13: 0 | AH13: 0 | AI13: 0 | AJ13: 0 | AK13: 0 | AM13: 0 | AN13: 0 | AO13: 0 | AP13: 0 | AQ13: 0 | AR13: 0 | AS13: 0 | AT13: 0 | AU13: 0 | AV13: 0 | AW13: 0 | AY13: 1 | AZ13: 1 | BA13: 1 | BB13: 1 | BC13: 1 | BD13: 1 | BE13: 1 | BF13: 1 | BG13: 1 | BH13: 1 | BI13: 1 | BK13: 0 | BL13: 0 | BM13: 100 | BN13: 0 | BP13: 0 | BQ13: 0 | BR13: -0.1138211382 | BS13: -0.1090909091 | BU13: 0 | BV13: 0 | BW13: 0 | CC13: 160 | CD13: 227 | CE13: 0 | CF13: 0 | CG13: 0 | CH13: 0 | CI13: 0 | CK13: 0 | CL13: 0 | CM13: 0 | CN13: 0 | CO13: 0 | CP13: 0 | CQ13: 0 | CR13: 0 | CS13: 0 | CT13: 0 | CU13: 0 | CV13: 0 | CW13: 0 | CX13: 0 | CY13: 0 | CZ13: 0 | DA13: 0 | DB13: 0 | DC13: 0 | DD13: 0 | DE13: 0 | DF13: 0 | DG13: 0 | DH13: 0 | DI13: 0 | DJ13: 0 | DK13: 0 | DL13: 0 | DM13: 0 | DN13: 0 | DO13: 0 | DP13: 0 | DQ13: 0 | DR13: 0 | DS13: 0 | DT13: 0 | DU13: 0 | DV13: 0 | HW13: Tabelværdier på tørstof, aske, calcium, fosfor, natrium og klorid er fastsat efter analyser foretaget i forbindelse med doktorafhandlingen "DIGESTIBILITY OF CALCIUM AND DIGESTIBLE CALCIUM REQUIREMENTS IN PIGS", af Jolie Caroline Conzález Vega, University of Illinois, USA, 2016 | HX13: 0 | HY13: 0 | IC13: 67 | ID13: 67 | IE13: 67 | IF13: 67 | IG13: Total minerals, additives, vitamins, at plant/RER Economic S | IH13: 011-0003 | II13: Monocalciumfosfat | IJ13: 1.49099236 | IK13: 1.49099236 | IL13: 1.49099236 | IM13: 1.49099236 | IN13: 1.188 | IO13: -0.3029923602 | IP13: 0 | IQ13: 0 | IR13: 0 | IS13: 0.1209923602 | IT13: 0.1209923602 | IU13: 4.753604154e-08 | IV13: 0.009516472635 | IW13: 0.0001749807113 | IX13: 0.0001530180815 | IY13: 0.0001811766287 | IZ13: 0.000479258052 | JA13: 5.822603595e-07 | JB13: 3.391835409e-06 | JC13: 0.03227756252 | JD13: 2.902376505e-05 | JE13: 9.252898595e-05 | JF13: 0.0001104434329 | JG13: 0.003543980903 | JH13: 0.003938967898 | JI13: 0.04435402685 | JJ13: 0.1517919422 | JK13: 1.37 | JM13: FEFAC | JO13: PORK
A14: 50300 | B14: 503 | C14: 0 | D14: BYG, vinter, 2020 | E14: 2020-10-08 | F14: 1.020502352 | G14: 1.027092887 | H14: 84.1 | I14: 77.3 | J14: 90 | K14: 1 | L14: 85.2 | M14: 9.1 | N14: 2.7 | O14: 1.7 | P14: 4.6 | R14: 73.98090895 | S14: 39 | T14: 46.72357724 | U14: 49.81300813 | V14: 52.59349593 | W14: 54.44715447 | Y14: 0.6690140845 | Z14: 3.169014085 | AA14: 0.117370892 | AB14: 1.815068493 | AC14: 4.765258216 | AD14: 1.103286385 | AE14: 1.3 | AF14: 41.79577465 | AG14: 3.169014085 | AH14: 15.23474178 | AI14: 29.33098592 | AJ14: 0 | AK14: 0.04 | AM14: 3.84286385 | AN14: 1.723450704 | AO14: 2.414389671 | AP14: 3.479624413 | AQ14: 1.344812207 | AR14: 3.630469484 | AS14: 6.892981221 | AT14: 2.300258216 | AU14: 4.767605634 | AV14: 3.203615023 | AW14: 5.14915493 | AY14: 0.94 | AZ14: 1.08 | BA14: 1.03 | BB14: 0.95 | BC14: 0.96 | BD14: 1 | BE14: 1.01 | BF14: 1 | BG14: 1.04 | BH14: 0.97 | BI14: 0.96 | BK14: 10.68075117 | BL14: 3.169014085 | BM14: 1.995305164 | BN14: 5.411764706 | BP14: 120 | BQ14: 38.11764706 | BR14: 1.197772714 | BS14: 1.205508083 | BU14: 980.0469484 | BV14: 601.0806506 | BW14: 95.2045607 | BX14: 604 | BY14: 21 | BZ14: 56 | CA14: 165 | CC14: 0.57 | CD14: 2.7 | CE14: 0.1 | CF14: 1.546438356 | CG14: 4.06 | CH14: 0.94 | CI14: 1.1076 | CK14: 35.61 | CL14: 2.7 | CM14: 12.98 | CN14: 24.99 | CO14: 0 | CP14: 0.03408 | CQ14: 67.32262714 | CR14: 65.97008524 | CS14: 2.383032124 | CT14: 1.227918851 | CU14: 1.640558172 | CV14: 2.868477022 | CW14: 2.180735632 | CX14: 0.8516868086 | CY14: 2.395023813 | CZ14: 4.592778643 | DA14: 1.517482306 | DB14: 3.271001241 | DC14: 2.050024735 | DD14: 5.321025975 | DE14: 3.26102582 | DF14: 0 | DG14: 0 | DH14: 0 | DI14: 0 | DJ14: 0 | DK14: 0 | DL14: 0 | DM14: 0 | DN14: 0 | DO14: 0 | DP14: 0 | DQ14: 0 | DR14: 0 | DS14: 0 | DT14: 0 | DU14: 0 | DV14: 0 | DW14: 1.1.1 | DX14: 16 | DY14: 16 | DZ14: 8 | EA14: 8 | EC14: 8 | ED14: 8 | EE14: 8 | EF14: 8 | EG14: 8 | ES14: 16 | ET14: 16 | EU14: 14 | EV14: 7 | EW14: 16 | EX14: 16 | EZ14: 13 | FA14: 16 | FB14: 15 | FC14: 16 | FF14: 0.7 | FG14: 0.4 | FH14: 0.2 | FI14: 0.2 | FK14: 1.3 | FL14: 1.6 | FN14: 2.7 | FO14: 2.2 | GA14: 0.1 | GB14: 0.3 | GC14: 0.02 | GD14: 0.22 | GE14: 0.7 | GF14: 0.1 | GH14: 8.9 | GI14: 0.5 | GJ14: 1.4 | GK14: 4.7 | GN14: 2020 | GO14: 2020 | GP14: 2020 | GQ14: 2020 | GS14: 2020 | GT14: 2020 | GU14: 2020 | GV14: 2020 | GW14: 2020 | HI14: 2020 | HJ14: 2020 | HK14: 2020 | HL14: 2018 | HM14: 2020 | HN14: 2020 | HP14: 2020 | HQ14: 2020 | HR14: 2020 | HS14: 2020 | HW14: Byg er frø fra dyrkede sorter af toradet og seksradet bygplanter (Hordeum vulgare), og dyrkes i stor udstrækning i Danmark. En undersøgelse foretaget fra 2003 til 2005 viste, at de forskellige sorter varierer med hensyn til antal af foderenheder pr. 100 kg. Indholdet af foderenheder i forskellige sorter af vårbyg varierede fra 102 til 109 FEsv pr. 100 kg. Desuden var der effekt af sort på EFOS, EFOSi, råfedt og råaske, men ingen statistisk sikker forskel i indhold af råprotein mellem sorterne. Der skelnes mellem varmebehandlet og ikke-varmebehandlet korn. Det skyldes, at der ved varmebehandling af korn (pelleteret foder) sker en nedbrydning af kornets naturlige indhold af fytase, og derfor skal der i korn, der indgår i pelleteret foder, regnes med en lavere fordøjelighed af fosfor end i ikke-varmebehandlet korn (hjemmeblandet foder). Der er endvidere angivet kemisk indhold for korn tilsat det kulhydratspaltende enzym ”xylanase”. Det skyldes, at tilsætning af xylanase øger EFOSi-værdien og dermed kornets energiværdi "d.gr.": Tabelværdien for natrium er tæt på detektionsgrænsen i det anvendte laboratorium. Det reele indhold kan være lavere. Byg kan bruges i henhold til følgende kilder: [2], [3], [4], [5], [6], [7], [8], [9], [10], [11], [12], [13], [14], [15]. [16] | HX14: Forsøg har vist, at stigende indhold af byg reducerer problemer med Salmonella og maveforandringer i den hvide del af maven sammenlignet med en hvedebaseret blanding [15]. | HY14: Byg giver generelt ikke anledning til problemer, og kan uden problemer transporteres som løsvare. Byg bør opbevares tørt og er lagerfast ved 86 procent tørstof. | IC14: 55.83739837 | ID14: 56.76422764 | IE14: 57.53658537 | IF14: 58 | IG14: Barley grain, dried, at farm/DK Economic S | IH14: 001-0127 | II14: Vinterbyg 2019 | IJ14: 0.3803571321 | IK14: 0.3803571321 | IL14: 0.3803571321 | IM14: 0.3803571321 | IN14: 0.444744 | IO14: 0.06438686789 | IP14: 1.427232385 | IQ14: 1.8744 | IR14: 0.131208 | IS14: 0.3643571321 | IT14: 0.3643571321 | IU14: 7.486570033e-06 | IV14: 0.0009333726686 | IW14: 0.0006887451877 | IX14: 0.0009627573968 | IY14: 0.0006969498849 | IZ14: 0.007067659879 | JA14: 0.0001557660379 | JB14: 0.002461866327 | JC14: 0.06134914244 | JD14: 0.0017424239 | JE14: 0.002454703758 | JF14: 0.0002196354028 | JG14: 3.851291787 | JH14: 0.000196208296 | JI14: 0.0420668009 | JJ14: 0.0002729832306 | JK14: 0.016 | JM14: FEFAC | JO14: DCA rapport nr. 116, marts 2018. Tabel A1.1
A15: 50301 | B15: 503 | C15: 1 | D15: BYG, vinter, 2020 + xylanase | E15: 2020-10-08 | F15: 1.026563618 | G15: 1.031353091 | H15: 84.1 | I15: 77.8 | J15: 90 | K15: 1 | L15: 85.2 | M15: 9.1 | N15: 2.7 | O15: 1.7 | P15: 4.6 | R15: 74.41348352 | S15: 39 | T15: 46.72357724 | U15: 49.81300813 | V15: 52.59349593 | W15: 54.44715447 | Y15: 0.6690140845 | Z15: 3.169014085 | AA15: 0.117370892 | AB15: 1.815068493 | AC15: 4.765258216 | AD15: 1.103286385 | AE15: 1.3 | AF15: 41.79577465 | AG15: 3.169014085 | AH15: 15.23474178 | AI15: 29.33098592 | AJ15: 0 | AK15: 0.04 | AM15: 3.84286385 | AN15: 1.723450704 | AO15: 2.414389671 | AP15: 3.479624413 | AQ15: 1.344812207 | AR15: 3.630469484 | AS15: 6.892981221 | AT15: 2.300258216 | AU15: 4.767605634 | AV15: 3.203615023 | AW15: 5.14915493 | AY15: 0.94 | AZ15: 1.08 | BA15: 1.03 | BB15: 0.95 | BC15: 0.96 | BD15: 1 | BE15: 1.01 | BF15: 1 | BG15: 1.04 | BH15: 0.97 | BI15: 0.96 | BK15: 10.68075117 | BL15: 3.169014085 | BM15: 1.995305164 | BN15: 5.411764706 | BP15: 120 | BQ15: 38.11764706 | BR15: 1.204886875 | BS15: 1.210508323 | BU15: 980.0469484 | BV15: 608.0809859 | BW15: 88.20422535 | BX15: 604 | BY15: 21 | BZ15: 56 | CA15: 165 | CC15: 0.57 | CD15: 2.7 | CE15: 0.1 | CF15: 1.546438356 | CG15: 4.06 | CH15: 0.94 | CI15: 1.1076 | CK15: 35.61 | CL15: 2.7 | CM15: 12.98 | CN15: 24.99 | CO15: 0 | CP15: 0.03408 | CQ15: 67.71627 | CR15: 65.9640268 | CS15: 2.382813275 | CT15: 1.227806083 | CU15: 1.640407509 | CV15: 2.868213592 | CW15: 2.180535361 | CX15: 0.851608593 | CY15: 2.394803863 | CZ15: 4.592356859 | DA15: 1.517342946 | DB15: 3.270700844 | DC15: 2.049836468 | DD15: 5.320537313 | DE15: 3.26072634 | DF15: 0 | DG15: 0 | DH15: 0 | DI15: 0 | DJ15: 0 | DK15: 0 | DL15: 0 | DM15: 0 | DN15: 0 | DO15: 0 | DP15: 0 | DQ15: 0 | DR15: 0 | DS15: 0 | DT15: 0 | DU15: 0 | DV15: 0 | DW15: 1.1.1 | DX15: 16 | DY15: 16 | DZ15: 8 | EA15: 8 | EC15: 8 | ED15: 8 | EE15: 8 | EF15: 8 | EG15: 8 | ES15: 16 | ET15: 16 | EU15: 14 | EV15: 7 | EW15: 16 | EX15: 16 | EZ15: 13 | FA15: 16 | FB15: 15 | FC15: 16 | FF15: 0.7 | FG15: 0.4 | FH15: 0.2 | FI15: 0.2 | FK15: 1.3 | FL15: 1.6 | FN15: 2.7 | FO15: 2.2 | GA15: 0.1 | GB15: 0.3 | GC15: 0.02 | GD15: 0.22 | GE15: 0.7 | GF15: 0.1 | GH15: 8.9 | GI15: 0.5 | GJ15: 1.4 | GK15: 4.7 | GN15: 2020 | GO15: 2020 | GP15: 2020 | GQ15: 2020 | GS15: 2020 | GT15: 2020 | GU15: 2020 | GV15: 2020 | GW15: 2020 | HI15: 2020 | HJ15: 2020 | HK15: 2020 | HL15: 2018 | HM15: 2020 | HN15: 2020 | HP15: 2020 | HQ15: 2020 | HR15: 2020 | HS15: 2020 | HW15: Byg er frø fra dyrkede sorter af toradet og seksradet bygplanter (Hordeum vulgare), og dyrkes i stor udstrækning i Danmark. En undersøgelse foretaget fra 2003 til 2005 viste, at de forskellige sorter varierer med hensyn til antal af foderenheder pr. 100 kg. Indholdet af foderenheder i forskellige sorter af vårbyg varierede fra 102 til 109 FEsv pr. 100 kg. Desuden var der effekt af sort på EFOS, EFOSi, råfedt og råaske, men ingen statistisk sikker forskel i indhold af råprotein mellem sorterne. Der skelnes mellem varmebehandlet og ikke-varmebehandlet korn. Det skyldes, at der ved varmebehandling af korn (pelleteret foder) sker en nedbrydning af kornets naturlige indhold af fytase, og derfor skal der i korn, der indgår i pelleteret foder, regnes med en lavere fordøjelighed af fosfor end i ikke-varmebehandlet korn (hjemmeblandet foder). Der er endvidere angivet kemisk indhold for korn tilsat det kulhydratspaltende enzym ”xylanase”. Det skyldes, at tilsætning af xylanase øger EFOSi-værdien og dermed kornets energiværdi "d.gr.": Tabelværdien for natrium er tæt på detektionsgrænsen i det anvendte laboratorium. Det reele indhold kan være lavere. Byg kan bruges i henhold til følgende kilder: [2], [3], [4], [5], [6], [7], [8], [9], [10], [11], [12], [13], [14], [15]. [16] | HX15: Forsøg har vist, at stigende indhold af byg reducerer problemer med Salmonella og maveforandringer i den hvide del af maven sammenlignet med en hvedebaseret blanding [15]. | HY15: Byg giver generelt ikke anledning til problemer, og kan uden problemer transporteres som løsvare. Byg bør opbevares tørt og er lagerfast ved 86 procent tørstof. | IC15: 55.83739837 | ID15: 56.76422764 | IE15: 57.53658537 | IF15: 58 | IG15: Barley grain, dried, at farm/DK Economic S | IH15: 001-0127 | II15: Vinterbyg 2019 | IJ15: 0.3803571321 | IK15: 0.3803571321 | IL15: 0.3803571321 | IM15: 0.3803571321 | IN15: 0.444744 | IO15: 0.06438686789 | IP15: 1.427232385 | IQ15: 1.8744 | IR15: 0.131208 | IS15: 0.3643571321 | IT15: 0.3643571321 | IU15: 7.486570033e-06 | IV15: 0.0009333726686 | IW15: 0.0006887451877 | IX15: 0.0009627573968 | IY15: 0.0006969498849 | IZ15: 0.007067659879 | JA15: 0.0001557660379 | JB15: 0.002461866327 | JC15: 0.06134914244 | JD15: 0.0017424239 | JE15: 0.002454703758 | JF15: 0.0002196354028 | JG15: 3.851291787 | JH15: 0.000196208296 | JI15: 0.0420668009 | JJ15: 0.0002729832306 | JK15: 0.016 | JM15: FEFAC | JO15: DCA rapport nr. 116, marts 2018. Tabel A1.1
A16: 50310 | B16: 503 | C16: 10 | D16: BYG, vinter, 2020, varmebehandlet | E16: 2020-10-08 | F16: 1.020502352 | G16: 1.027092887 | H16: 84.1 | I16: 77.3 | J16: 90 | K16: 1 | L16: 85.2 | M16: 9.1 | N16: 2.7 | O16: 1.7 | P16: 4.6 | R16: 73.98090895 | S16: 30 | T16: 41.38211382 | U16: 45.93495935 | V16: 50.03252033 | W16: 52.76422764 | Y16: 0.6690140845 | Z16: 3.169014085 | AA16: 0.117370892 | AB16: 1.815068493 | AC16: 4.765258216 | AD16: 1.103286385 | AE16: 1.3 | AF16: 41.79577465 | AG16: 3.169014085 | AH16: 15.23474178 | AI16: 29.33098592 | AJ16: 0 | AK16: 0.04 | AM16: 3.84286385 | AN16: 1.723450704 | AO16: 2.414389671 | AP16: 3.479624413 | AQ16: 1.344812207 | AR16: 3.630469484 | AS16: 6.892981221 | AT16: 2.300258216 | AU16: 4.767605634 | AV16: 3.203615023 | AW16: 5.14915493 | AY16: 0.94 | AZ16: 1.08 | BA16: 1.03 | BB16: 0.95 | BC16: 0.96 | BD16: 1 | BE16: 1.01 | BF16: 1 | BG16: 1.04 | BH16: 0.97 | BI16: 0.96 | BK16: 10.68075117 | BL16: 3.169014085 | BM16: 1.995305164 | BN16: 5.411764706 | BP16: 120 | BQ16: 38.11764706 | BR16: 1.197772714 | BS16: 1.205508083 | BU16: 980.0469484 | BV16: 601.0806506 | BW16: 95.2045607 | BX16: 604 | BY16: 21 | BZ16: 56 | CA16: 165 | CC16: 0.57 | CD16: 2.7 | CE16: 0.1 | CF16: 1.546438356 | CG16: 4.06 | CH16: 0.94 | CI16: 1.1076 | CK16: 35.61 | CL16: 2.7 | CM16: 12.98 | CN16: 24.99 | CO16: 0 | CP16: 0.03408 | CQ16: 67.32262714 | CR16: 65.97008524 | CS16: 2.383032124 | CT16: 1.227918851 | CU16: 1.640558172 | CV16: 2.868477022 | CW16: 2.180735632 | CX16: 0.8516868086 | CY16: 2.395023813 | CZ16: 4.592778643 | DA16: 1.517482306 | DB16: 3.271001241 | DC16: 2.050024735 | DD16: 5.321025975 | DE16: 3.26102582 | DF16: 0 | DG16: 0 | DH16: 0 | DI16: 0 | DJ16: 0 | DK16: 0 | DL16: 0 | DM16: 0 | DN16: 0 | DO16: 0 | DP16: 0 | DQ16: 0 | DR16: 0 | DS16: 0 | DT16: 0 | DU16: 0 | DV16: 0 | DW16: 1.1.1 | DX16: 16 | DY16: 16 | DZ16: 8 | EA16: 8 | EC16: 8 | ED16: 8 | EE16: 8 | EF16: 8 | EG16: 8 | ES16: 16 | ET16: 16 | EU16: 14 | EV16: 7 | EW16: 16 | EX16: 16 | EZ16: 13 | FA16: 16 | FB16: 15 | FC16: 16 | FF16: 0.7 | FG16: 0.4 | FH16: 0.2 | FI16: 0.2 | FK16: 1.3 | FL16: 1.6 | FN16: 2.7 | FO16: 2.2 | GA16: 0.1 | GB16: 0.3 | GC16: 0.02 | GD16: 0.22 | GE16: 0.7 | GF16: 0.1 | GH16: 8.9 | GI16: 0.5 | GJ16: 1.4 | GK16: 4.7 | GN16: 2020 | GO16: 2020 | GP16: 2020 | GQ16: 2020 | GS16: 2020 | GT16: 2020 | GU16: 2020 | GV16: 2020 | GW16: 2020 | HI16: 2020 | HJ16: 2020 | HK16: 2020 | HL16: 2018 | HM16: 2020 | HN16: 2020 | HP16: 2020 | HQ16: 2020 | HR16: 2020 | HS16: 2020 | HW16: Byg er frø fra dyrkede sorter af toradet og seksradet bygplanter (Hordeum vulgare), og dyrkes i stor udstrækning i Danmark. En undersøgelse foretaget fra 2003 til 2005 viste, at de forskellige sorter varierer med hensyn til antal af foderenheder pr. 100 kg. Indholdet af foderenheder i forskellige sorter af vårbyg varierede fra 102 til 109 FEsv pr. 100 kg. Desuden var der effekt af sort på EFOS, EFOSi, råfedt og råaske, men ingen statistisk sikker forskel i indhold af råprotein mellem sorterne. Der skelnes mellem varmebehandlet og ikke-varmebehandlet korn. Det skyldes, at der ved varmebehandling af korn (pelleteret foder) sker en nedbrydning af kornets naturlige indhold af fytase, og derfor skal der i korn, der indgår i pelleteret foder, regnes med en lavere fordøjelighed af fosfor end i ikke-varmebehandlet korn (hjemmeblandet foder). Der er endvidere angivet kemisk indhold for korn tilsat det kulhydratspaltende enzym ”xylanase”. Det skyldes, at tilsætning af xylanase øger EFOSi-værdien og dermed kornets energiværdi "d.gr.": Tabelværdien for natrium er tæt på detektionsgrænsen i det anvendte laboratorium. Det reele indhold kan være lavere. Byg kan bruges i henhold til følgende kilder: [2], [3], [4], [5], [6], [7], [8], [9], [10], [11], [12], [13], [14], [15]. [16] | HX16: Forsøg har vist, at stigende indhold af byg reducerer problemer med Salmonella og maveforandringer i den hvide del af maven sammenlignet med en hvedebaseret blanding [15]. | HY16: Byg giver generelt ikke anledning til problemer, og kan uden problemer transporteres som løsvare. Byg bør opbevares tørt og er lagerfast ved 86 procent tørstof. | IC16: 54.81300813 | ID16: 56.17886179 | IE16: 57.31707317 | IF16: 58 | IG16: Barley grain, dried, at farm/DK Economic S | IH16: 001-0127 | II16: Vinterbyg 2019 | IJ16: 0.3803571321 | IK16: 0.3803571321 | IL16: 0.3803571321 | IM16: 0.3803571321 | IN16: 0.444744 | IO16: 0.06438686789 | IP16: 1.427232385 | IQ16: 1.8744 | IR16: 0.131208 | IS16: 0.3643571321 | IT16: 0.3643571321 | IU16: 7.486570033e-06 | IV16: 0.0009333726686 | IW16: 0.0006887451877 | IX16: 0.0009627573968 | IY16: 0.0006969498849 | IZ16: 0.007067659879 | JA16: 0.0001557660379 | JB16: 0.002461866327 | JC16: 0.06134914244 | JD16: 0.0017424239 | JE16: 0.002454703758 | JF16: 0.0002196354028 | JG16: 3.851291787 | JH16: 0.000196208296 | JI16: 0.0420668009 | JJ16: 0.0002729832306 | JK16: 0.016 | JM16: FEFAC | JO16: DCA rapport nr. 116, marts 2018. Tabel A1.1
A17: 50311 | B17: 503 | C17: 11 | D17: BYG, vinter, 2020, varmebehandlet + xylanase | E17: 2020-10-08 | F17: 1.026563618 | G17: 1.031353091 | H17: 84.1 | I17: 77.8 | J17: 90 | K17: 1 | L17: 85.2 | M17: 9.1 | N17: 2.7 | O17: 1.7 | P17: 4.6 | R17: 74.41348352 | S17: 30 | T17: 41.38211382 | U17: 45.93495935 | V17: 50.03252033 | W17: 52.76422764 | Y17: 0.6690140845 | Z17: 3.169014085 | AA17: 0.117370892 | AB17: 1.815068493 | AC17: 4.765258216 | AD17: 1.103286385 | AE17: 1.3 | AF17: 41.79577465 | AG17: 3.169014085 | AH17: 15.23474178 | AI17: 29.33098592 | AJ17: 0 | AK17: 0.04 | AM17: 3.84286385 | AN17: 1.723450704 | AO17: 2.414389671 | AP17: 3.479624413 | AQ17: 1.344812207 | AR17: 3.630469484 | AS17: 6.892981221 | AT17: 2.300258216 | AU17: 4.767605634 | AV17: 3.203615023 | AW17: 5.14915493 | AY17: 0.94 | AZ17: 1.08 | BA17: 1.03 | BB17: 0.95 | BC17: 0.96 | BD17: 1 | BE17: 1.01 | BF17: 1 | BG17: 1.04 | BH17: 0.97 | BI17: 0.96 | BK17: 10.68075117 | BL17: 3.169014085 | BM17: 1.995305164 | BN17: 5.411764706 | BP17: 120 | BQ17: 38.11764706 | BR17: 1.204886875 | BS17: 1.210508323 | BU17: 980.0469484 | BV17: 608.0809859 | BW17: 88.20422535 | BX17: 604 | BY17: 21 | BZ17: 56 | CA17: 165 | CC17: 0.57 | CD17: 2.7 | CE17: 0.1 | CF17: 1.546438356 | CG17: 4.06 | CH17: 0.94 | CI17: 1.1076 | CK17: 35.61 | CL17: 2.7 | CM17: 12.98 | CN17: 24.99 | CO17: 0 | CP17: 0.03408 | CQ17: 67.71627 | CR17: 65.9640268 | CS17: 2.382813275 | CT17: 1.227806083 | CU17: 1.640407509 | CV17: 2.868213592 | CW17: 2.180535361 | CX17: 0.851608593 | CY17: 2.394803863 | CZ17: 4.592356859 | DA17: 1.517342946 | DB17: 3.270700844 | DC17: 2.049836468 | DD17: 5.320537313 | DE17: 3.26072634 | DF17: 0 | DG17: 0 | DH17: 0 | DI17: 0 | DJ17: 0 | DK17: 0 | DL17: 0 | DM17: 0 | DN17: 0 | DO17: 0 | DP17: 0 | DQ17: 0 | DR17: 0 | DS17: 0 | DT17: 0 | DU17: 0 | DV17: 0 | DW17: 1.1.1 | DX17: 16 | DY17: 16 | DZ17: 8 | EA17: 8 | EC17: 8 | ED17: 8 | EE17: 8 | EF17: 8 | EG17: 8 | ES17: 16 | ET17: 16 | EU17: 14 | EV17: 7 | EW17: 16 | EX17: 16 | EZ17: 13 | FA17: 16 | FB17: 15 | FC17: 16 | FF17: 0.7 | FG17: 0.4 | FH17: 0.2 | FI17: 0.2 | FK17: 1.3 | FL17: 1.6 | FN17: 2.7 | FO17: 2.2 | GA17: 0.1 | GB17: 0.3 | GC17: 0.02 | GD17: 0.22 | GE17: 0.7 | GF17: 0.1 | GH17: 8.9 | GI17: 0.5 | GJ17: 1.4 | GK17: 4.7 | GN17: 2020 | GO17: 2020 | GP17: 2020 | GQ17: 2020 | GS17: 2020 | GT17: 2020 | GU17: 2020 | GV17: 2020 | GW17: 2020 | HI17: 2020 | HJ17: 2020 | HK17: 2020 | HL17: 2018 | HM17: 2020 | HN17: 2020 | HP17: 2020 | HQ17: 2020 | HR17: 2020 | HS17: 2020 | HW17: Byg er frø fra dyrkede sorter af toradet og seksradet bygplanter (Hordeum vulgare), og dyrkes i stor udstrækning i Danmark. En undersøgelse foretaget fra 2003 til 2005 viste, at de forskellige sorter varierer med hensyn til antal af foderenheder pr. 100 kg. Indholdet af foderenheder i forskellige sorter af vårbyg varierede fra 102 til 109 FEsv pr. 100 kg. Desuden var der effekt af sort på EFOS, EFOSi, råfedt og råaske, men ingen statistisk sikker forskel i indhold af råprotein mellem sorterne. Der skelnes mellem varmebehandlet og ikke-varmebehandlet korn. Det skyldes, at der ved varmebehandling af korn (pelleteret foder) sker en nedbrydning af kornets naturlige indhold af fytase, og derfor skal der i korn, der indgår i pelleteret foder, regnes med en lavere fordøjelighed af fosfor end i ikke-varmebehandlet korn (hjemmeblandet foder). Der er endvidere angivet kemisk indhold for korn tilsat det kulhydratspaltende enzym ”xylanase”. Det skyldes, at tilsætning af xylanase øger EFOSi-værdien og dermed kornets energiværdi "d.gr.": Tabelværdien for natrium er tæt på detektionsgrænsen i det anvendte laboratorium. Det reele indhold kan være lavere. Byg kan bruges i henhold til følgende kilder: [2], [3], [4], [5], [6], [7], [8], [9], [10], [11], [12], [13], [14], [15]. [16] | HX17: Forsøg har vist, at stigende indhold af byg reducerer problemer med Salmonella og maveforandringer i den hvide del af maven sammenlignet med en hvedebaseret blanding [15]. | HY17: Byg giver generelt ikke anledning til problemer, og kan uden problemer transporteres som løsvare. Byg bør opbevares tørt og er lagerfast ved 86 procent tørstof. | IC17: 54.81300813 | ID17: 56.17886179 | IE17: 57.31707317 | IF17: 58 | IG17: Barley grain, dried, at farm/DK Economic S | IH17: 001-0127 | II17: Vinterbyg 2019 | IJ17: 0.3803571321 | IK17: 0.3803571321 | IL17: 0.3803571321 | IM17: 0.3803571321 | IN17: 0.444744 | IO17: 0.06438686789 | IP17: 1.427232385 | IQ17: 1.8744 | IR17: 0.131208 | IS17: 0.3643571321 | IT17: 0.3643571321 | IU17: 7.486570033e-06 | IV17: 0.0009333726686 | IW17: 0.0006887451877 | IX17: 0.0009627573968 | IY17: 0.0006969498849 | IZ17: 0.007067659879 | JA17: 0.0001557660379 | JB17: 0.002461866327 | JC17: 0.06134914244 | JD17: 0.0017424239 | JE17: 0.002454703758 | JF17: 0.0002196354028 | JG17: 3.851291787 | JH17: 0.000196208296 | JI17: 0.0420668009 | JJ17: 0.0002729832306 | JK17: 0.016 | JM17: FEFAC | JO17: DCA rapport nr. 116, marts 2018. Tabel A1.1
A18: 50350 | B18: 503 | C18: 50 | D18: BYG, vinter, 2020, økologisk | E18: 2020-10-08 | F18: 1.074167751 | G18: 1.073374119 | H18: 85.3 | I18: 79.7 | J18: 90 | K18: 1 | L18: 86.5 | M18: 8.5 | N18: 2.8 | O18: 1.7 | P18: 4.6 | R18: 74.50506353 | S18: 39 | T18: 46.72357724 | U18: 49.81300813 | V18: 52.59349593 | W18: 54.44715447 | Y18: 0.4046242775 | Z18: 3.468208092 | AA18: 0.1156069364 | AB18: 1.815068493 | AC18: 4.843930636 | AD18: 0.9595375723 | AE18: 1.3 | AF18: 37.91907514 | AG18: 3.063583815 | AH18: 10.04624277 | AI18: 28.78612717 | AJ18: 0 | AK18: 0.04 | AM18: 3.952196532 | AN18: 1.756763006 | AO18: 2.471618497 | AP18: 3.54283237 | AQ18: 1.376416185 | AR18: 3.642427746 | AS18: 6.91433526 | AT18: 2.325028902 | AU18: 4.670231214 | AV18: 3.186531792 | AW18: 5.200404624 | AY18: 0.94 | AZ18: 1.08 | BA18: 1.03 | BB18: 0.95 | BC18: 0.96 | BD18: 1 | BE18: 1.01 | BF18: 1 | BG18: 1.04 | BH18: 0.97 | BI18: 0.96 | BK18: 9.826589595 | BL18: 3.23699422 | BM18: 1.965317919 | BN18: 5.411764706 | BP18: 120 | BQ18: 38.11764706 | BR18: 1.241812429 | BS18: 1.240894936 | BU18: 980.3468208 | BV18: 636.9872832 | BW18: 78.42774566 | BX18: 604 | BY18: 21 | BZ18: 56 | CA18: 165 | CC18: 0.35 | CD18: 3 | CE18: 0.1 | CF18: 1.570034247 | CG18: 4.19 | CH18: 0.83 | CI18: 1.1245 | CK18: 32.8 | CL18: 2.65 | CM18: 8.69 | CN18: 24.9 | CO18: 0 | CP18: 0.0346 | CQ18: 63.329304 | CR18: 58.95662382 | CS18: 2.190276743 | CT18: 1.118586409 | CU18: 1.500898304 | CV18: 2.619484714 | CW18: 1.984297635 | CX18: 0.7790289719 | CY18: 2.147452424 | CZ18: 4.117223215 | DA18: 1.370758543 | DB18: 2.863547074 | DC18: 1.822311415 | DD18: 4.685858489 | DE18: 2.943343672 | DF18: 0 | DG18: 0 | DH18: 0 | DI18: 0 | DJ18: 0 | DK18: 0 | DL18: 0 | DM18: 0 | DN18: 0 | DO18: 0 | DP18: 0 | DQ18: 0 | DR18: 0 | DS18: 0 | DT18: 0 | DU18: 0 | DV18: 0 | DW18: 1.1.1 | DX18: 2 | DY18: 2 | DZ18: 1 | EA18: 1 | EC18: 1 | ED18: 1 | EE18: 1 | EF18: 1 | EG18: 1 | ES18: 2 | ET18: 2 | EU18: 2 | EW18: 2 | EX18: 2 | EZ18: 2 | FA18: 2 | FB18: 2 | FC18: 2 | FF18: 1.1 | FG18: 0.3 | FH18: 0.2 | FI18: 0.2 | FK18: 1.2 | FL18: 1.2 | FN18: 1.9 | FO18: 1.5 | GA18: 0.1 | GB18: 0.2 | GC18: 0.1 | GD18: 0.2 | GE18: 0.4 | GF18: 0.1 | GH18: 9.1 | GI18: 0.4 | GJ18: 2.2 | GK18: 3.8 | GN18: 2020 | GO18: 2020 | GP18: 2020 | GQ18: 2020 | GS18: 2020 | GT18: 2020 | GU18: 2020 | GV18: 2020 | GW18: 2020 | HI18: 2020 | HJ18: 2020 | HK18: 2017 | HM18: 2020 | HN18: 2020 | HP18: 2020 | HQ18: 2020 | HR18: 2020 | HS18: 2020 | HW18: Byg er frø fra dyrkede sorter af toradet og seksradet bygplanter (Hordeum vulgare), og dyrkes i stor udstrækning i Danmark. En undersøgelse foretaget fra 2003 til 2005 viste, at de forskellige sorter varierer med hensyn til antal af foderenheder pr. 100 kg. Indholdet af foderenheder i forskellige sorter af vårbyg varierede fra 102 til 109 FEsv pr. 100 kg. Desuden var der effekt af sort på EFOS, EFOSi, råfedt og råaske, men ingen statistisk sikker forskel i indhold af råprotein mellem sorterne. Der skelnes mellem varmebehandlet og ikke-varmebehandlet korn. Det skyldes, at der ved varmebehandling af korn (pelleteret foder) sker en nedbrydning af kornets naturlige indhold af fytase, og derfor skal der i korn, der indgår i pelleteret foder, regnes med en lavere fordøjelighed af fosfor end i ikke-varmebehandlet korn (hjemmeblandet foder). Der er endvidere angivet kemisk indhold for korn tilsat det kulhydratspaltende enzym ”xylanase”. Det skyldes, at tilsætning af xylanase øger EFOSi-værdien og dermed kornets energiværdi "d.gr.": Tabelværdien for natrium er tæt på detektionsgrænsen i det anvendte laboratorium. Det reele indhold kan være lavere. Byg kan bruges i henhold til følgende kilder: [2], [3], [4], [5], [6], [7], [8], [9], [10], [11], [12], [13], [14], [15]. [16] | HX18: Forsøg har vist, at stigende indhold af byg reducerer problemer med Salmonella og maveforandringer i den hvide del af maven sammenlignet med en hvedebaseret blanding [15]. | HY18: Byg giver generelt ikke anledning til problemer, og kan uden problemer transporteres som løsvare. Byg bør opbevares tørt og er lagerfast ved 86 procent tørstof. | IC18: 55.83739837 | ID18: 56.76422764 | IE18: 57.53658537 | IF18: 58 | IG18: Barley grain, dried, at farm/DK Economic S | IJ18: 0.3803571321 | IK18: 0.3803571321 | IL18: 0.3803571321 | IM18: 0.3803571321 | IP18: 1.427232385 | IS18: 0.3643571321 | IT18: 0.3643571321 | IU18: 7.486570033e-06 | IV18: 0.0009333726686 | IW18: 0.0006887451877 | IX18: 0.0009627573968 | IY18: 0.0006969498849 | IZ18: 0.007067659879 | JA18: 0.0001557660379 | JB18: 0.002461866327 | JC18: 0.06134914244 | JD18: 0.0017424239 | JE18: 0.002454703758 | JF18: 0.0002196354028 | JG18: 3.851291787 | JH18: 0.000196208296 | JI18: 0.0420668009 | JJ18: 0.0002729832306 | JK18: 0.016 | JM18: FEFAC | JO18: DCA rapport nr. 116, marts 2018. Tabel A1.1
A19: 50360 | B19: 503 | C19: 60 | D19: BYG, vinter, 2020, varmebehandlet, økologisk | E19: 2020-10-08 | F19: 1.074167751 | G19: 1.073374119 | H19: 85.3 | I19: 79.7 | J19: 90 | K19: 1 | L19: 86.5 | M19: 8.5 | N19: 2.8 | O19: 1.7 | P19: 4.6 | R19: 74.50506353 | S19: 30 | T19: 41.38211382 | U19: 45.93495935 | V19: 50.03252033 | W19: 52.76422764 | Y19: 0.4046242775 | Z19: 3.468208092 | AA19: 0.1156069364 | AB19: 1.815068493 | AC19: 4.843930636 | AD19: 0.9595375723 | AE19: 1.3 | AF19: 37.91907514 | AG19: 3.063583815 | AH19: 10.04624277 | AI19: 28.78612717 | AJ19: 0 | AK19: 0.04 | AM19: 3.952196532 | AN19: 1.756763006 | AO19: 2.471618497 | AP19: 3.54283237 | AQ19: 1.376416185 | AR19: 3.642427746 | AS19: 6.91433526 | AT19: 2.325028902 | AU19: 4.670231214 | AV19: 3.186531792 | AW19: 5.200404624 | AY19: 0.94 | AZ19: 1.08 | BA19: 1.03 | BB19: 0.95 | BC19: 0.96 | BD19: 1 | BE19: 1.01 | BF19: 1 | BG19: 1.04 | BH19: 0.97 | BI19: 0.96 | BK19: 9.826589595 | BL19: 3.23699422 | BM19: 1.965317919 | BN19: 5.411764706 | BP19: 120 | BQ19: 38.11764706 | BR19: 1.241812429 | BS19: 1.240894936 | BU19: 980.3468208 | BV19: 636.9872832 | BW19: 78.42774566 | BX19: 604 | BY19: 21 | BZ19: 56 | CA19: 165 | CC19: 0.35 | CD19: 3 | CE19: 0.1 | CF19: 1.570034247 | CG19: 4.19 | CH19: 0.83 | CI19: 1.1245 | CK19: 32.8 | CL19: 2.65 | CM19: 8.69 | CN19: 24.9 | CO19: 0 | CP19: 0.0346 | CQ19: 63.329304 | CR19: 58.95662382 | CS19: 2.190276743 | CT19: 1.118586409 | CU19: 1.500898304 | CV19: 2.619484714 | CW19: 1.984297635 | CX19: 0.7790289719 | CY19: 2.147452424 | CZ19: 4.117223215 | DA19: 1.370758543 | DB19: 2.863547074 | DC19: 1.822311415 | DD19: 4.685858489 | DE19: 2.943343672 | DF19: 0 | DG19: 0 | DH19: 0 | DI19: 0 | DJ19: 0 | DK19: 0 | DL19: 0 | DM19: 0 | DN19: 0 | DO19: 0 | DP19: 0 | DQ19: 0 | DR19: 0 | DS19: 0 | DT19: 0 | DU19: 0 | DV19: 0 | DW19: 1.1.1 | DX19: 2 | DY19: 2 | DZ19: 1 | EA19: 1 | EC19: 1 | ED19: 1 | EE19: 1 | EF19: 1 | EG19: 1 | ES19: 2 | ET19: 2 | EU19: 2 | EW19: 2 | EX19: 2 | EZ19: 2 | FA19: 2 | FB19: 2 | FC19: 2 | FF19: 1.1 | FG19: 0.3 | FH19: 0.2 | FI19: 0.2 | FK19: 1.2 | FL19: 1.2 | FN19: 1.9 | FO19: 1.5 | GA19: 0.1 | GB19: 0.2 | GC19: 0.1 | GD19: 0.2 | GE19: 0.4 | GF19: 0.1 | GH19: 9.1 | GI19: 0.4 | GJ19: 2.2 | GK19: 3.8 | GN19: 2020 | GO19: 2020 | GP19: 2020 | GQ19: 2020 | GS19: 2020 | GT19: 2020 | GU19: 2020 | GV19: 2020 | GW19: 2020 | HI19: 2020 | HJ19: 2020 | HK19: 2017 | HM19: 2020 | HN19: 2020 | HP19: 2020 | HQ19: 2020 | HR19: 2020 | HS19: 2020 | HW19: Byg er frø fra dyrkede sorter af toradet og seksradet bygplanter (Hordeum vulgare), og dyrkes i stor udstrækning i Danmark. En undersøgelse foretaget fra 2003 til 2005 viste, at de forskellige sorter varierer med hensyn til antal af foderenheder pr. 100 kg. Indholdet af foderenheder i forskellige sorter af vårbyg varierede fra 102 til 109 FEsv pr. 100 kg. Desuden var der effekt af sort på EFOS, EFOSi, råfedt og råaske, men ingen statistisk sikker forskel i indhold af råprotein mellem sorterne. Der skelnes mellem varmebehandlet og ikke-varmebehandlet korn. Det skyldes, at der ved varmebehandling af korn (pelleteret foder) sker en nedbrydning af kornets naturlige indhold af fytase, og derfor skal der i korn, der indgår i pelleteret foder, regnes med en lavere fordøjelighed af fosfor end i ikke-varmebehandlet korn (hjemmeblandet foder). Der er endvidere angivet kemisk indhold for korn tilsat det kulhydratspaltende enzym ”xylanase”. Det skyldes, at tilsætning af xylanase øger EFOSi-værdien og dermed kornets energiværdi "d.gr.": Tabelværdien for natrium er tæt på detektionsgrænsen i det anvendte laboratorium. Det reele indhold kan være lavere. Byg kan bruges i henhold til følgende kilder: [2], [3], [4], [5], [6], [7], [8], [9], [10], [11], [12], [13], [14], [15]. [16] | HX19: Forsøg har vist, at stigende indhold af byg reducerer problemer med Salmonella og maveforandringer i den hvide del af maven sammenlignet med en hvedebaseret blanding [15]. | HY19: Byg giver generelt ikke anledning til problemer, og kan uden problemer transporteres som løsvare. Byg bør opbevares tørt og er lagerfast ved 86 procent tørstof. | IC19: 54.81300813 | ID19: 56.17886179 | IE19: 57.31707317 | IF19: 58 | IG19: Barley grain, dried, at farm/DK Economic S | IJ19: 0.3803571321 | IK19: 0.3803571321 | IL19: 0.3803571321 | IM19: 0.3803571321 | IP19: 1.427232385 | IS19: 0.3643571321 | IT19: 0.3643571321 | IU19: 7.486570033e-06 | IV19: 0.0009333726686 | IW19: 0.0006887451877 | IX19: 0.0009627573968 | IY19: 0.0006969498849 | IZ19: 0.007067659879 | JA19: 0.0001557660379 | JB19: 0.002461866327 | JC19: 0.06134914244 | JD19: 0.0017424239 | JE19: 0.002454703758 | JF19: 0.0002196354028 | JG19: 3.851291787 | JH19: 0.000196208296 | JI19: 0.0420668009 | JJ19: 0.0002729832306 | JK19: 0.016 | JM19: FEFAC | JO19: DCA rapport nr. 116, marts 2018. Tabel A1.1
A20: 50500 | B20: 505 | C20: 0 | D20: BYG, vinter, gns. 2018-2020 | E20: 2020-10-08 | F20: 1.018845296 | G20: 1.023651369 | H20: 84 | I20: 77.8 | J20: 90 | K20: 1 | L20: 85 | M20: 9.7 | N20: 2.6 | O20: 1.8 | P20: 4.6 | R20: 75.43703682 | S20: 39 | T20: 46.72357724 | U20: 49.81300813 | V20: 52.59349593 | W20: 54.44715447 | Y20: 0.6823529412 | Z20: 3.176470588 | AA20: 0.1294117647 | AB20: 1.811764706 | AC20: 5.152941176 | AD20: 1.105882353 | AE20: 1.305882353 | AF20: 41.89411765 | AG20: 3.105882353 | AH20: 15.68235294 | AI20: 28.83529412 | AJ20: 0 | AK20: 0.04 | AM20: 3.749294118 | AN20: 1.694941176 | AO20: 2.365411765 | AP20: 3.425529412 | AQ20: 1.317764706 | AR20: 3.620235294 | AS20: 6.874705882 | AT20: 2.279058824 | AU20: 4.850941176 | AV20: 3.218235294 | AW20: 5.105294118 | AY20: 0.9397943561 | AZ20: 1.079840342 | BA20: 1.029812793 | BB20: 0.9498681051 | BC20: 0.9598270273 | BD20: 0.9999750427 | BE20: 1.009976295 | BF20: 0.9999180505 | BG20: 1.040158753 | BH20: 0.9700389961 | BI20: 0.9599273217 | BK20: 11.41176471 | BL20: 3.058823529 | BM20: 2.117647059 | BN20: 5.411764706 | BP20: 120 | BQ20: 36.70588235 | BR20: 1.198641525 | BS20: 1.204295728 | BU20: 978.8235294 | BV20: 601.9983193 | BW20: 86.69579832 | BX20: 604 | BY20: 21 | BZ20: 56 | CA20: 165 | CC20: 0.58 | CD20: 2.7 | CE20: 0.11 | CF20: 1.54 | CG20: 4.38 | CH20: 0.94 | CI20: 1.11 | CK20: 35.61 | CL20: 2.64 | CM20: 13.33 | CN20: 24.51 | CO20: 0 | CP20: 0.034 | CQ20: 73.17392571 | CR20: 71.8204481 | CS20: 2.530640496 | CT20: 1.314505142 | CU20: 1.749496772 | CV20: 3.064001913 | CW20: 2.336894553 | CX20: 0.9084038304 | CY20: 2.60000432 | CZ20: 4.986701974 | DA20: 1.636696122 | DB20: 3.623879488 | DC20: 2.242100613 | DD20: 5.865980101 | DE20: 3.519712822 | DF20: 0 | DG20: 0 | DH20: 0 | DI20: 0 | DJ20: 0 | DK20: 0 | DL20: 0 | DM20: 0 | DN20: 0 | DO20: 0 | DP20: 0 | DQ20: 0 | DR20: 0 | DS20: 0 | DT20: 0 | DU20: 0 | DV20: 0 | DW20: 1.1.1 | DX20: 78 | DY20: 78 | DZ20: 35 | EA20: 35 | EC20: 35 | ED20: 35 | EE20: 35 | EF20: 35 | EG20: 35 | ES20: 29 | ET20: 78 | FG20: 0.77 | FH20: 0.25 | FI20: 0.23 | FK20: 1.48 | FL20: 1.82 | FN20: 2.49 | FO20: 2.06 | GA20: 0.1 | GB20: 0.26 | GN20: '18-'20 | GO20: '18-'20 | GP20: '18-'20 | GQ20: '18-'20 | GS20: '18-'20 | GT20: '18-'20 | GU20: '18-'20 | GV20: '18-'20 | GW20: '18-'20 | HI20: '18-'20 | HJ20: '18-'20 | HK20: '18-'20 | HL20: 2018 | HM20: '18-'20 | HN20: '18-'20 | HP20: '18-'20 | HQ20: '18-'20 | HR20: '18-'20 | HS20: '18-'20 | HW20: Byg er frø fra dyrkede sorter af toradet og seksradet bygplanter (Hordeum vulgare), og dyrkes i stor udstrækning i Danmark. En undersøgelse foretaget fra 2003 til 2005 viste, at de forskellige sorter varierer med hensyn til antal af foderenheder pr. 100 kg. Indholdet af foderenheder i forskellige sorter af vårbyg varierede fra 102 til 109 FEsv pr. 100 kg. Desuden var der effekt af sort på EFOS, EFOSi, råfedt og råaske, men ingen statistisk sikker forskel i indhold af råprotein mellem sorterne. Der skelnes mellem varmebehandlet og ikke-varmebehandlet korn. Det skyldes, at der ved varmebehandling af korn (pelleteret foder) sker en nedbrydning af kornets naturlige indhold af fytase, og derfor skal der i korn, der indgår i pelleteret foder, regnes med en lavere fordøjelighed af fosfor end i ikke-varmebehandlet korn (hjemmeblandet foder). Der er endvidere angivet kemisk indhold for korn tilsat det kulhydratspaltende enzym ”xylanase”. Det skyldes, at tilsætning af xylanase øger EFOSi-værdien og dermed kornets energiværdi Byg kan bruges i henhold til følgende kilder: [2], [3], [4], [5], [6], [7], [8], [9], [10], [11], [12], [13], [14], [15]. [16] | HX20: Forsøg har vist, at stigende indhold af byg reducerer problemer med Salmonella og maveforandringer i den hvide del af maven sammenlignet med en hvedebaseret blanding [15]. | HY20: Byg giver generelt ikke anledning til problemer, og kan uden problemer transporteres som løsvare. Byg bør opbevares tørt og er lagerfast ved 86 procent tørstof. | IC20: 55.83739837 | ID20: 56.76422764 | IE20: 57.53658537 | IF20: 58 | IG20: Barley grain, dried, at farm/DK Economic S | IH20: 001-0009 | II20: Vinterbyg | IJ20: 0.3803571321 | IK20: 0.3803571321 | IL20: 0.3803571321 | IM20: 0.3803571321 | IN20: 0.4437 | IO20: 0.06334286789 | IP20: 1.427232385 | IQ20: 1.87 | IR20: 0.1309 | IS20: 0.3643571321 | IT20: 0.3643571321 | IU20: 7.486570033e-06 | IV20: 0.0009333726686 | IW20: 0.0006887451877 | IX20: 0.0009627573968 | IY20: 0.0006969498849 | IZ20: 0.007067659879 | JA20: 0.0001557660379 | JB20: 0.002461866327 | JC20: 0.06134914244 | JD20: 0.0017424239 | JE20: 0.002454703758 | JF20: 0.0002196354028 | JG20: 3.851291787 | JH20: 0.000196208296 | JI20: 0.0420668009 | JJ20: 0.0002729832306 | JK20: 0.016 | JM20: FEFAC | JO20: DCA rapport nr. 116, marts 2018. Tabel A1.1
A21: 50501 | B21: 505 | C21: 1 | D21: BYG, vinter, gns. 2018-2020 + xylanase | E21: 2020-10-08 | F21: 1.024884785 | G21: 1.027896267 | H21: 84 | I21: 78.3 | J21: 90 | K21: 1 | L21: 85 | M21: 9.7 | N21: 2.6 | O21: 1.8 | P21: 4.6 | R21: 75.84139617 | S21: 39 | T21: 46.72357724 | U21: 49.81300813 | V21: 52.59349593 | W21: 54.44715447 | Y21: 0.6823529412 | Z21: 3.176470588 | AA21: 0.1294117647 | AB21: 1.811764706 | AC21: 5.152941176 | AD21: 1.105882353 | AE21: 1.305882353 | AF21: 41.89411765 | AG21: 3.105882353 | AH21: 15.68235294 | AI21: 28.83529412 | AJ21: 0 | AK21: 0.04 | AM21: 3.749294118 | AN21: 1.694941176 | AO21: 2.365411765 | AP21: 3.425529412 | AQ21: 1.317764706 | AR21: 3.620235294 | AS21: 6.874705882 | AT21: 2.279058824 | AU21: 4.850941176 | AV21: 3.218235294 | AW21: 5.105294118 | AY21: 0.9397943561 | AZ21: 1.079840342 | BA21: 1.029812793 | BB21: 0.9498681051 | BC21: 0.9598270273 | BD21: 0.9999750427 | BE21: 1.009976295 | BF21: 0.9999180505 | BG21: 1.040158753 | BH21: 0.9700389961 | BI21: 0.9599273217 | BK21: 11.41176471 | BL21: 3.058823529 | BM21: 2.117647059 | BN21: 5.411764706 | BP21: 120 | BQ21: 36.70588235 | BR21: 1.205746806 | BS21: 1.209289726 | BU21: 978.8235294 | BV21: 608.989916 | BW21: 79.70420168 | BX21: 604 | BY21: 21 | BZ21: 56 | CA21: 165 | CC21: 0.58 | CD21: 2.7 | CE21: 0.11 | CF21: 1.54 | CG21: 4.38 | CH21: 0.94 | CI21: 1.11 | CK21: 35.61 | CL21: 2.64 | CM21: 13.33 | CN21: 24.51 | CO21: 0 | CP21: 0.034 | CQ21: 73.56615429 | CR21: 71.77992624 | CS21: 2.529212682 | CT21: 1.313763484 | CU21: 1.748509687 | CV21: 3.062273171 | CW21: 2.335576052 | CX21: 0.9078912994 | CY21: 2.59853737 | CZ21: 4.983888424 | DA21: 1.635772681 | DB21: 3.621834857 | DC21: 2.240835596 | DD21: 5.862670453 | DE21: 3.517726963 | DF21: 0 | DG21: 0 | DH21: 0 | DI21: 0 | DJ21: 0 | DK21: 0 | DL21: 0 | DM21: 0 | DN21: 0 | DO21: 0 | DP21: 0 | DQ21: 0 | DR21: 0 | DS21: 0 | DT21: 0 | DU21: 0 | DV21: 0 | DW21: 1.1.1 | DX21: 78 | DY21: 78 | DZ21: 35 | EA21: 35 | EC21: 35 | ED21: 35 | EE21: 35 | EF21: 35 | EG21: 35 | ES21: 29 | ET21: 78 | FG21: 0.77 | FH21: 0.25 | FI21: 0.23 | FK21: 1.48 | FL21: 1.82 | FN21: 2.49 | FO21: 2.06 | GA21: 0.1 | GB21: 0.26 | GN21: '18-'20 | GO21: '18-'20 | GP21: '18-'20 | GQ21: '18-'20 | GS21: '18-'20 | GT21: '18-'20 | GU21: '18-'20 | GV21: '18-'20 | GW21: '18-'20 | HI21: '18-'20 | HJ21: '18-'20 | HK21: '18-'20 | HL21: 2018 | HM21: '18-'20 | HN21: '18-'20 | HP21: '18-'20 | HQ21: '18-'20 | HR21: '18-'20 | HS21: '18-'20 | HW21: Byg er frø fra dyrkede sorter af toradet og seksradet bygplanter (Hordeum vulgare), og dyrkes i stor udstrækning i Danmark. En undersøgelse foretaget fra 2003 til 2005 viste, at de forskellige sorter varierer med hensyn til antal af foderenheder pr. 100 kg. Indholdet af foderenheder i forskellige sorter af vårbyg varierede fra 102 til 109 FEsv pr. 100 kg. Desuden var der effekt af sort på EFOS, EFOSi, råfedt og råaske, men ingen statistisk sikker forskel i indhold af råprotein mellem sorterne. Der skelnes mellem varmebehandlet og ikke-varmebehandlet korn. Det skyldes, at der ved varmebehandling af korn (pelleteret foder) sker en nedbrydning af kornets naturlige indhold af fytase, og derfor skal der i korn, der indgår i pelleteret foder, regnes med en lavere fordøjelighed af fosfor end i ikke-varmebehandlet korn (hjemmeblandet foder). Der er endvidere angivet kemisk indhold for korn tilsat det kulhydratspaltende enzym ”xylanase”. Det skyldes, at tilsætning af xylanase øger EFOSi-værdien og dermed kornets energiværdi Byg kan bruges i henhold til følgende kilder: [2], [3], [4], [5], [6], [7], [8], [9], [10], [11], [12], [13], [14], [15]. [16] | HX21: Forsøg har vist, at stigende indhold af byg reducerer problemer med Salmonella og maveforandringer i den hvide del af maven sammenlignet med en hvedebaseret blanding [15]. | HY21: Byg giver generelt ikke anledning til problemer, og kan uden problemer transporteres som løsvare. Byg bør opbevares tørt og er lagerfast ved 86 procent tørstof. | IC21: 55.83739837 | ID21: 56.76422764 | IE21: 57.53658537 | IF21: 58 | IG21: Barley grain, dried, at farm/DK Economic S | IH21: 001-0009 | II21: Vinterbyg | IJ21: 0.3803571321 | IK21: 0.3803571321 | IL21: 0.3803571321 | IM21: 0.3803571321 | IN21: 0.4437 | IO21: 0.06334286789 | IP21: 1.427232385 | IQ21: 1.87 | IR21: 0.1309 | IS21: 0.3643571321 | IT21: 0.3643571321 | IU21: 7.486570033e-06 | IV21: 0.0009333726686 | IW21: 0.0006887451877 | IX21: 0.0009627573968 | IY21: 0.0006969498849 | IZ21: 0.007067659879 | JA21: 0.0001557660379 | JB21: 0.002461866327 | JC21: 0.06134914244 | JD21: 0.0017424239 | JE21: 0.002454703758 | JF21: 0.0002196354028 | JG21: 3.851291787 | JH21: 0.000196208296 | JI21: 0.0420668009 | JJ21: 0.0002729832306 | JK21: 0.016 | JM21: FEFAC | JO21: DCA rapport nr. 116, marts 2018. Tabel A1.1
A22: 50510 | B22: 505 | C22: 10 | D22: BYG, vinter, gns. 2018-2020, varmebehandlet | E22: 2020-10-08 | F22: 1.018845296 | G22: 1.023651369 | H22: 84 | I22: 77.8 | J22: 90 | K22: 1 | L22: 85 | M22: 9.7 | N22: 2.6 | O22: 1.8 | P22: 4.6 | R22: 75.43703682 | S22: 30 | T22: 41.38211382 | U22: 45.93495935 | V22: 50.03252033 | W22: 52.76422764 | Y22: 0.6823529412 | Z22: 3.176470588 | AA22: 0.1294117647 | AB22: 1.811764706 | AC22: 5.152941176 | AD22: 1.105882353 | AE22: 1.305882353 | AF22: 41.89411765 | AG22: 3.105882353 | AH22: 15.68235294 | AI22: 28.83529412 | AJ22: 0 | AK22: 0.04 | AM22: 3.749294118 | AN22: 1.694941176 | AO22: 2.365411765 | AP22: 3.425529412 | AQ22: 1.317764706 | AR22: 3.620235294 | AS22: 6.874705882 | AT22: 2.279058824 | AU22: 4.850941176 | AV22: 3.218235294 | AW22: 5.105294118 | AY22: 0.9397943561 | AZ22: 1.079840342 | BA22: 1.029812793 | BB22: 0.9498681051 | BC22: 0.9598270273 | BD22: 0.9999750427 | BE22: 1.009976295 | BF22: 0.9999180505 | BG22: 1.040158753 | BH22: 0.9700389961 | BI22: 0.9599273217 | BK22: 11.41176471 | BL22: 3.058823529 | BM22: 2.117647059 | BN22: 5.411764706 | BP22: 120 | BQ22: 36.70588235 | BR22: 1.198641525 | BS22: 1.204295728 | BU22: 978.8235294 | BV22: 601.9983193 | BW22: 86.69579832 | BX22: 604 | BY22: 21 | BZ22: 56 | CA22: 165 | CC22: 0.58 | CD22: 2.7 | CE22: 0.11 | CF22: 1.54 | CG22: 4.38 | CH22: 0.94 | CI22: 1.11 | CK22: 35.61 | CL22: 2.64 | CM22: 13.33 | CN22: 24.51 | CO22: 0 | CP22: 0.034 | CQ22: 73.17392571 | CR22: 71.8204481 | CS22: 2.530640496 | CT22: 1.314505142 | CU22: 1.749496772 | CV22: 3.064001913 | CW22: 2.336894553 | CX22: 0.9084038304 | CY22: 2.60000432 | CZ22: 4.986701974 | DA22: 1.636696122 | DB22: 3.623879488 | DC22: 2.242100613 | DD22: 5.865980101 | DE22: 3.519712822 | DF22: 0 | DG22: 0 | DH22: 0 | DI22: 0 | DJ22: 0 | DK22: 0 | DL22: 0 | DM22: 0 | DN22: 0 | DO22: 0 | DP22: 0 | DQ22: 0 | DR22: 0 | DS22: 0 | DT22: 0 | DU22: 0 | DV22: 0 | DW22: 1.1.1 | DX22: 78 | DY22: 78 | DZ22: 35 | EA22: 35 | EC22: 35 | ED22: 35 | EE22: 35 | EF22: 35 | EG22: 35 | ES22: 29 | ET22: 78 | FG22: 0.77 | FH22: 0.25 | FI22: 0.23 | FK22: 1.48 | FL22: 1.82 | FN22: 2.49 | FO22: 2.06 | GA22: 0.1 | GB22: 0.26 | GN22: '18-'20 | GO22: '18-'20 | GP22: '18-'20 | GQ22: '18-'20 | GS22: '18-'20 | GT22: '18-'20 | GU22: '18-'20 | GV22: '18-'20 | GW22: '18-'20 | HI22: '18-'20 | HJ22: '18-'20 | HK22: '18-'20 | HL22: 2018 | HM22: '18-'20 | HN22: '18-'20 | HP22: '18-'20 | HQ22: '18-'20 | HR22: '18-'20 | HS22: '18-'20 | HW22: Byg er frø fra dyrkede sorter af toradet og seksradet bygplanter (Hordeum vulgare), og dyrkes i stor udstrækning i Danmark. En undersøgelse foretaget fra 2003 til 2005 viste, at de forskellige sorter varierer med hensyn til antal af foderenheder pr. 100 kg. Indholdet af foderenheder i forskellige sorter af vårbyg varierede fra 102 til 109 FEsv pr. 100 kg. Desuden var der effekt af sort på EFOS, EFOSi, råfedt og råaske, men ingen statistisk sikker forskel i indhold af råprotein mellem sorterne. Der skelnes mellem varmebehandlet og ikke-varmebehandlet korn. Det skyldes, at der ved varmebehandling af korn (pelleteret foder) sker en nedbrydning af kornets naturlige indhold af fytase, og derfor skal der i korn, der indgår i pelleteret foder, regnes med en lavere fordøjelighed af fosfor end i ikke-varmebehandlet korn (hjemmeblandet foder). Der er endvidere angivet kemisk indhold for korn tilsat det kulhydratspaltende enzym ”xylanase”. Det skyldes, at tilsætning af xylanase øger EFOSi-værdien og dermed kornets energiværdi Byg kan bruges i henhold til følgende kilder: [2], [3], [4], [5], [6], [7], [8], [9], [10], [11], [12], [13], [14], [15]. [16] | HX22: Forsøg har vist, at stigende indhold af byg reducerer problemer med Salmonella og maveforandringer i den hvide del af maven sammenlignet med en hvedebaseret blanding [15]. | HY22: Byg giver generelt ikke anledning til problemer, og kan uden problemer transporteres som løsvare. Byg bør opbevares tørt og er lagerfast ved 86 procent tørstof. | IC22: 54.81300813 | ID22: 56.17886179 | IE22: 57.31707317 | IF22: 58 | IG22: Barley grain, dried, at farm/DK Economic S | IH22: 001-0009 | II22: Vinterbyg | IJ22: 0.3803571321 | IK22: 0.3803571321 | IL22: 0.3803571321 | IM22: 0.3803571321 | IN22: 0.4437 | IO22: 0.06334286789 | IP22: 1.427232385 | IQ22: 1.87 | IR22: 0.1309 | IS22: 0.3643571321 | IT22: 0.3643571321 | IU22: 7.486570033e-06 | IV22: 0.0009333726686 | IW22: 0.0006887451877 | IX22: 0.0009627573968 | IY22: 0.0006969498849 | IZ22: 0.007067659879 | JA22: 0.0001557660379 | JB22: 0.002461866327 | JC22: 0.06134914244 | JD22: 0.0017424239 | JE22: 0.002454703758 | JF22: 0.0002196354028 | JG22: 3.851291787 | JH22: 0.000196208296 | JI22: 0.0420668009 | JJ22: 0.0002729832306 | JK22: 0.016 | JM22: FEFAC | JO22: DCA rapport nr. 116, marts 2018. Tabel A1.1
A23: 50511 | B23: 505 | C23: 11 | D23: BYG, vinter, gns. 2018-2020, varmebehandlet + xylanas | E23: 2020-10-08 | F23: 1.024884785 | G23: 1.027896267 | H23: 84 | I23: 78.3 | J23: 90 | K23: 1 | L23: 85 | M23: 9.7 | N23: 2.6 | O23: 1.8 | P23: 4.6 | R23: 75.84139617 | S23: 30 | T23: 41.38211382 | U23: 45.93495935 | V23: 50.03252033 | W23: 52.76422764 | Y23: 0.6823529412 | Z23: 3.176470588 | AA23: 0.1294117647 | AB23: 1.811764706 | AC23: 5.152941176 | AD23: 1.105882353 | AE23: 1.305882353 | AF23: 41.89411765 | AG23: 3.105882353 | AH23: 15.68235294 | AI23: 28.83529412 | AJ23: 0 | AK23: 0.04 | AM23: 3.749294118 | AN23: 1.694941176 | AO23: 2.365411765 | AP23: 3.425529412 | AQ23: 1.317764706 | AR23: 3.620235294 | AS23: 6.874705882 | AT23: 2.279058824 | AU23: 4.850941176 | AV23: 3.218235294 | AW23: 5.105294118 | AY23: 0.9397943561 | AZ23: 1.079840342 | BA23: 1.029812793 | BB23: 0.9498681051 | BC23: 0.9598270273 | BD23: 0.9999750427 | BE23: 1.009976295 | BF23: 0.9999180505 | BG23: 1.040158753 | BH23: 0.9700389961 | BI23: 0.9599273217 | BK23: 11.41176471 | BL23: 3.058823529 | BM23: 2.117647059 | BN23: 5.411764706 | BP23: 120 | BQ23: 36.70588235 | BR23: 1.205746806 | BS23: 1.209289726 | BU23: 978.8235294 | BV23: 608.989916 | BW23: 79.70420168 | BX23: 604 | BY23: 21 | BZ23: 56 | CA23: 165 | CC23: 0.58 | CD23: 2.7 | CE23: 0.11 | CF23: 1.54 | CG23: 4.38 | CH23: 0.94 | CI23: 1.11 | CK23: 35.61 | CL23: 2.64 | CM23: 13.33 | CN23: 24.51 | CO23: 0 | CP23: 0.034 | CQ23: 73.56615429 | CR23: 71.77992624 | CS23: 2.529212682 | CT23: 1.313763484 | CU23: 1.748509687 | CV23: 3.062273171 | CW23: 2.335576052 | CX23: 0.9078912994 | CY23: 2.59853737 | CZ23: 4.983888424 | DA23: 1.635772681 | DB23: 3.621834857 | DC23: 2.240835596 | DD23: 5.862670453 | DE23: 3.517726963 | DF23: 0 | DG23: 0 | DH23: 0 | DI23: 0 | DJ23: 0 | DK23: 0 | DL23: 0 | DM23: 0 | DN23: 0 | DO23: 0 | DP23: 0 | DQ23: 0 | DR23: 0 | DS23: 0 | DT23: 0 | DU23: 0 | DV23: 0 | DW23: 1.1.1 | DX23: 78 | DY23: 78 | DZ23: 35 | EA23: 35 | EC23: 35 | ED23: 35 | EE23: 35 | EF23: 35 | EG23: 35 | ES23: 29 | ET23: 78 | FG23: 0.77 | FH23: 0.25 | FI23: 0.23 | FK23: 1.48 | FL23: 1.82 | FN23: 2.49 | FO23: 2.06 | GA23: 0.1 | GB23: 0.26 | GN23: '18-'20 | GO23: '18-'20 | GP23: '18-'20 | GQ23: '18-'20 | GS23: '18-'20 | GT23: '18-'20 | GU23: '18-'20 | GV23: '18-'20 | GW23: '18-'20 | HI23: '18-'20 | HJ23: '18-'20 | HK23: '18-'20 | HL23: 2018 | HM23: '18-'20 | HN23: '18-'20 | HP23: '18-'20 | HQ23: '18-'20 | HR23: '18-'20 | HS23: '18-'20 | HW23: Byg er frø fra dyrkede sorter af toradet og seksradet bygplanter (Hordeum vulgare), og dyrkes i stor udstrækning i Danmark. En undersøgelse foretaget fra 2003 til 2005 viste, at de forskellige sorter varierer med hensyn til antal af foderenheder pr. 100 kg. Indholdet af foderenheder i forskellige sorter af vårbyg varierede fra 102 til 109 FEsv pr. 100 kg. Desuden var der effekt af sort på EFOS, EFOSi, råfedt og råaske, men ingen statistisk sikker forskel i indhold af råprotein mellem sorterne. Der skelnes mellem varmebehandlet og ikke-varmebehandlet korn. Det skyldes, at der ved varmebehandling af korn (pelleteret foder) sker en nedbrydning af kornets naturlige indhold af fytase, og derfor skal der i korn, der indgår i pelleteret foder, regnes med en lavere fordøjelighed af fosfor end i ikke-varmebehandlet korn (hjemmeblandet foder). Der er endvidere angivet kemisk indhold for korn tilsat det kulhydratspaltende enzym ”xylanase”. Det skyldes, at tilsætning af xylanase øger EFOSi-værdien og dermed kornets energiværdi Byg kan bruges i henhold til følgende kilder: [2], [3], [4], [5], [6], [7], [8], [9], [10], [11], [12], [13], [14], [15]. [16] | HX23: Forsøg har vist, at stigende indhold af byg reducerer problemer med Salmonella og maveforandringer i den hvide del af maven sammenlignet med en hvedebaseret blanding [15]. | HY23: Byg giver generelt ikke anledning til problemer, og kan uden problemer transporteres som løsvare. Byg bør opbevares tørt og er lagerfast ved 86 procent tørstof. | IC23: 54.81300813 | ID23: 56.17886179 | IE23: 57.31707317 | IF23: 58 | IG23: Barley grain, dried, at farm/DK Economic S | IH23: 001-0009 | II23: Vinterbyg | IJ23: 0.3803571321 | IK23: 0.3803571321 | IL23: 0.3803571321 | IM23: 0.3803571321 | IN23: 0.4437 | IO23: 0.06334286789 | IP23: 1.427232385 | IQ23: 1.87 | IR23: 0.1309 | IS23: 0.3643571321 | IT23: 0.3643571321 | IU23: 7.486570033e-06 | IV23: 0.0009333726686 | IW23: 0.0006887451877 | IX23: 0.0009627573968 | IY23: 0.0006969498849 | IZ23: 0.007067659879 | JA23: 0.0001557660379 | JB23: 0.002461866327 | JC23: 0.06134914244 | JD23: 0.0017424239 | JE23: 0.002454703758 | JF23: 0.0002196354028 | JG23: 3.851291787 | JH23: 0.000196208296 | JI23: 0.0420668009 | JJ23: 0.0002729832306 | JK23: 0.016 | JM23: FEFAC | JO23: DCA rapport nr. 116, marts 2018. Tabel A1.1
A24: 50400 | B24: 504 | C24: 0 | D24: BYG, vinter, 2019 | E24: 2019-11-01 | F24: 1.013767596 | G24: 1.019217515 | H24: 83.4 | I24: 77.4000372 | J24: 90 | K24: 1 | L24: 85 | M24: 9.7 | N24: 2.7 | O24: 1.8 | P24: 4.6 | R24: 75.25435582 | S24: 39 | T24: 46.72357724 | U24: 49.81300813 | V24: 52.59349593 | W24: 54.44715447 | Y24: 0.7058823529 | Z24: 3.294117647 | AA24: 0.1247058824 | AB24: 1.815068493 | AC24: 4.941176471 | AD24: 1.058823529 | AE24: 1.3 | AF24: 44.70588235 | AG24: 3.176470588 | AH24: 13.05882353 | AI24: 23.52941176 | AJ24: 0 | AK24: 0.04 | AM24: 3.749294118 | AN24: 1.694941176 | AO24: 2.365411765 | AP24: 3.425529412 | AQ24: 1.317764706 | AR24: 3.620235294 | AS24: 6.874705882 | AT24: 2.279058824 | AU24: 4.850941176 | AV24: 3.218235294 | AW24: 5.105294118 | AY24: 0.94 | AZ24: 1.08 | BA24: 1.03 | BB24: 0.95 | BC24: 0.96 | BD24: 1 | BE24: 1.01 | BF24: 1 | BG24: 1.04 | BH24: 0.97 | BI24: 0.96 | BK24: 11.41176471 | BL24: 3.176470588 | BM24: 2.117647059 | BN24: 5.411764706 | BP24: 120 | BQ24: 38.11764706 | BR24: 1.19266776 | BS24: 1.19907943 | BU24: 978.8235294 | BV24: 597.7808403 | BW24: 83.89863949 | BX24: 604 | BY24: 21 | BZ24: 56 | CA24: 165 | CC24: 0.6 | CD24: 2.8 | CE24: 0.106 | CF24: 1.542808219 | CG24: 4.2 | CH24: 0.9 | CI24: 1.105 | CK24: 38 | CL24: 2.7 | CM24: 11.1 | CN24: 20 | CO24: 0 | CP24: 0.034 | CQ24: 72.99672514 | CR24: 72.00538412 | CS24: 2.537712013 | CT24: 1.318084817 | CU24: 1.754320542 | CV24: 3.072405359 | CW24: 2.34323733 | CX24: 0.9109070767 | CY24: 2.606764329 | CZ24: 4.999659961 | DA24: 1.64104506 | DB24: 3.632656381 | DC24: 2.247783605 | DD24: 5.880439985 | DE24: 3.529043174 | DF24: 0 | DG24: 0 | DH24: 0 | DI24: 0 | DJ24: 0 | DK24: 0 | DL24: 0 | DM24: 0 | DN24: 0 | DO24: 0 | DP24: 0 | DQ24: 0 | DR24: 0 | DS24: 0 | DT24: 0 | DU24: 0 | DV24: 0 | DW24: 1.1.1 | DX24: 16 | DY24: 16 | DZ24: 8 | EA24: 8 | EC24: 8 | ED24: 8 | EE24: 8 | EF24: 8 | EG24: 8 | ES24: 8 | ET24: 16 | FG24: 0.9 | FH24: 0.2 | FI24: 0.2 | FK24: 1 | FL24: 0.9 | FN24: 1.5 | FO24: 1.3 | GA24: 0.1 | GB24: 0.3 | GN24: 2019 | GO24: 2019 | GP24: 2019 | GQ24: 2019 | GS24: 2019 | GT24: 2019 | GU24: 2019 | GV24: 2019 | GW24: 2019 | HI24: 2019 | HJ24: 2019 | HK24: 2019 | HL24: 2018 | HM24: 2019 | HN24: 2019 | HP24: 2019 | HQ24: 2019 | HR24: 2019 | HS24: 2019 | HW24: Byg er frø fra dyrkede sorter af toradet og seksradet bygplanter (Hordeum vulgare), og dyrkes i stor udstrækning i Danmark. En undersøgelse foretaget fra 2003 til 2005 viste, at de forskellige sorter varierer med hensyn til antal af foderenheder pr. 100 kg. Indholdet af foderenheder i forskellige sorter af vårbyg varierede fra 102 til 109 FEsv pr. 100 kg. Desuden var der effekt af sort på EFOS, EFOSi, råfedt og råaske, men ingen statistisk sikker forskel i indhold af råprotein mellem sorterne. Der skelnes mellem varmebehandlet og ikke-varmebehandlet korn. Det skyldes, at der ved varmebehandling af korn (pelleteret foder) sker en nedbrydning af kornets naturlige indhold af fytase, og derfor skal der i korn, der indgår i pelleteret foder, regnes med en lavere fordøjelighed af fosfor end i ikke-varmebehandlet korn (hjemmeblandet foder). Der er endvidere angivet kemisk indhold for korn tilsat det kulhydratspaltende enzym ”xylanase”. Det skyldes, at tilsætning af xylanase øger EFOSi-værdien og dermed kornets energiværdi Byg kan bruges i henhold til følgende kilder: [2], [3], [4], [5], [6], [7], [8], [9], [10], [11], [12], [13], [14], [15]. [16] | HX24: Forsøg har vist, at stigende indhold af byg reducerer problemer med Salmonella og maveforandringer i den hvide del af maven sammenlignet med en hvedebaseret blanding [15]. | HY24: Byg giver generelt ikke anledning til problemer, og kan uden problemer transporteres som løsvare. Byg bør opbevares tørt og er lagerfast ved 86 procent tørstof. | IC24: 55.83739837 | ID24: 56.76422764 | IE24: 57.53658537 | IF24: 58 | IG24: Barley grain, dried, at farm/DK Economic S | IH24: 001-0009 | II24: Vinterbyg | IJ24: 0.3803571321 | IK24: 0.3803571321 | IL24: 0.3803571321 | IM24: 0.3803571321 | IN24: 0.4437 | IO24: 0.06334286789 | IP24: 1.427232385 | IQ24: 1.87 | IR24: 0.1309 | IS24: 0.3643571321 | IT24: 0.3643571321 | IU24: 7.486570033e-06 | IV24: 0.0009333726686 | IW24: 0.0006887451877 | IX24: 0.0009627573968 | IY24: 0.0006969498849 | IZ24: 0.007067659879 | JA24: 0.0001557660379 | JB24: 0.002461866327 | JC24: 0.06134914244 | JD24: 0.0017424239 | JE24: 0.002454703758 | JF24: 0.0002196354028 | JG24: 3.851291787 | JH24: 0.000196208296 | JI24: 0.0420668009 | JJ24: 0.0002729832306 | JK24: 0.016 | JM24: FEFAC | JO24: DCA rapport nr. 116, marts 2018. Tabel A1.1
A25: 50401 | B25: 504 | C25: 1 | D25: BYG, vinter, 2019 + xylanase | E25: 2019-11-03 | F25: 1.019807085 | G25: 1.023462413 | H25: 83.4 | I25: 77.9 | J25: 90 | K25: 1 | L25: 85 | M25: 9.7 | N25: 2.7 | O25: 1.8 | P25: 4.6 | R25: 75.65871517 | S25: 39 | T25: 46.72357724 | U25: 49.81300813 | V25: 52.59349593 | W25: 54.44715447 | Y25: 0.7058823529 | Z25: 3.294117647 | AA25: 0.1247058824 | AB25: 1.815068493 | AC25: 4.941176471 | AD25: 1.058823529 | AE25: 1.3 | AF25: 44.70588235 | AG25: 3.176470588 | AH25: 13.05882353 | AI25: 23.52941176 | AJ25: 0 | AK25: 0.04 | AM25: 3.749294118 | AN25: 1.694941176 | AO25: 2.365411765 | AP25: 3.425529412 | AQ25: 1.317764706 | AR25: 3.620235294 | AS25: 6.874705882 | AT25: 2.279058824 | AU25: 4.850941176 | AV25: 3.218235294 | AW25: 5.105294118 | AY25: 0.94 | AZ25: 1.08 | BA25: 1.03 | BB25: 0.95 | BC25: 0.96 | BD25: 1 | BE25: 1.01 | BF25: 1 | BG25: 1.04 | BH25: 0.97 | BI25: 0.96 | BK25: 11.41176471 | BL25: 3.176470588 | BM25: 2.117647059 | BN25: 5.411764706 | BP25: 120 | BQ25: 38.11764706 | BR25: 1.199773041 | BS25: 1.204073427 | BU25: 978.8235294 | BV25: 604.772437 | BW25: 76.90756303 | BX25: 604 | BY25: 21 | BZ25: 56 | CA25: 165 | CC25: 0.6 | CD25: 2.8 | CE25: 0.106 | CF25: 1.542808219 | CG25: 4.2 | CH25: 0.9 | CI25: 1.105 | CK25: 38 | CL25: 2.7 | CM25: 11.1 | CN25: 20 | CO25: 0 | CP25: 0.034 | CQ25: 73.38895371 | CR25: 71.96356528 | CS25: 2.536238177 | CT25: 1.317319308 | CU25: 1.753301679 | CV25: 3.054209998 | CW25: 2.34187644 | CX25: 0.9103780457 | CY25: 2.605250389 | CZ25: 4.99675629 | DA25: 1.640091984 | DB25: 3.630546629 | DC25: 2.246478151 | DD25: 5.865018437 | DE25: 3.526993598 | DF25: 0 | DG25: 0 | DH25: 0 | DI25: 0 | DJ25: 0 | DK25: 0 | DL25: 0 | DM25: 0 | DN25: 0 | DO25: 0 | DP25: 0 | DQ25: 0 | DR25: 0 | DS25: 0 | DT25: 0 | DU25: 0 | DV25: 0 | DW25: 1.1.1 | DX25: 16 | DY25: 16 | DZ25: 8 | EA25: 8 | EC25: 8 | ED25: 8 | EE25: 8 | EF25: 8 | EG25: 8 | ES25: 8 | ET25: 16 | FG25: 0.9 | FH25: 0.2 | FI25: 0.2 | FK25: 1 | FL25: 0.9 | FN25: 1.5 | FO25: 1.3 | GA25: 0.1 | GB25: 0.3 | GN25: 2019 | GO25: 2019 | GP25: 2019 | GQ25: 2019 | GS25: 2019 | GT25: 2019 | GU25: 2019 | GV25: 2019 | GW25: 2019 | HI25: 2019 | HJ25: 2019 | HK25: 2019 | HL25: 2018 | HM25: 2019 | HN25: 2019 | HP25: 2019 | HQ25: 2019 | HR25: 2019 | HS25: 2019 | HW25: Byg er frø fra dyrkede sorter af toradet og seksradet bygplanter (Hordeum vulgare), og dyrkes i stor udstrækning i Danmark. En undersøgelse foretaget fra 2003 til 2005 viste, at de forskellige sorter varierer med hensyn til antal af foderenheder pr. 100 kg. Indholdet af foderenheder i forskellige sorter af vårbyg varierede fra 102 til 109 FEsv pr. 100 kg. Desuden var der effekt af sort på EFOS, EFOSi, råfedt og råaske, men ingen statistisk sikker forskel i indhold af råprotein mellem sorterne. Der skelnes mellem varmebehandlet og ikke-varmebehandlet korn. Det skyldes, at der ved varmebehandling af korn (pelleteret foder) sker en nedbrydning af kornets naturlige indhold af fytase, og derfor skal der i korn, der indgår i pelleteret foder, regnes med en lavere fordøjelighed af fosfor end i ikke-varmebehandlet korn (hjemmeblandet foder). Der er endvidere angivet kemisk indhold for korn tilsat det kulhydratspaltende enzym ”xylanase”. Det skyldes, at tilsætning af xylanase øger EFOSi-værdien og dermed kornets energiværdi Byg kan bruges i henhold til følgende kilder: [2], [3], [4], [5], [6], [7], [8], [9], [10], [11], [12], [13], [14], [15]. [16] | HX25: Forsøg har vist, at stigende indhold af byg reducerer problemer med Salmonella og maveforandringer i den hvide del af maven sammenlignet med en hvedebaseret blanding [15]. | HY25: Byg giver generelt ikke anledning til problemer, og kan uden problemer transporteres som løsvare. Byg bør opbevares tørt og er lagerfast ved 86 procent tørstof. | IC25: 55.83739837 | ID25: 56.76422764 | IE25: 57.53658537 | IF25: 58 | IG25: Barley grain, dried, at farm/DK Economic S | IH25: 001-0009 | II25: Vinterbyg | IJ25: 0.3803571321 | IK25: 0.3803571321 | IL25: 0.3803571321 | IM25: 0.3803571321 | IN25: 0.4437 | IO25: 0.06334286789 | IP25: 1.427232385 | IQ25: 1.87 | IR25: 0.1309 | IS25: 0.3643571321 | IT25: 0.3643571321 | IU25: 7.486570033e-06 | IV25: 0.0009333726686 | IW25: 0.0006887451877 | IX25: 0.0009627573968 | IY25: 0.0006969498849 | IZ25: 0.007067659879 | JA25: 0.0001557660379 | JB25: 0.002461866327 | JC25: 0.06134914244 | JD25: 0.0017424239 | JE25: 0.002454703758 | JF25: 0.0002196354028 | JG25: 3.851291787 | JH25: 0.000196208296 | JI25: 0.0420668009 | JJ25: 0.0002729832306 | JK25: 0.016 | JM25: FEFAC | JO25: DCA rapport nr. 116, marts 2018. Tabel A1.1
A26: 50410 | B26: 504 | C26: 10 | D26: BYG, vinter, 2019, varmebehandlet | E26: 2019-11-03 | F26: 1.013767596 | G26: 1.019217515 | H26: 83.4 | I26: 77.4000372 | J26: 90 | K26: 1 | L26: 85 | M26: 9.7 | N26: 2.7 | O26: 1.8 | P26: 4.6 | R26: 75.25435582 | S26: 30 | T26: 41.38211382 | U26: 45.93495935 | V26: 50.03252033 | W26: 52.76422764 | Y26: 0.7058823529 | Z26: 3.294117647 | AA26: 0.1247058824 | AB26: 1.815068493 | AC26: 4.941176471 | AD26: 1.058823529 | AE26: 1.3 | AF26: 44.70588235 | AG26: 3.176470588 | AH26: 13.05882353 | AI26: 23.52941176 | AJ26: 0 | AK26: 0.04 | AM26: 3.749294118 | AN26: 1.694941176 | AO26: 2.365411765 | AP26: 3.425529412 | AQ26: 1.317764706 | AR26: 3.620235294 | AS26: 6.874705882 | AT26: 2.279058824 | AU26: 4.850941176 | AV26: 3.218235294 | AW26: 5.105294118 | AY26: 0.94 | AZ26: 1.08 | BA26: 1.03 | BB26: 0.95 | BC26: 0.96 | BD26: 1 | BE26: 1.01 | BF26: 1 | BG26: 1.04 | BH26: 0.97 | BI26: 0.96 | BK26: 11.41176471 | BL26: 3.176470588 | BM26: 2.117647059 | BN26: 5.411764706 | BP26: 120 | BQ26: 38.11764706 | BR26: 1.19266776 | BS26: 1.19907943 | BU26: 978.8235294 | BV26: 597.7808403 | BW26: 83.89863949 | BX26: 604 | BY26: 21 | BZ26: 56 | CA26: 165 | CC26: 0.6 | CD26: 2.8 | CE26: 0.106 | CF26: 1.542808219 | CG26: 4.2 | CH26: 0.9 | CI26: 1.105 | CK26: 38 | CL26: 2.7 | CM26: 11.1 | CN26: 20 | CO26: 0 | CP26: 0.034 | CQ26: 72.99672514 | CR26: 72.00538412 | CS26: 2.537712013 | CT26: 1.318084817 | CU26: 1.754320542 | CV26: 3.072405359 | CW26: 2.34323733 | CX26: 0.9109070767 | CY26: 2.606764329 | CZ26: 4.999659961 | DA26: 1.64104506 | DB26: 3.632656381 | DC26: 2.247783605 | DD26: 5.880439985 | DE26: 3.529043174 | DF26: 0 | DG26: 0 | DH26: 0 | DI26: 0 | DJ26: 0 | DK26: 0 | DL26: 0 | DM26: 0 | DN26: 0 | DO26: 0 | DP26: 0 | DQ26: 0 | DR26: 0 | DS26: 0 | DT26: 0 | DU26: 0 | DV26: 0 | DW26: 1.1.1 | DX26: 16 | DY26: 16 | DZ26: 8 | EA26: 8 | EC26: 8 | ED26: 8 | EE26: 8 | EF26: 8 | EG26: 8 | ES26: 8 | ET26: 16 | FG26: 0.9 | FH26: 0.2 | FI26: 0.2 | FK26: 1 | FL26: 0.9 | FN26: 1.5 | FO26: 1.3 | GA26: 0.1 | GB26: 0.3 | GN26: 2019 | GO26: 2019 | GP26: 2019 | GQ26: 2019 | GS26: 2019 | GT26: 2019 | GU26: 2019 | GV26: 2019 | GW26: 2019 | HI26: 2019 | HJ26: 2019 | HK26: 2019 | HL26: 2018 | HM26: 2019 | HN26: 2019 | HP26: 2019 | HQ26: 2019 | HR26: 2019 | HS26: 2019 | HW26: Byg er frø fra dyrkede sorter af toradet og seksradet bygplanter (Hordeum vulgare), og dyrkes i stor udstrækning i Danmark. En undersøgelse foretaget fra 2003 til 2005 viste, at de forskellige sorter varierer med hensyn til antal af foderenheder pr. 100 kg. Indholdet af foderenheder i forskellige sorter af vårbyg varierede fra 102 til 109 FEsv pr. 100 kg. Desuden var der effekt af sort på EFOS, EFOSi, råfedt og råaske, men ingen statistisk sikker forskel i indhold af råprotein mellem sorterne. Der skelnes mellem varmebehandlet og ikke-varmebehandlet korn. Det skyldes, at der ved varmebehandling af korn (pelleteret foder) sker en nedbrydning af kornets naturlige indhold af fytase, og derfor skal der i korn, der indgår i pelleteret foder, regnes med en lavere fordøjelighed af fosfor end i ikke-varmebehandlet korn (hjemmeblandet foder). Der er endvidere angivet kemisk indhold for korn tilsat det kulhydratspaltende enzym ”xylanase”. Det skyldes, at tilsætning af xylanase øger EFOSi-værdien og dermed kornets energiværdi Byg kan bruges i henhold til følgende kilder: [2], [3], [4], [5], [6], [7], [8], [9], [10], [11], [12], [13], [14], [15]. [16] | HX26: Forsøg har vist, at stigende indhold af byg reducerer problemer med Salmonella og maveforandringer i den hvide del af maven sammenlignet med en hvedebaseret blanding [15]. | HY26: Byg giver generelt ikke anledning til problemer, og kan uden problemer transporteres som løsvare. Byg bør opbevares tørt og er lagerfast ved 86 procent tørstof. | IC26: 54.81300813 | ID26: 56.17886179 | IE26: 57.31707317 | IF26: 58 | IG26: Barley grain, dried, at farm/DK Economic S | IH26: 001-0009 | II26: Vinterbyg | IJ26: 0.3803571321 | IK26: 0.3803571321 | IL26: 0.3803571321 | IM26: 0.3803571321 | IN26: 0.4437 | IO26: 0.06334286789 | IP26: 1.427232385 | IQ26: 1.87 | IR26: 0.1309 | IS26: 0.3643571321 | IT26: 0.3643571321 | IU26: 7.486570033e-06 | IV26: 0.0009333726686 | IW26: 0.0006887451877 | IX26: 0.0009627573968 | IY26: 0.0006969498849 | IZ26: 0.007067659879 | JA26: 0.0001557660379 | JB26: 0.002461866327 | JC26: 0.06134914244 | JD26: 0.0017424239 | JE26: 0.002454703758 | JF26: 0.0002196354028 | JG26: 3.851291787 | JH26: 0.000196208296 | JI26: 0.0420668009 | JJ26: 0.0002729832306 | JK26: 0.016 | JM26: FEFAC | JO26: DCA rapport nr. 116, marts 2018. Tabel A1.1
A27: 50411 | B27: 504 | C27: 11 | D27: BYG, vinter, 2019, varmebehandlet + xylanase | E27: 2019-11-03 | F27: 1.019807085 | G27: 1.023462413 | H27: 83.4 | I27: 77.9 | J27: 90 | K27: 1 | L27: 85 | M27: 9.7 | N27: 2.7 | O27: 1.8 | P27: 4.6 | R27: 75.65871517 | S27: 30 | T27: 41.38211382 | U27: 45.93495935 | V27: 50.03252033 | W27: 52.76422764 | Y27: 0.7058823529 | Z27: 3.294117647 | AA27: 0.1247058824 | AB27: 1.815068493 | AC27: 4.941176471 | AD27: 1.058823529 | AE27: 1.3 | AF27: 44.70588235 | AG27: 3.176470588 | AH27: 13.05882353 | AI27: 23.52941176 | AJ27: 0 | AK27: 0.04 | AM27: 3.749294118 | AN27: 1.694941176 | AO27: 2.365411765 | AP27: 3.425529412 | AQ27: 1.317764706 | AR27: 3.620235294 | AS27: 6.874705882 | AT27: 2.279058824 | AU27: 4.850941176 | AV27: 3.218235294 | AW27: 5.105294118 | AY27: 0.94 | AZ27: 1.08 | BA27: 1.03 | BB27: 0.95 | BC27: 0.96 | BD27: 1 | BE27: 1.01 | BF27: 1 | BG27: 1.04 | BH27: 0.97 | BI27: 0.96 | BK27: 11.41176471 | BL27: 3.176470588 | BM27: 2.117647059 | BN27: 5.411764706 | BP27: 120 | BQ27: 38.11764706 | BR27: 1.199773041 | BS27: 1.204073427 | BU27: 978.8235294 | BV27: 604.772437 | BW27: 76.90756303 | BX27: 604 | BY27: 21 | BZ27: 56 | CA27: 165 | CC27: 0.6 | CD27: 2.8 | CE27: 0.106 | CF27: 1.542808219 | CG27: 4.2 | CH27: 0.9 | CI27: 1.105 | CK27: 38 | CL27: 2.7 | CM27: 11.1 | CN27: 20 | CO27: 0 | CP27: 0.034 | CQ27: 73.38895371 | CR27: 71.96356528 | CS27: 2.536238177 | CT27: 1.317319308 | CU27: 1.753301679 | CV27: 3.054209998 | CW27: 2.34187644 | CX27: 0.9103780457 | CY27: 2.605250389 | CZ27: 4.99675629 | DA27: 1.640091984 | DB27: 3.630546629 | DC27: 2.246478151 | DD27: 5.865018437 | DE27: 3.526993598 | DF27: 0 | DG27: 0 | DH27: 0 | DI27: 0 | DJ27: 0 | DK27: 0 | DL27: 0 | DM27: 0 | DN27: 0 | DO27: 0 | DP27: 0 | DQ27: 0 | DR27: 0 | DS27: 0 | DT27: 0 | DU27: 0 | DV27: 0 | DW27: 1.1.1 | DX27: 16 | DY27: 16 | DZ27: 8 | EA27: 8 | EC27: 8 | ED27: 8 | EE27: 8 | EF27: 8 | EG27: 8 | ES27: 8 | ET27: 16 | FG27: 0.9 | FH27: 0.2 | FI27: 0.2 | FK27: 1 | FL27: 0.9 | FN27: 1.5 | FO27: 1.3 | GA27: 0.1 | GB27: 0.3 | GN27: 2019 | GO27: 2019 | GP27: 2019 | GQ27: 2019 | GS27: 2019 | GT27: 2019 | GU27: 2019 | GV27: 2019 | GW27: 2019 | HI27: 2019 | HJ27: 2019 | HK27: 2019 | HL27: 2018 | HM27: 2019 | HN27: 2019 | HP27: 2019 | HQ27: 2019 | HR27: 2019 | HS27: 2019 | HW27: Byg er frø fra dyrkede sorter af toradet og seksradet bygplanter (Hordeum vulgare), og dyrkes i stor udstrækning i Danmark. En undersøgelse foretaget fra 2003 til 2005 viste, at de forskellige sorter varierer med hensyn til antal af foderenheder pr. 100 kg. Indholdet af foderenheder i forskellige sorter af vårbyg varierede fra 102 til 109 FEsv pr. 100 kg. Desuden var der effekt af sort på EFOS, EFOSi, råfedt og råaske, men ingen statistisk sikker forskel i indhold af råprotein mellem sorterne. Der skelnes mellem varmebehandlet og ikke-varmebehandlet korn. Det skyldes, at der ved varmebehandling af korn (pelleteret foder) sker en nedbrydning af kornets naturlige indhold af fytase, og derfor skal der i korn, der indgår i pelleteret foder, regnes med en lavere fordøjelighed af fosfor end i ikke-varmebehandlet korn (hjemmeblandet foder). Der er endvidere angivet kemisk indhold for korn tilsat det kulhydratspaltende enzym ”xylanase”. Det skyldes, at tilsætning af xylanase øger EFOSi-værdien og dermed kornets energiværdi Byg kan bruges i henhold til følgende kilder: [2], [3], [4], [5], [6], [7], [8], [9], [10], [11], [12], [13], [14], [15]. [16] | HX27: Forsøg har vist, at stigende indhold af byg reducerer problemer med Salmonella og maveforandringer i den hvide del af maven sammenlignet med en hvedebaseret blanding [15]. | HY27: Byg giver generelt ikke anledning til problemer, og kan uden problemer transporteres som løsvare. Byg bør opbevares tørt og er lagerfast ved 86 procent tørstof. | IC27: 54.81300813 | ID27: 56.17886179 | IE27: 57.31707317 | IF27: 58 | IG27: Barley grain, dried, at farm/DK Economic S | IH27: 001-0009 | II27: Vinterbyg | IJ27: 0.3803571321 | IK27: 0.3803571321 | IL27: 0.3803571321 | IM27: 0.3803571321 | IN27: 0.4437 | IO27: 0.06334286789 | IP27: 1.427232385 | IQ27: 1.87 | IR27: 0.1309 | IS27: 0.3643571321 | IT27: 0.3643571321 | IU27: 7.486570033e-06 | IV27: 0.0009333726686 | IW27: 0.0006887451877 | IX27: 0.0009627573968 | IY27: 0.0006969498849 | IZ27: 0.007067659879 | JA27: 0.0001557660379 | JB27: 0.002461866327 | JC27: 0.06134914244 | JD27: 0.0017424239 | JE27: 0.002454703758 | JF27: 0.0002196354028 | JG27: 3.851291787 | JH27: 0.000196208296 | JI27: 0.0420668009 | JJ27: 0.0002729832306 | JK27: 0.016 | JM27: FEFAC | JO27: DCA rapport nr. 116, marts 2018. Tabel A1.1
A28: 50000 | B28: 500 | C28: 0 | D28: BYG, vår, 2020 | E28: 2020-10-08 | F28: 1.095818748 | G28: 1.091046295 | H28: 86.7 | I28: 81.3 | J28: 90 | K28: 1 | L28: 86.7 | M28: 8.8 | N28: 2.6 | O28: 1.8 | P28: 4.8 | R28: 76.07765357 | S28: 43 | T28: 49.09756098 | U28: 51.53658537 | V28: 53.73170732 | W28: 55.19512195 | Y28: 0.553633218 | Z28: 3.344867359 | AA28: 0.1384083045 | AB28: 1.887226697 | AC28: 5.051903114 | AD28: 1.107266436 | AE28: 1.1 | AF28: 41.48788927 | AG28: 3.644752018 | AH28: 13.05651672 | AI28: 30.73817762 | AJ28: 0 | AK28: 0.04 | AM28: 3.910807382 | AN28: 1.744152249 | AO28: 2.449953864 | AP28: 3.518904268 | AQ28: 1.364452134 | AR28: 3.637900807 | AS28: 6.906251442 | AT28: 2.315651672 | AU28: 4.707093426 | AV28: 3.192998847 | AW28: 5.18100346 | AY28: 0.94 | AZ28: 1.08 | BA28: 1.03 | BB28: 0.95 | BC28: 0.96 | BD28: 1 | BE28: 1.01 | BF28: 1 | BG28: 1.04 | BH28: 0.97 | BI28: 0.96 | BK28: 10.14994233 | BL28: 2.998846597 | BM28: 2.076124567 | BN28: 5.647058824 | BP28: 120 | BQ28: 36.70588235 | BR28: 1.263920124 | BS28: 1.258415565 | BU28: 979.2387543 | BV28: 652.0054375 | BW28: 75.54127533 | BX28: 604 | BY28: 21 | BZ28: 56 | CA28: 165 | CC28: 0.48 | CD28: 2.9 | CE28: 0.12 | CF28: 1.636225547 | CG28: 4.38 | CH28: 0.96 | CI28: 0.9537 | CK28: 35.97 | CL28: 3.16 | CM28: 11.32 | CN28: 26.65 | CO28: 0 | CP28: 0.03468 | CQ28: 66.94833514 | CR28: 61.09435095 | CS28: 2.245925444 | CT28: 1.150824776 | CU28: 1.541686914 | CV28: 2.69251169 | CW28: 2.042359137 | CX28: 0.8002590482 | CY28: 2.222551886 | CZ28: 4.261522788 | DA28: 1.41473236 | DB28: 2.990798904 | DC28: 1.892219664 | DD28: 4.883018568 | DE28: 3.038688419 | DF28: 0 | DG28: 0 | DH28: 0 | DI28: 0 | DJ28: 0 | DK28: 0 | DL28: 0 | DM28: 0 | DN28: 0 | DO28: 0 | DP28: 0 | DQ28: 0 | DR28: 0 | DS28: 0 | DT28: 0 | DU28: 0 | DV28: 0 | DW28: 1.1.1 | DX28: 32 | DY28: 32 | DZ28: 16 | EA28: 16 | EC28: 16 | ED28: 16 | EE28: 16 | EF28: 16 | EG28: 16 | ES28: 30 | ET28: 32 | EU28: 32 | EV28: 14 | EW28: 32 | EX28: 32 | EZ28: 30 | FA28: 32 | FB28: 31 | FC28: 32 | FF28: 1.1 | FG28: 0.3 | FH28: 0.2 | FI28: 0.2 | FK28: 1.2 | FL28: 1.2 | FN28: 1.9 | FO28: 1.5 | GA28: 0.1 | GB28: 0.2 | GC28: 0.1 | GD28: 0.2 | GE28: 0.4 | GF28: 0.1 | GH28: 9.1 | GI28: 0.4 | GJ28: 2.2 | GK28: 3.8 | GN28: 2020 | GO28: 2020 | GP28: 2020 | GQ28: 2020 | GS28: 2020 | GT28: 2020 | GU28: 2020 | GV28: 2020 | GW28: 2020 | HI28: 2020 | HJ28: 2020 | HK28: 2017 | HL28: 2018 | HM28: 2020 | HN28: 2020 | HP28: 2020 | HQ28: 2020 | HR28: 2020 | HS28: 2020 | HW28: Byg er frø fra dyrkede sorter af toradet og seksradet bygplanter (Hordeum vulgare), og dyrkes i stor udstrækning i Danmark. En undersøgelse foretaget fra 2003 til 2005 viste, at de forskellige sorter varierer med hensyn til antal af foderenheder pr. 100 kg. Indholdet af foderenheder i forskellige sorter af vårbyg varierede fra 102 til 109 FEsv pr. 100 kg. Desuden var der effekt af sort på EFOS, EFOSi, råfedt og råaske, men ingen statistisk sikker forskel i indhold af råprotein mellem sorterne. Der skelnes mellem varmebehandlet og ikke-varmebehandlet korn. Det skyldes, at der ved varmebehandling af korn (pelleteret foder) sker en nedbrydning af kornets naturlige indhold af fytase, og derfor skal der i korn, der indgår i pelleteret foder, regnes med en lavere fordøjelighed af fosfor end i ikke-varmebehandlet korn (hjemmeblandet foder). Der er endvidere angivet kemisk indhold for korn tilsat det kulhydratspaltende enzym ”xylanase”. Det skyldes, at tilsætning af xylanase øger EFOSi-værdien og dermed kornets energiværdi "d.gr.": Tabelværdien for natrium er tæt på detektionsgrænsen i det anvendte laboratorium. Det reele indhold kan være lavere. Byg kan bruges i henhold til følgende kilder: [2], [3], [4], [5], [6], [7], [8], [9], [10], [11], [12], [13], [14], [15]. [16] | HX28: Forsøg har vist, at stigende indhold af byg reducerer problemer med Salmonella og maveforandringer i den hvide del af maven sammenlignet med en hvedebaseret blanding [15]. | HY28: Byg giver generelt ikke anledning til problemer, og kan uden problemer transporteres som løsvare. Byg bør opbevares tørt og er lagerfast ved 86 procent tørstof. | IC28: 56.29268293 | ID28: 57.02439024 | IE28: 57.63414634 | IF28: 58 | IG28: Barley grain, dried, at farm/DK Economic S | IH28: 001-0126 | II28: Vårbyg 2019 | IJ28: 0.3803571321 | IK28: 0.3803571321 | IL28: 0.3803571321 | IM28: 0.3803571321 | IN28: 0.452574 | IO28: 0.07221686789 | IP28: 1.427232385 | IQ28: 1.9074 | IR28: 0.133518 | IS28: 0.3643571321 | IT28: 0.3643571321 | IU28: 7.486570033e-06 | IV28: 0.0009333726686 | IW28: 0.0006887451877 | IX28: 0.0009627573968 | IY28: 0.0006969498849 | IZ28: 0.007067659879 | JA28: 0.0001557660379 | JB28: 0.002461866327 | JC28: 0.06134914244 | JD28: 0.0017424239 | JE28: 0.002454703758 | JF28: 0.0002196354028 | JG28: 3.851291787 | JH28: 0.000196208296 | JI28: 0.0420668009 | JJ28: 0.0002729832306 | JK28: 0.016 | JM28: FEFAC | JO28: DCA rapport nr. 116, marts 2018. Tabel A1.1
A29: 50001 | B29: 500 | C29: 1 | D29: BYG, vår, 2020 + xylanase | E29: 2020-10-08 | F29: 1.10198164 | G29: 1.095377927 | H29: 86.7 | I29: 81.8 | J29: 90 | K29: 1 | L29: 86.7 | M29: 8.8 | N29: 2.6 | O29: 1.8 | P29: 4.8 | R29: 76.532475 | S29: 43 | T29: 49.09756098 | U29: 51.53658537 | V29: 53.73170732 | W29: 55.19512195 | Y29: 0.553633218 | Z29: 3.344867359 | AA29: 0.1384083045 | AB29: 1.887226697 | AC29: 5.051903114 | AD29: 1.107266436 | AE29: 1.1 | AF29: 41.48788927 | AG29: 3.644752018 | AH29: 13.05651672 | AI29: 30.73817762 | AJ29: 0 | AK29: 0.04 | AM29: 3.910807382 | AN29: 1.744152249 | AO29: 2.449953864 | AP29: 3.518904268 | AQ29: 1.364452134 | AR29: 3.637900807 | AS29: 6.906251442 | AT29: 2.315651672 | AU29: 4.707093426 | AV29: 3.192998847 | AW29: 5.18100346 | AY29: 0.94 | AZ29: 1.08 | BA29: 1.03 | BB29: 0.95 | BC29: 0.96 | BD29: 1 | BE29: 1.01 | BF29: 1 | BG29: 1.04 | BH29: 0.97 | BI29: 0.96 | BK29: 10.14994233 | BL29: 2.998846597 | BM29: 2.076124567 | BN29: 5.647058824 | BP29: 120 | BQ29: 36.70588235 | BR29: 1.271028419 | BS29: 1.263411681 | BU29: 979.2387543 | BV29: 659 | BW29: 68.5467128 | BX29: 604 | BY29: 21 | BZ29: 56 | CA29: 165 | CC29: 0.48 | CD29: 2.9 | CE29: 0.12 | CF29: 1.636225547 | CG29: 4.38 | CH29: 0.96 | CI29: 0.9537 | CK29: 35.97 | CL29: 3.16 | CM29: 11.32 | CN29: 26.65 | CO29: 0 | CP29: 0.03468 | CQ29: 67.348578 | CR29: 61.11588032 | CS29: 2.246716898 | CT29: 1.151230321 | CU29: 1.542230198 | CV29: 2.693460519 | CW29: 2.043078855 | CX29: 0.8005410558 | CY29: 2.223335104 | CZ29: 4.263024529 | DA29: 1.415230905 | DB29: 2.991852848 | DC29: 1.892886473 | DD29: 4.884739321 | DE29: 3.039759239 | DF29: 0 | DG29: 0 | DH29: 0 | DI29: 0 | DJ29: 0 | DK29: 0 | DL29: 0 | DM29: 0 | DN29: 0 | DO29: 0 | DP29: 0 | DQ29: 0 | DR29: 0 | DS29: 0 | DT29: 0 | DU29: 0 | DV29: 0 | DW29: 1.1.1 | DX29: 32 | DY29: 32 | DZ29: 16 | EA29: 16 | EC29: 16 | ED29: 16 | EE29: 16 | EF29: 16 | EG29: 16 | ES29: 30 | ET29: 32 | EU29: 32 | EV29: 14 | EW29: 32 | EX29: 32 | EZ29: 30 | FA29: 32 | FB29: 31 | FC29: 32 | FF29: 1.1 | FG29: 0.3 | FH29: 0.2 | FI29: 0.2 | FK29: 1.2 | FL29: 1.2 | FN29: 1.9 | FO29: 1.5 | GA29: 0.1 | GB29: 0.2 | GC29: 0.1 | GD29: 0.2 | GE29: 0.4 | GF29: 0.1 | GH29: 9.1 | GI29: 0.4 | GJ29: 2.2 | GK29: 3.8 | GN29: 2020 | GO29: 2020 | GP29: 2020 | GQ29: 2020 | GS29: 2020 | GT29: 2020 | GU29: 2020 | GV29: 2020 | GW29: 2020 | HI29: 2020 | HJ29: 2020 | HK29: 2017 | HL29: 2018 | HM29: 2020 | HN29: 2020 | HP29: 2020 | HQ29: 2020 | HR29: 2020 | HS29: 2020 | HW29: Byg er frø fra dyrkede sorter af toradet og seksradet bygplanter (Hordeum vulgare), og dyrkes i stor udstrækning i Danmark. En undersøgelse foretaget fra 2003 til 2005 viste, at de forskellige sorter varierer med hensyn til antal af foderenheder pr. 100 kg. Indholdet af foderenheder i forskellige sorter af vårbyg varierede fra 102 til 109 FEsv pr. 100 kg. Desuden var der effekt af sort på EFOS, EFOSi, råfedt og råaske, men ingen statistisk sikker forskel i indhold af råprotein mellem sorterne. Der skelnes mellem varmebehandlet og ikke-varmebehandlet korn. Det skyldes, at der ved varmebehandling af korn (pelleteret foder) sker en nedbrydning af kornets naturlige indhold af fytase, og derfor skal der i korn, der indgår i pelleteret foder, regnes med en lavere fordøjelighed af fosfor end i ikke-varmebehandlet korn (hjemmeblandet foder). Der er endvidere angivet kemisk indhold for korn tilsat det kulhydratspaltende enzym ”xylanase”. Det skyldes, at tilsætning af xylanase øger EFOSi-værdien og dermed kornets energiværdi "d.gr.": Tabelværdien for natrium er tæt på detektionsgrænsen i det anvendte laboratorium. Det reele indhold kan være lavere. Byg kan bruges i henhold til følgende kilder: [2], [3], [4], [5], [6], [7], [8], [9], [10], [11], [12], [13], [14], [15]. [16] | HX29: Forsøg har vist, at stigende indhold af byg reducerer problemer med Salmonella og maveforandringer i den hvide del af maven sammenlignet med en hvedebaseret blanding [15]. | HY29: Byg giver generelt ikke anledning til problemer, og kan uden problemer transporteres som løsvare. Byg bør opbevares tørt og er lagerfast ved 86 procent tørstof. | IC29: 56.29268293 | ID29: 57.02439024 | IE29: 57.63414634 | IF29: 58 | IG29: Barley grain, dried, at farm/DK Economic S | IH29: 001-0126 | II29: Vårbyg 2019 | IJ29: 0.3803571321 | IK29: 0.3803571321 | IL29: 0.3803571321 | IM29: 0.3803571321 | IN29: 0.452574 | IO29: 0.07221686789 | IP29: 1.427232385 | IQ29: 1.9074 | IR29: 0.133518 | IS29: 0.3643571321 | IT29: 0.3643571321 | IU29: 7.486570033e-06 | IV29: 0.0009333726686 | IW29: 0.0006887451877 | IX29: 0.0009627573968 | IY29: 0.0006969498849 | IZ29: 0.007067659879 | JA29: 0.0001557660379 | JB29: 0.002461866327 | JC29: 0.06134914244 | JD29: 0.0017424239 | JE29: 0.002454703758 | JF29: 0.0002196354028 | JG29: 3.851291787 | JH29: 0.000196208296 | JI29: 0.0420668009 | JJ29: 0.0002729832306 | JK29: 0.016 | JM29: FEFAC | JO29: DCA rapport nr. 116, marts 2018. Tabel A1.1
A30: 50010 | B30: 500 | C30: 10 | D30: BYG, vår, 2020, varmebehandlet | E30: 2020-10-08 | F30: 1.095818748 | G30: 1.091046295 | H30: 86.7 | I30: 81.3 | J30: 90 | K30: 1 | L30: 86.7 | M30: 8.8 | N30: 2.6 | O30: 1.8 | P30: 4.8 | R30: 76.07765357 | S30: 30 | T30: 41.38211382 | U30: 45.93495935 | V30: 50.03252033 | W30: 52.76422764 | Y30: 0.553633218 | Z30: 3.344867359 | AA30: 0.1384083045 | AB30: 1.887226697 | AC30: 5.051903114 | AD30: 1.107266436 | AE30: 1.1 | AF30: 41.48788927 | AG30: 3.644752018 | AH30: 13.05651672 | AI30: 30.73817762 | AJ30: 0 | AK30: 0.04 | AM30: 3.910807382 | AN30: 1.744152249 | AO30: 2.449953864 | AP30: 3.518904268 | AQ30: 1.364452134 | AR30: 3.637900807 | AS30: 6.906251442 | AT30: 2.315651672 | AU30: 4.707093426 | AV30: 3.192998847 | AW30: 5.18100346 | AY30: 0.94 | AZ30: 1.08 | BA30: 1.03 | BB30: 0.95 | BC30: 0.96 | BD30: 1 | BE30: 1.01 | BF30: 1 | BG30: 1.04 | BH30: 0.97 | BI30: 0.96 | BK30: 10.14994233 | BL30: 2.998846597 | BM30: 2.076124567 | BN30: 5.647058824 | BP30: 120 | BQ30: 36.70588235 | BR30: 1.263920124 | BS30: 1.258415565 | BU30: 979.2387543 | BV30: 652.0054375 | BW30: 75.54127533 | BX30: 604 | BY30: 21 | BZ30: 56 | CA30: 165 | CC30: 0.48 | CD30: 2.9 | CE30: 0.12 | CF30: 1.636225547 | CG30: 4.38 | CH30: 0.96 | CI30: 0.9537 | CK30: 35.97 | CL30: 3.16 | CM30: 11.32 | CN30: 26.65 | CO30: 0 | CP30: 0.03468 | CQ30: 66.94833514 | CR30: 61.09435095 | CS30: 2.245925444 | CT30: 1.150824776 | CU30: 1.541686914 | CV30: 2.69251169 | CW30: 2.042359137 | CX30: 0.8002590482 | CY30: 2.222551886 | CZ30: 4.261522788 | DA30: 1.41473236 | DB30: 2.990798904 | DC30: 1.892219664 | DD30: 4.883018568 | DE30: 3.038688419 | DF30: 0 | DG30: 0 | DH30: 0 | DI30: 0 | DJ30: 0 | DK30: 0 | DL30: 0 | DM30: 0 | DN30: 0 | DO30: 0 | DP30: 0 | DQ30: 0 | DR30: 0 | DS30: 0 | DT30: 0 | DU30: 0 | DV30: 0 | DW30: 1.1.1 | DX30: 32 | DY30: 32 | DZ30: 16 | EA30: 16 | EC30: 16 | ED30: 16 | EE30: 16 | EF30: 16 | EG30: 16 | ES30: 30 | ET30: 32 | EU30: 32 | EV30: 14 | EW30: 32 | EX30: 32 | EZ30: 30 | FA30: 32 | FB30: 31 | FC30: 32 | FF30: 1.1 | FG30: 0.3 | FH30: 0.2 | FI30: 0.2 | FK30: 1.2 | FL30: 1.2 | FN30: 1.9 | FO30: 1.5 | GA30: 0.1 | GB30: 0.2 | GC30: 0.1 | GD30: 0.2 | GE30: 0.4 | GF30: 0.1 | GH30: 9.1 | GI30: 0.4 | GJ30: 2.2 | GK30: 3.8 | GN30: 2020 | GO30: 2020 | GP30: 2020 | GQ30: 2020 | GS30: 2020 | GT30: 2020 | GU30: 2020 | GV30: 2020 | GW30: 2020 | HI30: 2020 | HJ30: 2020 | HK30: 2017 | HL30: 2018 | HM30: 2020 | HN30: 2020 | HP30: 2020 | HQ30: 2020 | HR30: 2020 | HS30: 2020 | HW30: Byg er frø fra dyrkede sorter af toradet og seksradet bygplanter (Hordeum vulgare), og dyrkes i stor udstrækning i Danmark. En undersøgelse foretaget fra 2003 til 2005 viste, at de forskellige sorter varierer med hensyn til antal af foderenheder pr. 100 kg. Indholdet af foderenheder i forskellige sorter af vårbyg varierede fra 102 til 109 FEsv pr. 100 kg. Desuden var der effekt af sort på EFOS, EFOSi, råfedt og råaske, men ingen statistisk sikker forskel i indhold af råprotein mellem sorterne. Der skelnes mellem varmebehandlet og ikke-varmebehandlet korn. Det skyldes, at der ved varmebehandling af korn (pelleteret foder) sker en nedbrydning af kornets naturlige indhold af fytase, og derfor skal der i korn, der indgår i pelleteret foder, regnes med en lavere fordøjelighed af fosfor end i ikke-varmebehandlet korn (hjemmeblandet foder). Der er endvidere angivet kemisk indhold for korn tilsat det kulhydratspaltende enzym ”xylanase”. Det skyldes, at tilsætning af xylanase øger EFOSi-værdien og dermed kornets energiværdi "d.gr.": Tabelværdien for natrium er tæt på detektionsgrænsen i det anvendte laboratorium. Det reele indhold kan være lavere. Byg kan bruges i henhold til følgende kilder: [2], [3], [4], [5], [6], [7], [8], [9], [10], [11], [12], [13], [14], [15]. [16] | HX30: Forsøg har vist, at stigende indhold af byg reducerer problemer med Salmonella og maveforandringer i den hvide del af maven sammenlignet med en hvedebaseret blanding [15]. | HY30: Byg giver generelt ikke anledning til problemer, og kan uden problemer transporteres som løsvare. Byg bør opbevares tørt og er lagerfast ved 86 procent tørstof. | IC30: 54.81300813 | ID30: 56.17886179 | IE30: 57.31707317 | IF30: 58 | IG30: Barley grain, dried, at farm/DK Economic S | IH30: 001-0126 | II30: Vårbyg 2019 | IJ30: 0.3803571321 | IK30: 0.3803571321 | IL30: 0.3803571321 | IM30: 0.3803571321 | IN30: 0.452574 | IO30: 0.07221686789 | IP30: 1.427232385 | IQ30: 1.9074 | IR30: 0.133518 | IS30: 0.3643571321 | IT30: 0.3643571321 | IU30: 7.486570033e-06 | IV30: 0.0009333726686 | IW30: 0.0006887451877 | IX30: 0.0009627573968 | IY30: 0.0006969498849 | IZ30: 0.007067659879 | JA30: 0.0001557660379 | JB30: 0.002461866327 | JC30: 0.06134914244 | JD30: 0.0017424239 | JE30: 0.002454703758 | JF30: 0.0002196354028 | JG30: 3.851291787 | JH30: 0.000196208296 | JI30: 0.0420668009 | JJ30: 0.0002729832306 | JK30: 0.016 | JM30: FEFAC | JO30: DCA rapport nr. 116, marts 2018. Tabel A1.1
A31: 50011 | B31: 500 | C31: 11 | D31: BYG, vår, 2020, varmebehandlet + xylanase | E31: 2020-10-08 | F31: 1.10198164 | G31: 1.095377927 | H31: 86.7 | I31: 81.8 | J31: 90 | K31: 1 | L31: 86.7 | M31: 8.8 | N31: 2.6 | O31: 1.8 | P31: 4.8 | R31: 76.532475 | S31: 30 | T31: 41.38211382 | U31: 45.93495935 | V31: 50.03252033 | W31: 52.76422764 | Y31: 0.553633218 | Z31: 3.344867359 | AA31: 0.1384083045 | AB31: 1.887226697 | AC31: 5.051903114 | AD31: 1.107266436 | AE31: 1.1 | AF31: 41.48788927 | AG31: 3.644752018 | AH31: 13.05651672 | AI31: 30.73817762 | AJ31: 0 | AK31: 0.04 | AM31: 3.910807382 | AN31: 1.744152249 | AO31: 2.449953864 | AP31: 3.518904268 | AQ31: 1.364452134 | AR31: 3.637900807 | AS31: 6.906251442 | AT31: 2.315651672 | AU31: 4.707093426 | AV31: 3.192998847 | AW31: 5.18100346 | AY31: 0.94 | AZ31: 1.08 | BA31: 1.03 | BB31: 0.95 | BC31: 0.96 | BD31: 1 | BE31: 1.01 | BF31: 1 | BG31: 1.04 | BH31: 0.97 | BI31: 0.96 | BK31: 10.14994233 | BL31: 2.998846597 | BM31: 2.076124567 | BN31: 5.647058824 | BP31: 120 | BQ31: 36.70588235 | BR31: 1.271028419 | BS31: 1.263411681 | BU31: 979.2387543 | BV31: 659 | BW31: 68.5467128 | BX31: 604 | BY31: 21 | BZ31: 56 | CA31: 165 | CC31: 0.48 | CD31: 2.9 | CE31: 0.12 | CF31: 1.636225547 | CG31: 4.38 | CH31: 0.96 | CI31: 0.9537 | CK31: 35.97 | CL31: 3.16 | CM31: 11.32 | CN31: 26.65 | CO31: 0 | CP31: 0.03468 | CQ31: 67.348578 | CR31: 61.11588032 | CS31: 2.246716898 | CT31: 1.151230321 | CU31: 1.542230198 | CV31: 2.693460519 | CW31: 2.043078855 | CX31: 0.8005410558 | CY31: 2.223335104 | CZ31: 4.263024529 | DA31: 1.415230905 | DB31: 2.991852848 | DC31: 1.892886473 | DD31: 4.884739321 | DE31: 3.039759239 | DF31: 0 | DG31: 0 | DH31: 0 | DI31: 0 | DJ31: 0 | DK31: 0 | DL31: 0 | DM31: 0 | DN31: 0 | DO31: 0 | DP31: 0 | DQ31: 0 | DR31: 0 | DS31: 0 | DT31: 0 | DU31: 0 | DV31: 0 | DW31: 1.1.1 | DX31: 32 | DY31: 32 | DZ31: 16 | EA31: 16 | EC31: 16 | ED31: 16 | EE31: 16 | EF31: 16 | EG31: 16 | ES31: 30 | ET31: 32 | EU31: 32 | EV31: 14 | EW31: 32 | EX31: 32 | EZ31: 30 | FA31: 32 | FB31: 31 | FC31: 32 | FF31: 1.1 | FG31: 0.3 | FH31: 0.2 | FI31: 0.2 | FK31: 1.2 | FL31: 1.2 | FN31: 1.9 | FO31: 1.5 | GA31: 0.1 | GB31: 0.2 | GC31: 0.1 | GD31: 0.2 | GE31: 0.4 | GF31: 0.1 | GH31: 9.1 | GI31: 0.4 | GJ31: 2.2 | GK31: 3.8 | GN31: 2020 | GO31: 2020 | GP31: 2020 | GQ31: 2020 | GS31: 2020 | GT31: 2020 | GU31: 2020 | GV31: 2020 | GW31: 2020 | HI31: 2020 | HJ31: 2020 | HK31: 2017 | HL31: 2018 | HM31: 2020 | HN31: 2020 | HP31: 2020 | HQ31: 2020 | HR31: 2020 | HS31: 2020 | HW31: Byg er frø fra dyrkede sorter af toradet og seksradet bygplanter (Hordeum vulgare), og dyrkes i stor udstrækning i Danmark. En undersøgelse foretaget fra 2003 til 2005 viste, at de forskellige sorter varierer med hensyn til antal af foderenheder pr. 100 kg. Indholdet af foderenheder i forskellige sorter af vårbyg varierede fra 102 til 109 FEsv pr. 100 kg. Desuden var der effekt af sort på EFOS, EFOSi, råfedt og råaske, men ingen statistisk sikker forskel i indhold af råprotein mellem sorterne. Der skelnes mellem varmebehandlet og ikke-varmebehandlet korn. Det skyldes, at der ved varmebehandling af korn (pelleteret foder) sker en nedbrydning af kornets naturlige indhold af fytase, og derfor skal der i korn, der indgår i pelleteret foder, regnes med en lavere fordøjelighed af fosfor end i ikke-varmebehandlet korn (hjemmeblandet foder). Der er endvidere angivet kemisk indhold for korn tilsat det kulhydratspaltende enzym ”xylanase”. Det skyldes, at tilsætning af xylanase øger EFOSi-værdien og dermed kornets energiværdi "d.gr.": Tabelværdien for natrium er tæt på detektionsgrænsen i det anvendte laboratorium. Det reele indhold kan være lavere. Byg kan bruges i henhold til følgende kilder: [2], [3], [4], [5], [6], [7], [8], [9], [10], [11], [12], [13], [14], [15]. [16] | HX31: Forsøg har vist, at stigende indhold af byg reducerer problemer med Salmonella og maveforandringer i den hvide del af maven sammenlignet med en hvedebaseret blanding [15]. | HY31: Byg giver generelt ikke anledning til problemer, og kan uden problemer transporteres som løsvare. Byg bør opbevares tørt og er lagerfast ved 86 procent tørstof. | IC31: 54.81300813 | ID31: 56.17886179 | IE31: 57.31707317 | IF31: 58 | IG31: Barley grain, dried, at farm/DK Economic S | IH31: 001-0126 | II31: Vårbyg 2019 | IJ31: 0.3803571321 | IK31: 0.3803571321 | IL31: 0.3803571321 | IM31: 0.3803571321 | IN31: 0.452574 | IO31: 0.07221686789 | IP31: 1.427232385 | IQ31: 1.9074 | IR31: 0.133518 | IS31: 0.3643571321 | IT31: 0.3643571321 | IU31: 7.486570033e-06 | IV31: 0.0009333726686 | IW31: 0.0006887451877 | IX31: 0.0009627573968 | IY31: 0.0006969498849 | IZ31: 0.007067659879 | JA31: 0.0001557660379 | JB31: 0.002461866327 | JC31: 0.06134914244 | JD31: 0.0017424239 | JE31: 0.002454703758 | JF31: 0.0002196354028 | JG31: 3.851291787 | JH31: 0.000196208296 | JI31: 0.0420668009 | JJ31: 0.0002729832306 | JK31: 0.016 | JM31: FEFAC | JO31: DCA rapport nr. 116, marts 2018. Tabel A1.1
A32: 50050 | B32: 500 | C32: 50 | D32: BYG, vår, 2020, økologisk | E32: 2020-10-08 | F32: 1.066132966 | G32: 1.064793078 | H32: 86.8 | I32: 80.4 | J32: 90 | K32: 1 | L32: 85.4 | M32: 7.9 | N32: 2.5 | O32: 2 | P32: 4.8 | R32: 73.78493382 | S32: 43 | T32: 49.09756098 | U32: 51.53658537 | V32: 53.73170732 | W32: 55.19512195 | Y32: 0.4683840749 | Z32: 3.395784543 | AA32: 0.1170960187 | AB32: 1.887226697 | AC32: 5.339578454 | AD32: 1.053864169 | AE32: 1.1 | AF32: 48.20843091 | AG32: 3.37236534 | AH32: 10.74941452 | AI32: 29.19203747 | AJ32: 0 | AK32: 0.04 | AM32: 4.025925059 | AN32: 1.779227166 | AO32: 2.510210773 | AP32: 3.585456674 | AQ32: 1.397728337 | AR32: 3.650491803 | AS32: 6.928735363 | AT32: 2.341733021 | AU32: 4.604566745 | AV32: 3.17501171 | AW32: 5.234964871 | AY32: 0.94 | AZ32: 1.08 | BA32: 1.03 | BB32: 0.95 | BC32: 0.96 | BD32: 1 | BE32: 1.01 | BF32: 1 | BG32: 1.04 | BH32: 0.97 | BI32: 0.96 | BK32: 9.25058548 | BL32: 2.927400468 | BM32: 2.341920375 | BN32: 5.647058824 | BP32: 120 | BQ32: 36.70588235 | BR32: 1.248399257 | BS32: 1.246830302 | BU32: 976.5807963 | BV32: 645.8086316 | BW32: 89.28738709 | BX32: 604 | BY32: 21 | BZ32: 56 | CA32: 165 | CC32: 0.4 | CD32: 2.9 | CE32: 0.1 | CF32: 1.6116916 | CG32: 4.56 | CH32: 0.9 | CI32: 0.9394 | CK32: 41.17 | CL32: 2.88 | CM32: 9.18 | CN32: 24.93 | CO32: 0 | CP32: 0.03416 | CQ32: 58.29009771 | CR32: 54.67432262 | CS32: 2.06907842 | CT32: 1.050602833 | CU32: 1.413613958 | CV32: 2.464216792 | CW32: 1.862307942 | CX32: 0.7336305604 | CY32: 1.995881666 | CZ32: 3.826121517 | DA32: 1.280326667 | DB32: 2.618216304 | DC32: 1.683838661 | DD32: 4.302054965 | DE32: 2.747694319 | DF32: 0 | DG32: 0 | DH32: 0 | DI32: 0 | DJ32: 0 | DK32: 0 | DL32: 0 | DM32: 0 | DN32: 0 | DO32: 0 | DP32: 0 | DQ32: 0 | DR32: 0 | DS32: 0 | DT32: 0 | DU32: 0 | DV32: 0 | DW32: 1.1.1 | DX32: 6 | DY32: 6 | DZ32: 3 | EA32: 3 | EC32: 3 | ED32: 3 | EE32: 3 | EF32: 3 | EG32: 3 | ES32: 6 | ET32: 6 | EU32: 6 | EW32: 6 | EX32: 6 | EZ32: 6 | FA32: 6 | FB32: 6 | FC32: 6 | FF32: 1.1 | FG32: 0.3 | FH32: 0.2 | FI32: 0.2 | FK32: 1.2 | FL32: 1.2 | FN32: 1.9 | FO32: 1.5 | GA32: 0.1 | GB32: 0.2 | GC32: 0.1 | GD32: 0.2 | GE32: 0.4 | GF32: 0.1 | GH32: 9.1 | GI32: 0.4 | GJ32: 2.2 | GK32: 3.8 | GN32: 2020 | GO32: 2020 | GP32: 2020 | GQ32: 2020 | GS32: 2020 | GT32: 2020 | GU32: 2020 | GV32: 2020 | GW32: 2020 | HI32: 2020 | HJ32: 2020 | HK32: 2017 | HM32: 2020 | HN32: 2020 | HP32: 2020 | HQ32: 2020 | HR32: 2020 | HS32: 2020 | HW32: Byg er frø fra dyrkede sorter af toradet og seksradet bygplanter (Hordeum vulgare), og dyrkes i stor udstrækning i Danmark. En undersøgelse foretaget fra 2003 til 2005 viste, at de forskellige sorter varierer med hensyn til antal af foderenheder pr. 100 kg. Indholdet af foderenheder i forskellige sorter af vårbyg varierede fra 102 til 109 FEsv pr. 100 kg. Desuden var der effekt af sort på EFOS, EFOSi, råfedt og råaske, men ingen statistisk sikker forskel i indhold af råprotein mellem sorterne. Der skelnes mellem varmebehandlet og ikke-varmebehandlet korn. Det skyldes, at der ved varmebehandling af korn (pelleteret foder) sker en nedbrydning af kornets naturlige indhold af fytase, og derfor skal der i korn, der indgår i pelleteret foder, regnes med en lavere fordøjelighed af fosfor end i ikke-varmebehandlet korn (hjemmeblandet foder). Der er endvidere angivet kemisk indhold for korn tilsat det kulhydratspaltende enzym ”xylanase”. Det skyldes, at tilsætning af xylanase øger EFOSi-værdien og dermed kornets energiværdi "d.gr.": Tabelværdien for natrium er tæt på detektionsgrænsen i det anvendte laboratorium. Det reele indhold kan være lavere. Byg kan bruges i henhold til følgende kilder: [2], [3], [4], [5], [6], [7], [8], [9], [10], [11], [12], [13], [14], [15]. [16] | HX32: Forsøg har vist, at stigende indhold af byg reducerer problemer med Salmonella og maveforandringer i den hvide del af maven sammenlignet med en hvedebaseret blanding [15]. | HY32: Byg giver generelt ikke anledning til problemer, og kan uden problemer transporteres som løsvare. Byg bør opbevares tørt og er lagerfast ved 86 procent tørstof. | IC32: 56.29268293 | ID32: 57.02439024 | IE32: 57.63414634 | IF32: 58 | IG32: Barley grain, dried, at farm/DK Economic S | IJ32: 0.3803571321 | IK32: 0.3803571321 | IL32: 0.3803571321 | IM32: 0.3803571321 | IP32: 1.427232385 | IS32: 0.3643571321 | IT32: 0.3643571321 | IU32: 7.486570033e-06 | IV32: 0.0009333726686 | IW32: 0.0006887451877 | IX32: 0.0009627573968 | IY32: 0.0006969498849 | IZ32: 0.007067659879 | JA32: 0.0001557660379 | JB32: 0.002461866327 | JC32: 0.06134914244 | JD32: 0.0017424239 | JE32: 0.002454703758 | JF32: 0.0002196354028 | JG32: 3.851291787 | JH32: 0.000196208296 | JI32: 0.0420668009 | JJ32: 0.0002729832306 | JK32: 0.016 | JM32: FEFAC | JO32: DCA rapport nr. 116, marts 2018. Tabel A1.1
A33: 50060 | B33: 500 | C33: 60 | D33: BYG, vår, 2020, varmebehandlet, økologisk | E33: 2020-10-08 | F33: 1.066132966 | G33: 1.064793078 | H33: 86.8 | I33: 80.4 | J33: 90 | K33: 1 | L33: 85.4 | M33: 7.9 | N33: 2.5 | O33: 2 | P33: 4.8 | R33: 73.78493382 | S33: 30 | T33: 41.38211382 | U33: 45.93495935 | V33: 50.03252033 | W33: 52.76422764 | Y33: 0.4683840749 | Z33: 3.395784543 | AA33: 0.1170960187 | AB33: 1.887226697 | AC33: 5.339578454 | AD33: 1.053864169 | AE33: 1.1 | AF33: 48.20843091 | AG33: 3.37236534 | AH33: 10.74941452 | AI33: 29.19203747 | AJ33: 0 | AK33: 0.04 | AM33: 4.025925059 | AN33: 1.779227166 | AO33: 2.510210773 | AP33: 3.585456674 | AQ33: 1.397728337 | AR33: 3.650491803 | AS33: 6.928735363 | AT33: 2.341733021 | AU33: 4.604566745 | AV33: 3.17501171 | AW33: 5.234964871 | AY33: 0.94 | AZ33: 1.08 | BA33: 1.03 | BB33: 0.95 | BC33: 0.96 | BD33: 1 | BE33: 1.01 | BF33: 1 | BG33: 1.04 | BH33: 0.97 | BI33: 0.96 | BK33: 9.25058548 | BL33: 2.927400468 | BM33: 2.341920375 | BN33: 5.647058824 | BP33: 120 | BQ33: 36.70588235 | BR33: 1.248399257 | BS33: 1.246830302 | BU33: 976.5807963 | BV33: 645.8086316 | BW33: 89.28738709 | BX33: 604 | BY33: 21 | BZ33: 56 | CA33: 165 | CC33: 0.4 | CD33: 2.9 | CE33: 0.1 | CF33: 1.6116916 | CG33: 4.56 | CH33: 0.9 | CI33: 0.9394 | CK33: 41.17 | CL33: 2.88 | CM33: 9.18 | CN33: 24.93 | CO33: 0 | CP33: 0.03416 | CQ33: 58.29009771 | CR33: 54.67432262 | CS33: 2.06907842 | CT33: 1.050602833 | CU33: 1.413613958 | CV33: 2.464216792 | CW33: 1.862307942 | CX33: 0.7336305604 | CY33: 1.995881666 | CZ33: 3.826121517 | DA33: 1.280326667 | DB33: 2.618216304 | DC33: 1.683838661 | DD33: 4.302054965 | DE33: 2.747694319 | DF33: 0 | DG33: 0 | DH33: 0 | DI33: 0 | DJ33: 0 | DK33: 0 | DL33: 0 | DM33: 0 | DN33: 0 | DO33: 0 | DP33: 0 | DQ33: 0 | DR33: 0 | DS33: 0 | DT33: 0 | DU33: 0 | DV33: 0 | DW33: 1.1.1 | DX33: 6 | DY33: 6 | DZ33: 3 | EA33: 3 | EC33: 3 | ED33: 3 | EE33: 3 | EF33: 3 | EG33: 3 | ES33: 6 | ET33: 6 | EU33: 6 | EW33: 6 | EX33: 6 | EZ33: 6 | FA33: 6 | FB33: 6 | FC33: 6 | FF33: 1.1 | FG33: 0.3 | FH33: 0.2 | FI33: 0.2 | FK33: 1.2 | FL33: 1.2 | FN33: 1.9 | FO33: 1.5 | GA33: 0.1 | GB33: 0.2 | GC33: 0.1 | GD33: 0.2 | GE33: 0.4 | GF33: 0.1 | GH33: 9.1 | GI33: 0.4 | GJ33: 2.2 | GK33: 3.8 | GN33: 2020 | GO33: 2020 | GP33: 2020 | GQ33: 2020 | GS33: 2020 | GT33: 2020 | GU33: 2020 | GV33: 2020 | GW33: 2020 | HI33: 2020 | HJ33: 2020 | HK33: 2017 | HM33: 2020 | HN33: 2020 | HP33: 2020 | HQ33: 2020 | HR33: 2020 | HS33: 2020 | HW33: Byg er frø fra dyrkede sorter af toradet og seksradet bygplanter (Hordeum vulgare), og dyrkes i stor udstrækning i Danmark. En undersøgelse foretaget fra 2003 til 2005 viste, at de forskellige sorter varierer med hensyn til antal af foderenheder pr. 100 kg. Indholdet af foderenheder i forskellige sorter af vårbyg varierede fra 102 til 109 FEsv pr. 100 kg. Desuden var der effekt af sort på EFOS, EFOSi, råfedt og råaske, men ingen statistisk sikker forskel i indhold af råprotein mellem sorterne. Der skelnes mellem varmebehandlet og ikke-varmebehandlet korn. Det skyldes, at der ved varmebehandling af korn (pelleteret foder) sker en nedbrydning af kornets naturlige indhold af fytase, og derfor skal der i korn, der indgår i pelleteret foder, regnes med en lavere fordøjelighed af fosfor end i ikke-varmebehandlet korn (hjemmeblandet foder). Der er endvidere angivet kemisk indhold for korn tilsat det kulhydratspaltende enzym ”xylanase”. Det skyldes, at tilsætning af xylanase øger EFOSi-værdien og dermed kornets energiværdi "d.gr.": Tabelværdien for natrium er tæt på detektionsgrænsen i det anvendte laboratorium. Det reele indhold kan være lavere. Byg kan bruges i henhold til følgende kilder: [2], [3], [4], [5], [6], [7], [8], [9], [10], [11], [12], [13], [14], [15]. [16] | HX33: Forsøg har vist, at stigende indhold af byg reducerer problemer med Salmonella og maveforandringer i den hvide del af maven sammenlignet med en hvedebaseret blanding [15]. | HY33: Byg giver generelt ikke anledning til problemer, og kan uden problemer transporteres som løsvare. Byg bør opbevares tørt og er lagerfast ved 86 procent tørstof. | IC33: 54.81300813 | ID33: 56.17886179 | IE33: 57.31707317 | IF33: 58 | IG33: Barley grain, dried, at farm/DK Economic S | IJ33: 0.3803571321 | IK33: 0.3803571321 | IL33: 0.3803571321 | IM33: 0.3803571321 | IP33: 1.427232385 | IS33: 0.3643571321 | IT33: 0.3643571321 | IU33: 7.486570033e-06 | IV33: 0.0009333726686 | IW33: 0.0006887451877 | IX33: 0.0009627573968 | IY33: 0.0006969498849 | IZ33: 0.007067659879 | JA33: 0.0001557660379 | JB33: 0.002461866327 | JC33: 0.06134914244 | JD33: 0.0017424239 | JE33: 0.002454703758 | JF33: 0.0002196354028 | JG33: 3.851291787 | JH33: 0.000196208296 | JI33: 0.0420668009 | JJ33: 0.0002729832306 | JK33: 0.016 | JM33: FEFAC | JO33: DCA rapport nr. 116, marts 2018. Tabel A1.1
A34: 50200 | B34: 502 | C34: 0 | D34: BYG, vår, gns. 2018-2020 | E34: 2020-10-08 | F34: 1.067403794 | G34: 1.063963429 | H34: 86.5 | I34: 80.9 | J34: 90 | K34: 1 | L34: 85 | M34: 9.5 | N34: 2.6 | O34: 1.8 | P34: 4.8 | R34: 77.07094737 | S34: 43 | T34: 49.09756098 | U34: 51.53658537 | V34: 53.73170732 | W34: 55.19512195 | Y34: 0.5529411765 | Z34: 3.294117647 | AA34: 0.1294117647 | AB34: 1.882352941 | AC34: 4.870588235 | AD34: 1.082352941 | AE34: 1.1 | AF34: 43.68235294 | AG34: 3.423529412 | AH34: 12.81176471 | AI34: 30.42352941 | AJ34: 0 | AK34: 0.04 | AM34: 3.779411765 | AN34: 1.704117647 | AO34: 2.381176471 | AP34: 3.442941176 | AQ34: 1.326470588 | AR34: 3.623529412 | AS34: 6.880588235 | AT34: 2.285882353 | AU34: 4.824117647 | AV34: 3.213529412 | AW34: 5.119411765 | AY34: 0.9397948773 | AZ34: 1.079840843 | BA34: 1.029813327 | BB34: 0.9498685296 | BC34: 0.9598275228 | BD34: 0.9999751472 | BE34: 1.009976395 | BF34: 0.9999183541 | BG34: 1.040157848 | BH34: 0.9700388111 | BI34: 0.9599275948 | BK34: 11.17647059 | BL34: 3.058823529 | BM34: 2.117647059 | BN34: 5.647058824 | BP34: 120 | BQ34: 36.70588235 | BR34: 1.255769169 | BS34: 1.251721681 | BU34: 978.8235294 | BV34: 637 | BW34: 78.30588235 | BX34: 604 | BY34: 21 | BZ34: 56 | CA34: 165 | CC34: 0.47 | CD34: 2.8 | CE34: 0.11 | CF34: 1.6 | CG34: 4.14 | CH34: 0.92 | CI34: 0.935 | CK34: 37.13 | CL34: 2.91 | CM34: 10.89 | CN34: 25.86 | CO34: 0 | CP34: 0.034 | CQ34: 73.2174 | CR34: 68.5939102 | CS34: 2.436367764 | CT34: 1.262248561 | CU34: 1.68203741 | CV34: 2.944285971 | CW34: 2.243255093 | CX34: 0.8733259892 | CY34: 2.485458739 | CZ34: 4.766749752 | DA34: 1.56784807 | DB34: 3.44193529 | DC34: 2.138242465 | DD34: 5.580177756 | DE34: 3.370886262 | DF34: 0 | DG34: 0 | DH34: 0 | DI34: 0 | DJ34: 0 | DK34: 0 | DL34: 0 | DM34: 0 | DN34: 0 | DO34: 0 | DP34: 0 | DQ34: 0 | DR34: 0 | DS34: 0 | DT34: 0 | DU34: 0 | DV34: 0 | DW34: 1.1.1 | DX34: 115 | DY34: 115 | DZ34: 45 | EA34: 45 | EC34: 45 | ED34: 45 | EE34: 45 | EF34: 45 | EG34: 45 | ES34: 45 | ET34: 115 | FG34: 0.66 | FH34: 0.16 | FI34: 0.19 | FK34: 1.57 | FL34: 1.47 | FN34: 2.6 | FO34: 2.22 | GA34: 0.11 | GB34: 0.26 | GN34: '18-'20 | GO34: '18-'20 | GP34: '18-'20 | GQ34: '18-'20 | GS34: '18-'20 | GT34: '18-'20 | GU34: '18-'20 | GV34: '18-'20 | GW34: '18-'20 | HI34: '18-'20 | HJ34: '18-'20 | HK34: '18-'20 | HL34: 2018 | HM34: '18-'20 | HN34: '18-'20 | HP34: '18-'20 | HQ34: '18-'20 | HR34: '18-'20 | HS34: '18-'20 | HW34: Byg er frø fra dyrkede sorter af toradet og seksradet bygplanter (Hordeum vulgare), og dyrkes i stor udstrækning i Danmark. En undersøgelse foretaget fra 2003 til 2005 viste, at de forskellige sorter varierer med hensyn til antal af foderenheder pr. 100 kg. Indholdet af foderenheder i forskellige sorter af vårbyg varierede fra 102 til 109 FEsv pr. 100 kg. Desuden var der effekt af sort på EFOS, EFOSi, råfedt og råaske, men ingen statistisk sikker forskel i indhold af råprotein mellem sorterne. Der skelnes mellem varmebehandlet og ikke-varmebehandlet korn. Det skyldes, at der ved varmebehandling af korn (pelleteret foder) sker en nedbrydning af kornets naturlige indhold af fytase, og derfor skal der i korn, der indgår i pelleteret foder, regnes med en lavere fordøjelighed af fosfor end i ikke-varmebehandlet korn (hjemmeblandet foder). Der er endvidere angivet kemisk indhold for korn tilsat det kulhydratspaltende enzym ”xylanase”. Det skyldes, at tilsætning af xylanase øger EFOSi-værdien og dermed kornets energiværdi Byg kan bruges i henhold til følgende kilder: [2], [3], [4], [5], [6], [7], [8], [9], [10], [11], [12], [13], [14], [15]. [16] | HX34: Forsøg har vist, at stigende indhold af byg reducerer problemer med Salmonella og maveforandringer i den hvide del af maven sammenlignet med en hvedebaseret blanding [15]. | HY34: Byg giver generelt ikke anledning til problemer, og kan uden problemer transporteres som løsvare. Byg bør opbevares tørt og er lagerfast ved 86 procent tørstof. | IC34: 56.29268293 | ID34: 57.02439024 | IE34: 57.63414634 | IF34: 58 | IG34: Barley grain, dried, at farm/DK Economic S | IH34: 001-0008 | II34: Vårbyg | IJ34: 0.3803571321 | IK34: 0.3803571321 | IL34: 0.3803571321 | IM34: 0.3803571321 | IN34: 0.4437 | IO34: 0.06334286789 | IP34: 1.427232385 | IQ34: 1.87 | IR34: 0.1309 | IS34: 0.3643571321 | IT34: 0.3643571321 | IU34: 7.486570033e-06 | IV34: 0.0009333726686 | IW34: 0.0006887451877 | IX34: 0.0009627573968 | IY34: 0.0006969498849 | IZ34: 0.007067659879 | JA34: 0.0001557660379 | JB34: 0.002461866327 | JC34: 0.06134914244 | JD34: 0.0017424239 | JE34: 0.002454703758 | JF34: 0.0002196354028 | JG34: 3.851291787 | JH34: 0.000196208296 | JI34: 0.0420668009 | JJ34: 0.0002729832306 | JK34: 0.016 | JM34: FEFAC | JO34: DCA rapport nr. 116, marts 2018. Tabel A1.1
A35: 50201 | B35: 502 | C35: 1 | D35: BYG, vår, gns. 2018-2020 + xylanase | E35: 2020-10-08 | F35: 1.073443283 | G35: 1.068208327 | H35: 86.5 | I35: 81.4 | J35: 90 | K35: 1 | L35: 85 | M35: 9.5 | N35: 2.6 | O35: 1.8 | P35: 4.8 | R35: 77.48381955 | S35: 43 | T35: 49.09756098 | U35: 51.53658537 | V35: 53.73170732 | W35: 55.19512195 | Y35: 0.5529411765 | Z35: 3.294117647 | AA35: 0.1294117647 | AB35: 1.882352941 | AC35: 4.870588235 | AD35: 1.082352941 | AE35: 1.1 | AF35: 43.68235294 | AG35: 3.423529412 | AH35: 12.81176471 | AI35: 30.42352941 | AJ35: 0 | AK35: 0.04 | AM35: 3.779411765 | AN35: 1.704117647 | AO35: 2.381176471 | AP35: 3.442941176 | AQ35: 1.326470588 | AR35: 3.623529412 | AS35: 6.880588235 | AT35: 2.285882353 | AU35: 4.824117647 | AV35: 3.213529412 | AW35: 5.119411765 | AY35: 0.9397948773 | AZ35: 1.079840843 | BA35: 1.029813327 | BB35: 0.9498685296 | BC35: 0.9598275228 | BD35: 0.9999751472 | BE35: 1.009976395 | BF35: 0.9999183541 | BG35: 1.040157848 | BH35: 0.9700388111 | BI35: 0.9599275948 | BK35: 11.17647059 | BL35: 3.058823529 | BM35: 2.117647059 | BN35: 5.647058824 | BP35: 120 | BQ35: 36.70588235 | BR35: 1.262874451 | BS35: 1.256715678 | BU35: 978.8235294 | BV35: 643.9915966 | BW35: 71.31428571 | BX35: 604 | BY35: 21 | BZ35: 56 | CA35: 165 | CC35: 0.47 | CD35: 2.8 | CE35: 0.11 | CF35: 1.6 | CG35: 4.14 | CH35: 0.92 | CI35: 0.935 | CK35: 37.13 | CL35: 2.91 | CM35: 10.89 | CN35: 25.86 | CO35: 0 | CP35: 0.034 | CQ35: 73.60962857 | CR35: 68.5733748 | CS35: 2.435638373 | CT35: 1.261870674 | CU35: 1.681533847 | CV35: 2.943404521 | CW35: 2.242583515 | CX35: 0.873064536 | CY35: 2.484714651 | CZ35: 4.765322699 | DA35: 1.567378693 | DB35: 3.440904856 | DC35: 2.137602326 | DD35: 5.578507182 | DE35: 3.369877098 | DF35: 0 | DG35: 0 | DH35: 0 | DI35: 0 | DJ35: 0 | DK35: 0 | DL35: 0 | DM35: 0 | DN35: 0 | DO35: 0 | DP35: 0 | DQ35: 0 | DR35: 0 | DS35: 0 | DT35: 0 | DU35: 0 | DV35: 0 | DW35: 1.1.1 | DX35: 115 | DY35: 115 | DZ35: 45 | EA35: 45 | EC35: 45 | ED35: 45 | EE35: 45 | EF35: 45 | EG35: 45 | ES35: 45 | ET35: 115 | FG35: 0.66 | FH35: 0.16 | FI35: 0.19 | FK35: 1.57 | FL35: 1.47 | FN35: 2.6 | FO35: 2.22 | GA35: 0.11 | GB35: 0.26 | GN35: '18-'20 | GO35: '18-'20 | GP35: '18-'20 | GQ35: '18-'20 | GS35: '18-'20 | GT35: '18-'20 | GU35: '18-'20 | GV35: '18-'20 | GW35: '18-'20 | HI35: '18-'20 | HJ35: '18-'20 | HK35: '18-'20 | HL35: 2018 | HM35: '18-'20 | HN35: '18-'20 | HP35: '18-'20 | HQ35: '18-'20 | HR35: '18-'20 | HS35: '18-'20 | HW35: Byg er frø fra dyrkede sorter af toradet og seksradet bygplanter (Hordeum vulgare), og dyrkes i stor udstrækning i Danmark. En undersøgelse foretaget fra 2003 til 2005 viste, at de forskellige sorter varierer med hensyn til antal af foderenheder pr. 100 kg. Indholdet af foderenheder i forskellige sorter af vårbyg varierede fra 102 til 109 FEsv pr. 100 kg. Desuden var der effekt af sort på EFOS, EFOSi, råfedt og råaske, men ingen statistisk sikker forskel i indhold af råprotein mellem sorterne. Der skelnes mellem varmebehandlet og ikke-varmebehandlet korn. Det skyldes, at der ved varmebehandling af korn (pelleteret foder) sker en nedbrydning af kornets naturlige indhold af fytase, og derfor skal der i korn, der indgår i pelleteret foder, regnes med en lavere fordøjelighed af fosfor end i ikke-varmebehandlet korn (hjemmeblandet foder). Der er endvidere angivet kemisk indhold for korn tilsat det kulhydratspaltende enzym ”xylanase”. Det skyldes, at tilsætning af xylanase øger EFOSi-værdien og dermed kornets energiværdi Byg kan bruges i henhold til følgende kilder: [2], [3], [4], [5], [6], [7], [8], [9], [10], [11], [12], [13], [14], [15]. [16] | HX35: Forsøg har vist, at stigende indhold af byg reducerer problemer med Salmonella og maveforandringer i den hvide del af maven sammenlignet med en hvedebaseret blanding [15]. | HY35: Byg giver generelt ikke anledning til problemer, og kan uden problemer transporteres som løsvare. Byg bør opbevares tørt og er lagerfast ved 86 procent tørstof. | IC35: 56.29268293 | ID35: 57.02439024 | IE35: 57.63414634 | IF35: 58 | IG35: Barley grain, dried, at farm/DK Economic S | IH35: 001-0008 | II35: Vårbyg | IJ35: 0.3803571321 | IK35: 0.3803571321 | IL35: 0.3803571321 | IM35: 0.3803571321 | IN35: 0.4437 | IO35: 0.06334286789 | IP35: 1.427232385 | IQ35: 1.87 | IR35: 0.1309 | IS35: 0.3643571321 | IT35: 0.3643571321 | IU35: 7.486570033e-06 | IV35: 0.0009333726686 | IW35: 0.0006887451877 | IX35: 0.0009627573968 | IY35: 0.0006969498849 | IZ35: 0.007067659879 | JA35: 0.0001557660379 | JB35: 0.002461866327 | JC35: 0.06134914244 | JD35: 0.0017424239 | JE35: 0.002454703758 | JF35: 0.0002196354028 | JG35: 3.851291787 | JH35: 0.000196208296 | JI35: 0.0420668009 | JJ35: 0.0002729832306 | JK35: 0.016 | JM35: FEFAC | JO35: DCA rapport nr. 116, marts 2018. Tabel A1.1
A36: 50210 | B36: 502 | C36: 10 | D36: BYG, vår, gns. 2018-2020, varmebehandlet | E36: 2020-10-08 | F36: 1.067403794 | G36: 1.063963429 | H36: 86.5 | I36: 80.9 | J36: 90 | K36: 1 | L36: 85 | M36: 9.5 | N36: 2.6 | O36: 1.8 | P36: 4.8 | R36: 77.07094737 | S36: 30 | T36: 41.38211382 | U36: 45.93495935 | V36: 50.03252033 | W36: 52.76422764 | Y36: 0.5529411765 | Z36: 3.294117647 | AA36: 0.1294117647 | AB36: 1.882352941 | AC36: 4.870588235 | AD36: 1.082352941 | AE36: 1.1 | AF36: 43.68235294 | AG36: 3.423529412 | AH36: 12.81176471 | AI36: 30.42352941 | AJ36: 0 | AK36: 0.04 | AM36: 3.779411765 | AN36: 1.704117647 | AO36: 2.381176471 | AP36: 3.442941176 | AQ36: 1.326470588 | AR36: 3.623529412 | AS36: 6.880588235 | AT36: 2.285882353 | AU36: 4.824117647 | AV36: 3.213529412 | AW36: 5.119411765 | AY36: 0.9397948773 | AZ36: 1.079840843 | BA36: 1.029813327 | BB36: 0.9498685296 | BC36: 0.9598275228 | BD36: 0.9999751472 | BE36: 1.009976395 | BF36: 0.9999183541 | BG36: 1.040157848 | BH36: 0.9700388111 | BI36: 0.9599275948 | BK36: 11.17647059 | BL36: 3.058823529 | BM36: 2.117647059 | BN36: 5.647058824 | BP36: 120 | BQ36: 36.70588235 | BR36: 1.255769169 | BS36: 1.251721681 | BU36: 978.8235294 | BV36: 637 | BW36: 78.30588235 | BX36: 604 | BY36: 21 | BZ36: 56 | CA36: 165 | CC36: 0.47 | CD36: 2.8 | CE36: 0.11 | CF36: 1.6 | CG36: 4.14 | CH36: 0.92 | CI36: 0.935 | CK36: 37.13 | CL36: 2.91 | CM36: 10.89 | CN36: 25.86 | CO36: 0 | CP36: 0.034 | CQ36: 73.2174 | CR36: 68.5939102 | CS36: 2.436367764 | CT36: 1.262248561 | CU36: 1.68203741 | CV36: 2.944285971 | CW36: 2.243255093 | CX36: 0.8733259892 | CY36: 2.485458739 | CZ36: 4.766749752 | DA36: 1.56784807 | DB36: 3.44193529 | DC36: 2.138242465 | DD36: 5.580177756 | DE36: 3.370886262 | DF36: 0 | DG36: 0 | DH36: 0 | DI36: 0 | DJ36: 0 | DK36: 0 | DL36: 0 | DM36: 0 | DN36: 0 | DO36: 0 | DP36: 0 | DQ36: 0 | DR36: 0 | DS36: 0 | DT36: 0 | DU36: 0 | DV36: 0 | DW36: 1.1.1 | DX36: 115 | DY36: 115 | DZ36: 45 | EA36: 45 | EC36: 45 | ED36: 45 | EE36: 45 | EF36: 45 | EG36: 45 | ES36: 45 | ET36: 115 | FG36: 0.66 | FH36: 0.16 | FI36: 0.19 | FK36: 1.57 | FL36: 1.47 | FN36: 2.6 | FO36: 2.22 | GA36: 0.11 | GB36: 0.26 | GN36: '18-'20 | GO36: '18-'20 | GP36: '18-'20 | GQ36: '18-'20 | GS36: '18-'20 | GT36: '18-'20 | GU36: '18-'20 | GV36: '18-'20 | GW36: '18-'20 | HI36: '18-'20 | HJ36: '18-'20 | HK36: '18-'20 | HL36: 2018 | HM36: '18-'20 | HN36: '18-'20 | HP36: '18-'20 | HQ36: '18-'20 | HR36: '18-'20 | HS36: '18-'20 | HW36: Byg er frø fra dyrkede sorter af toradet og seksradet bygplanter (Hordeum vulgare), og dyrkes i stor udstrækning i Danmark. En undersøgelse foretaget fra 2003 til 2005 viste, at de forskellige sorter varierer med hensyn til antal af foderenheder pr. 100 kg. Indholdet af foderenheder i forskellige sorter af vårbyg varierede fra 102 til 109 FEsv pr. 100 kg. Desuden var der effekt af sort på EFOS, EFOSi, råfedt og råaske, men ingen statistisk sikker forskel i indhold af råprotein mellem sorterne. Der skelnes mellem varmebehandlet og ikke-varmebehandlet korn. Det skyldes, at der ved varmebehandling af korn (pelleteret foder) sker en nedbrydning af kornets naturlige indhold af fytase, og derfor skal der i korn, der indgår i pelleteret foder, regnes med en lavere fordøjelighed af fosfor end i ikke-varmebehandlet korn (hjemmeblandet foder). Der er endvidere angivet kemisk indhold for korn tilsat det kulhydratspaltende enzym ”xylanase”. Det skyldes, at tilsætning af xylanase øger EFOSi-værdien og dermed kornets energiværdi Byg kan bruges i henhold til følgende kilder: [2], [3], [4], [5], [6], [7], [8], [9], [10], [11], [12], [13], [14], [15]. [16] | HX36: Forsøg har vist, at stigende indhold af byg reducerer problemer med Salmonella og maveforandringer i den hvide del af maven sammenlignet med en hvedebaseret blanding [15]. | HY36: Byg giver generelt ikke anledning til problemer, og kan uden problemer transporteres som løsvare. Byg bør opbevares tørt og er lagerfast ved 86 procent tørstof. | IC36: 54.81300813 | ID36: 56.17886179 | IE36: 57.31707317 | IF36: 58 | IG36: Barley grain, dried, at farm/DK Economic S | IH36: 001-0008 | II36: Vårbyg | IJ36: 0.3803571321 | IK36: 0.3803571321 | IL36: 0.3803571321 | IM36: 0.3803571321 | IN36: 0.4437 | IO36: 0.06334286789 | IP36: 1.427232385 | IQ36: 1.87 | IR36: 0.1309 | IS36: 0.3643571321 | IT36: 0.3643571321 | IU36: 7.486570033e-06 | IV36: 0.0009333726686 | IW36: 0.0006887451877 | IX36: 0.0009627573968 | IY36: 0.0006969498849 | IZ36: 0.007067659879 | JA36: 0.0001557660379 | JB36: 0.002461866327 | JC36: 0.06134914244 | JD36: 0.0017424239 | JE36: 0.002454703758 | JF36: 0.0002196354028 | JG36: 3.851291787 | JH36: 0.000196208296 | JI36: 0.0420668009 | JJ36: 0.0002729832306 | JK36: 0.016 | JM36: FEFAC | JO36: DCA rapport nr. 116, marts 2018. Tabel A1.1
A37: 50211 | B37: 502 | C37: 11 | D37: BYG, vår, gns. 2018-2020, varmebehandlet + xylanase | E37: 2020-10-08 | F37: 1.073443283 | G37: 1.068208327 | H37: 86.5 | I37: 81.4 | J37: 90 | K37: 1 | L37: 85 | M37: 9.5 | N37: 2.6 | O37: 1.8 | P37: 4.8 | R37: 77.48381955 | S37: 30 | T37: 41.38211382 | U37: 45.93495935 | V37: 50.03252033 | W37: 52.76422764 | Y37: 0.5529411765 | Z37: 3.294117647 | AA37: 0.1294117647 | AB37: 1.882352941 | AC37: 4.870588235 | AD37: 1.082352941 | AE37: 1.1 | AF37: 43.68235294 | AG37: 3.423529412 | AH37: 12.81176471 | AI37: 30.42352941 | AJ37: 0 | AK37: 0.04 | AM37: 3.779411765 | AN37: 1.704117647 | AO37: 2.381176471 | AP37: 3.442941176 | AQ37: 1.326470588 | AR37: 3.623529412 | AS37: 6.880588235 | AT37: 2.285882353 | AU37: 4.824117647 | AV37: 3.213529412 | AW37: 5.119411765 | AY37: 0.9397948773 | AZ37: 1.079840843 | BA37: 1.029813327 | BB37: 0.9498685296 | BC37: 0.9598275228 | BD37: 0.9999751472 | BE37: 1.009976395 | BF37: 0.9999183541 | BG37: 1.040157848 | BH37: 0.9700388111 | BI37: 0.9599275948 | BK37: 11.17647059 | BL37: 3.058823529 | BM37: 2.117647059 | BN37: 5.647058824 | BP37: 120 | BQ37: 36.70588235 | BR37: 1.262874451 | BS37: 1.256715678 | BU37: 978.8235294 | BV37: 643.9915966 | BW37: 71.31428571 | BX37: 604 | BY37: 21 | BZ37: 56 | CA37: 165 | CC37: 0.47 | CD37: 2.8 | CE37: 0.11 | CF37: 1.6 | CG37: 4.14 | CH37: 0.92 | CI37: 0.935 | CK37: 37.13 | CL37: 2.91 | CM37: 10.89 | CN37: 25.86 | CO37: 0 | CP37: 0.034 | CQ37: 73.60962857 | CR37: 68.5733748 | CS37: 2.435638373 | CT37: 1.261870674 | CU37: 1.681533847 | CV37: 2.943404521 | CW37: 2.242583515 | CX37: 0.873064536 | CY37: 2.484714651 | CZ37: 4.765322699 | DA37: 1.567378693 | DB37: 3.440904856 | DC37: 2.137602326 | DD37: 5.578507182 | DE37: 3.369877098 | DF37: 0 | DG37: 0 | DH37: 0 | DI37: 0 | DJ37: 0 | DK37: 0 | DL37: 0 | DM37: 0 | DN37: 0 | DO37: 0 | DP37: 0 | DQ37: 0 | DR37: 0 | DS37: 0 | DT37: 0 | DU37: 0 | DV37: 0 | DW37: 1.1.1 | DX37: 115 | DY37: 115 | DZ37: 45 | EA37: 45 | EC37: 45 | ED37: 45 | EE37: 45 | EF37: 45 | EG37: 45 | ES37: 45 | ET37: 115 | FG37: 0.66 | FH37: 0.16 | FI37: 0.19 | FK37: 1.57 | FL37: 1.47 | FN37: 2.6 | FO37: 2.22 | GA37: 0.11 | GB37: 0.26 | GN37: '18-'20 | GO37: '18-'20 | GP37: '18-'20 | GQ37: '18-'20 | GS37: '18-'20 | GT37: '18-'20 | GU37: '18-'20 | GV37: '18-'20 | GW37: '18-'20 | HI37: '18-'20 | HJ37: '18-'20 | HK37: '18-'20 | HL37: 2018 | HM37: '18-'20 | HN37: '18-'20 | HP37: '18-'20 | HQ37: '18-'20 | HR37: '18-'20 | HS37: '18-'20 | HW37: Byg er frø fra dyrkede sorter af toradet og seksradet bygplanter (Hordeum vulgare), og dyrkes i stor udstrækning i Danmark. En undersøgelse foretaget fra 2003 til 2005 viste, at de forskellige sorter varierer med hensyn til antal af foderenheder pr. 100 kg. Indholdet af foderenheder i forskellige sorter af vårbyg varierede fra 102 til 109 FEsv pr. 100 kg. Desuden var der effekt af sort på EFOS, EFOSi, råfedt og råaske, men ingen statistisk sikker forskel i indhold af råprotein mellem sorterne. Der skelnes mellem varmebehandlet og ikke-varmebehandlet korn. Det skyldes, at der ved varmebehandling af korn (pelleteret foder) sker en nedbrydning af kornets naturlige indhold af fytase, og derfor skal der i korn, der indgår i pelleteret foder, regnes med en lavere fordøjelighed af fosfor end i ikke-varmebehandlet korn (hjemmeblandet foder). Der er endvidere angivet kemisk indhold for korn tilsat det kulhydratspaltende enzym ”xylanase”. Det skyldes, at tilsætning af xylanase øger EFOSi-værdien og dermed kornets energiværdi Byg kan bruges i henhold til følgende kilder: [2], [3], [4], [5], [6], [7], [8], [9], [10], [11], [12], [13], [14], [15]. [16] | HX37: Forsøg har vist, at stigende indhold af byg reducerer problemer med Salmonella og maveforandringer i den hvide del af maven sammenlignet med en hvedebaseret blanding [15]. | HY37: Byg giver generelt ikke anledning til problemer, og kan uden problemer transporteres som løsvare. Byg bør opbevares tørt og er lagerfast ved 86 procent tørstof. | IC37: 54.81300813 | ID37: 56.17886179 | IE37: 57.31707317 | IF37: 58 | IG37: Barley grain, dried, at farm/DK Economic S | IH37: 001-0008 | II37: Vårbyg | IJ37: 0.3803571321 | IK37: 0.3803571321 | IL37: 0.3803571321 | IM37: 0.3803571321 | IN37: 0.4437 | IO37: 0.06334286789 | IP37: 1.427232385 | IQ37: 1.87 | IR37: 0.1309 | IS37: 0.3643571321 | IT37: 0.3643571321 | IU37: 7.486570033e-06 | IV37: 0.0009333726686 | IW37: 0.0006887451877 | IX37: 0.0009627573968 | IY37: 0.0006969498849 | IZ37: 0.007067659879 | JA37: 0.0001557660379 | JB37: 0.002461866327 | JC37: 0.06134914244 | JD37: 0.0017424239 | JE37: 0.002454703758 | JF37: 0.0002196354028 | JG37: 3.851291787 | JH37: 0.000196208296 | JI37: 0.0420668009 | JJ37: 0.0002729832306 | JK37: 0.016 | JM37: FEFAC | JO37: DCA rapport nr. 116, marts 2018. Tabel A1.1
A38: 50100 | B38: 501 | C38: 0 | D38: BYG, vår, 2019 | E38: 2019-11-01 | F38: 1.051386866 | G38: 1.050002946 | H38: 85.5 | I38: 80.0000415 | J38: 90 | K38: 1 | L38: 85 | M38: 9.3 | N38: 2.6 | O38: 1.9 | P38: 4.8 | R38: 76.28137788 | S38: 43 | T38: 49.09756098 | U38: 51.53658537 | V38: 53.73170732 | W38: 55.19512195 | Y38: 0.5764705882 | Z38: 3.411764706 | AA38: 0.1294117647 | AB38: 1.887226697 | AC38: 4.823529412 | AD38: 1.117647059 | AE38: 1.1 | AF38: 49.41176471 | AG38: 3.647058824 | AH38: 12.23529412 | AI38: 30.58823529 | AJ38: 0 | AK38: 0.04 | AM38: 3.809529412 | AN38: 1.713294118 | AO38: 2.396941176 | AP38: 3.460352941 | AQ38: 1.335176471 | AR38: 3.626823529 | AS38: 6.886470588 | AT38: 2.292705882 | AU38: 4.797294118 | AV38: 3.208823529 | AW38: 5.133529412 | AY38: 0.94 | AZ38: 1.08 | BA38: 1.03 | BB38: 0.95 | BC38: 0.96 | BD38: 1 | BE38: 1.01 | BF38: 1 | BG38: 1.04 | BH38: 0.97 | BI38: 0.96 | BK38: 10.94117647 | BL38: 3.058823529 | BM38: 2.235294118 | BN38: 5.647058824 | BP38: 120 | BQ38: 36.70588235 | BR38: 1.236925725 | BS38: 1.235297584 | BU38: 977.6470588 | BV38: 629.8378151 | BW38: 76.81454645 | BX38: 604 | BY38: 21 | BZ38: 56 | CA38: 165 | CC38: 0.49 | CD38: 2.9 | CE38: 0.11 | CF38: 1.604142693 | CG38: 4.1 | CH38: 0.95 | CI38: 0.935 | CK38: 42 | CL38: 3.1 | CM38: 10.4 | CN38: 26 | CO38: 0 | CP38: 0.034 | CQ38: 70.94168143 | CR38: 67.47438428 | CS38: 2.416229124 | CT38: 1.248517429 | CU38: 1.665840939 | CV38: 2.914358369 | CW38: 2.218109249 | CX38: 0.8648660185 | CY38: 2.447176845 | CZ38: 4.693069664 | DA38: 1.546989178 | DB38: 3.366422455 | DC38: 2.100179902 | DD38: 5.466602356 | DE38: 3.325264668 | DF38: 0 | DG38: 0 | DH38: 0 | DI38: 0 | DJ38: 0 | DK38: 0 | DL38: 0 | DM38: 0 | DN38: 0 | DO38: 0 | DP38: 0 | DQ38: 0 | DR38: 0 | DS38: 0 | DT38: 0 | DU38: 0 | DV38: 0 | DW38: 1.1.1 | DX38: 32 | DY38: 32 | DZ38: 16 | EA38: 16 | EC38: 16 | ED38: 16 | EE38: 16 | EF38: 16 | EG38: 16 | ES38: 16 | ET38: 32 | FG38: 0.7 | FH38: 0.1 | FI38: 0.2 | FK38: 1.3 | FL38: 1 | FN38: 2 | FO38: 1.7 | GA38: 0.1 | GB38: 0.3 | GN38: 2019 | GO38: 2019 | GP38: 2019 | GQ38: 2019 | GS38: 2019 | GT38: 2019 | GU38: 2019 | GV38: 2019 | GW38: 2019 | HI38: 2019 | HJ38: 2019 | HK38: 2019 | HL38: 2018 | HM38: 2019 | HN38: 2019 | HP38: 2019 | HQ38: 2019 | HR38: 2019 | HS38: 2019 | HW38: Byg er frø fra dyrkede sorter af toradet og seksradet bygplanter (Hordeum vulgare), og dyrkes i stor udstrækning i Danmark. En undersøgelse foretaget fra 2003 til 2005 viste, at de forskellige sorter varierer med hensyn til antal af foderenheder pr. 100 kg. Indholdet af foderenheder i forskellige sorter af vårbyg varierede fra 102 til 109 FEsv pr. 100 kg. Desuden var der effekt af sort på EFOS, EFOSi, råfedt og råaske, men ingen statistisk sikker forskel i indhold af råprotein mellem sorterne. Der skelnes mellem varmebehandlet og ikke-varmebehandlet korn. Det skyldes, at der ved varmebehandling af korn (pelleteret foder) sker en nedbrydning af kornets naturlige indhold af fytase, og derfor skal der i korn, der indgår i pelleteret foder, regnes med en lavere fordøjelighed af fosfor end i ikke-varmebehandlet korn (hjemmeblandet foder). Der er endvidere angivet kemisk indhold for korn tilsat det kulhydratspaltende enzym ”xylanase”. Det skyldes, at tilsætning af xylanase øger EFOSi-værdien og dermed kornets energiværdi Byg kan bruges i henhold til følgende kilder: [2], [3], [4], [5], [6], [7], [8], [9], [10], [11], [12], [13], [14], [15]. [16] | HX38: Forsøg har vist, at stigende indhold af byg reducerer problemer med Salmonella og maveforandringer i den hvide del af maven sammenlignet med en hvedebaseret blanding [15]. | HY38: Byg giver generelt ikke anledning til problemer, og kan uden problemer transporteres som løsvare. Byg bør opbevares tørt og er lagerfast ved 86 procent tørstof. | IC38: 56.29268293 | ID38: 57.02439024 | IE38: 57.63414634 | IF38: 58 | IG38: Barley grain, dried, at farm/DK Economic S | IH38: 001-0008 | II38: Vårbyg | IJ38: 0.3803571321 | IK38: 0.3803571321 | IL38: 0.3803571321 | IM38: 0.3803571321 | IN38: 0.4437 | IO38: 0.06334286789 | IP38: 1.427232385 | IQ38: 1.87 | IR38: 0.1309 | IS38: 0.3643571321 | IT38: 0.3643571321 | IU38: 7.486570033e-06 | IV38: 0.0009333726686 | IW38: 0.0006887451877 | IX38: 0.0009627573968 | IY38: 0.0006969498849 | IZ38: 0.007067659879 | JA38: 0.0001557660379 | JB38: 0.002461866327 | JC38: 0.06134914244 | JD38: 0.0017424239 | JE38: 0.002454703758 | JF38: 0.0002196354028 | JG38: 3.851291787 | JH38: 0.000196208296 | JI38: 0.0420668009 | JJ38: 0.0002729832306 | JK38: 0.016 | JM38: FEFAC | JO38: DCA rapport nr. 116, marts 2018. Tabel A1.1
A39: 50101 | B39: 501 | C39: 1 | D39: BYG, vår, 2019 + xylanase | E39: 2019-11-03 | F39: 1.057419096 | G39: 1.054242742 | H39: 85.5 | I39: 80.49996 | J39: 90 | K39: 1 | L39: 85 | M39: 9.3 | N39: 2.6 | O39: 1.9 | P39: 4.8 | R39: 76.70262212 | S39: 43 | T39: 49.09756098 | U39: 51.53658537 | V39: 53.73170732 | W39: 55.19512195 | Y39: 0.5764705882 | Z39: 3.411764706 | AA39: 0.1294117647 | AB39: 1.887226697 | AC39: 4.823529412 | AD39: 1.117647059 | AE39: 1.1 | AF39: 49.41176471 | AG39: 3.647058824 | AH39: 12.23529412 | AI39: 30.58823529 | AJ39: 0 | AK39: 0.04 | AM39: 3.809529412 | AN39: 1.713294118 | AO39: 2.396941176 | AP39: 3.460352941 | AQ39: 1.335176471 | AR39: 3.626823529 | AS39: 6.886470588 | AT39: 2.292705882 | AU39: 4.797294118 | AV39: 3.208823529 | AW39: 5.133529412 | AY39: 0.94 | AZ39: 1.08 | BA39: 1.03 | BB39: 0.95 | BC39: 0.96 | BD39: 1 | BE39: 1.01 | BF39: 1 | BG39: 1.04 | BH39: 0.97 | BI39: 0.96 | BK39: 10.94117647 | BL39: 3.058823529 | BM39: 2.235294118 | BN39: 5.647058824 | BP39: 120 | BQ39: 36.70588235 | BR39: 1.244022466 | BS39: 1.240285579 | BU39: 977.6470588 | BV39: 636.8210084 | BW39: 69.83249143 | BX39: 604 | BY39: 21 | BZ39: 56 | CA39: 165 | CC39: 0.49 | CD39: 2.9 | CE39: 0.11 | CF39: 1.604142693 | CG39: 4.1 | CH39: 0.95 | CI39: 0.935 | CK39: 42 | CL39: 3.1 | CM39: 10.4 | CN39: 26 | CO39: 0 | CP39: 0.034 | CQ39: 71.33343857 | CR39: 67.45994927 | CS39: 2.415712212 | CT39: 1.24825033 | CU39: 1.665484561 | CV39: 2.913734891 | CW39: 2.217634722 | CX39: 0.8646809949 | CY39: 2.446653313 | CZ39: 4.692065661 | DA39: 1.546658225 | DB39: 3.365702265 | DC39: 2.099730603 | DD39: 5.465432868 | DE39: 3.324553283 | DF39: 0 | DG39: 0 | DH39: 0 | DI39: 0 | DJ39: 0 | DK39: 0 | DL39: 0 | DM39: 0 | DN39: 0 | DO39: 0 | DP39: 0 | DQ39: 0 | DR39: 0 | DS39: 0 | DT39: 0 | DU39: 0 | DV39: 0 | DW39: 1.1.1 | DX39: 32 | DY39: 32 | DZ39: 16 | EA39: 16 | EC39: 16 | ED39: 16 | EE39: 16 | EF39: 16 | EG39: 16 | ES39: 16 | ET39: 32 | FG39: 0.7 | FH39: 0.1 | FI39: 0.2 | FK39: 1.3 | FL39: 1 | FN39: 2 | FO39: 1.7 | GA39: 0.1 | GB39: 0.3 | GN39: 2019 | GO39: 2019 | GP39: 2019 | GQ39: 2019 | GS39: 2019 | GT39: 2019 | GU39: 2019 | GV39: 2019 | GW39: 2019 | HI39: 2019 | HJ39: 2019 | HK39: 2019 | HL39: 2018 | HM39: 2019 | HN39: 2019 | HP39: 2019 | HQ39: 2019 | HR39: 2019 | HS39: 2019 | HW39: Byg er frø fra dyrkede sorter af toradet og seksradet bygplanter (Hordeum vulgare), og dyrkes i stor udstrækning i Danmark. En undersøgelse foretaget fra 2003 til 2005 viste, at de forskellige sorter varierer med hensyn til antal af foderenheder pr. 100 kg. Indholdet af foderenheder i forskellige sorter af vårbyg varierede fra 102 til 109 FEsv pr. 100 kg. Desuden var der effekt af sort på EFOS, EFOSi, råfedt og råaske, men ingen statistisk sikker forskel i indhold af råprotein mellem sorterne. Der skelnes mellem varmebehandlet og ikke-varmebehandlet korn. Det skyldes, at der ved varmebehandling af korn (pelleteret foder) sker en nedbrydning af kornets naturlige indhold af fytase, og derfor skal der i korn, der indgår i pelleteret foder, regnes med en lavere fordøjelighed af fosfor end i ikke-varmebehandlet korn (hjemmeblandet foder). Der er endvidere angivet kemisk indhold for korn tilsat det kulhydratspaltende enzym ”xylanase”. Det skyldes, at tilsætning af xylanase øger EFOSi-værdien og dermed kornets energiværdi Byg kan bruges i henhold til følgende kilder: [2], [3], [4], [5], [6], [7], [8], [9], [10], [11], [12], [13], [14], [15]. [16] | HX39: Forsøg har vist, at stigende indhold af byg reducerer problemer med Salmonella og maveforandringer i den hvide del af maven sammenlignet med en hvedebaseret blanding [15]. | HY39: Byg giver generelt ikke anledning til problemer, og kan uden problemer transporteres som løsvare. Byg bør opbevares tørt og er lagerfast ved 86 procent tørstof. | IC39: 56.29268293 | ID39: 57.02439024 | IE39: 57.63414634 | IF39: 58 | IG39: Barley grain, dried, at farm/DK Economic S | IH39: 001-0008 | II39: Vårbyg | IJ39: 0.3803571321 | IK39: 0.3803571321 | IL39: 0.3803571321 | IM39: 0.3803571321 | IN39: 0.4437 | IO39: 0.06334286789 | IP39: 1.427232385 | IQ39: 1.87 | IR39: 0.1309 | IS39: 0.3643571321 | IT39: 0.3643571321 | IU39: 7.486570033e-06 | IV39: 0.0009333726686 | IW39: 0.0006887451877 | IX39: 0.0009627573968 | IY39: 0.0006969498849 | IZ39: 0.007067659879 | JA39: 0.0001557660379 | JB39: 0.002461866327 | JC39: 0.06134914244 | JD39: 0.0017424239 | JE39: 0.002454703758 | JF39: 0.0002196354028 | JG39: 3.851291787 | JH39: 0.000196208296 | JI39: 0.0420668009 | JJ39: 0.0002729832306 | JK39: 0.016 | JM39: FEFAC | JO39: DCA rapport nr. 116, marts 2018. Tabel A1.1
A40: 50110 | B40: 501 | C40: 10 | D40: BYG, vår, 2019, varmebehandlet | E40: 2019-11-03 | F40: 1.051386866 | G40: 1.050002946 | H40: 85.5 | I40: 80.0000415 | J40: 90 | K40: 1 | L40: 85 | M40: 9.3 | N40: 2.6 | O40: 1.9 | P40: 4.8 | R40: 76.28137788 | S40: 30 | T40: 41.38211382 | U40: 45.93495935 | V40: 50.03252033 | W40: 52.76422764 | Y40: 0.5764705882 | Z40: 3.411764706 | AA40: 0.1294117647 | AB40: 1.887226697 | AC40: 4.823529412 | AD40: 1.117647059 | AE40: 1.1 | AF40: 49.41176471 | AG40: 3.647058824 | AH40: 12.23529412 | AI40: 30.58823529 | AJ40: 0 | AK40: 0.04 | AM40: 3.809529412 | AN40: 1.713294118 | AO40: 2.396941176 | AP40: 3.460352941 | AQ40: 1.335176471 | AR40: 3.626823529 | AS40: 6.886470588 | AT40: 2.292705882 | AU40: 4.797294118 | AV40: 3.208823529 | AW40: 5.133529412 | AY40: 0.94 | AZ40: 1.08 | BA40: 1.03 | BB40: 0.95 | BC40: 0.96 | BD40: 1 | BE40: 1.01 | BF40: 1 | BG40: 1.04 | BH40: 0.97 | BI40: 0.96 | BK40: 10.94117647 | BL40: 3.058823529 | BM40: 2.235294118 | BN40: 5.647058824 | BP40: 120 | BQ40: 36.70588235 | BR40: 1.236925725 | BS40: 1.235297584 | BU40: 977.6470588 | BV40: 629.8378151 | BW40: 76.81454645 | BX40: 604 | BY40: 21 | BZ40: 56 | CA40: 165 | CC40: 0.49 | CD40: 2.9 | CE40: 0.11 | CF40: 1.604142693 | CG40: 4.1 | CH40: 0.95 | CI40: 0.935 | CK40: 42 | CL40: 3.1 | CM40: 10.4 | CN40: 26 | CO40: 0 | CP40: 0.034 | CQ40: 70.94168143 | CR40: 67.47438428 | CS40: 2.416229124 | CT40: 1.248517429 | CU40: 1.665840939 | CV40: 2.914358369 | CW40: 2.218109249 | CX40: 0.8648660185 | CY40: 2.447176845 | CZ40: 4.693069664 | DA40: 1.546989178 | DB40: 3.366422455 | DC40: 2.100179902 | DD40: 5.466602356 | DE40: 3.325264668 | DF40: 0 | DG40: 0 | DH40: 0 | DI40: 0 | DJ40: 0 | DK40: 0 | DL40: 0 | DM40: 0 | DN40: 0 | DO40: 0 | DP40: 0 | DQ40: 0 | DR40: 0 | DS40: 0 | DT40: 0 | DU40: 0 | DV40: 0 | DW40: 1.1.1 | DX40: 32 | DY40: 32 | DZ40: 16 | EA40: 16 | EC40: 16 | ED40: 16 | EE40: 16 | EF40: 16 | EG40: 16 | ES40: 16 | ET40: 32 | FG40: 0.7 | FH40: 0.1 | FI40: 0.2 | FK40: 1.3 | FL40: 1 | FN40: 2 | FO40: 1.7 | GA40: 0.1 | GB40: 0.3 | GN40: 2019 | GO40: 2019 | GP40: 2019 | GQ40: 2019 | GS40: 2019 | GT40: 2019 | GU40: 2019 | GV40: 2019 | GW40: 2019 | HI40: 2019 | HJ40: 2019 | HK40: 2019 | HL40: 2018 | HM40: 2019 | HN40: 2019 | HP40: 2019 | HQ40: 2019 | HR40: 2019 | HS40: 2019 | HW40: Byg er frø fra dyrkede sorter af toradet og seksradet bygplanter (Hordeum vulgare), og dyrkes i stor udstrækning i Danmark. En undersøgelse foretaget fra 2003 til 2005 viste, at de forskellige sorter varierer med hensyn til antal af foderenheder pr. 100 kg. Indholdet af foderenheder i forskellige sorter af vårbyg varierede fra 102 til 109 FEsv pr. 100 kg. Desuden var der effekt af sort på EFOS, EFOSi, råfedt og råaske, men ingen statistisk sikker forskel i indhold af råprotein mellem sorterne. Der skelnes mellem varmebehandlet og ikke-varmebehandlet korn. Det skyldes, at der ved varmebehandling af korn (pelleteret foder) sker en nedbrydning af kornets naturlige indhold af fytase, og derfor skal der i korn, der indgår i pelleteret foder, regnes med en lavere fordøjelighed af fosfor end i ikke-varmebehandlet korn (hjemmeblandet foder). Der er endvidere angivet kemisk indhold for korn tilsat det kulhydratspaltende enzym ”xylanase”. Det skyldes, at tilsætning af xylanase øger EFOSi-værdien og dermed kornets energiværdi Byg kan bruges i henhold til følgende kilder: [2], [3], [4], [5], [6], [7], [8], [9], [10], [11], [12], [13], [14], [15]. [16] | HX40: Forsøg har vist, at stigende indhold af byg reducerer problemer med Salmonella og maveforandringer i den hvide del af maven sammenlignet med en hvedebaseret blanding [15]. | HY40: Byg giver generelt ikke anledning til problemer, og kan uden problemer transporteres som løsvare. Byg bør opbevares tørt og er lagerfast ved 86 procent tørstof. | IC40: 54.81300813 | ID40: 56.17886179 | IE40: 57.31707317 | IF40: 58 | IG40: Barley grain, dried, at farm/DK Economic S | IH40: 001-0008 | II40: Vårbyg | IJ40: 0.3803571321 | IK40: 0.3803571321 | IL40: 0.3803571321 | IM40: 0.3803571321 | IN40: 0.4437 | IO40: 0.06334286789 | IP40: 1.427232385 | IQ40: 1.87 | IR40: 0.1309 | IS40: 0.3643571321 | IT40: 0.3643571321 | IU40: 7.486570033e-06 | IV40: 0.0009333726686 | IW40: 0.0006887451877 | IX40: 0.0009627573968 | IY40: 0.0006969498849 | IZ40: 0.007067659879 | JA40: 0.0001557660379 | JB40: 0.002461866327 | JC40: 0.06134914244 | JD40: 0.0017424239 | JE40: 0.002454703758 | JF40: 0.0002196354028 | JG40: 3.851291787 | JH40: 0.000196208296 | JI40: 0.0420668009 | JJ40: 0.0002729832306 | JK40: 0.016 | JM40: FEFAC | JO40: DCA rapport nr. 116, marts 2018. Tabel A1.1
A41: 50111 | B41: 501 | C41: 11 | D41: BYG, vår, 2019, varmebehandlet + xylanase | E41: 2019-11-03 | F41: 1.057419096 | G41: 1.054242742 | H41: 85.5 | I41: 80.5 | J41: 90 | K41: 1 | L41: 85 | M41: 9.3 | N41: 2.6 | O41: 1.9 | P41: 4.8 | R41: 76.70262212 | S41: 30 | T41: 41.38211382 | U41: 45.93495935 | V41: 50.03252033 | W41: 52.76422764 | Y41: 0.5764705882 | Z41: 3.411764706 | AA41: 0.1294117647 | AB41: 1.887226697 | AC41: 4.823529412 | AD41: 1.117647059 | AE41: 1.1 | AF41: 49.41176471 | AG41: 3.647058824 | AH41: 12.23529412 | AI41: 30.58823529 | AJ41: 0 | AK41: 0.04 | AM41: 3.809529412 | AN41: 1.713294118 | AO41: 2.396941176 | AP41: 3.460352941 | AQ41: 1.335176471 | AR41: 3.626823529 | AS41: 6.886470588 | AT41: 2.292705882 | AU41: 4.797294118 | AV41: 3.208823529 | AW41: 5.133529412 | AY41: 0.94 | AZ41: 1.08 | BA41: 1.03 | BB41: 0.95 | BC41: 0.96 | BD41: 1 | BE41: 1.01 | BF41: 1 | BG41: 1.04 | BH41: 0.97 | BI41: 0.96 | BK41: 10.94117647 | BL41: 3.058823529 | BM41: 2.235294118 | BN41: 5.647058824 | BP41: 120 | BQ41: 36.70588235 | BR41: 1.244022466 | BS41: 1.240285579 | BU41: 977.6470588 | BV41: 636.8210084 | BW41: 69.83193277 | BX41: 604 | BY41: 21 | BZ41: 56 | CA41: 165 | CC41: 0.49 | CD41: 2.9 | CE41: 0.11 | CF41: 1.604142693 | CG41: 4.1 | CH41: 0.95 | CI41: 0.935 | CK41: 42 | CL41: 3.1 | CM41: 10.4 | CN41: 26 | CO41: 0 | CP41: 0.034 | CQ41: 71.33343857 | CR41: 67.45994927 | CS41: 2.415712212 | CT41: 1.24825033 | CU41: 1.665484561 | CV41: 2.897732908 | CW41: 2.217634722 | CX41: 0.8646809949 | CY41: 2.446653313 | CZ41: 4.692065661 | DA41: 1.546658225 | DB41: 3.365702265 | DC41: 2.099730603 | DD41: 5.453901328 | DE41: 3.324553283 | DF41: 0 | DG41: 0 | DH41: 0 | DI41: 0 | DJ41: 0 | DK41: 0 | DL41: 0 | DM41: 0 | DN41: 0 | DO41: 0 | DP41: 0 | DQ41: 0 | DR41: 0 | DS41: 0 | DT41: 0 | DU41: 0 | DV41: 0 | DW41: 1.1.1 | DX41: 32 | DY41: 32 | DZ41: 16 | EA41: 16 | EC41: 16 | ED41: 16 | EE41: 16 | EF41: 16 | EG41: 16 | ES41: 16 | ET41: 32 | FG41: 0.7 | FH41: 0.1 | FI41: 0.2 | FK41: 1.3 | FL41: 1 | FN41: 2 | FO41: 1.7 | GA41: 0.1 | GB41: 0.3 | GN41: 2019 | GO41: 2019 | GP41: 2019 | GQ41: 2019 | GS41: 2019 | GT41: 2019 | GU41: 2019 | GV41: 2019 | GW41: 2019 | HI41: 2019 | HJ41: 2019 | HK41: 2019 | HL41: 2018 | HM41: 2019 | HN41: 2019 | HP41: 2019 | HQ41: 2019 | HR41: 2019 | HS41: 2019 | HW41: Byg er frø fra dyrkede sorter af toradet og seksradet bygplanter (Hordeum vulgare), og dyrkes i stor udstrækning i Danmark. En undersøgelse foretaget fra 2003 til 2005 viste, at de forskellige sorter varierer med hensyn til antal af foderenheder pr. 100 kg. Indholdet af foderenheder i forskellige sorter af vårbyg varierede fra 102 til 109 FEsv pr. 100 kg. Desuden var der effekt af sort på EFOS, EFOSi, råfedt og råaske, men ingen statistisk sikker forskel i indhold af råprotein mellem sorterne. Der skelnes mellem varmebehandlet og ikke-varmebehandlet korn. Det skyldes, at der ved varmebehandling af korn (pelleteret foder) sker en nedbrydning af kornets naturlige indhold af fytase, og derfor skal der i korn, der indgår i pelleteret foder, regnes med en lavere fordøjelighed af fosfor end i ikke-varmebehandlet korn (hjemmeblandet foder). Der er endvidere angivet kemisk indhold for korn tilsat det kulhydratspaltende enzym ”xylanase”. Det skyldes, at tilsætning af xylanase øger EFOSi-værdien og dermed kornets energiværdi Byg kan bruges i henhold til følgende kilder: [2], [3], [4], [5], [6], [7], [8], [9], [10], [11], [12], [13], [14], [15]. [16] | HX41: Forsøg har vist, at stigende indhold af byg reducerer problemer med Salmonella og maveforandringer i den hvide del af maven sammenlignet med en hvedebaseret blanding [15]. | HY41: Byg giver generelt ikke anledning til problemer, og kan uden problemer transporteres som løsvare. Byg bør opbevares tørt og er lagerfast ved 86 procent tørstof. | IC41: 54.81300813 | ID41: 56.17886179 | IE41: 57.31707317 | IF41: 58 | IG41: Barley grain, dried, at farm/DK Economic S | IH41: 001-0008 | II41: Vårbyg | IJ41: 0.3803571321 | IK41: 0.3803571321 | IL41: 0.3803571321 | IM41: 0.3803571321 | IN41: 0.4437 | IO41: 0.06334286789 | IP41: 1.427232385 | IQ41: 1.87 | IR41: 0.1309 | IS41: 0.3643571321 | IT41: 0.3643571321 | IU41: 7.486570033e-06 | IV41: 0.0009333726686 | IW41: 0.0006887451877 | IX41: 0.0009627573968 | IY41: 0.0006969498849 | IZ41: 0.007067659879 | JA41: 0.0001557660379 | JB41: 0.002461866327 | JC41: 0.06134914244 | JD41: 0.0017424239 | JE41: 0.002454703758 | JF41: 0.0002196354028 | JG41: 3.851291787 | JH41: 0.000196208296 | JI41: 0.0420668009 | JJ41: 0.0002729832306 | JK41: 0.016 | JM41: FEFAC | JO41: DCA rapport nr. 116, marts 2018. Tabel A1.1
A42: 50611 | B42: 506 | C42: 11 | D42: BYG, 10,0 % råprotein, varmebehandlet + xylanase | E42: 2018-09-24 | F42: 1.067016221 | G42: 1.06243982 | H42: 86.1 | I42: 81.1 | J42: 90 | K42: 1 | L42: 85 | M42: 10 | N42: 2.6 | O42: 1.8 | P42: 4.8 | R42: 77.96842629 | S42: 30 | T42: 41.38211382 | U42: 45.93495935 | V42: 50.03252033 | W42: 52.76422764 | Y42: 0.5529411765 | Z42: 3.352941176 | AA42: 0.1294117647 | AB42: 1.882352941 | AC42: 4.823529412 | AD42: 1.117647059 | AE42: 1.1 | AF42: 49.41176471 | AG42: 3.647058824 | AH42: 12.23529412 | AI42: 30.58823529 | AJ42: 0 | AK42: 0.04 | AM42: 3.704117647 | AN42: 1.681176471 | AO42: 2.341764706 | AP42: 3.399411765 | AQ42: 1.304705882 | AR42: 3.615294118 | AS42: 6.865882353 | AT42: 2.268823529 | AU42: 4.891176471 | AV42: 3.225294118 | AW42: 5.084117647 | AY42: 0.9397948773 | AZ42: 1.079840843 | BA42: 1.029813327 | BB42: 0.9498685296 | BC42: 0.9598275228 | BD42: 0.9999751472 | BE42: 1.009976395 | BF42: 0.9999183541 | BG42: 1.040157848 | BH42: 0.9700388111 | BI42: 0.9599275948 | BK42: 11.76470588 | BL42: 3.058823529 | BM42: 2.117647059 | BN42: 5.647058824 | BP42: 120 | BQ42: 36.70588235 | BR42: 1.255313202 | BS42: 1.2499292 | BU42: 978.8235294 | BV42: 636.1216807 | BW42: 69.91596639 | BX42: 604 | BY42: 21 | BZ42: 56 | CA42: 165 | CC42: 0.47 | CD42: 2.85 | CE42: 0.11 | CF42: 1.6 | CG42: 4.1 | CH42: 0.95 | CI42: 0.935 | CK42: 42 | CL42: 3.1 | CM42: 10.4 | CN42: 26 | CO42: 0 | CP42: 0.034 | CQ42: 77.96842629 | CR42: 73.07145357 | CS42: 2.543698255 | CT42: 1.326541373 | CU42: 1.762176927 | CV42: 3.0887183 | CW42: 2.359473037 | CX42: 0.9150684168 | CY42: 2.641682308 | CZ42: 5.067051609 | DA42: 1.657726974 | DB42: 3.71758005 | DC42: 2.286157684 | DD42: 6.003737734 | DE42: 3.566168131 | DF42: 0 | DG42: 0 | DH42: 0 | DI42: 0 | DJ42: 0 | DK42: 0 | DL42: 0 | DM42: 0 | DN42: 0 | DO42: 0 | DP42: 0 | DQ42: 0 | DR42: 0 | DS42: 0 | DT42: 0 | DU42: 0 | DV42: 0 | DW42: 1.1.1 | HW42: Tabelværdierne er dannet ved kopi af VSPs fodermiddelkode 50211 (gennemsnit af vårbyg de seneste tre år i udgaven svarende til varmebehandlet foder tilsat xylanase), hvor eneste ændring er råproteinkoncentration med de afledte konsekvenser for råproteinfordøjeligheden og aminosyreandelen i procent af råprotein. Formålet med denne tabelværdi er at give et eksempel på værdien af korn med højt proteinindhold, som fx tysk korn, hvor gødningsreglerne er anderledes end de danske. Byg er frø fra dyrkede sorter af toradet og seksradet bygplanter (Hordeum vulgare), og dyrkes i stor udstrækning i Danmark. For vinterbyg er der fundet en statistisk sikker forskel i indholdet af foderenheder mellem sorterne. Indholdet af foderenheder varierede fra 98 til 105 FEsv pr. 100 kg. Det målte energiindhold er forholdsvis stabilt uanset lokalitet og dyrkningsår, så mht. foderværdien skal der ikke vælges sorter ud fra, hvor i Danmark kornet dyrkes. Desuden kan det forventes, at forskellen på foderværdien mellem to sorter det ene år også vil være der et andet år [16]. Der skelnes mellem varmebehandlet og ikke-varmebehandlet korn. Det skyldes, at der ved varmebehandling af korn (pelleteret foder) sker en nedbrydning af kornets naturlige indhold af fytase, og derfor skal der i korn, der indgår i pelleteret foder, regnes med en lavere fordøjelighed af fosfor end i ikke-varmebehandlet korn (hjemmeblandet foder). Der er endvidere angivet kemisk indhold for korn tilsat det kulhydratspaltende enzym ”xylanase”. Det skyldes, at tilsætning af xylanase øger EFOSi-værdien og dermed kornets energiværdi Ud fra forsøg og generel erfaring vurderes, at byg kan bruges i henhold til følgende kilder: [2], [3], [4], [5], [6], [7], [8], [9], [10], [11], [12], [13], [14], [15]. | HX42: Forsøg har vist, at stigende indhold af byg reducerer problemer med Salmonella og maveforandringer i den hvide del af maven sammenlignet med en hvedebaseret blanding [15]. | HY42: Byg giver generelt ikke anledning til problemer, og kan uden problemer transporteres som løsvare. Byg bør opbevares tørt og er lagerfast ved 86 procent tørstof. | IC42: 54.81300813 | ID42: 56.17886179 | IE42: 57.31707317 | IF42: 58 | IG42: Barley grain, dried, at farm/DK Economic S | IH42: 001-0008 | II42: Vårbyg | IJ42: 0.3803571321 | IK42: 0.3803571321 | IL42: 0.3803571321 | IM42: 0.3803571321 | IN42: 0.4437 | IO42: 0.06334286789 | IP42: 1.427232385 | IQ42: 1.87 | IR42: 0.1309 | IS42: 0.3643571321 | IT42: 0.3643571321 | IU42: 7.486570033e-06 | IV42: 0.0009333726686 | IW42: 0.0006887451877 | IX42: 0.0009627573968 | IY42: 0.0006969498849 | IZ42: 0.007067659879 | JA42: 0.0001557660379 | JB42: 0.002461866327 | JC42: 0.06134914244 | JD42: 0.0017424239 | JE42: 0.002454703758 | JF42: 0.0002196354028 | JG42: 3.851291787 | JH42: 0.000196208296 | JI42: 0.0420668009 | JJ42: 0.0002729832306 | JK42: 0.016 | JM42: FEFAC | JO42: DCA rapport nr. 116, marts 2018. Tabel A1.1
A43: 50661 | B43: 506 | C43: 61 | D43: BYG, 11,5 % råprotein, varmebehandlet + xylanase | E43: 2018-09-24 | F43: 1.063688986 | G43: 1.059250859 | H43: 86.1 | I43: 81.1 | J43: 90 | K43: 1 | L43: 85 | M43: 11.5 | N43: 2.6 | O43: 1.8 | P43: 4.8 | R43: 79.53776199 | S43: 30 | T43: 41.38211382 | U43: 45.93495935 | V43: 50.03252033 | W43: 52.76422764 | Y43: 0.5529411765 | Z43: 3.352941176 | AA43: 0.1294117647 | AB43: 1.882352941 | AC43: 4.823529412 | AD43: 1.117647059 | AE43: 1.1 | AF43: 49.41176471 | AG43: 3.647058824 | AH43: 12.23529412 | AI43: 30.58823529 | AJ43: 0 | AK43: 0.04 | AM43: 3.478235294 | AN43: 1.612352941 | AO43: 2.223529412 | AP43: 3.268823529 | AQ43: 1.239411765 | AR43: 3.590588235 | AS43: 6.821764706 | AT43: 2.217647059 | AU43: 5.092352941 | AV43: 3.260588235 | AW43: 4.978235294 | AY43: 0.9397948773 | AZ43: 1.079840843 | BA43: 1.029813327 | BB43: 0.9498685296 | BC43: 0.9598275228 | BD43: 0.9999751472 | BE43: 1.009976395 | BF43: 0.9999183541 | BG43: 1.040157848 | BH43: 0.9700388111 | BI43: 0.9599275948 | BK43: 13.52941176 | BL43: 3.058823529 | BM43: 2.117647059 | BN43: 5.647058824 | BP43: 120 | BQ43: 36.70588235 | BR43: 1.251398807 | BS43: 1.246177482 | BU43: 978.8235294 | BV43: 620.0628571 | BW43: 69.91596639 | BX43: 604 | BY43: 21 | BZ43: 56 | CA43: 165 | CC43: 0.47 | CD43: 2.85 | CE43: 0.11 | CF43: 1.6 | CG43: 4.1 | CH43: 0.95 | CI43: 0.935 | CK43: 42 | CL43: 3.1 | CM43: 10.4 | CN43: 26 | CO43: 0 | CP43: 0.034 | CQ43: 91.46842629 | CR43: 85.99170201 | CS43: 2.810920585 | CT43: 1.497188246 | CU43: 1.96905538 | CV43: 3.466243627 | CW43: 2.670001587 | CX43: 1.022975796 | CY43: 3.0875312 | CZ43: 5.924674621 | DA43: 1.906836752 | DB43: 4.554852221 | DC43: 2.719829079 | DD43: 7.2746813 | DE43: 4.109324532 | DF43: 0 | DG43: 0 | DH43: 0 | DI43: 0 | DJ43: 0 | DK43: 0 | DL43: 0 | DM43: 0 | DN43: 0 | DO43: 0 | DP43: 0 | DQ43: 0 | DR43: 0 | DS43: 0 | DT43: 0 | DU43: 0 | DV43: 0 | DW43: 1.1.1 | HW43: Tabelværdierne er dannet ved kopi af VSPs fodermiddelkode 50211 (gennemsnit af vårbyg de seneste tre år i udgaven svarende til varmebehandlet foder tilsat xylanase), hvor eneste ændring er råproteinkoncentration med de afledte konsekvenser for råproteinfordøjeligheden og aminosyreandelen i procent af råprotein. Formålet med denne tabelværdi er at give et eksempel på værdien af korn med højt proteinindhold, som fx tysk korn, hvor gødningsreglerne er anderledes end de danske. Byg er frø fra dyrkede sorter af toradet og seksradet bygplanter (Hordeum vulgare), og dyrkes i stor udstrækning i Danmark. For vinterbyg er der fundet en statistisk sikker forskel i indholdet af foderenheder mellem sorterne. Indholdet af foderenheder varierede fra 98 til 105 FEsv pr. 100 kg. Det målte energiindhold er forholdsvis stabilt uanset lokalitet og dyrkningsår, så mht. foderværdien skal der ikke vælges sorter ud fra, hvor i Danmark kornet dyrkes. Desuden kan det forventes, at forskellen på foderværdien mellem to sorter det ene år også vil være der et andet år [16]. Der skelnes mellem varmebehandlet og ikke-varmebehandlet korn. Det skyldes, at der ved varmebehandling af korn (pelleteret foder) sker en nedbrydning af kornets naturlige indhold af fytase, og derfor skal der i korn, der indgår i pelleteret foder, regnes med en lavere fordøjelighed af fosfor end i ikke-varmebehandlet korn (hjemmeblandet foder). Der er endvidere angivet kemisk indhold for korn tilsat det kulhydratspaltende enzym ”xylanase”. Det skyldes, at tilsætning af xylanase øger EFOSi-værdien og dermed kornets energiværdi Ud fra forsøg og generel erfaring vurderes, at byg kan bruges i henhold til følgende kilder: [2], [3], [4], [5], [6], [7], [8], [9], [10], [11], [12], [13], [14], [15]. | HX43: Forsøg har vist, at stigende indhold af byg reducerer problemer med Salmonella og maveforandringer i den hvide del af maven sammenlignet med en hvedebaseret blanding [15]. | HY43: Byg giver generelt ikke anledning til problemer, og kan uden problemer transporteres som løsvare. Byg bør opbevares tørt og er lagerfast ved 86 procent tørstof. | IC43: 54.81300813 | ID43: 56.17886179 | IE43: 57.31707317 | IF43: 58 | IG43: Barley grain, dried, at farm/DK Economic S | IH43: 001-0008 | II43: Vårbyg | IJ43: 0.3803571321 | IK43: 0.3803571321 | IL43: 0.3803571321 | IM43: 0.3803571321 | IN43: 0.4437 | IO43: 0.06334286789 | IP43: 1.427232385 | IQ43: 1.87 | IR43: 0.1309 | IS43: 0.3643571321 | IT43: 0.3643571321 | IU43: 7.486570033e-06 | IV43: 0.0009333726686 | IW43: 0.0006887451877 | IX43: 0.0009627573968 | IY43: 0.0006969498849 | IZ43: 0.007067659879 | JA43: 0.0001557660379 | JB43: 0.002461866327 | JC43: 0.06134914244 | JD43: 0.0017424239 | JE43: 0.002454703758 | JF43: 0.0002196354028 | JG43: 3.851291787 | JH43: 0.000196208296 | JI43: 0.0420668009 | JJ43: 0.0002729832306 | JK43: 0.016 | JM43: FEFAC | JO43: DCA rapport nr. 116, marts 2018. Tabel A1.1
A44: 50600 | B44: 506 | C44: 0 | D44: BYG, vår 10% råprotein | E44: 2018-09-24 | F44: 1.060976951 | G44: 1.058195076 | H44: 86.1 | I44: 80.6000181 | J44: 90 | K44: 1 | L44: 85 | M44: 10 | N44: 2.6 | O44: 1.8 | P44: 4.8 | R44: 77.57619771 | S44: 43 | T44: 49.09756098 | U44: 51.53658537 | V44: 53.73170732 | W44: 55.19512195 | Y44: 0.5529411765 | Z44: 3.352941176 | AA44: 0.1294117647 | AB44: 1.882352941 | AC44: 4.823529412 | AD44: 1.117647059 | AE44: 1.1 | AF44: 49.41176471 | AG44: 3.647058824 | AH44: 12.23529412 | AI44: 30.58823529 | AJ44: 0 | AK44: 0.04 | AM44: 3.704117647 | AN44: 1.681176471 | AO44: 2.341764706 | AP44: 3.399411765 | AQ44: 1.304705882 | AR44: 3.615294118 | AS44: 6.865882353 | AT44: 2.268823529 | AU44: 4.891176471 | AV44: 3.225294118 | AW44: 5.084117647 | AY44: 0.9397948773 | AZ44: 1.079840843 | BA44: 1.029813327 | BB44: 0.9498685296 | BC44: 0.9598275228 | BD44: 0.9999751472 | BE44: 1.009976395 | BF44: 0.9999183541 | BG44: 1.040157848 | BH44: 0.9700388111 | BI44: 0.9599275948 | BK44: 11.76470588 | BL44: 3.058823529 | BM44: 2.117647059 | BN44: 5.647058824 | BP44: 120 | BQ44: 36.70588235 | BR44: 1.248208178 | BS44: 1.244935384 | BU44: 978.8235294 | BV44: 629.1303371 | BW44: 76.90730993 | BX44: 604 | BY44: 21 | BZ44: 56 | CA44: 165 | CC44: 0.47 | CD44: 2.85 | CE44: 0.11 | CF44: 1.6 | CG44: 4.1 | CH44: 0.95 | CI44: 0.935 | CK44: 42 | CL44: 3.1 | CM44: 10.4 | CN44: 26 | CO44: 0 | CP44: 0.034 | CQ44: 77.57619771 | CR44: 73.11770311 | CS44: 2.545308252 | CT44: 1.327380989 | CU44: 1.763292271 | CV44: 3.09067326 | CW44: 2.360966432 | CX44: 0.9156475963 | CY44: 2.643354323 | CZ44: 5.070258727 | DA44: 1.658776209 | DB44: 3.719933039 | DC44: 2.287604675 | DD44: 6.007537714 | DE44: 3.568425287 | DF44: 0 | DG44: 0 | DH44: 0 | DI44: 0 | DJ44: 0 | DK44: 0 | DL44: 0 | DM44: 0 | DN44: 0 | DO44: 0 | DP44: 0 | DQ44: 0 | DR44: 0 | DS44: 0 | DT44: 0 | DU44: 0 | DV44: 0 | IC44: 56.29268293 | ID44: 57.02439024 | IE44: 57.63414634 | IF44: 58 | IG44: Barley grain, dried, at farm/DK Economic S | IH44: 001-0008 | II44: Vårbyg | IJ44: 0.3803571321 | IK44: 0.3803571321 | IL44: 0.3803571321 | IM44: 0.3803571321 | IN44: 0.4437 | IO44: 0.06334286789 | IP44: 1.427232385 | IQ44: 1.87 | IR44: 0.1309 | IS44: 0.3643571321 | IT44: 0.3643571321 | IU44: 7.486570033e-06 | IV44: 0.0009333726686 | IW44: 0.0006887451877 | IX44: 0.0009627573968 | IY44: 0.0006969498849 | IZ44: 0.007067659879 | JA44: 0.0001557660379 | JB44: 0.002461866327 | JC44: 0.06134914244 | JD44: 0.0017424239 | JE44: 0.002454703758 | JF44: 0.0002196354028 | JG44: 3.851291787 | JH44: 0.000196208296 | JI44: 0.0420668009 | JJ44: 0.0002729832306 | JK44: 0.016 | JM44: FEFAC | JO44: DCA rapport nr. 116, marts 2018. Tabel A1.1
A45: 48900 | B45: 489 | C45: 0 | D45: CALCIUMFORMIAT | E45: 2017-10-17 | F45: 1.051396098 | G45: 1.007701714 | H45: 100 | I45: 100 | J45: 0 | K45: 1 | L45: 99 | M45: 0 | N45: 0 | O45: 30.492 | P45: 0 | R45: 0 | S45: 0 | T45: 0 | U45: 0 | V45: 0 | W45: 0 | Y45: 308 | Z45: 0 | AA45: 0 | AB45: 0 | AC45: 0 | AD45: 0 | AE45: 0 | AF45: 0 | AG45: 0 | AH45: 0 | AI45: 0 | AJ45: 0 | AK45: 0 | AM45: 0 | AN45: 0 | AO45: 0 | AP45: 0 | AQ45: 0 | AR45: 0 | AS45: 0 | AT45: 0 | AU45: 0 | AV45: 0 | AW45: 0 | AY45: 1 | AZ45: 1 | BA45: 1 | BB45: 1 | BC45: 1 | BD45: 1 | BE45: 1 | BF45: 1 | BG45: 1 | BH45: 1 | BI45: 1 | BK45: 0 | BL45: 0 | BM45: 30.8 | BN45: 0 | BP45: 0 | BQ45: 0 | BR45: 1.06201626 | BS45: 1.017880519 | BU45: 692 | BV45: 692 | BW45: 0 | CC45: 304.92 | CD45: 0 | CE45: 0 | CF45: 0 | CG45: 0 | CH45: 0 | CI45: 0 | CK45: 0 | CL45: 0 | CM45: 0 | CN45: 0 | CO45: 0 | CP45: 0 | CQ45: 0 | CR45: 0 | CS45: 0 | CT45: 0 | CU45: 0 | CV45: 0 | CW45: 0 | CX45: 0 | CY45: 0 | CZ45: 0 | DA45: 0 | DB45: 0 | DC45: 0 | DD45: 0 | DE45: 0 | DF45: 0 | DG45: 0 | DH45: 0 | DI45: 0 | DJ45: 0 | DK45: 0 | DL45: 0 | DM45: 0 | DN45: 0 | DO45: 0 | DP45: 0 | DQ45: 0 | DR45: 0 | DS45: 0 | DT45: 0 | DU45: 0 | DV45: 0 | HW45: Calciumformiat: Ca(HCO2)2 | HX45: 0 | HY45: 0 | IC45: 0 | ID45: 0 | IE45: 0 | IF45: 0 | IG45: Total minerals, additives, vitamins, at plant/RER Economic S | IJ45: 1.49099236 | IK45: 1.49099236 | IL45: 1.49099236 | IM45: 1.49099236 | IP45: 0 | IS45: 0.1209923602 | IT45: 0.1209923602 | IU45: 4.753604154e-08 | IV45: 0.009516472635 | IW45: 0.0001749807113 | IX45: 0.0001530180815 | IY45: 0.0001811766287 | IZ45: 0.000479258052 | JA45: 5.822603595e-07 | JB45: 3.391835409e-06 | JC45: 0.03227756252 | JD45: 2.902376505e-05 | JE45: 9.252898595e-05 | JF45: 0.0001104434329 | JG45: 0.003543980903 | JH45: 0.003938967898 | JI45: 0.04435402685 | JJ45: 0.1517919422 | JK45: 1.37 | JM45: FEFAC | JO45: PORK
A46: 48400 | B46: 484 | C46: 0 | D46: CALCIUMJODAT 1%-opløsning | E46: 2017-10-17 | F46: -0.1126829268 | G46: -0.108 | H46: 70 | I46: 70 | J46: 0 | K46: 1 | L46: 99 | M46: 0 | N46: 0 | O46: 99 | P46: 0 | R46: 0 | S46: 0 | T46: 0 | U46: 0 | V46: 0 | W46: 0 | Y46: 1.038383838 | Z46: 0 | AA46: 0 | AB46: 0 | AC46: 0 | AD46: 0 | AE46: 0 | AF46: 0 | AG46: 0 | AH46: 0 | AI46: 0 | AJ46: 5959.59596 | AK46: 0 | AM46: 0 | AN46: 0 | AO46: 0 | AP46: 0 | AQ46: 0 | AR46: 0 | AS46: 0 | AT46: 0 | AU46: 0 | AV46: 0 | AW46: 0 | AY46: 1 | AZ46: 1 | BA46: 1 | BB46: 1 | BC46: 1 | BD46: 1 | BE46: 1 | BF46: 1 | BG46: 1 | BH46: 1 | BI46: 1 | BK46: 0 | BL46: 0 | BM46: 100 | BN46: 0 | BP46: 0 | BQ46: 0 | BR46: -0.1138211382 | BS46: -0.1090909091 | BU46: 0 | BV46: 0 | BW46: 0 | CC46: 1.028 | CD46: 0 | CE46: 0 | CF46: 0 | CG46: 0 | CH46: 0 | CI46: 0 | CK46: 0 | CL46: 0 | CM46: 0 | CN46: 0 | CO46: 5900 | CP46: 0 | CQ46: 0 | CR46: 0 | CS46: 0 | CT46: 0 | CU46: 0 | CV46: 0 | CW46: 0 | CX46: 0 | CY46: 0 | CZ46: 0 | DA46: 0 | DB46: 0 | DC46: 0 | DD46: 0 | DE46: 0 | DF46: 0 | DG46: 0 | DH46: 0 | DI46: 0 | DJ46: 0 | DK46: 0 | DL46: 0 | DM46: 0 | DN46: 0 | DO46: 0 | DP46: 0 | DQ46: 0 | DR46: 0 | DS46: 0 | DT46: 0 | DU46: 0 | DV46: 0 | HW46: 0 | HX46: 0 | HY46: 0 | IC46: 0 | ID46: 0 | IE46: 0 | IF46: 0 | IG46: Total minerals, additives, vitamins, at plant/RER Economic S | IJ46: 1.49099236 | IK46: 1.49099236 | IL46: 1.49099236 | IM46: 1.49099236 | IP46: 0 | IS46: 0.1209923602 | IT46: 0.1209923602 | IU46: 4.753604154e-08 | IV46: 0.009516472635 | IW46: 0.0001749807113 | IX46: 0.0001530180815 | IY46: 0.0001811766287 | IZ46: 0.000479258052 | JA46: 5.822603595e-07 | JB46: 3.391835409e-06 | JC46: 0.03227756252 | JD46: 2.902376505e-05 | JE46: 9.252898595e-05 | JF46: 0.0001104434329 | JG46: 0.003543980903 | JH46: 0.003938967898 | JI46: 0.04435402685 | JJ46: 0.1517919422 | JK46: 1.37 | JM46: FEFAC | JO46: PORK
A47: 67900 | B47: 679 | C47: 0 | D47: CIKORIE: PULVER AF CIKORIERØDDER | E47: 2017-10-23 | F47: 1.22 | G47: 1.238036807 | H47: 96.3 | I47: 88.8 | J47: 90 | K47: 1 | L47: 95.4 | M47: 6.3 | N47: 0.4025316456 | O47: 5.03164557 | P47: 4.780063291 | R47: 50 | S47: 50 | T47: 50 | U47: 50 | V47: 50 | W47: 50 | Y47: 2.578616352 | Z47: 2.421383648 | AA47: 1.424050633 | AB47: 0 | AC47: 13.5021097 | AD47: 1.234177215 | AE47: 0 | AF47: 360.7594937 | AG47: 19.51476793 | AH47: 59.07172996 | AI47: 129.7468354 | AJ47: 0 | AK47: 0 | AM47: 2.873015873 | AN47: 0.7301587302 | AO47: 0.5555914286 | AP47: 2.523809524 | AQ47: 0.9272727273 | AR47: 2.436363636 | AS47: 3.272727273 | AT47: 1.254545455 | AU47: 2.163636364 | AV47: 1.2 | AW47: 2.927272727 | AY47: 1 | AZ47: 1 | BA47: 1 | BB47: 1 | BC47: 1 | BD47: 1 | BE47: 1 | BF47: 1 | BG47: 1 | BH47: 1 | BI47: 1 | BK47: 6.603773585 | BL47: 0.4219409283 | BM47: 5.274261603 | BN47: 5.010548523 | BP47: 0 | BQ47: 0 | BR47: 1.278825996 | BS47: 1.297732502 | BU47: 947.257384 | BV47: 746.5298316 | BW47: 101.4918626 | BY47: 156 | BZ47: 62.30881436 | CA47: 67.50121555 | CC47: 2.46 | CD47: 2.31 | CE47: 1.358544304 | CF47: 0 | CG47: 12.88101266 | CH47: 1.177405063 | CI47: 0 | CK47: 344.164557 | CL47: 18.61708861 | CM47: 56.35443038 | CN47: 123.778481 | CO47: 0 | CP47: 0 | CQ47: 31.5 | CR47: 25.81967213 | CS47: 0.7418032787 | CT47: 0.1885245902 | CU47: 0.1434518852 | CV47: 0.3319764754 | CW47: 0.6516393443 | CX47: 0.2394187779 | CY47: 0.6290611028 | CZ47: 0.8450074516 | DA47: 0.3239195231 | DB47: 0.5586438152 | DC47: 0.3098360656 | DD47: 0.8684798808 | DE47: 0.7558122206 | DF47: 0 | DG47: 0 | DH47: 0 | DI47: 0 | DJ47: 0 | DK47: 0 | DL47: 0 | DM47: 0 | DN47: 0 | DO47: 0 | DP47: 0 | DQ47: 0 | DR47: 0 | DS47: 0 | DT47: 0 | DU47: 0 | DV47: 0 | DW47: 4.4.6 | DY47: 4 | DZ47: 4 | EA47: 4 | EH47: 4 | EI47: 4 | EJ47: 4 | EK47: 4 | ES47: 4 | ET47: 4 | FG47: 0.05 | FI47: 0.1 | FN47: 0.65 | FO47: 0.7 | FP47: 0.04 | FR47: 0.01 | FS47: 0.02 | GA47: 0.09 | GB47: 0.07 | GN47: 2013 | GO47: 2013 | GP47: 2013 | GQ47: 2013 | GV47: 2013 | GW47: 2013 | GX47: 2013 | GY47: 2013 | GZ47: 2013 | HA47: 2013 | HI47: 21013 | HJ47: 2013 | HW47: Indholdet af opløselige og uopløselige fibre er beregnet, se versionsbeskrivelsen for 3. juni 2016 | HX47: 0 | HY47: 0 | IC47: 50 | ID47: 50 | IE47: 50 | IF47: 50 | IK47: 0.56 | IM47: 0.56 | IN47: 0.56 | JL47: Ja | JM47: Default | JP47: 0.56
A48: 94700 | B48: 947 | C48: 0 | D48: CITRONSYRE (1% vand) | E48: 2017-10-23 | F48: 1.569511973 | G48: 1.504285502 | H48: 100 | I48: 100 | J48: 100 | K48: 1 | L48: 99 | M48: 0.0001 | N48: 0 | O48: 0 | P48: 0 | R48: 0 | S48: 0 | T48: 0 | U48: 0 | V48: 0 | W48: 0 | Y48: 0 | Z48: 0 | AA48: 0 | AB48: 0 | AC48: 0 | AD48: 0 | AE48: 0 | AF48: 0 | AG48: 0 | AH48: 0 | AI48: 0 | AJ48: 0 | AK48: 0 | AM48: 0 | AN48: 0 | AO48: 0 | AP48: 0 | AQ48: 0 | AR48: 0 | AS48: 0 | AT48: 0 | AU48: 0 | AV48: 0 | AW48: 0 | AY48: 1 | AZ48: 1 | BA48: 1 | BB48: 1 | BC48: 1 | BD48: 1 | BE48: 1 | BF48: 1 | BG48: 1 | BH48: 1 | BI48: 1 | BK48: 0.000101010101 | BL48: 0 | BM48: 0 | BN48: 0 | BP48: 0 | BQ48: 0 | BR48: 1.58536563 | BS48: 1.519480305 | BU48: 1000 | BV48: 999.9990808 | BW48: 0 | CC48: 0 | CD48: 0 | CE48: 0 | CF48: 0 | CG48: 0 | CH48: 0 | CI48: 0 | CK48: 0 | CL48: 0 | CM48: 0 | CN48: 0 | CO48: 0 | CP48: 0 | CQ48: 0 | CR48: 0 | CS48: 0 | CT48: 0 | CU48: 0 | CV48: 0 | CW48: 0 | CX48: 0 | CY48: 0 | CZ48: 0 | DA48: 0 | DB48: 0 | DC48: 0 | DD48: 0 | DE48: 0 | DF48: 0 | DG48: 0 | DH48: 0 | DI48: 0 | DJ48: 0 | DK48: 0 | DL48: 0 | DM48: 0 | DN48: 0 | DO48: 0 | DP48: 0 | DQ48: 0 | DR48: 0 | DS48: 0 | DT48: 0 | DU48: 0 | DV48: 0 | HW48: 0 | HX48: 0 | HY48: 0 | IC48: 0 | ID48: 0 | IE48: 0 | IF48: 0 | IG48: Total minerals, additives, vitamins, at plant/RER Economic S | IJ48: 1.49099236 | IK48: 1.49099236 | IL48: 1.49099236 | IM48: 1.49099236 | IP48: 0 | IS48: 0.1209923602 | IT48: 0.1209923602 | IU48: 4.753604154e-08 | IV48: 0.009516472635 | IW48: 0.0001749807113 | IX48: 0.0001530180815 | IY48: 0.0001811766287 | IZ48: 0.000479258052 | JA48: 5.822603595e-07 | JB48: 3.391835409e-06 | JC48: 0.03227756252 | JD48: 2.902376505e-05 | JE48: 9.252898595e-05 | JF48: 0.0001104434329 | JG48: 0.003543980903 | JH48: 0.003938967898 | JI48: 0.04435402685 | JJ48: 0.1517919422 | JK48: 1.37 | JM48: FEFAC | JO48: PORK
A49: 71000 | B49: 710 | C49: 0 | D49: CITRUSKVAS TØR (Obs.: Gamle data) | E49: 2010-05-12 | F49: 0.669398911 | G49: 0.7953288055 | H49: 92.5 | I49: 46.4 | J49: 80 | K49: 1 | L49: 88.2 | M49: 5.9976 | N49: 2.4696 | O49: 5.9094 | P49: 11.6424 | R49: 11.42967437 | Y49: 14.7 | Z49: 1.3 | AA49: 0.4 | AB49: 0 | AC49: 10 | AD49: 1.7 | AE49: 1.1 | AF49: 100 | AG49: 5.8 | AH49: 12 | AI49: 12 | AJ49: 0 | AK49: 0.05 | AM49: 2.62 | AN49: 1.09 | AO49: 1.38 | AP49: 2.9 | AQ49: 0.78 | AR49: 2.8 | AS49: 5.02 | AT49: 1.78 | AU49: 3.41 | AV49: 2.21 | AW49: 3.71 | AY49: 1 | AZ49: 1 | BA49: 1 | BB49: 1 | BC49: 1 | BD49: 1 | BE49: 1 | BF49: 1 | BG49: 1 | BH49: 1 | BI49: 1 | BK49: 6.8 | BL49: 2.8 | BM49: 6.7 | BN49: 13.2 | BP49: 0 | BQ49: 0 | BR49: 0.7589556814 | BS49: 0.9017333395 | BU49: 933 | BV49: 159.5378571 | BW49: 614.4471429 | CC49: 12.9654 | CD49: 1.1466 | CE49: 0.3528 | CF49: 0 | CG49: 8.82 | CH49: 1.4994 | CI49: 0.9702 | CK49: 88.2 | CL49: 5.1156 | CM49: 10.584 | CN49: 10.584 | CO49: 0 | CP49: 0.0441 | CQ49: 6.8550615 | CR49: 10.24062243 | CS49: 0.2683043076 | CT49: 0.1116227844 | CU49: 0.1413205895 | CV49: 0.2529433739 | CW49: 0.2969780504 | CX49: 0.07987685493 | CY49: 0.2867374279 | CZ49: 0.5140792458 | DA49: 0.1822830792 | DB49: 0.3492052247 | DC49: 0.2263177556 | DD49: 0.5755229804 | DE49: 0.379927092 | DF49: 0 | DG49: 0 | DH49: 0 | DI49: 0 | DJ49: 0 | DK49: 0 | DL49: 0 | DM49: 0 | DN49: 0 | DO49: 0 | DP49: 0 | DQ49: 0 | DR49: 0 | DS49: 0 | DT49: 0 | DU49: 0 | DV49: 0 | DW49: 5.13.2 | HW49: Citruskvas er et biprodukt, der fremkommer ved presning af citrusfrugter (Citrus ssp.) ved fremstilling af citrussaft og som består af citrusskaller samt rester og cellevægge af selve frugten, der tørres, findeles og sælges som citruskvas. Der er ikke forsøgsmæssig eller erfaringsmæssig baggrund for brug af citruskvas i foder til svin. Det vurderes, at citruskvas kun er relevant at overveje i foder til drægtige søer. | HX49: 0 | HY49: 0 | IH49: 005-0002 | II49: Citruskvas | IJ49: 0.792918 | IK49: 0.792918 | IM49: 0.792918 | IN49: 0.792918 | IO49: 0 | IQ49: 0.07938 | IR49: 0 | JM49: NorFor | JP49: 0.792918
A50: 99940 | B50: 999 | C50: 40 | D50: CYSTIN,L98,5 | E50: 2017-10-23 | F50: 1.138989702 | G50: 1.091655065 | H50: 100 | I50: 100 | J50: 100 | K50: 1 | L50: 100 | M50: 84.8 | N50: 0 | O50: 15.2 | P50: 0 | R50: 100 | S50: 0 | T50: 0 | U50: 0 | V50: 0 | W50: 0 | Y50: 0 | Z50: 0 | AA50: 0 | AB50: 0 | AC50: 0 | AD50: 0 | AE50: 0 | AF50: 0 | AG50: 0 | AH50: 0 | AI50: 0 | AJ50: 0 | AK50: 0 | AM50: 0 | AN50: 0 | AO50: 116.700019 | AP50: 0 | AQ50: 0 | AR50: 0 | AS50: 0 | AT50: 0 | AU50: 0 | AV50: 0 | AW50: 0 | AY50: 1 | AZ50: 1 | BA50: 1 | BB50: 1 | BC50: 1 | BD50: 1 | BE50: 1 | BF50: 1 | BG50: 1 | BH50: 1 | BI50: 1 | BK50: 84.8 | BL50: 0 | BM50: 15.2 | BN50: 0 | BP50: 0 | BQ50: 0 | BR50: 1.138989702 | BS50: 1.091655065 | BU50: 848 | BV50: 76.32 | BW50: 0 | BX50: 0 | BY50: 0 | CC50: 0 | CD50: 0 | CE50: 0 | CF50: 0 | CG50: 0 | CH50: 0 | CI50: 0 | CK50: 0 | CL50: 0 | CM50: 0 | CN50: 0 | CO50: 0 | CP50: 0 | CQ50: 848 | CR50: 744.5194619 | CS50: 0 | CT50: 0 | CU50: 868.8543535 | CV50: 868.8543535 | CW50: 0 | CX50: 0 | CY50: 0 | CZ50: 0 | DA50: 0 | DB50: 0 | DC50: 0 | DD50: 0 | DE50: 0 | DF50: 0 | DG50: 0 | DH50: 0 | DI50: 0 | DJ50: 0 | DK50: 0 | DL50: 0 | DM50: 0 | DN50: 0 | DO50: 0 | DP50: 0 | DQ50: 0 | DR50: 0 | DS50: 0 | DT50: 0 | DU50: 0 | DV50: 0 | IC50: 0 | ID50: 0 | IE50: 0 | IF50: 0 | IG50: Total minerals, additives, vitamins, at plant/RER Economic S | IJ50: 1.49099236 | IK50: 1.49099236 | IL50: 1.49099236 | IM50: 1.49099236 | IP50: 0 | IS50: 0.1209923602 | IT50: 0.1209923602 | IU50: 4.753604154e-08 | IV50: 0.009516472635 | IW50: 0.0001749807113 | IX50: 0.0001530180815 | IY50: 0.0001811766287 | IZ50: 0.000479258052 | JA50: 5.822603595e-07 | JB50: 3.391835409e-06 | JC50: 0.03227756252 | JD50: 2.902376505e-05 | JE50: 9.252898595e-05 | JF50: 0.0001104434329 | JG50: 0.003543980903 | JH50: 0.003938967898 | JI50: 0.04435402685 | JJ50: 0.1517919422 | JK50: 1.37 | JM50: FEFAC | JO50: PORK
A51: 47100 | B51: 471 | C51: 0 | D51: Ca-Na-FOSFAT | E51: 2017-10-17 | F51: -0.1126829268 | G51: -0.108 | H51: 70 | I51: 70 | J51: 0 | K51: 1 | L51: 99 | M51: 0 | N51: 0 | O51: 99 | P51: 0 | R51: 0 | S51: 50 | T51: 50 | U51: 50 | V51: 50 | W51: 50 | Y51: 303.0303 | Z51: 181.81818 | AA51: 50.50505051 | AB51: 0 | AC51: 0 | AD51: 0 | AE51: 0 | AF51: 0 | AG51: 0 | AH51: 0 | AI51: 0 | AJ51: 0 | AK51: 0 | AM51: 0 | AN51: 0 | AO51: 0 | AP51: 0 | AQ51: 0 | AR51: 0 | AS51: 0 | AT51: 0 | AU51: 0 | AV51: 0 | AW51: 0 | AY51: 1 | AZ51: 1 | BA51: 1 | BB51: 1 | BC51: 1 | BD51: 1 | BE51: 1 | BF51: 1 | BG51: 1 | BH51: 1 | BI51: 1 | BK51: 0 | BL51: 0 | BM51: 100 | BN51: 0 | BP51: 0 | BQ51: 0 | BR51: -0.1138211382 | BS51: -0.1090909091 | BU51: 0 | BV51: 0 | BW51: 0 | CC51: 299.999997 | CD51: 179.9999982 | CE51: 50 | CF51: 0 | CG51: 0 | CH51: 0 | CI51: 0 | CK51: 0 | CL51: 0 | CM51: 0 | CN51: 0 | CO51: 0 | CP51: 0 | CQ51: 0 | CR51: 0 | CS51: 0 | CT51: 0 | CU51: 0 | CV51: 0 | CW51: 0 | CX51: 0 | CY51: 0 | CZ51: 0 | DA51: 0 | DB51: 0 | DC51: 0 | DD51: 0 | DE51: 0 | DF51: 0 | DG51: 0 | DH51: 0 | DI51: 0 | DJ51: 0 | DK51: 0 | DL51: 0 | DM51: 0 | DN51: 0 | DO51: 0 | DP51: 0 | DQ51: 0 | DR51: 0 | DS51: 0 | DT51: 0 | DU51: 0 | DV51: 0 | DW51: 11.3.16 | HW51: 0 | HX51: 0 | HY51: 0 | IC51: 50 | ID51: 50 | IE51: 50 | IF51: 50 | IG51: Total minerals, additives, vitamins, at plant/RER Economic S | IJ51: 1.49099236 | IK51: 1.49099236 | IL51: 1.49099236 | IM51: 1.49099236 | IP51: 0 | IS51: 0.1209923602 | IT51: 0.1209923602 | IU51: 4.753604154e-08 | IV51: 0.009516472635 | IW51: 0.0001749807113 | IX51: 0.0001530180815 | IY51: 0.0001811766287 | IZ51: 0.000479258052 | JA51: 5.822603595e-07 | JB51: 3.391835409e-06 | JC51: 0.03227756252 | JD51: 2.902376505e-05 | JE51: 9.252898595e-05 | JF51: 0.0001104434329 | JG51: 0.003543980903 | JH51: 0.003938967898 | JI51: 0.04435402685 | JJ51: 0.1517919422 | JK51: 1.37 | JM51: FEFAC | JO51: PORK
A52: 47101 | B52: 471 | C52: 1 | D52: Ca-Na-FOSFAT Nagel | E52: 2017-10-17 | F52: -0.1126829268 | G52: -0.108 | H52: 70 | I52: 70 | J52: 0 | K52: 1 | L52: 99 | M52: 0 | N52: 0 | O52: 99 | P52: 0 | R52: 0 | S52: 59 | T52: 59 | U52: 59 | V52: 59 | W52: 59 | Y52: 309.0909091 | Z52: 181.81818 | AA52: 51.51515152 | AB52: 0 | AC52: 0 | AD52: 0 | AE52: 0 | AF52: 0 | AG52: 0 | AH52: 0 | AI52: 0 | AJ52: 0 | AK52: 0 | AM52: 0 | AN52: 0 | AO52: 0 | AP52: 0 | AQ52: 0 | AR52: 0 | AS52: 0 | AT52: 0 | AU52: 0 | AV52: 0 | AW52: 0 | AY52: 1 | AZ52: 1 | BA52: 1 | BB52: 1 | BC52: 1 | BD52: 1 | BE52: 1 | BF52: 1 | BG52: 1 | BH52: 1 | BI52: 1 | BK52: 0 | BL52: 0 | BM52: 100 | BN52: 0 | BP52: 0 | BQ52: 0 | BR52: -0.1138211382 | BS52: -0.1090909091 | BU52: 0 | BV52: 0 | BW52: 0 | CC52: 306 | CD52: 179.9999982 | CE52: 51 | CF52: 0 | CG52: 0 | CH52: 0 | CI52: 0 | CK52: 0 | CL52: 0 | CM52: 0 | CN52: 0 | CO52: 0 | CP52: 0 | CQ52: 0 | CR52: 0 | CS52: 0 | CT52: 0 | CU52: 0 | CV52: 0 | CW52: 0 | CX52: 0 | CY52: 0 | CZ52: 0 | DA52: 0 | DB52: 0 | DC52: 0 | DD52: 0 | DE52: 0 | DF52: 0 | DG52: 0 | DH52: 0 | DI52: 0 | DJ52: 0 | DK52: 0 | DL52: 0 | DM52: 0 | DN52: 0 | DO52: 0 | DP52: 0 | DQ52: 0 | DR52: 0 | DS52: 0 | DT52: 0 | DU52: 0 | DV52: 0 | HW52: 0 | HX52: 0 | HY52: 0 | IC52: 59 | ID52: 59 | IE52: 59 | IF52: 59 | IG52: Total minerals, additives, vitamins, at plant/RER Economic S | IJ52: 1.49099236 | IK52: 1.49099236 | IL52: 1.49099236 | IM52: 1.49099236 | IP52: 0 | IS52: 0.1209923602 | IT52: 0.1209923602 | IU52: 4.753604154e-08 | IV52: 0.009516472635 | IW52: 0.0001749807113 | IX52: 0.0001530180815 | IY52: 0.0001811766287 | IZ52: 0.000479258052 | JA52: 5.822603595e-07 | JB52: 3.391835409e-06 | JC52: 0.03227756252 | JD52: 2.902376505e-05 | JE52: 9.252898595e-05 | JF52: 0.0001104434329 | JG52: 0.003543980903 | JH52: 0.003938967898 | JI52: 0.04435402685 | JJ52: 0.1517919422 | JK52: 1.37 | JM52: FEFAC | JO52: PORK
A53: 47300 | B53: 473 | C53: 0 | D53: Ca-Na-FOSFAT+ P-syre | E53: 2017-10-17 | F53: -0.1126829268 | G53: -0.108 | H53: 70 | I53: 70 | J53: 0 | K53: 1 | L53: 99 | M53: 0 | N53: 0 | O53: 99 | P53: 0 | R53: 0 | S53: 55 | T53: 55 | U53: 55 | V53: 55 | W53: 55 | Y53: 202.020202 | Z53: 207.0707071 | AA53: 30.3030303 | AB53: 0 | AC53: 0 | AD53: 0 | AE53: 0 | AF53: 0 | AG53: 0 | AH53: 0 | AI53: 0 | AJ53: 0 | AK53: 0 | AM53: 0 | AN53: 0 | AO53: 0 | AP53: 0 | AQ53: 0 | AR53: 0 | AS53: 0 | AT53: 0 | AU53: 0 | AV53: 0 | AW53: 0 | AY53: 1 | AZ53: 1 | BA53: 1 | BB53: 1 | BC53: 1 | BD53: 1 | BE53: 1 | BF53: 1 | BG53: 1 | BH53: 1 | BI53: 1 | BK53: 0 | BL53: 0 | BM53: 100 | BN53: 0 | BP53: 0 | BQ53: 0 | BR53: -0.1138211382 | BS53: -0.1090909091 | BU53: 0 | BV53: 0 | BW53: 0 | CC53: 200 | CD53: 205 | CE53: 30 | CF53: 0 | CG53: 0 | CH53: 0 | CI53: 0 | CK53: 0 | CL53: 0 | CM53: 0 | CN53: 0 | CO53: 0 | CP53: 0 | CQ53: 0 | CR53: 0 | CS53: 0 | CT53: 0 | CU53: 0 | CV53: 0 | CW53: 0 | CX53: 0 | CY53: 0 | CZ53: 0 | DA53: 0 | DB53: 0 | DC53: 0 | DD53: 0 | DE53: 0 | DF53: 0 | DG53: 0 | DH53: 0 | DI53: 0 | DJ53: 0 | DK53: 0 | DL53: 0 | DM53: 0 | DN53: 0 | DO53: 0 | DP53: 0 | DQ53: 0 | DR53: 0 | DS53: 0 | DT53: 0 | DU53: 0 | DV53: 0 | HW53: 0 | HX53: 0 | HY53: 0 | IC53: 55 | ID53: 55 | IE53: 55 | IF53: 55 | IG53: Total minerals, additives, vitamins, at plant/RER Economic S | IJ53: 1.49099236 | IK53: 1.49099236 | IL53: 1.49099236 | IM53: 1.49099236 | IP53: 0 | IS53: 0.1209923602 | IT53: 0.1209923602 | IU53: 4.753604154e-08 | IV53: 0.009516472635 | IW53: 0.0001749807113 | IX53: 0.0001530180815 | IY53: 0.0001811766287 | IZ53: 0.000479258052 | JA53: 5.822603595e-07 | JB53: 3.391835409e-06 | JC53: 0.03227756252 | JD53: 2.902376505e-05 | JE53: 9.252898595e-05 | JF53: 0.0001104434329 | JG53: 0.003543980903 | JH53: 0.003938967898 | JI53: 0.04435402685 | JJ53: 0.1517919422 | JK53: 1.37 | JM53: FEFAC | JO53: PORK
A54: 47301 | B54: 473 | C54: 1 | D54: Ca-Na-FOSFAT+ P-syre, Nagel | E54: 2017-10-17 | F54: -0.1126829268 | G54: -0.108 | H54: 70 | I54: 70 | J54: 0 | K54: 1 | L54: 99 | M54: 0 | N54: 0 | O54: 99 | P54: 0 | R54: 0 | S54: 63 | T54: 63 | U54: 63 | V54: 63 | W54: 63 | Y54: 203.030303 | Z54: 208.0808081 | AA54: 32.32323232 | AB54: 0 | AC54: 0 | AD54: 0 | AE54: 0 | AF54: 0 | AG54: 0 | AH54: 0 | AI54: 0 | AJ54: 0 | AK54: 0 | AM54: 0 | AN54: 0 | AO54: 0 | AP54: 0 | AQ54: 0 | AR54: 0 | AS54: 0 | AT54: 0 | AU54: 0 | AV54: 0 | AW54: 0 | AY54: 1 | AZ54: 1 | BA54: 1 | BB54: 1 | BC54: 1 | BD54: 1 | BE54: 1 | BF54: 1 | BG54: 1 | BH54: 1 | BI54: 1 | BK54: 0 | BL54: 0 | BM54: 100 | BN54: 0 | BP54: 0 | BQ54: 0 | BR54: -0.1138211382 | BS54: -0.1090909091 | BU54: 0 | BV54: 0 | BW54: 0 | CC54: 201 | CD54: 206 | CE54: 32 | CF54: 0 | CG54: 0 | CH54: 0 | CI54: 0 | CK54: 0 | CL54: 0 | CM54: 0 | CN54: 0 | CO54: 0 | CP54: 0 | CQ54: 0 | CR54: 0 | CS54: 0 | CT54: 0 | CU54: 0 | CV54: 0 | CW54: 0 | CX54: 0 | CY54: 0 | CZ54: 0 | DA54: 0 | DB54: 0 | DC54: 0 | DD54: 0 | DE54: 0 | DF54: 0 | DG54: 0 | DH54: 0 | DI54: 0 | DJ54: 0 | DK54: 0 | DL54: 0 | DM54: 0 | DN54: 0 | DO54: 0 | DP54: 0 | DQ54: 0 | DR54: 0 | DS54: 0 | DT54: 0 | DU54: 0 | DV54: 0 | HW54: 0 | HX54: 0 | HY54: 0 | IC54: 63 | ID54: 63 | IE54: 63 | IF54: 63 | IG54: Total minerals, additives, vitamins, at plant/RER Economic S | IJ54: 1.49099236 | IK54: 1.49099236 | IL54: 1.49099236 | IM54: 1.49099236 | IP54: 0 | IS54: 0.1209923602 | IT54: 0.1209923602 | IU54: 4.753604154e-08 | IV54: 0.009516472635 | IW54: 0.0001749807113 | IX54: 0.0001530180815 | IY54: 0.0001811766287 | IZ54: 0.000479258052 | JA54: 5.822603595e-07 | JB54: 3.391835409e-06 | JC54: 0.03227756252 | JD54: 2.902376505e-05 | JE54: 9.252898595e-05 | JF54: 0.0001104434329 | JG54: 0.003543980903 | JH54: 0.003938967898 | JI54: 0.04435402685 | JJ54: 0.1517919422 | JK54: 1.37 | JM54: FEFAC | JO54: PORK
A55: 46102 | B55: 461 | C55: 2 | D55: DCP dihydrat | E55: 2017-10-17 | F55: -0.1126829268 | G55: -0.108 | H55: 70 | I55: 70 | J55: 0 | K55: 1 | L55: 99 | M55: 0 | N55: 0 | O55: 99 | P55: 0 | R55: 0 | S55: 55 | T55: 55 | U55: 55 | V55: 55 | W55: 55 | Y55: 252.52525 | Z55: 183.83838 | AA55: 0 | AB55: 0 | AC55: 0 | AD55: 0 | AE55: 0 | AF55: 0 | AG55: 0 | AH55: 0 | AI55: 0 | AJ55: 0 | AK55: 0 | AM55: 0 | AN55: 0 | AO55: 0 | AP55: 0 | AQ55: 0 | AR55: 0 | AS55: 0 | AT55: 0 | AU55: 0 | AV55: 0 | AW55: 0 | AY55: 1 | AZ55: 1 | BA55: 1 | BB55: 1 | BC55: 1 | BD55: 1 | BE55: 1 | BF55: 1 | BG55: 1 | BH55: 1 | BI55: 1 | BK55: 0 | BL55: 0 | BM55: 100 | BN55: 0 | BP55: 0 | BQ55: 0 | BR55: -0.1138211382 | BS55: -0.1090909091 | BU55: 0 | BV55: 0 | BW55: 0 | CC55: 249.9999975 | CD55: 181.9999962 | CE55: 0 | CF55: 0 | CG55: 0 | CH55: 0 | CI55: 0 | CK55: 0 | CL55: 0 | CM55: 0 | CN55: 0 | CO55: 0 | CP55: 0 | CQ55: 0 | CR55: 0 | CS55: 0 | CT55: 0 | CU55: 0 | CV55: 0 | CW55: 0 | CX55: 0 | CY55: 0 | CZ55: 0 | DA55: 0 | DB55: 0 | DC55: 0 | DD55: 0 | DE55: 0 | DF55: 0 | DG55: 0 | DH55: 0 | DI55: 0 | DJ55: 0 | DK55: 0 | DL55: 0 | DM55: 0 | DN55: 0 | DO55: 0 | DP55: 0 | DQ55: 0 | DR55: 0 | DS55: 0 | DT55: 0 | DU55: 0 | DV55: 0 | HW55: 0 | HX55: 0 | HY55: 0 | IC55: 55 | ID55: 55 | IE55: 55 | IF55: 55 | IG55: Total minerals, additives, vitamins, at plant/RER Economic S | IJ55: 1.49099236 | IK55: 1.49099236 | IL55: 1.49099236 | IM55: 1.49099236 | IP55: 0 | IS55: 0.1209923602 | IT55: 0.1209923602 | IU55: 4.753604154e-08 | IV55: 0.009516472635 | IW55: 0.0001749807113 | IX55: 0.0001530180815 | IY55: 0.0001811766287 | IZ55: 0.000479258052 | JA55: 5.822603595e-07 | JB55: 3.391835409e-06 | JC55: 0.03227756252 | JD55: 2.902376505e-05 | JE55: 9.252898595e-05 | JF55: 0.0001104434329 | JG55: 0.003543980903 | JH55: 0.003938967898 | JI55: 0.04435402685 | JJ55: 0.1517919422 | JK55: 1.37 | JM55: FEFAC | JO55: PORK
A56: 46100 | B56: 461 | C56: 0 | D56: DICALCIUMFOSFAT | E56: 2017-10-17 | F56: -0.1126829268 | G56: -0.108 | H56: 70 | I56: 70 | J56: 0 | K56: 1 | L56: 99 | M56: 0 | N56: 0 | O56: 99 | P56: 0 | R56: 0 | S56: 50 | T56: 50 | U56: 50 | V56: 50 | W56: 50 | Y56: 252.52525 | Z56: 181.81818 | AA56: 0 | AB56: 0 | AC56: 0 | AD56: 0 | AE56: 0 | AF56: 0 | AG56: 0 | AH56: 0 | AI56: 0 | AJ56: 0 | AK56: 0 | AM56: 0 | AN56: 0 | AO56: 0 | AP56: 0 | AQ56: 0 | AR56: 0 | AS56: 0 | AT56: 0 | AU56: 0 | AV56: 0 | AW56: 0 | AY56: 1 | AZ56: 1 | BA56: 1 | BB56: 1 | BC56: 1 | BD56: 1 | BE56: 1 | BF56: 1 | BG56: 1 | BH56: 1 | BI56: 1 | BK56: 0 | BL56: 0 | BM56: 100 | BN56: 0 | BP56: 0 | BQ56: 0 | BR56: -0.1138211382 | BS56: -0.1090909091 | BU56: 0 | BV56: 0 | BW56: 0 | CC56: 249.9999975 | CD56: 179.9999982 | CE56: 0 | CF56: 0 | CG56: 0 | CH56: 0 | CI56: 0 | CK56: 0 | CL56: 0 | CM56: 0 | CN56: 0 | CO56: 0 | CP56: 0 | CQ56: 0 | CR56: 0 | CS56: 0 | CT56: 0 | CU56: 0 | CV56: 0 | CW56: 0 | CX56: 0 | CY56: 0 | CZ56: 0 | DA56: 0 | DB56: 0 | DC56: 0 | DD56: 0 | DE56: 0 | DF56: 0 | DG56: 0 | DH56: 0 | DI56: 0 | DJ56: 0 | DK56: 0 | DL56: 0 | DM56: 0 | DN56: 0 | DO56: 0 | DP56: 0 | DQ56: 0 | DR56: 0 | DS56: 0 | DT56: 0 | DU56: 0 | DV56: 0 | DW56: 11.3.1 | HW56: 0 | HX56: 0 | HY56: 0 | IC56: 50 | ID56: 50 | IE56: 50 | IF56: 50 | IG56: Total minerals, additives, vitamins, at plant/RER Economic S | IJ56: 1.49099236 | IK56: 1.49099236 | IL56: 1.49099236 | IM56: 1.49099236 | IP56: 0 | IS56: 0.1209923602 | IT56: 0.1209923602 | IU56: 4.753604154e-08 | IV56: 0.009516472635 | IW56: 0.0001749807113 | IX56: 0.0001530180815 | IY56: 0.0001811766287 | IZ56: 0.000479258052 | JA56: 5.822603595e-07 | JB56: 3.391835409e-06 | JC56: 0.03227756252 | JD56: 2.902376505e-05 | JE56: 9.252898595e-05 | JF56: 0.0001104434329 | JG56: 0.003543980903 | JH56: 0.003938967898 | JI56: 0.04435402685 | JJ56: 0.1517919422 | JK56: 1.37 | JM56: FEFAC | JO56: PORK
A57: 39012 | B57: 390 | C57: 12 | D57: E-10 VIT TILSKUD (kun E-vit ) | E57: 2017-10-31 | F57: 0.4002290554 | G57: 0.4081281135 | H57: 64.2 | I57: 70 | J57: 30 | K57: 1 | L57: 97.3 | M57: 1 | N57: 0.9 | O57: 51.7 | P57: 18.2 | R57: 0 | S57: 0 | T57: 0 | U57: 0 | V57: 0 | W57: 0 | Y57: 0 | Z57: 0 | AA57: 0 | AB57: 0 | AC57: 0 | AD57: 0 | AE57: 0 | AF57: 0 | AG57: 0 | AH57: 0 | AI57: 0 | AJ57: 0 | AK57: 0 | AM57: 0 | AN57: 0 | AO57: 0 | AP57: 0 | AQ57: 0 | AR57: 0 | AS57: 0 | AT57: 0 | AU57: 0 | AV57: 0 | AW57: 0 | AY57: 1 | AZ57: 1 | BA57: 1 | BB57: 1 | BC57: 1 | BD57: 1 | BE57: 1 | BF57: 1 | BG57: 1 | BH57: 1 | BI57: 1 | BK57: 1.027749229 | BL57: 0.9249743063 | BM57: 53.13463515 | BN57: 18.70503597 | BP57: 0 | BQ57: 0 | BR57: 0.4113351031 | BS57: 0.4194533541 | BU57: 468.6536485 | BV57: 321.3821759 | BW57: -38.83130231 | BX57: 0 | BY57: 0 | CC57: 0 | CD57: 0 | CE57: 0 | CF57: 0 | CG57: 0 | CH57: 0 | CI57: 0 | CK57: 0 | CL57: 0 | CM57: 0 | CN57: 0 | CO57: 0 | CP57: 0 | CQ57: 0 | CR57: 0 | CS57: 0 | CT57: 0 | CU57: 0 | CV57: 0 | CW57: 0 | CX57: 0 | CY57: 0 | CZ57: 0 | DA57: 0 | DB57: 0 | DC57: 0 | DD57: 0 | DE57: 0 | DF57: 0 | DG57: 0 | DH57: 0 | DI57: 0 | DJ57: 0 | DK57: 9100 | DL57: 0 | DM57: 0 | DN57: 0 | DO57: 0 | DP57: 0 | DQ57: 0 | DR57: 0 | DS57: 0 | DT57: 0 | DU57: 0 | DV57: 0 | HW57: 0 | HX57: 0 | HY57: 0 | IC57: 0 | ID57: 0 | IE57: 0 | IF57: 0 | IG57: Mineral premix, for pigs, at plant/RER Economic S | IH57: 014-0033 | II57: E- vitaminer, pulver | IJ57: 1.485656305 | IK57: 1.485656305 | IL57: 1.485656305 | IM57: 1.485656305 | IN57: 0.3892 | IO57: -1.096456305 | IP57: 0 | IQ57: 0 | IR57: 0 | IS57: 0.1156563048 | IT57: 0.1156563048 | IU57: 4.743459854e-08 | IV57: 0.00982597081 | IW57: 0.0001454961354 | IX57: 0.0001490426886 | IY57: 0.0001513621527 | IZ57: 0.0004687856144 | JA57: 5.991363962e-07 | JB57: 3.487808486e-06 | JC57: 0.02948302621 | JD57: 2.988295033e-05 | JE57: 8.221284471e-05 | JF57: 0.0001082914135 | JG57: 0.003565373186 | JH57: 0.003247109972 | JI57: 0.04003629026 | JJ57: 0.158417433 | JK57: 1.37 | JM57: FEFAC | JO57: PORK
A58: 39013 | B58: 390 | C58: 13 | D58: E-25 VIT TILSKUD (kun E-vit ) | E58: 2017-10-31 | F58: 0.3951674313 | G58: 0.4015945729 | H58: 61.7 | I58: 70 | J58: 30 | K58: 1 | L58: 97.4 | M58: 1 | N58: 0.8 | O58: 51.5 | P58: 17.1 | R58: 0 | S58: 0 | T58: 0 | U58: 0 | V58: 0 | W58: 0 | Y58: 0 | Z58: 0 | AA58: 0 | AB58: 0 | AC58: 0 | AD58: 0 | AE58: 0 | AF58: 0 | AG58: 0 | AH58: 0 | AI58: 0 | AJ58: 0 | AK58: 0 | AM58: 0 | AN58: 0 | AO58: 0 | AP58: 0 | AQ58: 0 | AR58: 0 | AS58: 0 | AT58: 0 | AU58: 0 | AV58: 0 | AW58: 0 | AY58: 1 | AZ58: 1 | BA58: 1 | BB58: 1 | BC58: 1 | BD58: 1 | BE58: 1 | BF58: 1 | BG58: 1 | BH58: 1 | BI58: 1 | BK58: 1.026694045 | BL58: 0.8213552361 | BM58: 52.87474333 | BN58: 17.55646817 | BP58: 59 | BQ58: 4.845995893 | BR58: 0.4057160485 | BS58: 0.4123147566 | BU58: 471.2525667 | BV58: 329.3298621 | BW58: -55.87709006 | BX58: 0 | BY58: 0 | CC58: 0 | CD58: 0 | CE58: 0 | CF58: 0 | CG58: 0 | CH58: 0 | CI58: 0 | CK58: 0 | CL58: 0 | CM58: 0 | CN58: 0 | CO58: 0 | CP58: 0 | CQ58: 0 | CR58: 0 | CS58: 0 | CT58: 0 | CU58: 0 | CV58: 0 | CW58: 0 | CX58: 0 | CY58: 0 | CZ58: 0 | DA58: 0 | DB58: 0 | DC58: 0 | DD58: 0 | DE58: 0 | DF58: 0 | DG58: 0 | DH58: 0 | DI58: 0 | DJ58: 0 | DK58: 22750 | DL58: 0 | DM58: 0 | DN58: 0 | DO58: 0 | DP58: 0 | DQ58: 0 | DR58: 0 | DS58: 0 | DT58: 0 | DU58: 0 | DV58: 0 | HW58: 0 | HX58: 0 | HY58: 0 | IC58: 0 | ID58: 0 | IE58: 0 | IF58: 0 | IG58: Mineral premix, for pigs, at plant/RER Economic S | IH58: 014-0033 | II58: E- vitaminer, pulver | IJ58: 1.485656305 | IK58: 1.485656305 | IL58: 1.485656305 | IM58: 1.485656305 | IN58: 0.3896 | IO58: -1.096056305 | IP58: 0 | IQ58: 0 | IR58: 0 | IS58: 0.1156563048 | IT58: 0.1156563048 | IU58: 4.743459854e-08 | IV58: 0.00982597081 | IW58: 0.0001454961354 | IX58: 0.0001490426886 | IY58: 0.0001513621527 | IZ58: 0.0004687856144 | JA58: 5.991363962e-07 | JB58: 3.487808486e-06 | JC58: 0.02948302621 | JD58: 2.988295033e-05 | JE58: 8.221284471e-05 | JF58: 0.0001082914135 | JG58: 0.003565373186 | JH58: 0.003247109972 | JI58: 0.04003629026 | JJ58: 0.158417433 | JK58: 1.37 | JM58: FEFAC | JO58: PORK
A59: 62600 | B59: 626 | C59: 0 | D59: Easylin (en ekstruderet blanding af hørfrø og hvedeklid) | E59: 2019-05-20 | F59: 1.316321868 | G59: 1.356110073 | H59: 74.4 | I59: 59.7999672 | J59: 90.3709245 | K59: 1 | L59: 91.3 | M59: 17.8035 | N59: 26.0205 | O59: 3.8346 | P59: 8.217 | R59: 71.8 | S59: 15.73929888 | T59: 23.71950991 | U59: 26.91159432 | V59: 29.78447029 | W59: 31.69972094 | Y59: 1.76 | Z59: 6.83 | AA59: 0.29 | AB59: 0.5 | AC59: 9.8 | AD59: 3.4 | AE59: 2.05 | AF59: 138 | AG59: 12 | AH59: 57 | AI59: 64 | AJ59: 0 | AK59: 0.2492959027 | AM59: 3.835897436 | AN59: 1.758974359 | AO59: 1.769230769 | AP59: 3.574358974 | AQ59: 1.733333333 | AR59: 3.58974359 | AS59: 5.81025641 | AT59: 2.266666667 | AU59: 4.4 | AV59: 2.969230769 | AW59: 4.641025641 | AY59: 1 | AZ59: 1 | BA59: 1 | BB59: 1 | BC59: 1 | BD59: 1 | BE59: 1 | BF59: 1 | BG59: 1 | BH59: 1 | BI59: 1 | BK59: 19.5 | BL59: 28.5 | BM59: 4.2 | BN59: 9 | BR59: 1.44175451 | BS59: 1.485334143 | BU59: 958 | BV59: 59.04057143 | BW59: 199.8118775 | BX59: 73.84967133 | BY59: 12.420172 | BZ59: 9.250155083 | CA59: 144.9190963 | CC59: 1.60688 | CD59: 6.23579 | CE59: 0.26477 | CF59: 0.4565 | CG59: 8.9474 | CH59: 3.1042 | CI59: 1.87165 | CK59: 125.994 | CL59: 10.956 | CM59: 52.041 | CN59: 58.432 | CO59: 0 | CP59: 0.2276071592 | CQ59: 127.82913 | CR59: 97.11084585 | CS59: 3.725072446 | CT59: 1.708154878 | CU59: 1.718114965 | CV59: 3.426269843 | CW59: 3.471090234 | CX59: 1.683254661 | CY59: 3.486030364 | CZ59: 5.642389146 | DA59: 2.201179173 | DB59: 4.272877217 | DC59: 2.883445115 | DD59: 7.156322333 | DE59: 4.506939256 | DF59: 0 | DG59: 0 | DH59: 0 | DI59: 0 | DJ59: 0 | DK59: 0 | DL59: 0 | DM59: 0 | DN59: 0 | DO59: 0 | DP59: 0 | DQ59: 0 | DR59: 0 | DS59: 0 | DT59: 0 | DU59: 0 | DV59: 0 | DX59: 5 | DY59: 5 | DZ59: 5 | EA59: 5 | EB59: 1 | EC59: 5 | ED59: 5 | EE59: 5 | EF59: 5 | EG59: 5 | EH59: 5 | EI59: 5 | EJ59: 5 | EK59: 5 | EL59: 5 | EM59: 5 | EN59: 5 | EO59: 5 | EP59: 5 | EQ59: 5 | ER59: 5 | ES59: 5 | ET59: 5 | EU59: 5 | EV59: 5 | EW59: 5 | EX59: 5 | EY59: 3 | EZ59: 5 | FA59: 5 | FB59: 5 | FC59: 5 | FF59: 0.4 | FG59: 1 | FH59: 1.2 | FI59: 0.2 | FK59: 1.2 | FL59: 3.3 | FM59: 4.5 | FN59: 6.18 | FO59: 4.87 | FP59: 0.39 | FQ59: 0.05 | FR59: 0.21 | FS59: 0.28 | FT59: 0.23 | FU59: 0.38 | FV59: 0.48 | FW59: 0.2 | FX59: 0.45 | FY59: 0.29 | FZ59: 0.36 | GA59: 0.2 | GB59: 1 | GC59: 0.08 | GD59: 0.1 | GE59: 0.81 | GF59: 0.4 | GG59: 0.23 | GH59: 34.9 | GI59: 1.44 | GJ59: 13.31 | GK59: 8.44 | GN59: 2019 | GO59: 2019 | GP59: 2019 | GQ59: 2019 | GR59: 2019 | GS59: 2019 | GT59: 2019 | GU59: 2019 | GV59: 2019 | GW59: 2019 | GX59: 2019 | GY59: 2019 | GZ59: 2019 | HA59: 2019 | HB59: 2019 | HC59: 2019 | HD59: 2019 | HE59: 2019 | HF59: 2019 | HG59: 2019 | HH59: 2019 | HI59: 2019 | HJ59: 2019 | HK59: 2019 | HL59: 2019 | HM59: 2019 | HN59: 2019 | HO59: 2019 | HP59: 2019 | HQ59: 2019 | HR59: 2019 | HS59: 2019 | HW59: Easylin Power Protect er et ekstruderet hørfrøprodukt består af hørfrø, hvedeklid og antioxidanter. Raffineringen af hørfrøet opnås ved hjælp af en patenteret termo-mekanisk proces, hvor udvalgte hørfrø formales og behandles for at opnå et homogent produkt som til slut ekstruderes. Under ekstruderingen udsættes hørfrøene for et ekstremt tryk, som ændrer produktets struktur og egenskaber. Easylin er GMO-fri og GMP + FSA sikret. | HX59: Easylin bruges som energi koncentrat til svin. Når en foderblanding suppleres med Easylin er det normalt muligt at reducere brugen af andre fedtkilder og proteinkilder på grund af sammensætningen af Easylin. | HY59: 0 | IC59: 33.13615892 | ID59: 34.09378424 | IE59: 34.89180535 | IF59: 35.37061801 | IG59: Linseed, market mix, at regional storage/RER Economic S | IJ59: 2.038449862 | IK59: 2.038449862 | IL59: 2.038449862 | IM59: 2.038449862 | IP59: 9.919668198 | IS59: 1.808449862 | IT59: 1.808449862 | IU59: 3.140709502e-05 | IV59: 0.01323361065 | IW59: 0.004213502939 | IX59: 0.005827205063 | IY59: 0.004258508308 | IZ59: 0.04240530971 | JA59: 0.001368205279 | JB59: 0.01085500677 | JC59: 1.13963503 | JD59: 0.03318716645 | JE59: 0.04176954048 | JF59: 0.001798306304 | JG59: 27.39746041 | JH59: 0.002333896038 | JI59: 0.2450627706 | JJ59: 0.02951935255 | JK59: 0.23 | JM59: FEFAC
A60: 88300 | B60: 883 | C60: 0 | D60: FEDT, teknisk 92/4 (Svinefedt) (Obs.: Gamle data) | E60: 2017-10-23 | F60: 3.814638327 | G60: 3.66176002 | H60: 97.3 | I60: 97.3 | J60: 90 | K60: 1 | L60: 99.5 | M60: 0.0001005050505 | N60: 99.5 | O60: 0 | P60: 0 | R60: 0 | S60: 0 | T60: 0 | U60: 0 | V60: 0 | W60: 0 | Y60: 0 | Z60: 0 | AA60: 0 | AB60: 0 | AC60: 0 | AD60: 0 | AE60: 0 | AF60: 0 | AG60: 0.432160804 | AH60: 0 | AI60: 0 | AJ60: 0 | AK60: 0 | AM60: 0 | AN60: 0 | AO60: 0 | AP60: 0 | AQ60: 0 | AR60: 0 | AS60: 0 | AT60: 0 | AU60: 0 | AV60: 0 | AW60: 0 | AY60: 1 | AZ60: 1 | BA60: 1 | BB60: 1 | BC60: 1 | BD60: 1 | BE60: 1 | BF60: 1 | BG60: 1 | BH60: 1 | BI60: 1 | BK60: 0.000101010101 | BL60: 100 | BM60: 0 | BN60: 0 | BP60: 60 | BQ60: 600 | BR60: 3.833807364 | BS60: 3.680160824 | BU60: 1000 | BV60: 2.999080808 | BW60: 0 | BX60: 0 | BY60: 0 | CC60: 0 | CD60: 0 | CE60: 0 | CF60: 0 | CG60: 0 | CH60: 0 | CI60: 0 | CK60: 0 | CL60: 0.43 | CM60: 0 | CN60: 0 | CO60: 0 | CP60: 0 | CQ60: 0 | CR60: 0 | CS60: 0 | CT60: 0 | CU60: 0 | CV60: 0 | CW60: 0 | CX60: 0 | CY60: 0 | CZ60: 0 | DA60: 0 | DB60: 0 | DC60: 0 | DD60: 0 | DE60: 0 | DF60: 0 | DG60: 0 | DH60: 0 | DI60: 0 | DJ60: 0 | DK60: 0 | DL60: 0 | DM60: 0 | DN60: 0 | DO60: 0 | DP60: 0 | DQ60: 0 | DR60: 0 | DS60: 0 | DT60: 0 | DU60: 0 | DV60: 0 | DW60: 9.2.1 | HW60: Læs udførlig beskrivelse vedr. foderfedt og fedtkvalitet her: http://vsp.lf.dk/Viden/Foder/Raavarer/Foder_raavareliste/Foderfedt_fedtkvalitet.aspx?full=1 (Klik på referencenr. 172 i fanen [Liste over referencer] ) | HX60: Læs udførlig beskrivelse vedr. foderfedt og fedtkvalitet her: http://vsp.lf.dk/Viden/Foder/Raavarer/Foder_raavareliste/Foderfedt_fedtkvalitet.aspx?full=1 (Klik på referencenr. 172 i fanen [Liste over referencer] ) | HY60: 0 | IC60: 0 | ID60: 0 | IE60: 0 | IF60: 0 | IK60: 0.67 | IM60: 0.67 | IN60: 0.67 | JL60: Ja | JM60: Default | JP60: 0.67
A61: 88400 | B61: 884 | C61: 0 | D61: FEDT, Blandingsfedt (Foderblanding af olie og fedtstoffer) (Obs.: Gl. data) | E61: 2017-10-23 | F61: 3.562255889 | G61: 3.420087743 | H61: 97 | I61: 97 | J61: 90 | K61: 0.94 | L61: 99 | M61: 0.0001 | N61: 99 | O61: 0 | P61: 0 | R61: 0 | S61: 0 | T61: 0 | U61: 0 | V61: 0 | W61: 0 | Y61: 0 | Z61: 0 | AA61: 0 | AB61: 0 | AC61: 0 | AD61: 0 | AE61: 0 | AF61: 0 | AG61: 0 | AH61: 0 | AI61: 0 | AJ61: 0 | AK61: 0 | AM61: 0 | AN61: 0 | AO61: 0 | AP61: 0 | AQ61: 0 | AR61: 0 | AS61: 0 | AT61: 0 | AU61: 0 | AV61: 0 | AW61: 0 | AY61: 1 | AZ61: 1 | BA61: 1 | BB61: 1 | BC61: 1 | BD61: 1 | BE61: 1 | BF61: 1 | BG61: 1 | BH61: 1 | BI61: 1 | BK61: 0.000101010101 | BL61: 100 | BM61: 0 | BN61: 0 | BP61: 65 | BQ61: 650 | BR61: 3.598238272 | BS61: 3.454634084 | BU61: 1000 | BV61: -0.0009191919191 | BW61: 0 | BX61: 0 | BY61: 0 | CC61: 0 | CD61: 0 | CE61: 0 | CF61: 0 | CG61: 0 | CH61: 0 | CI61: 0 | CK61: 0 | CL61: 0 | CM61: 0 | CN61: 0 | CO61: 0 | CP61: 0 | CQ61: 0 | CR61: 0 | CS61: 0 | CT61: 0 | CU61: 0 | CV61: 0 | CW61: 0 | CX61: 0 | CY61: 0 | CZ61: 0 | DA61: 0 | DB61: 0 | DC61: 0 | DD61: 0 | DE61: 0 | DF61: 0 | DG61: 0 | DH61: 0 | DI61: 0 | DJ61: 0 | DK61: 0 | DL61: 0 | DM61: 0 | DN61: 0 | DO61: 0 | DP61: 0 | DQ61: 0 | DR61: 0 | DS61: 0 | DT61: 0 | DU61: 0 | DV61: 0 | HW61: Kvaliteten af blandingsfedt afhænger meget af, hvad der er blandet i den pågældende leverance; normalt består det af planteolie og et eller flere industrirestprodukter. Læs udførlig beskrivelse vedr. foderfedt og fedtkvalitet her: http://vsp.lf.dk/Viden/Foder/Raavarer/Foder_raavareliste/Foderfedt_fedtkvalitet.aspx?full=1 (Klik på referencenr. 172 i fanen [Liste over referencer] ) | HX61: SPECIELLE PRODUKTER: Det er ikke tilladt at bruge friturefedt, hvori der har været tilberedt animalsk protein, da det hører til kategorien ”madaffald”, som er forbudt at anvende i svinefoder. Vær opmærksom på, at fedt/olierester fra fødevareindustrien kan indeholde store mængder af fx salte, der skal tages højde for ved optimering af foderet – bed altid om en indholdsdeklaration for ”øvrige fedtkilder”. Læs udførlig beskrivelse vedr. foderfedt og fedtkvalitet her: http://vsp.lf.dk/Viden/Foder/Raavarer/Foder_raavareliste/Foderfedt_fedtkvalitet.aspx?full=1 (Klik på referencenr. 172 i fanen [Liste over referencer] ) | HY61: 0 | IC61: 0 | ID61: 0 | IE61: 0 | IF61: 0 | IK61: 2.05 | IM61: 2.05 | IN61: 2.05 | JL61: Ja | JM61: Default | JP61: 2.05
A62: 99920 | B62: 999 | C62: 20 | D62: FENYLALANIN,L98,5 | E62: 2017-10-23 | F62: 1.197431829 | G62: 1.147668429 | H62: 100 | I62: 100 | J62: 100 | K62: 1 | L62: 99 | M62: 52.47 | N62: 0 | O62: 15.048 | P62: 0 | R62: 100 | S62: 0 | T62: 0 | U62: 0 | V62: 0 | W62: 0 | Y62: 0 | Z62: 0 | AA62: 0 | AB62: 0 | AC62: 0 | AD62: 0 | AE62: 0 | AF62: 0 | AG62: 0 | AH62: 0 | AI62: 0 | AJ62: 0 | AK62: 0 | AM62: 0 | AN62: 0 | AO62: 0 | AP62: 0 | AQ62: 0 | AR62: 0 | AS62: 0 | AT62: 0 | AU62: 188.679245 | AV62: 0 | AW62: 0 | AY62: 1 | AZ62: 1 | BA62: 1 | BB62: 1 | BC62: 1 | BD62: 1 | BE62: 1 | BF62: 1 | BG62: 1 | BH62: 1 | BI62: 1 | BK62: 53 | BL62: 0 | BM62: 15.2 | BN62: 0 | BP62: 0 | BQ62: 0 | BR62: 1.2095271 | BS62: 1.159261039 | BU62: 848 | BV62: 365.7 | BW62: 0 | BX62: 0 | BY62: 0 | CC62: 0 | CD62: 0 | CE62: 0 | CF62: 0 | CG62: 0 | CH62: 0 | CI62: 0 | CK62: 0 | CL62: 0 | CM62: 0 | CN62: 0 | CO62: 0 | CP62: 0 | CQ62: 524.7 | CR62: 438.1877842 | CS62: 0 | CT62: 0 | CU62: 0 | CV62: 0 | CW62: 0 | CX62: 0 | CY62: 0 | CZ62: 0 | DA62: 0 | DB62: 826.7694029 | DC62: 0 | DD62: 826.7694029 | DE62: 0 | DF62: 0 | DG62: 0 | DH62: 0 | DI62: 0 | DJ62: 0 | DK62: 0 | DL62: 0 | DM62: 0 | DN62: 0 | DO62: 0 | DP62: 0 | DQ62: 0 | DR62: 0 | DS62: 0 | DT62: 0 | DU62: 0 | DV62: 0 | IC62: 0 | ID62: 0 | IE62: 0 | IF62: 0 | IG62: Total minerals, additives, vitamins, at plant/RER Economic S | IJ62: 1.49099236 | IK62: 1.49099236 | IL62: 1.49099236 | IM62: 1.49099236 | IP62: 0 | IS62: 0.1209923602 | IT62: 0.1209923602 | IU62: 4.753604154e-08 | IV62: 0.009516472635 | IW62: 0.0001749807113 | IX62: 0.0001530180815 | IY62: 0.0001811766287 | IZ62: 0.000479258052 | JA62: 5.822603595e-07 | JB62: 3.391835409e-06 | JC62: 0.03227756252 | JD62: 2.902376505e-05 | JE62: 9.252898595e-05 | JF62: 0.0001104434329 | JG62: 0.003543980903 | JH62: 0.003938967898 | JI62: 0.04435402685 | JJ62: 0.1517919422 | JK62: 1.37 | JM62: FEFAC | JO62: PORK
